Workbook

Sheet Checklist
A1: Price Sheet Checklist
A3: Respondent Name:
A4: Electronic Signature:
A6: Progress Indicator Legend
B7: Unattempted ===> | C7: 0
B8: Attempted, but Incomplete ===> | C8: 2
B9: Complete ===> | C9: 3,101
A11: Price Sheet 1 | E11: Response Status
B12: CPE Router, VPN, and Firewall | D12: ==================> | E12: =COUNT('1 - CPE-Router, VPN, & Firewall'!G6:M9,'1 - CPE-Router, VPN, & Firewall'!G12:M13,'1 - CPE-Router, VPN, & Firewall'!J19:K1408) -> 0
A13: Price Sheet 2
B14: WAN Service | D14: ==================> | E14: =COUNT('2 - WAN Service'!J7:J86,'2 - WAN Service'!M7:M20,'2 - WAN Service'!R21:R24,'2 - WAN Service'!U25:U86,'2 - WAN Service'!X25:X86,'2 - WAN Service'!AA21:AA86,'2 - WAN Service'!AD21:AD86,'2 - WAN Service'!AE21:AE86,'2 - WAN Service'!AF7:AF86,'2 - WAN Service'!AG7:AJ86)-(COUNTIF('2 - WAN Service'!AK7:AK86,"Error: E > D")) -> 0
A15: Price Sheet 3
B16: MAN Service | D16: ==================> | E16: =COUNT('3 - MAN Service'!S7:S72) -> 0
A17: Price Sheet 4
B18: Primary Data Center Service | D18: ==================> | E18: =COUNT('4 - PDC Service'!C8:H66,'4 - PDC Service'!O8:O66)-(COUNTA('4 - PDC Service'!I8:I66)-COUNTIF('4 - PDC Service'!I8:I66,">0")-COUNTIF('4 - PDC Service'!I8:I66,"<0")) -> -59
A19: Price Sheet 5
B20: Extranet Local Loop Access | D20: ==================> | E20: =COUNT('5 - Extranet Local Loop Access'!G6:G13) -> 0
A21: Price Sheet 6
B22: Centralized VPN Service | D22: ==================> | E22: =COUNT('6 - Centralized VPN Service'!D7:E9,'6 - Centralized VPN Service'!D11:E13,'6 - Centralized VPN Service'!D15:E16,'6 - Centralized VPN Service'!D18:E20) -> 0
A23: Price Sheet 7
B24: Broadband Services, DSL | D24: ==================> | E24: =COUNT('7 - Broadband; DSL'!C8:C19,'7 - Broadband; DSL'!D8:D19,'7 - Broadband; DSL'!G8:G20,'7 - Broadband; DSL'!I8:M20)-(COUNTA('7 - Broadband; DSL'!N8:N20)-COUNTIF('7 - Broadband; DSL'!N8:N20,">0")-COUNTIF('7 - Broadband; DSL'!N8:N20,"<0")) -> -13
A25: Price Sheet 8
B26: Broadband Services, Cable | D26: ==================> | E26: =COUNT('8 - Broadband; Cable'!C8:E13,'8 - Broadband; Cable'!E14,'8 - Broadband; Cable'!G8:K14)-(COUNTA('8 - Broadband; Cable'!L8:L14)-COUNTIF('8 - Broadband; Cable'!L8:L14, "<0")-COUNTIF('8 - Broadband; Cable'!L8:L14,">0")) -> -7
A27: Price Sheet 9
B28: Ancillary Network Services | D28: ==================> | E28: =COUNT('9 - Ancillary Network Svcs'!E6:E8,'9 - Ancillary Network Svcs'!F6,'9 - Ancillary Network Svcs'!E10:E15,'9 - Ancillary Network Svcs'!F16,'9 - Ancillary Network Svcs'!F18:F21,'9 - Ancillary Network Svcs'!F23:F25,'9 - Ancillary Network Svcs'!F27:F30,'9 - Ancillary Network Svcs'!F32:F39) -> 0
A29: Price Sheet 10
B30: Ancillary Managed Security Services | D30: ==================> | E30: =COUNT('10 - Ancillary Managed Sec Svcs'!D8:G12,'10 - Ancillary Managed Sec Svcs'!D15:G19,'10 - Ancillary Managed Sec Svcs'!D22:G24,'10 - Ancillary Managed Sec Svcs'!D27:G27,'10 - Ancillary Managed Sec Svcs'!D30:G30,'10 - Ancillary Managed Sec Svcs'!D32:G32,'10 - Ancillary Managed Sec Svcs'!D35:G38,'10 - Ancillary Managed Sec Svcs'!D40:G40) -> 0
A31: Price Sheet 11
B32: Snapshot 1 - Current Services | D32: ==================> | E32: =COUNTBLANK('11 -Snapshot 1 Current Services'!E6:E333) -> 328
A33: Price Sheet 12
B34: Snapshot 2 - Education Standards | D34: ==================> | E34: =COUNTBLANK('12 - Snapshot 2 Ed Standards'!F6:F72) -> 67
A36: Monthly Impact by Customer (based on Current Network Snapshot)
B37: State Agencies: | D37: County & City Entities: | H37: Education Entities: | J37: Other Entities:
B38: Agriculture & Consumer Services | C38: =SUMIF('All Services'!$I$2:$I$30566,Checklist!B38,'All Services'!$Y$2:$Y$30566) ->  | D38: Alachua Sher Dept | E38: =SUMIF('All Services'!$I$2:$I$30566,Checklist!D38,'All Services'!$Y$2:$Y$30566) ->  | F38: Seminole Cnty Prop Apprser | G38: =SUMIF('All Services'!$I$2:$I$30566,Checklist!F38,'All Services'!$Y$2:$Y$30566) ->  | H38: Brevard Cmnty Colg | I38: =SUMIF('All Services'!$I$2:$I$30566,Checklist!H38,'All Services'!$Y$2:$Y$30566) -> $(1,271.56) | J38: First Judicial Circuit of Florida | K38: =SUMIF('All Services'!$I$2:$I$30566,Checklist!J38,'All Services'!$Y$2:$Y$30566) ->  | L38: Pasco Hernando Jobs & Educ Prtnrshp Regl | M38: =SUMIF('All Services'!$I$2:$I$30566,Checklist!L38,'All Services'!$Y$2:$Y$30566) -> $(75.00)
A39: AHCA | B39: Agency For Healthcare Administration | C39: =SUMIF('All Services'!$I$2:$I$30566,Checklist!B39,'All Services'!$Y$2:$Y$30566) ->  | D39: Baker E911 | E39: =SUMIF('All Services'!$I$2:$I$30566,Checklist!D39,'All Services'!$Y$2:$Y$30566) ->  | F39: Seminole Co | G39: =SUMIF('All Services'!$I$2:$I$30566,Checklist!F39,'All Services'!$Y$2:$Y$30566) ->  | H39: Ctrl FL Cmnty Colg | I39: =SUMIF('All Services'!$I$2:$I$30566,Checklist!H39,'All Services'!$Y$2:$Y$30566) -> $(3,627.81) | J39: State Courts System | K39: =SUMIF('All Services'!$I$2:$I$30566,Checklist!J39,'All Services'!$Y$2:$Y$30566) ->  | L39: Pnhdl Area Educl Cooprtv | M39: =SUMIF('All Services'!$I$2:$I$30566,Checklist!L39,'All Services'!$Y$2:$Y$30566) -> 
A40: APD | B40: Persons With Disabilities | C40: =SUMIF('All Services'!$I$2:$I$30566,Checklist!B40,'All Services'!$Y$2:$Y$30566) ->  | D40: Bradford Gvmt | E40: =SUMIF('All Services'!$I$2:$I$30566,Checklist!D40,'All Services'!$Y$2:$Y$30566) ->  | F40: Seminole Sher Dept | G40: =SUMIF('All Services'!$I$2:$I$30566,Checklist!F40,'All Services'!$Y$2:$Y$30566) ->  | H40: Daytona Bch Cmnty Colg | I40: =SUMIF('All Services'!$I$2:$I$30566,Checklist!H40,'All Services'!$Y$2:$Y$30566) ->  | J40: Alachua/Bradford Regional Workforce Board | K40: =SUMIF('All Services'!$I$2:$I$30566,Checklist!J40,'All Services'!$Y$2:$Y$30566) -> $(235.00) | L40: Pride Enterprises | M40: =SUMIF('All Services'!$I$2:$I$30566,Checklist!L40,'All Services'!$Y$2:$Y$30566) -> 
A41: Citrus | B41: Business & Professional Reg | C41: =SUMIF('All Services'!$I$2:$I$30566,Checklist!B41,'All Services'!$Y$2:$Y$30566) ->  | D41: Brevard County | E41: =SUMIF('All Services'!$I$2:$I$30566,Checklist!D41,'All Services'!$Y$2:$Y$30566) ->  | F41: Suwanee Govt | G41: =SUMIF('All Services'!$I$2:$I$30566,Checklist!F41,'All Services'!$Y$2:$Y$30566) ->  | H41: Edison Colg | I41: =SUMIF('All Services'!$I$2:$I$30566,Checklist!H41,'All Services'!$Y$2:$Y$30566) -> $(3,187.25) | J41: Alliance For Aging Inc | K41: =SUMIF('All Services'!$I$2:$I$30566,Checklist!J41,'All Services'!$Y$2:$Y$30566) -> $(400.00) | L41: Prtnrshp For Strong Families Inc | M41: =SUMIF('All Services'!$I$2:$I$30566,Checklist!L41,'All Services'!$Y$2:$Y$30566) -> 
A42: COR | B42: Citrus | C42: =SUMIF('All Services'!$I$2:$I$30566,Checklist!B42,'All Services'!$Y$2:$Y$30566) ->  | D42: Brevard Bd of Cnty Commrs | E42: =SUMIF('All Services'!$I$2:$I$30566,Checklist!D42,'All Services'!$Y$2:$Y$30566) ->  | F42: Taylor Sher Dept | G42: =SUMIF('All Services'!$I$2:$I$30566,Checklist!F42,'All Services'!$Y$2:$Y$30566) ->  | H42: FL Keys Cmnty Colg | I42: =SUMIF('All Services'!$I$2:$I$30566,Checklist!H42,'All Services'!$Y$2:$Y$30566) ->  | J42: Apalachee Ctr Inc | K42: =SUMIF('All Services'!$I$2:$I$30566,Checklist!J42,'All Services'!$Y$2:$Y$30566) ->  | L42: Psi Fmly Svcs Inc | M42: =SUMIF('All Services'!$I$2:$I$30566,Checklist!L42,'All Services'!$Y$2:$Y$30566) -> $(75.00)
A43: DBPR | B43: Common Equipment | C43: =SUMIF('All Services'!$I$2:$I$30566,Checklist!B43,'All Services'!$Y$2:$Y$30566) ->  | D43: Brevard Sher Dept | E43: =SUMIF('All Services'!$I$2:$I$30566,Checklist!D43,'All Services'!$Y$2:$Y$30566) ->  | F43: Volusia Cnty Govt-Clrk of Crct Ct | G43: =SUMIF('All Services'!$I$2:$I$30566,Checklist!F43,'All Services'!$Y$2:$Y$30566) -> $(75.00) | H43: Flagler Colg Inc | I43: =SUMIF('All Services'!$I$2:$I$30566,Checklist!H43,'All Services'!$Y$2:$Y$30566) -> $(2,769.82) | J43: Area Agcy On Aging Broward Cnty | K43: =SUMIF('All Services'!$I$2:$I$30566,Checklist!J43,'All Services'!$Y$2:$Y$30566) -> $(160.00) | L43: S FL Regional Trnsprtn Athrty (Sfrta) | M43: =SUMIF('All Services'!$I$2:$I$30566,Checklist!L43,'All Services'!$Y$2:$Y$30566) -> 
A44: DCA | B44: Corrections | C44: =SUMIF('All Services'!$I$2:$I$30566,Checklist!B44,'All Services'!$Y$2:$Y$30566) ->  | D44: Brevard Tax Coll | E44: =SUMIF('All Services'!$I$2:$I$30566,Checklist!D44,'All Services'!$Y$2:$Y$30566) ->  | F44: Volusia Govt | G44: =SUMIF('All Services'!$I$2:$I$30566,Checklist!F44,'All Services'!$Y$2:$Y$30566) ->  | H44: Florida Gateway College | I44: =SUMIF('All Services'!$I$2:$I$30566,Checklist!H44,'All Services'!$Y$2:$Y$30566) ->  | J44: Area Agcy On Aging Ctrl FL | K44: =SUMIF('All Services'!$I$2:$I$30566,Checklist!J44,'All Services'!$Y$2:$Y$30566) -> $(75.00) | L44: S FL Wrkfrc | M44: =SUMIF('All Services'!$I$2:$I$30566,Checklist!L44,'All Services'!$Y$2:$Y$30566) -> 
A45: DCF | B45: Children & Families | C45: =SUMIF('All Services'!$I$2:$I$30566,Checklist!B45,'All Services'!$Y$2:$Y$30566) ->  | D45: Broward Avn Dept | E45: =SUMIF('All Services'!$I$2:$I$30566,Checklist!D45,'All Services'!$Y$2:$Y$30566) -> $(6,374.50) | F45: Walton Sher Dept | G45: =SUMIF('All Services'!$I$2:$I$30566,Checklist!F45,'All Services'!$Y$2:$Y$30566) ->  | H45: Florida Virtual Campus | I45: =SUMIF('All Services'!$I$2:$I$30566,Checklist!H45,'All Services'!$Y$2:$Y$30566) ->  | J45: Area Agcy On Aging Palm Bch Gardens | K45: =SUMIF('All Services'!$I$2:$I$30566,Checklist!J45,'All Services'!$Y$2:$Y$30566) -> $(150.00) | L45: Sacred Heart Hosp | M45: =SUMIF('All Services'!$I$2:$I$30566,Checklist!L45,'All Services'!$Y$2:$Y$30566) -> $(10.00)
A46: DEA | B46: Elder Affairs | C46: =SUMIF('All Services'!$I$2:$I$30566,Checklist!B46,'All Services'!$Y$2:$Y$30566) ->  | D46: Broward Bd of Cnty Commr | E46: =SUMIF('All Services'!$I$2:$I$30566,Checklist!D46,'All Services'!$Y$2:$Y$30566) -> $(125.00) | F46: Washington Bd of Cnty Commr | G46: =SUMIF('All Services'!$I$2:$I$30566,Checklist!F46,'All Services'!$Y$2:$Y$30566) ->  | H46: Gulf Coast State Colg | I46: =SUMIF('All Services'!$I$2:$I$30566,Checklist!H46,'All Services'!$Y$2:$Y$30566) ->  | J46: Area Agcy On Aging Tall | K46: =SUMIF('All Services'!$I$2:$I$30566,Checklist!J46,'All Services'!$Y$2:$Y$30566) -> $(75.00) | L46: Sarasota Fmly Ymca | M46: =SUMIF('All Services'!$I$2:$I$30566,Checklist!L46,'All Services'!$Y$2:$Y$30566) -> $(75.00)
A47: DEO | B47: Economic Opportunity | C47: =SUMIF('All Services'!$I$2:$I$30566,Checklist!B47,'All Services'!$Y$2:$Y$30566) ->  | D47: Broward OFC of Environ Svcs | E47: =SUMIF('All Services'!$I$2:$I$30566,Checklist!D47,'All Services'!$Y$2:$Y$30566) ->  | F47: Boca Raton | G47: =SUMIF('All Services'!$I$2:$I$30566,Checklist!F47,'All Services'!$Y$2:$Y$30566) ->  | H47: Hillsborough Cmnty Colg | I47: =SUMIF('All Services'!$I$2:$I$30566,Checklist!H47,'All Services'!$Y$2:$Y$30566) -> $(7,312.90) | J47: Area Agcy On Agng of Pasco-Pinellas Inc | K47: =SUMIF('All Services'!$I$2:$I$30566,Checklist!J47,'All Services'!$Y$2:$Y$30566) -> $(75.00) | L47: Sarasota Manatee Arprt Athrty | M47: =SUMIF('All Services'!$I$2:$I$30566,Checklist!L47,'All Services'!$Y$2:$Y$30566) -> 
A48: DEP | B48: Environmental Protection | C48: =SUMIF('All Services'!$I$2:$I$30566,Checklist!B48,'All Services'!$Y$2:$Y$30566) ->  | D48: Broward Sher Dept | E48: =SUMIF('All Services'!$I$2:$I$30566,Checklist!D48,'All Services'!$Y$2:$Y$30566) ->  | F48: Boynton Bch | G48: =SUMIF('All Services'!$I$2:$I$30566,Checklist!F48,'All Services'!$Y$2:$Y$30566) ->  | H48: Indian River Cmnty Colg | I48: =SUMIF('All Services'!$I$2:$I$30566,Checklist!H48,'All Services'!$Y$2:$Y$30566) ->  | J48: Big Bend Cmmty Based Care Inc | K48: =SUMIF('All Services'!$I$2:$I$30566,Checklist!J48,'All Services'!$Y$2:$Y$30566) ->  | L48: State Board of Administration | M48: =SUMIF('All Services'!$I$2:$I$30566,Checklist!L48,'All Services'!$Y$2:$Y$30566) -> $(225.00)
A49: DFS | B49: Financial Services | C49: =SUMIF('All Services'!$I$2:$I$30566,Checklist!B49,'All Services'!$Y$2:$Y$30566) ->  | D49: Clay Bd of Cnty Commr | E49: =SUMIF('All Services'!$I$2:$I$30566,Checklist!D49,'All Services'!$Y$2:$Y$30566) ->  | F49: Boynton Bch Plc Dept | G49: =SUMIF('All Services'!$I$2:$I$30566,Checklist!F49,'All Services'!$Y$2:$Y$30566) ->  | H49: Miami-Dade Cmnty Colg | I49: =SUMIF('All Services'!$I$2:$I$30566,Checklist!H49,'All Services'!$Y$2:$Y$30566) ->  | J49: Brevard Workforce Dev Bd | K49: =SUMIF('All Services'!$I$2:$I$30566,Checklist!J49,'All Services'!$Y$2:$Y$30566) -> $(75.00) | L49: Shands Commctns | M49: =SUMIF('All Services'!$I$2:$I$30566,Checklist!L49,'All Services'!$Y$2:$Y$30566) -> 
A50: DHSMV | B50: Highway Safety & Motor Vehicles | C50: =SUMIF('All Services'!$I$2:$I$30566,Checklist!B50,'All Services'!$Y$2:$Y$30566) ->  | D50: Clay Cnty Behavioral Hlth Ctr | E50: =SUMIF('All Services'!$I$2:$I$30566,Checklist!D50,'All Services'!$Y$2:$Y$30566) ->  | F50: Chiefland | G50: =SUMIF('All Services'!$I$2:$I$30566,Checklist!F50,'All Services'!$Y$2:$Y$30566) ->  | H50: N FL Community College | I50: =SUMIF('All Services'!$I$2:$I$30566,Checklist!H50,'All Services'!$Y$2:$Y$30566) ->  | J50: Bridgeway Ctr Inc | K50: =SUMIF('All Services'!$I$2:$I$30566,Checklist!J50,'All Services'!$Y$2:$Y$30566) -> $(75.00) | L50: Solid Waste Athrty of Palm Bch Cnty | M50: =SUMIF('All Services'!$I$2:$I$30566,Checklist!L50,'All Services'!$Y$2:$Y$30566) -> 
A51: DJJ | B51: Juvenile Justice | C51: =SUMIF('All Services'!$I$2:$I$30566,Checklist!B51,'All Services'!$Y$2:$Y$30566) ->  | D51: Clay Cnty Clrk of Crct Ct | E51: =SUMIF('All Services'!$I$2:$I$30566,Checklist!D51,'All Services'!$Y$2:$Y$30566) ->  | F51: City of Apopka | G51: =SUMIF('All Services'!$I$2:$I$30566,Checklist!F51,'All Services'!$Y$2:$Y$30566) ->  | H51: Palm Beach Cmnty Colg | I51: =SUMIF('All Services'!$I$2:$I$30566,Checklist!H51,'All Services'!$Y$2:$Y$30566) ->  | J51: Broward Workforce Dev Board | K51: =SUMIF('All Services'!$I$2:$I$30566,Checklist!J51,'All Services'!$Y$2:$Y$30566) ->  | L51: Sr Sltns of Sw Fl | M51: =SUMIF('All Services'!$I$2:$I$30566,Checklist!L51,'All Services'!$Y$2:$Y$30566) -> $(415.00)
A52: DLA | B52: Legal Affairs | C52: =SUMIF('All Services'!$I$2:$I$30566,Checklist!B52,'All Services'!$Y$2:$Y$30566) ->  | D52: Clay Cnty Utlty Athrty | E52: =SUMIF('All Services'!$I$2:$I$30566,Checklist!D52,'All Services'!$Y$2:$Y$30566) ->  | F52: Cocoa Bch | G52: =SUMIF('All Services'!$I$2:$I$30566,Checklist!F52,'All Services'!$Y$2:$Y$30566) ->  | H52: Pasco-Hernando Cmnty Colg | I52: =SUMIF('All Services'!$I$2:$I$30566,Checklist!H52,'All Services'!$Y$2:$Y$30566) ->  | J52: Camelot Cmnty Care Inc | K52: =SUMIF('All Services'!$I$2:$I$30566,Checklist!J52,'All Services'!$Y$2:$Y$30566) ->  | L52: State Attys Ofc 12Th Judicial Circuit | M52: =SUMIF('All Services'!$I$2:$I$30566,Checklist!L52,'All Services'!$Y$2:$Y$30566) -> $(30.00)
A53: DMA | B53: Law Enforcement | C53: =SUMIF('All Services'!$I$2:$I$30566,Checklist!B53,'All Services'!$Y$2:$Y$30566) ->  | D53: Clay Tax Collector | E53: =SUMIF('All Services'!$I$2:$I$30566,Checklist!D53,'All Services'!$Y$2:$Y$30566) ->  | F53: Coconut Creek | G53: =SUMIF('All Services'!$I$2:$I$30566,Checklist!F53,'All Services'!$Y$2:$Y$30566) -> $(1,623.36) | H53: Pensacola St Colg | I53: =SUMIF('All Services'!$I$2:$I$30566,Checklist!H53,'All Services'!$Y$2:$Y$30566) -> $(2,769.82) | J53: Careersource Capital Region | K53: =SUMIF('All Services'!$I$2:$I$30566,Checklist!J53,'All Services'!$Y$2:$Y$30566) ->  | L53: Suncoast Community Health Centers, Inc | M53: =SUMIF('All Services'!$I$2:$I$30566,Checklist!L53,'All Services'!$Y$2:$Y$30566) -> 
A54: DMS | B54: Military Affairs | C54: =SUMIF('All Services'!$I$2:$I$30566,Checklist!B54,'All Services'!$Y$2:$Y$30566) ->  | D54: Collier Sher Dept | E54: =SUMIF('All Services'!$I$2:$I$30566,Checklist!D54,'All Services'!$Y$2:$Y$30566) -> $(10.00) | F54: Coral Gables | G54: =SUMIF('All Services'!$I$2:$I$30566,Checklist!F54,'All Services'!$Y$2:$Y$30566) -> $(572.91) | H54: Santa Fe Cmnty Colg | I54: =SUMIF('All Services'!$I$2:$I$30566,Checklist!H54,'All Services'!$Y$2:$Y$30566) -> $(2,004.45) | J54: Careersource Suncoast | K54: =SUMIF('All Services'!$I$2:$I$30566,Checklist!J54,'All Services'!$Y$2:$Y$30566) -> $(75.00) | L54: Suwannee Riv Ecnmc Cncl | M54: =SUMIF('All Services'!$I$2:$I$30566,Checklist!L54,'All Services'!$Y$2:$Y$30566) -> $(75.00)
A55: DOAH | B55: Management Services | C55: =SUMIF('All Services'!$I$2:$I$30566,Checklist!B55,'All Services'!$Y$2:$Y$30566) ->  | D55: Columbia Sher Dept | E55: =SUMIF('All Services'!$I$2:$I$30566,Checklist!D55,'All Services'!$Y$2:$Y$30566) ->  | F55: Davie | G55: =SUMIF('All Services'!$I$2:$I$30566,Checklist!F55,'All Services'!$Y$2:$Y$30566) ->  | H55: St Johns River Cmnty Colg | I55: =SUMIF('All Services'!$I$2:$I$30566,Checklist!H55,'All Services'!$Y$2:$Y$30566) ->  | J55: Central FL Behavioral Hlth Ntwk | K55: =SUMIF('All Services'!$I$2:$I$30566,Checklist!J55,'All Services'!$Y$2:$Y$30566) ->  | L55: Sw FL Wkfrc Dev Bd | M55: =SUMIF('All Services'!$I$2:$I$30566,Checklist!L55,'All Services'!$Y$2:$Y$30566) -> $(75.00)
A56: DOE | B56: Administrative Hearings | C56: =SUMIF('All Services'!$I$2:$I$30566,Checklist!B56,'All Services'!$Y$2:$Y$30566) ->  | D56: Dade Expressway Authority | E56: =SUMIF('All Services'!$I$2:$I$30566,Checklist!D56,'All Services'!$Y$2:$Y$30566) ->  | F56: Daytona Bch Shores | G56: =SUMIF('All Services'!$I$2:$I$30566,Checklist!F56,'All Services'!$Y$2:$Y$30566) ->  | H56: State College of Florida | I56: =SUMIF('All Services'!$I$2:$I$30566,Checklist!H56,'All Services'!$Y$2:$Y$30566) -> $(30.00) | J56: Childnet Inc | K56: =SUMIF('All Services'!$I$2:$I$30566,Checklist!J56,'All Services'!$Y$2:$Y$30566) -> $(160.00) | L56: Tampa Bay Water | M56: =SUMIF('All Services'!$I$2:$I$30566,Checklist!L56,'All Services'!$Y$2:$Y$30566) -> 
A57: DOH | B57: Education | C57: =SUMIF('All Services'!$I$2:$I$30566,Checklist!B57,'All Services'!$Y$2:$Y$30566) ->  | D57: Dade Miami Intrntl Arprt | E57: =SUMIF('All Services'!$I$2:$I$30566,Checklist!D57,'All Services'!$Y$2:$Y$30566) -> $(5,789.64) | F57: Deltona | G57: =SUMIF('All Services'!$I$2:$I$30566,Checklist!F57,'All Services'!$Y$2:$Y$30566) -> $(20.00) | H57: Valencia Cmnty Colg | I57: =SUMIF('All Services'!$I$2:$I$30566,Checklist!H57,'All Services'!$Y$2:$Y$30566) -> $(4,613.95) | J57: Childnet Inc-Pb | K57: =SUMIF('All Services'!$I$2:$I$30566,Checklist!J57,'All Services'!$Y$2:$Y$30566) -> $(20.00) | L57: Tampa Bay Workforce Alliance Inc | M57: =SUMIF('All Services'!$I$2:$I$30566,Checklist!L57,'All Services'!$Y$2:$Y$30566) -> 
A58: DOR | B58: Health | C58: =SUMIF('All Services'!$I$2:$I$30566,Checklist!B58,'All Services'!$Y$2:$Y$30566) ->  | D58: Dade County | E58: =SUMIF('All Services'!$I$2:$I$30566,Checklist!D58,'All Services'!$Y$2:$Y$30566) ->  | F58: Ft Lauderdale | G58: =SUMIF('All Services'!$I$2:$I$30566,Checklist!F58,'All Services'!$Y$2:$Y$30566) ->  | H58: Florida Virtual Schl | I58: =SUMIF('All Services'!$I$2:$I$30566,Checklist!H58,'All Services'!$Y$2:$Y$30566) ->  | J58: Chlds Home Scty North Ctr Div | K58: =SUMIF('All Services'!$I$2:$I$30566,Checklist!J58,'All Services'!$Y$2:$Y$30566) ->  | L58: The Ctr For Drug Free Living Inc | M58: =SUMIF('All Services'!$I$2:$I$30566,Checklist!L58,'All Services'!$Y$2:$Y$30566) -> 
A59: DOS | B59: Lottery | C59: =SUMIF('All Services'!$I$2:$I$30566,Checklist!B59,'All Services'!$Y$2:$Y$30566) ->  | D59: Dixie Bd of Cnty Commr | E59: =SUMIF('All Services'!$I$2:$I$30566,Checklist!D59,'All Services'!$Y$2:$Y$30566) ->  | F59: Ft Pierce | G59: =SUMIF('All Services'!$I$2:$I$30566,Checklist!F59,'All Services'!$Y$2:$Y$30566) ->  | H59: Saint Edward'S School, Inc | I59: =SUMIF('All Services'!$I$2:$I$30566,Checklist!H59,'All Services'!$Y$2:$Y$30566) ->  | J59: Citzn Prop Ins Corp | K59: =SUMIF('All Services'!$I$2:$I$30566,Checklist!J59,'All Services'!$Y$2:$Y$30566) ->  | L59: United Home Care Services Inc | M59: =SUMIF('All Services'!$I$2:$I$30566,Checklist!L59,'All Services'!$Y$2:$Y$30566) -> $(150.00)
A60: DOT | B60: Revenue | C60: =SUMIF('All Services'!$I$2:$I$30566,Checklist!B60,'All Services'!$Y$2:$Y$30566) ->  | D60: Escambia Clrk of Crts | E60: =SUMIF('All Services'!$I$2:$I$30566,Checklist!D60,'All Services'!$Y$2:$Y$30566) ->  | F60: Gainesville Police Dept | G60: =SUMIF('All Services'!$I$2:$I$30566,Checklist!F60,'All Services'!$Y$2:$Y$30566) -> $(20.00) | H60: Sdb-FL School For The Deaf & Blind | I60: =SUMIF('All Services'!$I$2:$I$30566,Checklist!H60,'All Services'!$Y$2:$Y$30566) ->  | J60: Clm Workforce Connection-Withlachoochee | K60: =SUMIF('All Services'!$I$2:$I$30566,Checklist!J60,'All Services'!$Y$2:$Y$30566) -> $(75.00) | L60: Vlg of Wellington | M60: =SUMIF('All Services'!$I$2:$I$30566,Checklist!L60,'All Services'!$Y$2:$Y$30566) -> 
A61: DVA | B61: State | C61: =SUMIF('All Services'!$I$2:$I$30566,Checklist!B61,'All Services'!$Y$2:$Y$30566) ->  | D61: Escambia Cnty Lakeview Ctr | E61: =SUMIF('All Services'!$I$2:$I$30566,Checklist!D61,'All Services'!$Y$2:$Y$30566) ->  | F61: Gulf Breeze | G61: =SUMIF('All Services'!$I$2:$I$30566,Checklist!F61,'All Services'!$Y$2:$Y$30566) ->  | H61: Unity of Delray Beach Inc Unity Schl | I61: =SUMIF('All Services'!$I$2:$I$30566,Checklist!H61,'All Services'!$Y$2:$Y$30566) ->  | J61: Cmnty Agng & Retirmnt Svcs D/B/A Cares | K61: =SUMIF('All Services'!$I$2:$I$30566,Checklist!J61,'All Services'!$Y$2:$Y$30566) -> $(20.00) | L61: W Ctrl FL Area Agcy On Aging | M61: =SUMIF('All Services'!$I$2:$I$30566,Checklist!L61,'All Services'!$Y$2:$Y$30566) -> $(150.00)
A62: EOG | B62: Transportation | C62: =SUMIF('All Services'!$I$2:$I$30566,Checklist!B62,'All Services'!$Y$2:$Y$30566) ->  | D62: Flagler Bd of Cnty Commr | E62: =SUMIF('All Services'!$I$2:$I$30566,Checklist!D62,'All Services'!$Y$2:$Y$30566) ->  | F62: High Springs Police Department | G62: =SUMIF('All Services'!$I$2:$I$30566,Checklist!F62,'All Services'!$Y$2:$Y$30566) ->  | H62: Alachua County Schools | I62: =SUMIF('All Services'!$I$2:$I$30566,Checklist!H62,'All Services'!$Y$2:$Y$30566) ->  | J62: Cmnty Based Care of Brevard | K62: =SUMIF('All Services'!$I$2:$I$30566,Checklist!J62,'All Services'!$Y$2:$Y$30566) ->  | L62: Winter Haven Hospital Inc Bhvrl Hlth Div | M62: =SUMIF('All Services'!$I$2:$I$30566,Checklist!L62,'All Services'!$Y$2:$Y$30566) -> $(75.00)
A63: FDLE | B63: Veteran'S Affairs | C63: =SUMIF('All Services'!$I$2:$I$30566,Checklist!B63,'All Services'!$Y$2:$Y$30566) ->  | D63: Gilchrist Sher Dept | E63: =SUMIF('All Services'!$I$2:$I$30566,Checklist!D63,'All Services'!$Y$2:$Y$30566) ->  | F63: Homestead | G63: =SUMIF('All Services'!$I$2:$I$30566,Checklist!F63,'All Services'!$Y$2:$Y$30566) ->  | H63: Bay County Schools | I63: =SUMIF('All Services'!$I$2:$I$30566,Checklist!H63,'All Services'!$Y$2:$Y$30566) ->  | J63: Cmnty Based Care of Central Florida | K63: =SUMIF('All Services'!$I$2:$I$30566,Checklist!J63,'All Services'!$Y$2:$Y$30566) ->  | L63: Workf Devlpmnt Board of The Treasure Coa | M63: =SUMIF('All Services'!$I$2:$I$30566,Checklist!L63,'All Services'!$Y$2:$Y$30566) -> $(75.00)
A64: FWC | B64: Governor'S Office | C64: =SUMIF('All Services'!$I$2:$I$30566,Checklist!B64,'All Services'!$Y$2:$Y$30566) ->  | D64: Gulf County | E64: =SUMIF('All Services'!$I$2:$I$30566,Checklist!D64,'All Services'!$Y$2:$Y$30566) ->  | F64: Homestead-City of Clerk Public Acces | G64: =SUMIF('All Services'!$I$2:$I$30566,Checklist!F64,'All Services'!$Y$2:$Y$30566) ->  | H64: Brevard County Schools | I64: =SUMIF('All Services'!$I$2:$I$30566,Checklist!H64,'All Services'!$Y$2:$Y$30566) ->  | J64: Cncl On Aging of West Florida, Inc | K64: =SUMIF('All Services'!$I$2:$I$30566,Checklist!J64,'All Services'!$Y$2:$Y$30566) -> $(75.00) | L64: Workforce Ctrl Fl | M64: =SUMIF('All Services'!$I$2:$I$30566,Checklist!L64,'All Services'!$Y$2:$Y$30566) -> $(75.00)
A65: JAC | B65: Fish & Wildlife Commission | C65: =SUMIF('All Services'!$I$2:$I$30566,Checklist!B65,'All Services'!$Y$2:$Y$30566) ->  | D65: Hernando Prop Apprasr | E65: =SUMIF('All Services'!$I$2:$I$30566,Checklist!D65,'All Services'!$Y$2:$Y$30566) -> $(10.00) | F65: Islamorada-Village of Islands | G65: =SUMIF('All Services'!$I$2:$I$30566,Checklist!F65,'All Services'!$Y$2:$Y$30566) ->  | H65: Broward County Schools | I65: =SUMIF('All Services'!$I$2:$I$30566,Checklist!H65,'All Services'!$Y$2:$Y$30566) ->  | J65: Columbia Senior Services Inc | K65: =SUMIF('All Services'!$I$2:$I$30566,Checklist!J65,'All Services'!$Y$2:$Y$30566) -> $(10.00) | L65: Workforce Devlpmnt Board of Flagler & Vo | M65: =SUMIF('All Services'!$I$2:$I$30566,Checklist!L65,'All Services'!$Y$2:$Y$30566) -> $(75.00)
A66: LEG | B66: Justice Administration Commission | C66: =SUMIF('All Services'!$I$2:$I$30566,Checklist!B66,'All Services'!$Y$2:$Y$30566) ->  | D66: Hillsborough Clrk of The Cir Crt | E66: =SUMIF('All Services'!$I$2:$I$30566,Checklist!D66,'All Services'!$Y$2:$Y$30566) -> $(2,004.45) | F66: Jacksonville Information Technology | G66: =SUMIF('All Services'!$I$2:$I$30566,Checklist!F66,'All Services'!$Y$2:$Y$30566) ->  | H66: Calhoun County Schools | I66: =SUMIF('All Services'!$I$2:$I$30566,Checklist!H66,'All Services'!$Y$2:$Y$30566) ->  | J66: Community Partnership For Children | K66: =SUMIF('All Services'!$I$2:$I$30566,Checklist!J66,'All Services'!$Y$2:$Y$30566) ->  | L66: Worknet Pinellas, Inc | M66: =SUMIF('All Services'!$I$2:$I$30566,Checklist!L66,'All Services'!$Y$2:$Y$30566) -> $(75.00)
A67: LOT | B67: Legislative Members | C67: =SUMIF('All Services'!$I$2:$I$30566,Checklist!B67,'All Services'!$Y$2:$Y$30566) ->  | D67: Hillsborough Cnty Plan Com | E67: =SUMIF('All Services'!$I$2:$I$30566,Checklist!D67,'All Services'!$Y$2:$Y$30566) ->  | F67: Jacksonville Sheriff'S Office | G67: =SUMIF('All Services'!$I$2:$I$30566,Checklist!F67,'All Services'!$Y$2:$Y$30566) ->  | H67: Charlotte County Schools | I67: =SUMIF('All Services'!$I$2:$I$30566,Checklist!H67,'All Services'!$Y$2:$Y$30566) -> 0 | J67: Cope Ctr Inc | K67: =SUMIF('All Services'!$I$2:$I$30566,Checklist!J67,'All Services'!$Y$2:$Y$30566) -> $(876.18) | L67: Anchorage Chlds Home of Bay Cnty Inc | M67: =SUMIF('All Services'!$I$2:$I$30566,Checklist!L67,'All Services'!$Y$2:$Y$30566) -> $(75.00)
A68: NSRC | B68: NSRC | C68: =SUMIF('All Services'!$I$2:$I$30566,Checklist!B68,'All Services'!$Y$2:$Y$30566) ->  | D68: Hillsborough County-Bocc | E68: =SUMIF('All Services'!$I$2:$I$30566,Checklist!D68,'All Services'!$Y$2:$Y$30566) -> $(1,868.16) | F68: Jax Bch Police/Fire/City Manager | G68: =SUMIF('All Services'!$I$2:$I$30566,Checklist!F68,'All Services'!$Y$2:$Y$30566) -> $(20.00) | H68: Columbia County Schools | I68: =SUMIF('All Services'!$I$2:$I$30566,Checklist!H68,'All Services'!$Y$2:$Y$30566) ->  | J68: Devereaux Fndtn | K68: =SUMIF('All Services'!$I$2:$I$30566,Checklist!J68,'All Services'!$Y$2:$Y$30566) ->  | L68: Brevard Alzheimer'S Foundation Inc | M68: =SUMIF('All Services'!$I$2:$I$30566,Checklist!L68,'All Services'!$Y$2:$Y$30566) -> $(10.00)
A69: PSC | B69: Public Service Commission | C69: =SUMIF('All Services'!$I$2:$I$30566,Checklist!B69,'All Services'!$Y$2:$Y$30566) ->  | D69: Hillsborough Sher Dept | E69: =SUMIF('All Services'!$I$2:$I$30566,Checklist!D69,'All Services'!$Y$2:$Y$30566) ->  | F69: Lauderhill | G69: =SUMIF('All Services'!$I$2:$I$30566,Checklist!F69,'All Services'!$Y$2:$Y$30566) ->  | H69: Dade County Schools | I69: =SUMIF('All Services'!$I$2:$I$30566,Checklist!H69,'All Services'!$Y$2:$Y$30566) ->  | J69: Disability Rights Florida | K69: =SUMIF('All Services'!$I$2:$I$30566,Checklist!J69,'All Services'!$Y$2:$Y$30566) ->  | L69: Citrus Hlth Ntwrk Inc | M69: =SUMIF('All Services'!$I$2:$I$30566,Checklist!L69,'All Services'!$Y$2:$Y$30566) -> $(75.00)
A70: State Court System | B70: SSRC | C70: =SUMIF('All Services'!$I$2:$I$30566,Checklist!B70,'All Services'!$Y$2:$Y$30566) -> $(105.00) | D70: Lafayette 911 | E70: =SUMIF('All Services'!$I$2:$I$30566,Checklist!D70,'All Services'!$Y$2:$Y$30566) ->  | F70: Miami Info Techlgy Dept | G70: =SUMIF('All Services'!$I$2:$I$30566,Checklist!F70,'All Services'!$Y$2:$Y$30566) ->  | H70: Desoto County Schools | I70: =SUMIF('All Services'!$I$2:$I$30566,Checklist!H70,'All Services'!$Y$2:$Y$30566) ->  | J70: Disc Village Inc | K70: =SUMIF('All Services'!$I$2:$I$30566,Checklist!J70,'All Services'!$Y$2:$Y$30566) ->  | L70: Bay Cnty Council On Aging Inc | M70: =SUMIF('All Services'!$I$2:$I$30566,Checklist!L70,'All Services'!$Y$2:$Y$30566) -> $(75.00)
D71: Lake Cnty BCC | E71: =SUMIF('All Services'!$I$2:$I$30566,Checklist!D71,'All Services'!$Y$2:$Y$30566) ->  | F71: Miami Bch | G71: =SUMIF('All Services'!$I$2:$I$30566,Checklist!F71,'All Services'!$Y$2:$Y$30566) ->  | H71: Dixie County Schools | I71: =SUMIF('All Services'!$I$2:$I$30566,Checklist!H71,'All Services'!$Y$2:$Y$30566) -> 0 | J71: Eckerd Fmly Yth Altrnv Inc | K71: =SUMIF('All Services'!$I$2:$I$30566,Checklist!J71,'All Services'!$Y$2:$Y$30566) ->  | L71: Broward Cnty Chld Care Lcnsng | M71: =SUMIF('All Services'!$I$2:$I$30566,Checklist!L71,'All Services'!$Y$2:$Y$30566) -> $(20.00)
D72: Lee Board of Cnty Commissioners | E72: =SUMIF('All Services'!$I$2:$I$30566,Checklist!D72,'All Services'!$Y$2:$Y$30566) -> $(523.29) | F72: Miami Gardens | G72: =SUMIF('All Services'!$I$2:$I$30566,Checklist!F72,'All Services'!$Y$2:$Y$30566) ->  | H72: Duval County Schools | I72: =SUMIF('All Services'!$I$2:$I$30566,Checklist!H72,'All Services'!$Y$2:$Y$30566) ->  | J72: Emerald Coast | K72: =SUMIF('All Services'!$I$2:$I$30566,Checklist!J72,'All Services'!$Y$2:$Y$30566) ->  | L72: Englewood Wtr Dis | M72: =SUMIF('All Services'!$I$2:$I$30566,Checklist!L72,'All Services'!$Y$2:$Y$30566) -> 
D73: Lee Sher Dept | E73: =SUMIF('All Services'!$I$2:$I$30566,Checklist!D73,'All Services'!$Y$2:$Y$30566) ->  | F73: Miramar | G73: =SUMIF('All Services'!$I$2:$I$30566,Checklist!F73,'All Services'!$Y$2:$Y$30566) ->  | H73: Escambia County Schools | I73: =SUMIF('All Services'!$I$2:$I$30566,Checklist!H73,'All Services'!$Y$2:$Y$30566) ->  | J73: Environ Protection Comm of Hillsborough | K73: =SUMIF('All Services'!$I$2:$I$30566,Checklist!J73,'All Services'!$Y$2:$Y$30566) ->  | L73: Habilitation Mgmt Svc Inc | M73: =SUMIF('All Services'!$I$2:$I$30566,Checklist!L73,'All Services'!$Y$2:$Y$30566) -> $(75.00)
D74: Leon Clerk of Courts | E74: =SUMIF('All Services'!$I$2:$I$30566,Checklist!D74,'All Services'!$Y$2:$Y$30566) ->  | F74: N Lauderdale | G74: =SUMIF('All Services'!$I$2:$I$30566,Checklist!F74,'All Services'!$Y$2:$Y$30566) -> $(3,087.08) | H74: Flagler County Schools | I74: =SUMIF('All Services'!$I$2:$I$30566,Checklist!H74,'All Services'!$Y$2:$Y$30566) ->  | J74: Escarosa Reg Work Dev Bd Inc | K74: =SUMIF('All Services'!$I$2:$I$30566,Checklist!J74,'All Services'!$Y$2:$Y$30566) ->  | L74: Just For Love of Jesus Mnstrs Inc | M74: =SUMIF('All Services'!$I$2:$I$30566,Checklist!L74,'All Services'!$Y$2:$Y$30566) -> 
D75: Leon Sher Dept | E75: =SUMIF('All Services'!$I$2:$I$30566,Checklist!D75,'All Services'!$Y$2:$Y$30566) ->  | F75: Oakland Park | G75: =SUMIF('All Services'!$I$2:$I$30566,Checklist!F75,'All Services'!$Y$2:$Y$30566) ->  | H75: Franklin County School Board | I75: =SUMIF('All Services'!$I$2:$I$30566,Checklist!H75,'All Services'!$Y$2:$Y$30566) ->  | J75: First Coast Wf Dev | K75: =SUMIF('All Services'!$I$2:$I$30566,Checklist!J75,'All Services'!$Y$2:$Y$30566) -> $(75.00) | L75: N W FL Wtr Mgmt Dist | M75: =SUMIF('All Services'!$I$2:$I$30566,Checklist!L75,'All Services'!$Y$2:$Y$30566) -> 
D76: Levy Bd of Cnty Commr | E76: =SUMIF('All Services'!$I$2:$I$30566,Checklist!D76,'All Services'!$Y$2:$Y$30566) ->  | F76: Palm Bch | G76: =SUMIF('All Services'!$I$2:$I$30566,Checklist!F76,'All Services'!$Y$2:$Y$30566) ->  | H76: Gadsden County Schools | I76: =SUMIF('All Services'!$I$2:$I$30566,Checklist!H76,'All Services'!$Y$2:$Y$30566) ->  | J76: FL Assn Ct of Clrks | K76: =SUMIF('All Services'!$I$2:$I$30566,Checklist!J76,'All Services'!$Y$2:$Y$30566) ->  | L76: S FL Wtr Mgmt Dist | M76: =SUMIF('All Services'!$I$2:$I$30566,Checklist!L76,'All Services'!$Y$2:$Y$30566) -> $(12,380.61)
D77: Levy Sher Dept | E77: =SUMIF('All Services'!$I$2:$I$30566,Checklist!D77,'All Services'!$Y$2:$Y$30566) ->  | F77: Pembroke Pines | G77: =SUMIF('All Services'!$I$2:$I$30566,Checklist!F77,'All Services'!$Y$2:$Y$30566) ->  | H77: Gilchrist County Schools | I77: =SUMIF('All Services'!$I$2:$I$30566,Checklist!H77,'All Services'!$Y$2:$Y$30566) ->  | J77: FL Crown Workforce Dev Bd Inc | K77: =SUMIF('All Services'!$I$2:$I$30566,Checklist!J77,'All Services'!$Y$2:$Y$30566) -> $(75.00) | L77: St John River Wtr Mgmt Dist | M77: =SUMIF('All Services'!$I$2:$I$30566,Checklist!L77,'All Services'!$Y$2:$Y$30566) -> 
D78: Liberty Bd of Cnty Commr | E78: =SUMIF('All Services'!$I$2:$I$30566,Checklist!D78,'All Services'!$Y$2:$Y$30566) ->  | F78: Pinellas Park | G78: =SUMIF('All Services'!$I$2:$I$30566,Checklist!F78,'All Services'!$Y$2:$Y$30566) ->  | H78: Glades County Schools | I78: =SUMIF('All Services'!$I$2:$I$30566,Checklist!H78,'All Services'!$Y$2:$Y$30566) ->  | J78: FL Hsng Fin Corp | K78: =SUMIF('All Services'!$I$2:$I$30566,Checklist!J78,'All Services'!$Y$2:$Y$30566) ->  | L78: Suwannee River Wtr Mgmt Dist | M78: =SUMIF('All Services'!$I$2:$I$30566,Checklist!L78,'All Services'!$Y$2:$Y$30566) -> 
D79: Madison Cnty BOCC-E911 Dept | E79: =SUMIF('All Services'!$I$2:$I$30566,Checklist!D79,'All Services'!$Y$2:$Y$30566) ->  | F79: Plantation | G79: =SUMIF('All Services'!$I$2:$I$30566,Checklist!F79,'All Services'!$Y$2:$Y$30566) ->  | H79: Gulf County Schools | I79: =SUMIF('All Services'!$I$2:$I$30566,Checklist!H79,'All Services'!$Y$2:$Y$30566) ->  | J79: FL Mncpl Pwr Agcy | K79: =SUMIF('All Services'!$I$2:$I$30566,Checklist!J79,'All Services'!$Y$2:$Y$30566) ->  | L79: Sw FL Wtr Mgmt Dist | M79: =SUMIF('All Services'!$I$2:$I$30566,Checklist!L79,'All Services'!$Y$2:$Y$30566) -> 
D80: Manatee Cnty Rural Hlth Svcs Inc | E80: =SUMIF('All Services'!$I$2:$I$30566,Checklist!D80,'All Services'!$Y$2:$Y$30566) -> $(75.00) | F80: Port St Lucie | G80: =SUMIF('All Services'!$I$2:$I$30566,Checklist!F80,'All Services'!$Y$2:$Y$30566) ->  | H80: Hamilton County Schools | I80: =SUMIF('All Services'!$I$2:$I$30566,Checklist!H80,'All Services'!$Y$2:$Y$30566) -> 0 | J80: FL Poison Info Ntwk Data Group | K80: =SUMIF('All Services'!$I$2:$I$30566,Checklist!J80,'All Services'!$Y$2:$Y$30566) ->  | L80: Urban Lea of Palm Bch Cnty | M80: =SUMIF('All Services'!$I$2:$I$30566,Checklist!L80,'All Services'!$Y$2:$Y$30566) -> $(10.00)
D81: Manatee Fin Dept | E81: =SUMIF('All Services'!$I$2:$I$30566,Checklist!D81,'All Services'!$Y$2:$Y$30566) -> $(1,973.31) | F81: Riviera Bch | G81: =SUMIF('All Services'!$I$2:$I$30566,Checklist!F81,'All Services'!$Y$2:$Y$30566) -> $(1,225.55) | H81: Hardee County Schools | I81: =SUMIF('All Services'!$I$2:$I$30566,Checklist!H81,'All Services'!$Y$2:$Y$30566) ->  | J81: FL St Fair Athrty | K81: =SUMIF('All Services'!$I$2:$I$30566,Checklist!J81,'All Services'!$Y$2:$Y$30566) -> 
D82: Marion Govt | E82: =SUMIF('All Services'!$I$2:$I$30566,Checklist!D82,'All Services'!$Y$2:$Y$30566) -> $(10.00) | F82: Sarasota | G82: =SUMIF('All Services'!$I$2:$I$30566,Checklist!F82,'All Services'!$Y$2:$Y$30566) ->  | H82: Hendry County Schools | I82: =SUMIF('All Services'!$I$2:$I$30566,Checklist!H82,'All Services'!$Y$2:$Y$30566) ->  | J82: Fmly Spprt Svcs of N Fl, Inc | K82: =SUMIF('All Services'!$I$2:$I$30566,Checklist!J82,'All Services'!$Y$2:$Y$30566) -> $(75.00)
D83: Marion Sr Svcs | E83: =SUMIF('All Services'!$I$2:$I$30566,Checklist!D83,'All Services'!$Y$2:$Y$30566) -> $(30.00) | F83: South Miami | G83: =SUMIF('All Services'!$I$2:$I$30566,Checklist!F83,'All Services'!$Y$2:$Y$30566) ->  | H83: Hernando County Schools | I83: =SUMIF('All Services'!$I$2:$I$30566,Checklist!H83,'All Services'!$Y$2:$Y$30566) ->  | J83: Greater Orlando Avn Athrty | K83: =SUMIF('All Services'!$I$2:$I$30566,Checklist!J83,'All Services'!$Y$2:$Y$30566) -> 
D84: Monroe Bd of Cnty Commr | E84: =SUMIF('All Services'!$I$2:$I$30566,Checklist!D84,'All Services'!$Y$2:$Y$30566) ->  | F84: Sunrise | G84: =SUMIF('All Services'!$I$2:$I$30566,Checklist!F84,'All Services'!$Y$2:$Y$30566) ->  | H84: Highlands County Schools | I84: =SUMIF('All Services'!$I$2:$I$30566,Checklist!H84,'All Services'!$Y$2:$Y$30566) ->  | J84: Gulf Coast Workforce Board | K84: =SUMIF('All Services'!$I$2:$I$30566,Checklist!J84,'All Services'!$Y$2:$Y$30566) -> $(150.00)
D85: Nassau | E85: =SUMIF('All Services'!$I$2:$I$30566,Checklist!D85,'All Services'!$Y$2:$Y$30566) ->  | F85: Tallahassee | G85: =SUMIF('All Services'!$I$2:$I$30566,Checklist!F85,'All Services'!$Y$2:$Y$30566) -> $(115.00) | H85: Holmes County Schools | I85: =SUMIF('All Services'!$I$2:$I$30566,Checklist!H85,'All Services'!$Y$2:$Y$30566) -> 0 | J85: Gulfcoast Jewish Fmly Svcs | K85: =SUMIF('All Services'!$I$2:$I$30566,Checklist!J85,'All Services'!$Y$2:$Y$30566) -> 
D86: Nassau Tax Collector | E86: =SUMIF('All Services'!$I$2:$I$30566,Checklist!D86,'All Services'!$Y$2:$Y$30566) ->  | F86: Tampa | G86: =SUMIF('All Services'!$I$2:$I$30566,Checklist!F86,'All Services'!$Y$2:$Y$30566) ->  | H86: Indian River County Schools | I86: =SUMIF('All Services'!$I$2:$I$30566,Checklist!H86,'All Services'!$Y$2:$Y$30566) ->  | J86: Heartland Educl Cnsrtm | K86: =SUMIF('All Services'!$I$2:$I$30566,Checklist!J86,'All Services'!$Y$2:$Y$30566) -> 
D87: Okaloosa Bd of Cnty Commr | E87: =SUMIF('All Services'!$I$2:$I$30566,Checklist!D87,'All Services'!$Y$2:$Y$30566) ->  | F87: Town of Medley | G87: =SUMIF('All Services'!$I$2:$I$30566,Checklist!F87,'All Services'!$Y$2:$Y$30566) ->  | H87: Jackson County Schools | I87: =SUMIF('All Services'!$I$2:$I$30566,Checklist!H87,'All Services'!$Y$2:$Y$30566) ->  | J87: Heartland Wkforce Invstmnt Board Inc | K87: =SUMIF('All Services'!$I$2:$I$30566,Checklist!J87,'All Services'!$Y$2:$Y$30566) -> 
D88: Orange County | E88: =SUMIF('All Services'!$I$2:$I$30566,Checklist!D88,'All Services'!$Y$2:$Y$30566) ->  | F88: Vero Bch | G88: =SUMIF('All Services'!$I$2:$I$30566,Checklist!F88,'All Services'!$Y$2:$Y$30566) ->  | H88: Jefferson County Schools | I88: =SUMIF('All Services'!$I$2:$I$30566,Checklist!H88,'All Services'!$Y$2:$Y$30566) ->  | J88: Hps, Helping People Succeed, Inc. | K88: =SUMIF('All Services'!$I$2:$I$30566,Checklist!J88,'All Services'!$Y$2:$Y$30566) -> $(10.00)
D89: Orlando-Orange Expy Athrty | E89: =SUMIF('All Services'!$I$2:$I$30566,Checklist!D89,'All Services'!$Y$2:$Y$30566) ->  | F89: Village of Pinecrest | G89: =SUMIF('All Services'!$I$2:$I$30566,Checklist!F89,'All Services'!$Y$2:$Y$30566) ->  | H89: Lake County Schools | I89: =SUMIF('All Services'!$I$2:$I$30566,Checklist!H89,'All Services'!$Y$2:$Y$30566) ->  | J89: Kids Central Inc | K89: =SUMIF('All Services'!$I$2:$I$30566,Checklist!J89,'All Services'!$Y$2:$Y$30566) -> $(75.00)
D90: Osceola Cncl On Aging | E90: =SUMIF('All Services'!$I$2:$I$30566,Checklist!D90,'All Services'!$Y$2:$Y$30566) -> $(75.00) | F90: Winter Haven | G90: =SUMIF('All Services'!$I$2:$I$30566,Checklist!F90,'All Services'!$Y$2:$Y$30566) -> $(756.18) | H90: Levy County Schools | I90: =SUMIF('All Services'!$I$2:$I$30566,Checklist!H90,'All Services'!$Y$2:$Y$30566) ->  | J90: Lincoln-Marti Cmnty Agcy Inc | K90: =SUMIF('All Services'!$I$2:$I$30566,Checklist!J90,'All Services'!$Y$2:$Y$30566) -> 
D91: Palm Beach Govt | E91: =SUMIF('All Services'!$I$2:$I$30566,Checklist!D91,'All Services'!$Y$2:$Y$30566) ->  | F91: Panama City Port Athrty | G91: =SUMIF('All Services'!$I$2:$I$30566,Checklist!F91,'All Services'!$Y$2:$Y$30566) ->  | H91: Liberty County Schools | I91: =SUMIF('All Services'!$I$2:$I$30566,Checklist!H91,'All Services'!$Y$2:$Y$30566) ->  | J91: Loxahatchee Riv Environl Cntrl Dist | K91: =SUMIF('All Services'!$I$2:$I$30566,Checklist!J91,'All Services'!$Y$2:$Y$30566) -> 
D92: Palm Beach Hlth Care Dist | E92: =SUMIF('All Services'!$I$2:$I$30566,Checklist!D92,'All Services'!$Y$2:$Y$30566) ->  | F92: Vlg of Ky Biscayne | G92: =SUMIF('All Services'!$I$2:$I$30566,Checklist!F92,'All Services'!$Y$2:$Y$30566) ->  | H92: Madison County Schools | I92: =SUMIF('All Services'!$I$2:$I$30566,Checklist!H92,'All Services'!$Y$2:$Y$30566) ->  | J92: Lutheran Svcs FL Inc | K92: =SUMIF('All Services'!$I$2:$I$30566,Checklist!J92,'All Services'!$Y$2:$Y$30566) -> $(225.00)
D93: Palm Beach Prop Apprser | E93: =SUMIF('All Services'!$I$2:$I$30566,Checklist!D93,'All Services'!$Y$2:$Y$30566) -> $(75.00) | H93: Manatee County Schools | I93: =SUMIF('All Services'!$I$2:$I$30566,Checklist!H93,'All Services'!$Y$2:$Y$30566) ->  | J93: Mntl Hlth Resrc Ctr Inc | K93: =SUMIF('All Services'!$I$2:$I$30566,Checklist!J93,'All Services'!$Y$2:$Y$30566) -> $(75.00)
D94: Palm Beach Sher Dept | E94: =SUMIF('All Services'!$I$2:$I$30566,Checklist!D94,'All Services'!$Y$2:$Y$30566) -> $(14,424.00) | H94: Marion County Schools | I94: =SUMIF('All Services'!$I$2:$I$30566,Checklist!H94,'All Services'!$Y$2:$Y$30566) ->  | J94: N FL Workforce Dev Board Inc | K94: =SUMIF('All Services'!$I$2:$I$30566,Checklist!J94,'All Services'!$Y$2:$Y$30566) -> $(95.00)
D95: Pasco Govt Ctr | E95: =SUMIF('All Services'!$I$2:$I$30566,Checklist!D95,'All Services'!$Y$2:$Y$30566) ->  | H95: Martin County Schools | I95: =SUMIF('All Services'!$I$2:$I$30566,Checklist!H95,'All Services'!$Y$2:$Y$30566) ->  | J95: Ne FL Area Agcy On Aging Inc | K95: =SUMIF('All Services'!$I$2:$I$30566,Checklist!J95,'All Services'!$Y$2:$Y$30566) -> $(150.00)
D96: Pinellas Sher Dept | E96: =SUMIF('All Services'!$I$2:$I$30566,Checklist!D96,'All Services'!$Y$2:$Y$30566) ->  | H96: Monroe County Schools | I96: =SUMIF('All Services'!$I$2:$I$30566,Checklist!H96,'All Services'!$Y$2:$Y$30566) ->  | J96: Ne FL Educ Cnsrtm | K96: =SUMIF('All Services'!$I$2:$I$30566,Checklist!J96,'All Services'!$Y$2:$Y$30566) -> 
D97: Polk Bd of Cnty Commrs | E97: =SUMIF('All Services'!$I$2:$I$30566,Checklist!D97,'All Services'!$Y$2:$Y$30566) -> $(75.00) | H97: Nassau County Schools | I97: =SUMIF('All Services'!$I$2:$I$30566,Checklist!H97,'All Services'!$Y$2:$Y$30566) ->  | J97: Ne FL Lbry Info Ntwrk | K97: =SUMIF('All Services'!$I$2:$I$30566,Checklist!J97,'All Services'!$Y$2:$Y$30566) -> 
D98: Polk Wrkfrce Dev Bd | E98: =SUMIF('All Services'!$I$2:$I$30566,Checklist!D98,'All Services'!$Y$2:$Y$30566) -> $(75.00) | H98: Okaloosa County Schools | I98: =SUMIF('All Services'!$I$2:$I$30566,Checklist!H98,'All Services'!$Y$2:$Y$30566) -> 0 | J98: Neighbor To Family | K98: =SUMIF('All Services'!$I$2:$I$30566,Checklist!J98,'All Services'!$Y$2:$Y$30566) -> $(75.00)
D99: Putnam Govt | E99: =SUMIF('All Services'!$I$2:$I$30566,Checklist!D99,'All Services'!$Y$2:$Y$30566) ->  | H99: Palm Bch Co Sch Dist Police Dept | I99: =SUMIF('All Services'!$I$2:$I$30566,Checklist!H99,'All Services'!$Y$2:$Y$30566) ->  | J99: Neighborly Care Network, Inc | K99: =SUMIF('All Services'!$I$2:$I$30566,Checklist!J99,'All Services'!$Y$2:$Y$30566) -> $(75.00)
D100: Putnam It/911 Division | E100: =SUMIF('All Services'!$I$2:$I$30566,Checklist!D100,'All Services'!$Y$2:$Y$30566) ->  | H100: Putnam County Schools | I100: =SUMIF('All Services'!$I$2:$I$30566,Checklist!H100,'All Services'!$Y$2:$Y$30566) ->  | J100: New Hrzns of The Treas Cst Inc | K100: =SUMIF('All Services'!$I$2:$I$30566,Checklist!J100,'All Services'!$Y$2:$Y$30566) -> 
D101: St Johns E911 | E101: =SUMIF('All Services'!$I$2:$I$30566,Checklist!D101,'All Services'!$Y$2:$Y$30566) ->  | H101: St Johns County Schools | I101: =SUMIF('All Services'!$I$2:$I$30566,Checklist!H101,'All Services'!$Y$2:$Y$30566) ->  | J101: Nw FL Area On Aging | K101: =SUMIF('All Services'!$I$2:$I$30566,Checklist!J101,'All Services'!$Y$2:$Y$30566) -> $(75.00)
D102: St Johns Property Arrraiser'S Off | E102: =SUMIF('All Services'!$I$2:$I$30566,Checklist!D102,'All Services'!$Y$2:$Y$30566) -> $(3,097.08) | H102: St Lucie County Schools | I102: =SUMIF('All Services'!$I$2:$I$30566,Checklist!H102,'All Services'!$Y$2:$Y$30566) ->  | J102: Okaloosa Walton Jobs And Educ Prtnrshp I | K102: =SUMIF('All Services'!$I$2:$I$30566,Checklist!J102,'All Services'!$Y$2:$Y$30566) -> 
D103: St. Johns Sher Dept | E103: =SUMIF('All Services'!$I$2:$I$30566,Checklist!D103,'All Services'!$Y$2:$Y$30566) ->  | H103: Santa Rosa County Schools | I103: =SUMIF('All Services'!$I$2:$I$30566,Checklist!H103,'All Services'!$Y$2:$Y$30566) ->  | J103: One Hope United-Florida Region Inc | K103: =SUMIF('All Services'!$I$2:$I$30566,Checklist!J103,'All Services'!$Y$2:$Y$30566) -> $(300.00)
D104: St Lucie Property Appraiser | E104: =SUMIF('All Services'!$I$2:$I$30566,Checklist!D104,'All Services'!$Y$2:$Y$30566) -> $(800.47) | H104: Sumter County Schools | I104: =SUMIF('All Services'!$I$2:$I$30566,Checklist!H104,'All Services'!$Y$2:$Y$30566) ->  | J104: One Stop Center/Chipola Reg Workforce De | K104: =SUMIF('All Services'!$I$2:$I$30566,Checklist!J104,'All Services'!$Y$2:$Y$30566) -> 
D105: St Lucie Supvsr of Elections | E105: =SUMIF('All Services'!$I$2:$I$30566,Checklist!D105,'All Services'!$Y$2:$Y$30566) -> $(1,050.47) | H105: Taylor County Schools | I105: =SUMIF('All Services'!$I$2:$I$30566,Checklist!H105,'All Services'!$Y$2:$Y$30566) ->  | J105: Orange-Seminole-Osceola Tran Athrty | K105: =SUMIF('All Services'!$I$2:$I$30566,Checklist!J105,'All Services'!$Y$2:$Y$30566) -> $(4,008.90)
D106: Santa Rosa Clrk of Ct | E106: =SUMIF('All Services'!$I$2:$I$30566,Checklist!D106,'All Services'!$Y$2:$Y$30566) ->  | H106: Wakulla County Schools | I106: =SUMIF('All Services'!$I$2:$I$30566,Checklist!H106,'All Services'!$Y$2:$Y$30566) -> 0 | J106: Orlando Utlties Comm | K106: =SUMIF('All Services'!$I$2:$I$30566,Checklist!J106,'All Services'!$Y$2:$Y$30566) -> $(3,497.20)
D107: Santa Rosa County | E107: =SUMIF('All Services'!$I$2:$I$30566,Checklist!D107,'All Services'!$Y$2:$Y$30566) ->  | H107: Walton County Schools | I107: =SUMIF('All Services'!$I$2:$I$30566,Checklist!H107,'All Services'!$Y$2:$Y$30566) ->  | J107: Our Kids of Miami-Dade/Monroe Inc | K107: =SUMIF('All Services'!$I$2:$I$30566,Checklist!J107,'All Services'!$Y$2:$Y$30566) -> 
D108: Santa Rosa Sher Dept | E108: =SUMIF('All Services'!$I$2:$I$30566,Checklist!D108,'All Services'!$Y$2:$Y$30566) ->  | H108: Washington County Schools | I108: =SUMIF('All Services'!$I$2:$I$30566,Checklist!H108,'All Services'!$Y$2:$Y$30566) ->  | J108: Palm Bch Cnty Workfrc Dev Bd | K108: =SUMIF('All Services'!$I$2:$I$30566,Checklist!J108,'All Services'!$Y$2:$Y$30566) -> 

Sheet 1 - CPE-Router, VPN, & Firewall
A1: Price Sheet 1 MyFloridaNet2; Customer Premises Equipment (CPE) - Router, VPN Appliance and Firewall
A2: =Checklist!D3 -> 0
A4: CPE - Router, VPN Appliance & Firewall (CPE Formula) - Total Eligible Points = 350
A5: Formula Variables | G5: Formula Values
A6: Hardware/Software Discount (percentage off MSRP)
A7: Maintenance Discount (percentage off MSRP)
A8: Hardware/Software & Installation Divisor (Number of Months)
A9: Installation (Non-Recurring Charge)
A11: CPE Router and VPN Appliance Standard Configuration Management (Monthly Recurring Charge)
A12: CPE Router and VPN Appliance Standard Configuration Management
O13: 6
A15: A | C15: B | D15: C | E15: D | F15: E | G15: F | J15: G | K15: H | L15: I | M15: J | N15: K
A16: Configuration Title | B16: MFN USOC (CPE) | C16: Access/Bandwidth | D16: Product Part Number | E16: Description of Product Part Number | F16: Quantity | G16: Proposed Configuration including Product Part Number, Description, Make/Model and Quantity | J16: Hardware/ Software Cost (MSRP) | K16: List Price for 1 Yr of Maintenance (MSRP) | L16: CPE Rental Rate (MRC) | M16: E-rate Eligible Portion | N16: Proposed Configuration including Product Part Number, Description, Make/Model and Quantity
G17: Product Part Number | H17: Description of Product Part Number | I17: Quantity | N17: Product Part Number | O17: Description of Product Part Number | P17: Quantity
M18: E-Rate Eligible Charges (MRC)
A19: 1921-ME-SEC | C19: Metro-Ethernet/Max. 12Mbps | D19: CISCO1921-SEC/K9 | E19: Cisco1921/K9 with 2GE, SEC License PAK, 512MB DRAM, 256MB Fl | F19: 1 | L19: =(((J19*(1-$G$6))+$G$9)/$G$8)+(((K19*(1-$G$7))/12)) ->  | M19: =L19 -> 
D20: S190UK9-15104M | E20: Cisco 1900 IOS UNIVERSAL | F20: 1
D21: CAB-AC | E21: AC Power Cord (North America), C13, NEMA 5-15P, 2.1m | F21: 1
B22: WLL7Q | D22: CAB-CONSOLE-RJ45 | E22: Console Cable 6ft with RJ45 and DB9F | F22: 1
D23: ACS-1900-RM-19 | E23: Rack Mount Kit for 1921, 1905 | F23: 1
D24: SL-19-IPB-K9 | E24: IP Base License for Cisco 1900 | F24: 1
D25: SL-19-SEC-K9 | E25: Security License for Cisco 1900 | F25: 1
D26: CON-OSP-1921SEC | E26: ONSITE 24X7X4 Cisco1921/K9 with 2GE, SEC License PAK, | F26: 1
A27: 1921-T1-SEC | C27: Frame Relay/Max. 1.5Mbps | D27: CISCO1921-SEC/K9 | E27: Cisco1921/K9 with 2GE, SEC License PAK, 512MB DRAM, 256MB Fl | F27: 1 | L27: =(((J27*(1-$G$6))+$G$9)/$G$8)+(((K27*(1-$G$7))/12)) ->  | M27: =L27 -> 
D28: S190UK9-15104M | E28: Cisco 1900 IOS UNIVERSAL | F28: 1
D29: HWIC-1DSU-T1 | E29: 1-Port T1/Fractional T1 DSU/CSU WAN Interface Card | F29: 1
D30: CAB-AC | E30: AC Power Cord (North America), C13, NEMA 5-15P, 2.1m | F30: 1
B31: WLL5J | D31: CAB-CONSOLE-RJ45 | E31: Console Cable 6ft with RJ45 and DB9F | F31: 1
D32: ACS-1900-RM-19 | E32: Rack Mount Kit for 1921, 1905 | F32: 1
D33: SL-19-IPB-K9 | E33: IP Base License for Cisco 1900 | F33: 1
D34: SL-19-SEC-K9 | E34: Security License for Cisco 1900 | F34: 1
D35: CON-OSP-1921SEC | E35: ONSITE 24X7X4 Cisco1921/K9 with 2GE, SEC License PAK, | F35: 1
A36: 2911-T1-SEC | C36: Frame Relay/Max. 1.5Mbps | D36: CISCO2911-SEC/K9 | E36: Cisco 2911 Security Bundle w/SEC license PAK | F36: 1 | L36: =(((J36*(1-$G$6))+$G$9)/$G$8)+(((K36*(1-$G$7))/12)) ->  | M36: =L36 -> 
D37: HWIC-1DSU-T1 | E37: 1-Port T1/Fractional T1 DSU/CSU WAN Interface Card | F37: 1
D38: CAB-CONSOLE-RJ45 | E38: Console Cable 6ft with RJ45 and DB9F | F38: 1
D39: S29UK9-15104M | E39: Cisco 2901-2921 IOS UNIVERSAL | F39: 1
D40: ISR-CCP-EXP | E40: Cisco Config Pro Express on Router Flash | F40: 1
B41: WLL5K | D41: MEM-2900-512MB-DEF | E41: 512MB DRAM for Cisco 2901-2921 ISR (Default) | F41: 1
D42: MEM-CF-256MB | E42: 256MB Compact Flash for Cisco 1900, 2900, 3900 ISR | F42: 1
D43: SL-29-IPB-K9 | E43: IP Base License for Cisco 2901-2951 | F43: 1
D44: SL-29-SEC-K9 | E44: Security License for Cisco 2901-2951 | F44: 1
D45: CON-OSP-2911SEC | E45: ONSITE 24X7X4 Cisco 2911 Security | F45: 1
A46: 2921-ME-SEC | C46: Metro-Ethernet/Max. 21Mbps | D46: CISCO2921-SEC/K9 | E46: Cisco 2921 Security Bundle w/SEC license PAK | F46: 1 | L46: =(((J46*(1-$G$6))+$G$9)/$G$8)+(((K46*(1-$G$7))/12)) ->  | M46: =L46 -> 
D47: S29UK9-15104M | E47: Cisco 2901-2921 IOS UNIVERSAL | F47: 1
D48: CAB-AC | E48: AC Power Cord (North America), C13, NEMA 5-15P, 2.1m | F48: 1
D49: CAB-CONSOLE-RJ45 | E49: Console Cable 6ft with RJ45 and DB9F | F49: 1
D50: PWR-2921-51-AC | E50: Cisco 2921/2951 AC Power Supply | F50: 1
B51: WLL5G | D51: ISR-CCP-EXP | E51: Cisco Config Pro Express on Router Flash | F51: 1
D52: MEM-2900-512MB-DEF | E52: 512MB DRAM for Cisco 2901-2921 ISR (Default) | F52: 1
D53: MEM-CF-256MB | E53: 256MB Compact Flash for Cisco 1900, 2900, 3900 ISR | F53: 1
D54: SL-29-IPB-K9 | E54: IP Base License for Cisco 2901-2951 | F54: 1
D55: SL-29-SEC-K9 | E55: Security License for Cisco 2901-2951 | F55: 1
D56: CON-OSP-2921SEC | E56: ONSITE 24X7X4 Cisco 2921 Security | F56: 1
A57: 2921-T1-SEC | C57: Frame Relay/Max. 1.5Mbps | D57: CISCO2921-SEC/K9 | E57: Cisco 2921 Security Bundle w/SEC license PAK | F57: 1 | L57: =(((J57*(1-$G$6))+$G$9)/$G$8)+(((K57*(1-$G$7))/12)) ->  | M57: =L57 -> 
D58: S29UK9-15104M | E58: Cisco 2901-2921 IOS UNIVERSAL | F58: 1
D59: HWIC-1DSU-T1 | E59: 1-Port T1/Fractional T1 DSU/CSU WAN Interface Card | F59: 1
D60: CAB-AC | E60: AC Power Cord (North America), C13, NEMA 5-15P, 2.1m | F60: 1
D61: CAB-CONSOLE-RJ45 | E61: Console Cable 6ft with RJ45 and DB9F | F61: 1
B62: WLL5L | D62: PWR-2921-51-AC | E62: Cisco 2921/2951 AC Power Supply | F62: 1
D63: ISR-CCP-EXP | E63: Cisco Config Pro Express on Router Flash | F63: 1
D64: MEM-2900-512MB-DEF | E64: 512MB DRAM for Cisco 2901-2921 ISR (Default) | F64: 1
D65: MEM-CF-256MB | E65: 256MB Compact Flash for Cisco 1900, 2900, 3900 ISR | F65: 1
D66: SL-29-IPB-K9 | E66: IP Base License for Cisco 2901-2951 | F66: 1
D67: SL-29-SEC-K9 | E67: Security License for Cisco 2901-2951 | F67: 1
D68: CON-OSP-2921SEC | E68: ONSITE 24X7X4 Cisco 2921 Security | F68: 1
A69: 3925-ME-SEC | C69: Metro-Ethernet/Max. 100Mbps | D69: CISCO3925-SEC/K9 | E69: Cisco 3925 Security Bundle w/SEC license PAK | F69: 1 | L69: =(((J69*(1-$G$6))+$G$9)/$G$8)+(((K69*(1-$G$7))/12)) ->  | M69: =L69 -> 
D70: S39UK9-15104M | E70: Cisco 3925-3945 IOS UNIVERSAL | F70: 1
D71: GLC-SX-MM | E71: GE SFP, LC connector SX transceiver | F71: 2
D72: CAB-AC | E72: AC Power Cord (North America), C13, NEMA 5-15P, 2.1m | F72: 1
D73: CAB-CONSOLE-RJ45 | E73: Console Cable 6ft with RJ45 and DB9F | F73: 1
D74: PWR-3900-AC | E74: Cisco 3925/3945 AC Power Supply | F74: 1
D75: 3900-FANASSY | E75: Cisco 3925/3945 Fan Assembly (Bezel included) | F75: 1
B76: WKKWP | D76: C3900-SPE100/K9 | E76: Cisco Services Performance Engine 100 for Cisco 3925 ISR | F76: 1
D77: ISR-CCP-EXP | E77: Cisco Config Pro Express on Router Flash | F77: 1
D78: MEM-3900-1GB-DEF | E78: 1GB DRAM (512MB+512MB) for Cisco 3925/3945 ISR (Default) | F78: 1
D79: MEM-CF-256MB | E79: 256MB Compact Flash for Cisco 1900, 2900, 3900 ISR | F79: 1
D80: SL-39-IPB-K9 | E80: IP Base License for Cisco 3925/3945 | F80: 1
D81: SL-39-SEC-K9 | E81: Security License for Cisco 3900 Series | F81: 1
D82: CON-OSP-3925SEC | E82: ONSITE 24X7X4 Cisco 3925 Security Bundle w/SEC license | F82: 1
A83: 3945-ME-SEC | C83: Metro-Ethernet/Max. 200Mbps | D83: CISCO3945-SEC/K9 | E83: Cisco 3945 Security Bundle w/SEC license PAK | F83: 1 | L83: =(((J83*(1-$G$6))+$G$9)/$G$8)+(((K83*(1-$G$7))/12)) ->  | M83: =L83 -> 
D84: S39UK9-15104M | E84: Cisco 3925-3945 IOS UNIVERSAL | F84: 1
D85: CAB-AC | E85: AC Power Cord (North America), C13, NEMA 5-15P, 2.1m | F85: 1
D86: CAB-CONSOLE-RJ45 | E86: Console Cable 6ft with RJ45 and DB9F | F86: 1
D87: PWR-3900-AC | E87: Cisco 3925/3945 AC Power Supply | F87: 1
D88: GLC-SX-MM | E88: GE SFP, LC connector SX transceiver | F88: 2
B89: WKKSF | D89: 3900-FANASSY | E89: Cisco 3925/3945 Fan Assembly (Bezel included) | F89: 1
D90: C3900-SPE150/K9 | E90: Cisco Services Performance Engine 150 for Cisco 3945 ISR | F90: 1
D91: ISR-CCP-EXP | E91: Cisco Config Pro Express on Router Flash | F91: 1
D92: MEM-3900-1GB-DEF | E92: 1GB DRAM (512MB+512MB) for Cisco 3925/3945 ISR (Default) | F92: 1
D93: MEM-CF-256MB | E93: 256MB Compact Flash for Cisco 1900, 2900, 3900 ISR | F93: 1
D94: SL-39-IPB-K9 | E94: IP Base License for Cisco 3925/3945 | F94: 1
D95: SL-39-SEC-K9 | E95: Security License for Cisco 3900 Series | F95: 1
D96: CON-OSP-3945SEC | E96: ONSITE 24X7X4 Cisco 3945 Security Bundle w/SEC license | F96: 1
A97: 7201-ME-SEC | C97: Metro-Ethernet/Max. 100Mbps | D97: CISCO7201 | E97: Cisco 7201 Chassis, 1GB Memory, Dual P/S, 256MB Flash | F97: 1 | L97: =(((J97*(1-$G$6))+$G$9)/$G$8)+(((K97*(1-$G$7))/12)) ->  | M97: =L97 -> 
D98: PWR-7201-AC | E98: Cisco 7201 AC Power Supply option System | F98: 2
D99: CAB-AC | E99: AC Power Cord (North America), C13, NEMA 5-15P, 2.1m | F99: 2
D100: S72PASK9-12415T | E100: Cisco 7200 NPE G2 IOS ADVANCED SECURITY | F100: 1
B101: WCCMK | D101: SFP-GE-S | E101: 1000BASE-SX SFP (DOM) | F101: 1
D102: MEM-7201-1GB | E102: Cisco 7201 Series 1GB Memory System | F102: 1
D103: MEM-7201-FLD256 | E103: Cisco 7201 Compact Flash Disk, 256 MB System | F103: 1
D104: CON-OSP-CISC7201 | E104: ONSITE 24X7X4 7201 Chassis,1GB mem dual P/S 256mb flsh | F104: 1
A105: 887-DSL-SEC | C105: DSL/1.5Mbps | D105: CISCO887VA-K9 | E105: Cisco 887 VDSL/ADSL over POTS Multi-mode Router | F105: 1 | L105: =(((J105*(1-$G$6))+$G$9)/$G$8)+(((K105*(1-$G$7))/12)) ->  | M105: =L105 -> 
D106: CAB-AC | E106: Power Cord,110V | F106: 1
D107: S880DUDK9-15104M | E107: Cisco 880 Series IOS UNIVERSAL DATA | F107: 1
D108: CAB-AC | E108: Power Cord,110V | F108: 1
B109: WLLPG | D109: CAB-ETH-S-RJ45 | E109: Yellow Cable for Ethernet, Straight-through, RJ-45, 6 feet | F109: 1
D110: CAB-ADSL-800-RJ11 | E110: ADSL RJ11-to-RJ11 Straight Cable | F110: 1
D111: PWR-60W-AC | E111: Power Supply 60 Watt AC | F111: 1
D112: SL-880-ADVSEC | E112: Cisco 880 Advanced Security Software License | F112: 1
D113: CON-OSP-CISCOVAK | E113: ONSITE 24X7X4 Cisco 887 VDSL/ADSL over POTS Multi-mode | F113: 1
A114: 1841-2T1-SEC | C114: Frame Relay/Max. (2xT1 = 3Mbps) | D114: CISCO1841-T1SEC/K9 | E114: 1841 Security Bundle w/ WIC-1DSU-T1-V2, Adv.Sec.,64FL,256DR | F114: 1 | L114: =(((J114*(1-$G$6))+$G$9)/$G$8)+(((K114*(1-$G$7))/12)) ->  | M114: =L114 -> 
D115: CAB-AC | E115: Power Cord,110V | F115: 1
D116: S184RASK9-12409T | E116: Cisco 1841 IOS ASK9-ASK9 FEAT SET FACTORY UPG FOR BUNDLES | F116: 1
D117: WIC-1DSU-T1-V2 | E117: Updated 1-Port T1/Fractional T1 DSU/CSU WAN Interface Card | F117: 1
B118: WQQU7 | D118: MEM1800-64CF | E118: 64MB Cisco 1800 Compact Flash Memory | F118: 1
D119: MEM1841-128U256D | E119: 128 to 256MB SODIMM DRAM factory upgrade for the Cisco 1841 | F119: 1
D120: WIC-1DSU-T1-V2 | E120: Updated 1-Port T1/Fractional T1 DSU/CSU WAN Interface Card | F120: 1
D121: ROUTER-SDM | E121: Device manager for routers | F121: 1
D122: CON-OSP-C1841T1S | E122: ONSITE 24X7X4 1841 Security Bundle w/ WIC-1DSU-T1-V2, Adv.Se | F122: 1
A123: 1841-ME-HSEC | C123: Metro-Ethernet/Max. 12Mbps | D123: CISCO1841-HSEC/K9 | E123: 1841 Bundle w/AIM-VPN/SSL-1,Adv. IP Svcs,10 SSL lic,64F/256D | F123: 1 | L123: =(((J123*(1-$G$6))+$G$9)/$G$8)+(((K123*(1-$G$7))/12)) ->  | M123: =L123 -> 
D124: CAB-AC | E124: Power Cord,110V | F124: 1
D125: S184RAISK9-12409T | E125: Cisco 1841 IOS AISK9-AISK9 FEAT SET FACTORY UPG FOR BUNDLES | F125: 1
D126: MEM1800-64CF | E126: 64MB Cisco 1800 Compact Flash Memory | F126: 1
B127: WAADF | D127: MEM1841-128U256D | E127: 128 to 256MB SODIMM DRAM factory upgrade for the Cisco 1841 | F127: 1
D128: AIM-VPN/SSL-1 | E128: DES/3DES/AES/SSL VPN Encryption/Compression | F128: 1
D129: FL-WEBVPN-10-K9 | E129: Feature License IOS SSL VPN Up To 10 Users (Incremental) | F129: 1
D130: ROUTER-SDM | E130: Device manager for routers | F130: 1
D131: CON-OSP-C1841HSE | E131: ONSITE 24X7X4 1841 Security bundle w/AIM-VPN,Adv.IP Svcs,64F | F131: 1
A132: 1841-T1-HSEC | C132: Frame Relay/Max. 1.5Mbps | D132: CISCO1841-HSEC/K9 | E132: 1841 Bundle w/AIM-VPN/SSL-1,Adv. IP Svcs,10 SSL lic,64F/256D | F132: 1 | L132: =(((J132*(1-$G$6))+$G$9)/$G$8)+(((K132*(1-$G$7))/12)) ->  | M132: =L132 -> 
D133: CAB-AC | E133: Power Cord,110V | F133: 1
D134: S184RAISK9-12409T | E134: Cisco 1841 IOS AISK9-AISK9 FEAT SET FACTORY UPG FOR BUNDLES | F134: 1
D135: WIC-1DSU-T1-V2 | E135: Updated 1-Port T1/Fractional T1 DSU/CSU WAN Interface Card | F135: 1
B136: WRRDY | D136: ROUTER-SDM | E136: Device manager for routers | F136: 1
D137: MEM1800-64CF | E137: 64MB Cisco 1800 Compact Flash Memory | F137: 1
D138: MEM1841-128U256D | E138: 128 to 256MB SODIMM DRAM factory upgrade for the Cisco 1841 | F138: 1
D139: AIM-VPN/SSL-1 | E139: DES/3DES/AES/SSL VPN Encryption/Compression | F139: 1
D140: FL-WEBVPN-10-K9 | E140: Feature License IOS SSL VPN Up To 10 Users (Incremental) | F140: 1
D141: CON-OSP-C1841HSE | E141: ONSITE 24X7X4 1841 Security bundle w/AIM-VPN,Adv.IP Svcs,64F | F141: 1
A142: 1921-2T1-SEC | C142: Frame Relay/Max. (2xT1 = 3Mbps) | D142: CISCO1921-SEC/K9 | E142: Cisco1921/K9 with 2GE, SEC License PAK, 512MB DRAM, 256MB Fl | F142: 1 | L142: =(((J142*(1-$G$6))+$G$9)/$G$8)+(((K142*(1-$G$7))/12)) ->  | M142: =L142 -> 
D143: S190UK9-15104M | E143: Cisco 1900 IOS UNIVERSAL | F143: 1
D144: HWIC-1DSU-T1 | E144: 1-Port T1/Fractional T1 DSU/CSU WAN Interface Card | F144: 2
D145: CAB-AC | E145: AC Power Cord (North America), C13, NEMA 5-15P, 2.1m | F145: 1
B146: WLL5N | D146: CAB-CONSOLE-RJ45 | E146: Console Cable 6ft with RJ45 and DB9F | F146: 1
D147: ACS-1900-RM-19 | E147: Rack Mount Kit for 1921, 1905 | F147: 1
D148: SL-19-IPB-K9 | E148: IP Base License for Cisco 1900 | F148: 1
D149: SL-19-SEC-K9 | E149: Security License for Cisco 1900 | F149: 1
D150: CON-OSP-1921SEC | E150: ONSITE 24X7X4 Cisco1921/K9 with 2GE, SEC License PAK, | F150: 1
A151: 1921-64K-SEC | C151: Frame Relay/64Kbps | D151: CISCO1921-SEC/K9 | E151: Cisco1921/K9 with 2GE, SEC License PAK, 512MB DRAM, 256MB Fl | F151: 1 | L151: =(((J151*(1-$G$6))+$G$9)/$G$8)+(((K151*(1-$G$7))/12)) ->  | M151: =L151 -> 
D152: S190UK9-15104M | E152: Cisco 1900 IOS UNIVERSAL | F152: 1
D153: HWIC-1DSU-56K4 | E153: 1-port 4-WIRE 56/64 KBPS WAN INTERFACE CARD | F153: 1
D154: CAB-AC | E154: AC Power Cord (North America), C13, NEMA 5-15P, 2.1m | F154: 1
B155: WLL5H | D155: CAB-CONSOLE-RJ45 | E155: Console Cable 6ft with RJ45 and DB9F | F155: 1
D156: ACS-1900-RM-19 | E156: Rack Mount Kit for 1921, 1905 | F156: 1
D157: SL-19-IPB-K9 | E157: IP Base License for Cisco 1900 | F157: 1
D158: SL-19-SEC-K9 | E158: Security License for Cisco 1900 | F158: 1
D159: CON-OSP-1921SEC | E159: ONSITE 24X7X4 Cisco1921/K9 with 2GE, SEC License PAK, | F159: 1
A160: 1921-DSL-SEC | C160: DSL/1.5Mbps | D160: CISCO1921-SEC/K9 | E160: Cisco1921/K9 with 2GE, SEC License PAK, 512MB DRAM, 256MB Fl | F160: 1 | L160: =(((J160*(1-$G$6))+$G$9)/$G$8)+(((K160*(1-$G$7))/12)) ->  | M160: =L160 -> 
D161: HWIC-1ADSL | E161: 1-port ADSLoPOTS HWIC | F161: 1
D162: CAB-ADSL-RJ11X | E162: ADSL Cable RJ11 to RJ11, Cross-over | F162: 1
D163: CAB-AC | E163: AC Power Cord (North America), C13, NEMA 5-15P, 2.1m | F163: 1
B164: WLLPH | D164: CAB-CONSOLE-RJ45 | E164: Console Cable 6ft with RJ45 and DB9F | F164: 1
D165: S190UK9-15104M | E165: Cisco 1900 IOS UNIVERSAL | F165: 1
D166: SL-19-IPB-K9 | E166: IP Base License for Cisco 1900 | F166: 1
D167: SL-19-SEC-K9 | E167: Security License for Cisco 1900 | F167: 1
D168: CON-OSP-1921SEC | E168: ONSITE 24X7X4 Cisco1921/K9 with 2GE, SEC License PAK, | F168: 1
A169: 2921-2T1-SEC | C169: Frame Relay/Max. (2xT1 = 3Mbps) | D169: CISCO2921-SEC/K9 | E169: Cisco 2921 Security Bundle w/SEC license PAK | F169: 1 | L169: =(((J169*(1-$G$6))+$G$9)/$G$8)+(((K169*(1-$G$7))/12)) ->  | M169: =L169 -> 
D170: S29UK9-15104M | E170: Cisco 2901-2921 IOS UNIVERSAL | F170: 1
D171: VWIC3-2MFT-T1/E1 | E171: 2-Port 3rd Gen Multiflex Trunk Voice/WAN Int. Card - T1/E1 | F171: 1
D172: CAB-AC | E172: AC Power Cord (North America), C13, NEMA 5-15P, 2.1m | F172: 1
D173: CAB-CONSOLE-RJ45 | E173: Console Cable 6ft with RJ45 and DB9F | F173: 1
D174: PWR-2921-51-AC | E174: Cisco 2921/2951 AC Power Supply | F174: 1
B175: WLL5O | D175: ISR-CCP-EXP | E175: Cisco Config Pro Express on Router Flash | F175: 1
D176: MEM-2900-512MB-DEF | E176: 512MB DRAM for Cisco 2901-2921 ISR (Default) | F176: 1
D177: MEM-CF-256MB | E177: 256MB Compact Flash for Cisco 1900, 2900, 3900 ISR | F177: 1
D178: GLC-SX-MM | E178: GE SFP, LC connector SX transceiver | F178: 1
D179: SL-29-IPB-K9 | E179: IP Base License for Cisco 2901-2951 | F179: 1
D180: SL-29-SEC-K9 | E180: Security License for Cisco 2901-2951 | F180: 1
D181: CON-OSP-2921SEC | E181: ONSITE 24X7X4 Cisco 2921 Security | F181: 1
A182: 2921-4T1-SEC | C182: Frame Relay/Max. (4xT1 = 6Mbps) | D182: CISCO2921-SEC/K9 | E182: Cisco 2921 Security Bundle w/SEC license PAK | F182: 1 | L182: =(((J182*(1-$G$6))+$G$9)/$G$8)+(((K182*(1-$G$7))/12)) ->  | M182: =L182 -> 
D183: S29UK9-15201T | E183: Cisco 2901-2921 IOS UNIVERSAL | F183: 1
D184: VWIC3-2MFT-T1/E1 | E184: 2-Port 3rd Gen Multiflex Trunk Voice/WAN Int. Card - T1/E1 | F184: 2
D185: GLC-SX-MM | E185: GE SFP, LC connector SX transceiver | F185: 1
D186: CAB-AC | E186: AC Power Cord (North America), C13, NEMA 5-15P, 2.1m | F186: 1
D187: CAB-CONSOLE-RJ45 | E187: Console Cable 6ft with RJ45 and DB9F | F187: 1
B188: WLL5P | D188: PWR-2921-51-AC | E188: Cisco 2921/2951 AC Power Supply | F188: 1
D189: ISR-CCP-EXP | E189: Cisco Config Pro Express on Router Flash | F189: 1
D190: MEM-2900-512MB-DEF | E190: 512MB DRAM for Cisco 2901-2921 ISR (Default) | F190: 1
D191: MEM-CF-256MB | E191: 256MB Compact Flash for Cisco 1900, 2900, 3900 ISR | F191: 1
D192: SL-29-IPB-K9 | E192: IP Base License for Cisco 2901-2951 | F192: 1
D193: SL-29-SEC-K9 | E193: Security License for Cisco 2901-2951 | F193: 1
D194: CON-OSP-2921SEC | E194: ONSITE 24X7X4 Cisco 2921 Security | F194: 1
A195: 2921-ME-HSEC | C195: Metro-Ethernet/Max. 21Mbps | D195: CISCO2921-SEC/K9 | E195: Cisco 2921 Security Bundle w/SEC license PAK | F195: 1 | L195: =(((J195*(1-$G$6))+$G$9)/$G$8)+(((K195*(1-$G$7))/12)) ->  | M195: =L195 -> 
D196: ISR-CCP-EXP | E196: Cisco Config Pro Express on Router Flash | F196: 1
D197: MEM-2900-512MB-DEF | E197: 512MB DRAM for Cisco 2901-2921 ISR (Default) | F197: 1
D198: MEM-CF-256MB | E198: 256MB Compact Flash for Cisco 1900, 2900, 3900 ISR | F198: 1
D199: PWR-2921-51-AC | E199: Cisco 2921/2951 AC Power Supply | F199: 1
B200: WLLOU | D200: S29UK9-15104M | E200: Cisco 2901-2921 IOS UNIVERSAL | F200: 1
D201: FL-29-HSEC-K9 | E201: U.S. Export Restriction Compliance license for 2921/2951 | F201: 1
D202: SL-29-IPB-K9 | E202: IP Base License for Cisco 2901-2951 | F202: 1
D203: SL-29-SEC-K9 | E203: Security License for Cisco 2901-2951 | F203: 1
... 1203 more rows

Sheet 2 - WAN Service
A1: Price Sheet 2 MyFloridaNet2; WAN Service
A2: =Checklist!D3 -> 0
A3: Rate (Monthly Recurring Charge)
A4: A | J4: B | M4: C | AF4: D | AG4: E | AK4: F | AM4: G
A5: Bandwidth | J5: Core Port | M5: Local Loop Access | AF5: Internet Access | AG5: E-rate Ineligible Internet Access Service Elements | AK5: E-rate Ineligible Portion | AM5: E-rate Eligible Portion
B6: FIRN BUNDLED USOC | C6: FIRN BUNDLED USOC (Frame) | D6: FIRN BUNDLED USOC (Ethernet) | E6: FIRN BUNDLED USOC (Ethernet w/Enhanced Router) | F6: MFN USOCs (Core Port - Frame) | G6: MFN USOCs (Core Port - Ethernet) | H6: MFN 2GMAN Virtual Port USOCs | I6: Port for Extranet | K6: MFN USOCs ( Flat Rate Access - Frame) | L6: MFN USOCs ( Flat Rate Access - Ethernet) | M6: Flat Rate | N6: FIRN USOC | O6: MFN USOCs (≤ 25 Miles - Frame) | P6: FIRN USOC | Q6: MFN USOCs (≤ 25 Miles - Ethernet) | R6: ≤ 25 Miles | S6: FIRN USOC | T6: MFN USOCs (≤ 10 Miles - Ethernet) | U6: ≤ 10 Miles | V6: FIRN USOC | W6: MFN USOCs (>10 ≤ 25 Miless - Ethernet) | X6: >10 ≤ 25 Miles | Y6: FIRN USOC | Z6: MFN USOCs (> 25 ≤ 35 Miles - Frame/Ethernet) | AA6: > 25 ≤ 35 Miles | AB6: FIRN USOC | AC6: MFN USOCs (> 35 ≤ 50 Miles - Frame/Ethernet) | AD6: > 35 ≤ 50 Miles | AE6: > 50 Miles | AG6: SIEM Tool | AH6: Sandbox Analyzer | AI6: Next Generation IPS & IDS | AJ6: Malware & Anti-Virus Detection | AK6: E-Rate Ineligible Charges | AL6: Ineligible Points Possible | AM6: E-Rate Eligible Charges | AN6: Eligible Points Possible
A7: 64 Kbps | B7: WLLMX | F7: WRR11 | K7: WRR22 | AK7: =IF((AG7+AH7+AI7+AJ7)>AF7, "Error: E > D", (AG7+AH7+AI7+AJ7)) -> 0 | AL7: 0.98 | AM7: =IF(AK7="Error: E > D", "Error: E > D",J7+M7+AF7-AK7) -> 0 | AN7: 5.34
A8: 128 Kbps | B8: WLLMY | F8: WRR12 | K8: WRR23 | AK8: =IF((AG8+AH8+AI8+AJ8)>AF8, "Error: E > D", (AG8+AH8+AI8+AJ8)) -> 0 | AL8: 0.98 | AM8: =IF(AK8="Error: E > D", "Error: E > D",J8+M8+AF8-AK8) -> 0 | AN8: 5.34
A9: 256 Kbps | B9: WLLMZ | F9: WRR13 | K9: WRR24 | AK9: 0 | AL9: 0.98 | AM9: 0 | AN9: 5.34
A10: 512 Kbps | B10: WLLO1 | F10: WRR14 | I10: WRRCX | K10: WRR25 | AK10: 0 | AL10: 0.98 | AM10: 0 | AN10: 5.34
A11: 768 Kbps | B11: NA | F11: WRR15 | K11: WRR26 | AK11: 0 | AL11: 1.96 | AM11: 0 | AN11: 10.68
A12: 1.5 Mbps | B12: WLLO2 | C12: WKK18 | D12: WKK1Y | F12: WRR16 | H12: WRR1Y | I12: WRR1N | K12: WRR27 | AK12: 0 | AL12: 3.92 | AM12: 0 | AN12: 21.36
A13: 2 Mbps | B13: WLLO3 | C13: WKK19 | D13: WKK1Z | G13: WRRCZ | L13: WRRBZ | AK13: 0 | AL13: 3.92 | AM13: 0 | AN13: 21.36
A14: 3 Mbps | B14: WLLO4 | C14: WKK1A | D14: WKK21 | F14: WRR17 | K14: WRR28 | AK14: 0 | AL14: 3.92 | AM14: 0 | AN14: 21.36
A15: 4 Mbps | B15: WLLO6 | C15: WKK1B | D15: WKK22 | G15: WRRD1 | L15: WRRC1 | AK15: 0 | AL15: 3.92 | AM15: 0 | AN15: 21.36
A16: 6 Mbps | B16: WLLO7 | C16: WKK1C | D16: WKK23 | F16: WRR18 | G16: WRR1F | K16: WRR29 | L16: WRR2G | AK16: 0 | AL16: 3.92 | AM16: 0 | AN16: 21.36
A17: 8 Mbps | B17: WLLO9 | C17: NA | D17: NA | G17: WRRD2 | L17: WRRC2 | AK17: 0 | AL17: 1.96 | AM17: 0 | AN17: 10.68
A18: 9 Mbps | B18: WLLOA | C18: WKK1D | D18: WKK24 | F18: WRR19 | G18: WRR1G | K18: WRR2A | L18: WRR2H | AK18: 0 | AL18: 1.96 | AM18: 0 | AN18: 10.68
A19: 10 Mbps | B19: WLLOC | D19: WKK25 | G19: WRR1H | H19: WRR1Z | L19: WRR2J | AK19: 0 | AL19: 3.92 | AM19: 0 | AN19: 21.36
A20: 12 Mbps | B20: WLLOD | D20: WKK26 | F20: WRR1A | G20: WRR1J | K20: WRR2B | L20: WRR2K | AK20: 0 | AL20: 3.92 | AM20: 0 | AN20: 21.36
A21: 15 Mbps | D21: WKK28 | F21: WRR1B | G21: WRR1K | N21: WLLPV | O21: WRR2C | P21: WLLPR | Q21: WRR2L | Y21: WLLPT | Z21: WRR3A | AB21: WLLPU | AC21: WRR3B | AK21: 0 | AL21: 3.92 | AM21: =IF(AK21="Error: E > D", "Error: E > D",J21+R21+AA21+AD21+AE21+AF21-AK21) -> 0 | AN21: 21.36
A22: 21 Mbps | C22: WKK2A | D22: WKK2B | F22: WRR1C | G22: WRRBA | N22: WLLPZ | O22: WRR2D | P22: WLLPW | Q22: WRR2M | Y22: WLLPX | Z22: WRR3C | AB22: WLLPY | AC22: WRRD3 | AK22: 0 | AL22: 3.92 | AM22: =IF(AK22="Error: E > D", "Error: E > D",J22+R22+AA22+AD22+AE22+AF22-AK22) -> 0 | AN22: 21.36
A23: 33 Mbps | C23: WKK2E | D23: WKK2F | F23: WRR1D | G23: WRRBB | N23: WLLQ4 | O23: WRR2E | P23: WLLQ1 | Q23: WRR2N | Y23: WLLQ2 | Z23: WRRD4 | AB23: WLLQ3 | AC23: WRRD5 | AK23: 0 | AL23: 1.96 | AM23: 0 | AN23: 10.68
A24: 45 Mbps | C24: WKK2G | D24: WKK2K | F24: WRR1E | G24: WRRBC | N24: WLLQ8 | O24: WRR2F | P24: WLLQ5 | Q24: WRR2O | Y24: WLLQ6 | Z24: WRRD6 | AB24: WLLQ7 | AC24: WRRD7 | AK24: 0 | AL24: 3.92 | AM24: 0 | AN24: 21.36
A25: 50 Mbps | D25: WKK2L | AK25: 0 | AL25: 1.96 | AM25: =IF(AK25="Error: E > D", "Error: E > D",J25+U25+X25+AA25+AD25+AE25+AF25-AK25) -> 0 | AN25: 10.68
A26: 75 Mbps | C26: WKK2M | D26: WKK2N | AK26: 0 | AL26: 1.96 | AM26: =IF(AK26="Error: E > D", "Error: E > D",J26+U26+X26+AA26+AD26+AE26+AF26-AK26) -> 0 | AN26: 10.68
A27: 90 Mbps | C27: NA | D27: NA | G27: WRRBD | S27: WLLQA | T27: WRRD8 | V27: WLLQB | W27: WRRD9 | Y27: WLLQC | Z27: WRRDA | AB27: WLLQD | AC27: WRRDB | AK27: 0 | AL27: 3.92 | AM27: 0 | AN27: 21.36
A28: 100 Mbps | C28: WKK2P | D28: WKK2O | G28: WRRBE | H28: WRR21 | S28: WLLQE | T28: WRRDC | V28: WLLQF | W28: WRRDD | Y28: WLLQG | Z28: WRRDE | AB28: WLLQH | AC28: WRRDF | AK28: 0 | AL28: 3.92 | AM28: 0 | AN28: 21.36
A29: 155 Mbps | D29: WKK2Q | G29: WRRBF | S29: WLLQJ | T29: WRRDG | V29: WLLQK | W29: WRRDH | Y29: WLLQL | Z29: WRRDJ | AB29: WLLQM | AC29: WRRDK | AK29: 0 | AL29: 3.92 | AM29: 0 | AN29: 21.36
A30: 200 Mbps | D30: WKK2R | E30: WEE7N | G30: WRRBG | S30: WLLV6 | T30: WRRDL | V30: WLLQP | W30: WRRDM | Y30: WLLQQ | Z30: WRRDN | AB30: WLLQR | AC30: WRRDO | AK30: 0 | AL30: 3.92 | AM30: 0 | AN30: 21.36
A31: 300 Mbps | D31: WKK2S | E31: WEE7O | G31: WAADV | S31: WLLQS | T31: WAADZ | V31: WLLQT | W31: WAAE5 | Y31: WLLQU | Z31: WAAE6 | AB31: WLLQV | AC31: WAAE7 | AK31: 0 | AL31: 3.92 | AM31: 0 | AN31: 21.36
A32: 400 Mbps | D32: WKK2U | E32: WEE7Q | G32: WAADW | S32: WLLQW | T32: WAAE8 | V32: WLLQX | W32: WAAE9 | Y32: WLLQY | Z32: WAAEA | AB32: WLLQZ | AC32: WAAEB | AK32: 0 | AL32: 3.92 | AM32: 0 | AN32: 21.36
A33: 500 Mbps | D33: WKK2V | E33: WEE7R | G33: WAADX | S33: WLLR1 | T33: WAAEG | V33: WLLR2 | W33: WAAEH | Y33: WLLR3 | Z33: WAAEJ | AB33: WLLR4 | AC33: WAAEM | AK33: 0 | AL33: 1.96 | AM33: 0 | AN33: 10.68
A34: 600 Mbps | C34: NA | D34: WKK2X | AK34: 0 | AL34: 1.96 | AM34: 0 | AN34: 10.68
A35: 622 Mbps | D35: NA | G35: WRRBH | S35: WLLR5 | T35: WRRDP | V35: WLLR6 | W35: WRRDQ | Y35: WLLRB | Z35: WRRDR | AB35: WLLRC | AC35: WRRDS | AK35: 0 | AL35: 1.96 | AM35: 0 | AN35: 10.68
A36: 700 Mbps | D36: WKK2Y | G36: WAAE2 | S36: WLLRD | T36: WAAEN | V36: WLLRE | W36: WAAEO | Y36: WLLRF | Z36: WAAEP | AB36: WLLRG | AC36: WAAEQ | AK36: 0 | AL36: 1.96 | AM36: 0 | AN36: 10.68
A37: 800 Mbps | D37: WKK2Z | G37: WAAE3 | S37: WLLRH | T37: WAAER | V37: WLLRJ | W37: WAAES | Y37: WLLRK | Z37: WAAET | AB37: WLLRL | AC37: WAAEU | AK37: 0 | AL37: 1.96 | AM37: 0 | AN37: 10.68
A38: 900 Mbps | D38: WKK31 | G38: WAAE4 | S38: WLLRM | T38: WAAEV | V38: WLLRN | W38: WAAEX | Y38: WLLRO | Z38: WAAEY | AB38: WLLRP | AC38: WAAEZ | AK38: 0 | AL38: 1.96 | AM38: 0 | AN38: 10.68
A39: 1000 Mbps | D39: WKK32 | E39: WEE7Y | G39: WRRBJ | S39: WLLRQ | T39: WRRDT | V39: WLLRR | W39: WRRDU | Y39: WLLRS | Z39: WRRDV | AB39: WLLRT | AC39: WRRDW | AK39: 0 | AL39: 3.92 | AM39: 0 | AN39: 21.36
A40: 1200 Mbps | C40: NA | D40: NA | E40: NA | AK40: 0 | AL40: 1.96 | AM40: 0 | AN40: 10.68
A41: 1400 Mbps | C41: NA | D41: NA | E41: NA | AK41: 0 | AL41: 1.96 | AM41: 0 | AN41: 10.68
A42: 1600 Mbps | C42: NA | D42: NA | E42: NA | AK42: 0 | AL42: 1.96 | AM42: 0 | AN42: 10.68
A43: 1800 Mbps | C43: NA | D43: NA | E43: NA | AK43: 0 | AL43: 1.96 | AM43: 0 | AN43: 10.68
A44: 2000 Mbps | C44: NA | D44: NA | E44: NA | AK44: 0 | AL44: 3.92 | AM44: 0 | AN44: 21.36
A45: 2400 Mbps | C45: NA | D45: NA | E45: NA | AK45: 0 | AL45: 1.96 | AM45: 0 | AN45: 10.68
A46: 2800 Mbps | C46: NA | D46: NA | E46: NA | AK46: 0 | AL46: 1.96 | AM46: 0 | AN46: 10.68
A47: 3000 Mbps | C47: NA | D47: NA | E47: NA | AK47: 0 | AL47: 1.96 | AM47: 0 | AN47: 10.68
A48: 3500 Mbps | C48: NA | D48: NA | E48: NA | AK48: 0 | AL48: 1.96 | AM48: 0 | AN48: 10.68
A49: 4000 Mbps | C49: NA | D49: NA | E49: NA | AK49: 0 | AL49: 1.96 | AM49: 0 | AN49: 10.68
A50: 4500 Mbps | C50: NA | D50: NA | E50: NA | AK50: 0 | AL50: 1.96 | AM50: 0 | AN50: 10.68
A51: 5000 Mbps | C51: NA | D51: NA | E51: NA | AK51: 0 | AL51: 3.92 | AM51: 0 | AN51: 21.36
A52: 5500 Mbps | C52: NA | D52: NA | E52: NA | AK52: 0 | AL52: 1.96 | AM52: 0 | AN52: 10.68
A53: 6000 Mbps | C53: NA | D53: NA | E53: NA | AK53: 0 | AL53: 1.96 | AM53: 0 | AN53: 10.68
A54: 6500 Mbps | C54: NA | D54: NA | E54: NA | AK54: 0 | AL54: 1.96 | AM54: 0 | AN54: 10.68
A55: 7000 Mbps | C55: NA | D55: NA | E55: NA | AK55: 0 | AL55: 1.96 | AM55: 0 | AN55: 10.68
A56: 7500 Mbps | C56: NA | D56: NA | E56: NA | AK56: 0 | AL56: 1.96 | AM56: 0 | AN56: 10.68
A57: 8000 Mbps | C57: NA | D57: NA | E57: NA | AK57: 0 | AL57: 1.96 | AM57: 0 | AN57: 10.68
A58: 8500 Mbps | C58: NA | D58: NA | E58: NA | AK58: 0 | AL58: 1.96 | AM58: 0 | AN58: 10.68
A59: 9000 Mbps | C59: NA | D59: NA | E59: NA | AK59: 0 | AL59: 1.96 | AM59: 0 | AN59: 10.68
A60: 9500 Mbps | C60: NA | D60: NA | E60: NA | AK60: 0 | AL60: 1.96 | AM60: 0 | AN60: 10.68
A61: 10000 Mbps | C61: NA | D61: NA | E61: NA | AK61: 0 | AL61: 3.92 | AM61: 0 | AN61: 21.36
A62: 11000 Mbps | C62: NA | D62: NA | E62: NA | AK62: 0 | AL62: 1.96 | AM62: 0 | AN62: 10.68
A63: 15000 Mbps | C63: NA | D63: NA | E63: NA | AK63: 0 | AL63: 3.92 | AM63: 0 | AN63: 21.36
A64: 20000 Mbps | C64: NA | D64: NA | E64: NA | AK64: 0 | AL64: 3.92 | AM64: 0 | AN64: 21.36
A65: 25000 Mbps | C65: NA | D65: NA | E65: NA | AK65: 0 | AL65: 1.96 | AM65: 0 | AN65: 10.68
A66: 30000 Mbps | C66: NA | D66: NA | E66: NA | AK66: 0 | AL66: 1.96 | AM66: 0 | AN66: 10.68
A67: 35000 Mbps | C67: NA | D67: NA | E67: NA | AK67: 0 | AL67: 1.96 | AM67: 0 | AN67: 10.68
A68: 40000 Mbps | C68: NA | D68: NA | E68: NA | AK68: 0 | AL68: 3.92 | AM68: 0 | AN68: 21.36
A69: 45000 Mbps | C69: NA | D69: NA | E69: NA | AK69: 0 | AL69: 1.96 | AM69: 0 | AN69: 10.68
A70: 50000 Mbps | C70: NA | D70: NA | E70: NA | AK70: 0 | AL70: 1.96 | AM70: 0 | AN70: 10.68
A71: 60000 Mbps | C71: NA | D71: NA | E71: NA | AK71: 0 | AL71: 1.96 | AM71: 0 | AN71: 10.68
A72: 70000 Mbps | C72: NA | D72: NA | E72: NA | AK72: =IF((AG72+AH72+AI72+AJ72)>AF72, "Error: E > D", (AG72+AH72+AI72+AJ72)) -> 0 | AL72: 1.96 | AM72: 0 | AN72: 10.68
A73: 80000 Mbps | C73: NA | D73: NA | E73: NA | AK73: 0 | AL73: 1.96 | AM73: 0 | AN73: 10.68
A74: 90000 Mbps | C74: NA | D74: NA | E74: NA | AK74: 0 | AL74: 1.96 | AM74: 0 | AN74: 10.68
A75: 100000 Mbps | C75: NA | D75: NA | E75: NA | AK75: 0 | AL75: 3.92 | AM75: 0 | AN75: 21.36
A76: 110000 Mbps | C76: NA | D76: NA | E76: NA | AK76: 0 | AL76: 1.96 | AM76: 0 | AN76: 10.68
A77: 120000 Mbps | C77: NA | D77: NA | E77: NA | AK77: 0 | AL77: 1.96 | AM77: 0 | AN77: 10.68
A78: 130000 Mbps | C78: NA | D78: NA | E78: NA | AK78: 0 | AL78: 1.96 | AM78: 0 | AN78: 10.68
A79: 140000 Mbps | C79: NA | D79: NA | E79: NA | AK79: 0 | AL79: 1.96 | AM79: 0 | AN79: 10.68
A80: 150000 Mbps | C80: NA | D80: NA | E80: NA | AK80: 0 | AL80: 1.96 | AM80: 0 | AN80: 10.68
A81: 160000 Mbps | C81: NA | D81: NA | E81: NA | AK81: 0 | AL81: 1.96 | AM81: 0 | AN81: 10.68
A82: 170000 Mbps | C82: NA | D82: NA | E82: NA | AK82: 0 | AL82: 1.96 | AM82: 0 | AN82: 10.68
A83: 180000 Mbps | C83: NA | D83: NA | E83: NA | AK83: 0 | AL83: 1.96 | AM83: 0 | AN83: 10.68
A84: 190000 Mbps | C84: NA | D84: NA | E84: NA | AK84: 0 | AL84: 1.96 | AM84: 0 | AN84: 10.68
A85: 200000 Mbps | C85: NA | D85: NA | E85: NA | AK85: 0 | AL85: 1.96 | AM85: 0 | AN85: 10.68
A86: Additional Per 10Gbps Mbps | C86: NA | D86: NA | E86: NA | AK86: 0 | AL86: 3.92 | AM86: 0 | AN86: 21.36
J87: =COUNTBLANK(J7:J86) -> 80 | M87: =COUNTBLANK(M7:M20) -> 14 | N87: =COUNTBLANK(N7:N20) -> 14 | O87: 14 | P87: 14 | Q87: 14 | R87: =COUNTBLANK(R21:R24) -> 4 | S87: =COUNTBLANK(S21:S24) -> 4 | T87: 4 | U87: =COUNTBLANK(U25:U86) -> 62 | V87: =COUNTBLANK(V25:V86) -> 50 | W87: 50 | X87: =COUNTBLANK(X25:X86) -> 62 | AA87: =COUNTBLANK(AA21:AA86) -> 66 | AB87: =COUNTBLANK(AB21:AB86) -> 50 | AC87: 50 | AD87: 66 | AE87: =COUNTBLANK(AE21:AE86) -> 66 | AF87: =COUNTBLANK(AF7:AF86) -> 80 | AG87: =COUNTBLANK(AG7:AG86) -> 80 | AH87: 80 | AI87: 80 | AJ87: 80 | AL87: =SUM(AL7:AL86) -> 202.00 | AN87: =SUM(AN7:AN86) -> 1100.00
AK89: =COUNTIF($AK$7:$AK$86,"Error: E > D") -> 0
AK90: =COUNTA($AK$7:$AK$86)-(COUNTIF($AK$7:$AK$86,">0")+COUNTIF($AK$7:$AK$86,"<0")) -> $80.00
AK91: =COUNTA($AK$7:$AK$86) -> 80

Sheet 3 - MAN Service
A1: Price Sheet 3 MyFloridaNet2; MAN Service
A2: =Checklist!D3 -> 0
A3: Rate (Monthly Recurring Charge)
A4: A | K4: cm | P4: no cpe or cm | S4: B | T4: C
A5: Bandwidth (Mbps) | S5: MAN Service | T5: E-rate Eligible Portion
B6: FIRN DAN | C6: FIRN MAN (AT&T Only Up to 10 Miles) | D6: FIRN DAN (Frame) | E6: FIRN DAN (Ethernet) | F6: MFN USOCs (MFN Lite - Local Loop Access - Flat Rate) | G6: MFN USOCs (MFN Lite - Local Loop Access - 0-25 Miles) | H6: MFN USOCs (MFN Lite - Local Loop Access - 0-10 Miles) | I6: MFN USOCs (MFN Lite - Local Loop Access - >10 to 25 Miles) | J6: MFN USOCs (MFN Lite - Local Loop Access - >25 to 35 Miles) | K6: MFN USOCs (MFN Lite - Local Loop Access - >35 Miles) | L6: FIRN USOCs (2GMAN - Standard) | M6: MFN USOCs (2GMAN - Standard) | N6: FIRN USOCs (2GMAN - Enhanced) | O6: MFN USOCs (2GMAN - Enhanced) | P6: MFN USOCs (IntraLATA MAN - AT&T - <up to 10 Miles) | Q6: MFN USOCs (IntraLATA MAN - CTL - Zone 1 | R6: MFN USOCs (IntraLATA MAN - CTL - Zone 3 | T6: E-Rate Eligible Charges | U6: Eligible Points Possible
A7: 1.5 | B7: WKK43 | C7: NA | D7: WKK3G | E7: WKK43 | M7: WKKR6 | T7: =S7 -> 0 | U7: 0.40
A8: 2 | B8: WKK44 | C8: WLLLO | D8: WKK3H | E8: WKK44 | F8: WCCXD | T8: 0 | U8: 1.61
A9: 3 | B9: WKK45 | C9: NA | D9: WKK3J | E9: WKK45 | T9: 0 | U9: 0.81
A10: 4 | B10: WKK46 | C10: WLLLP | D10: WKK3K | E10: WKK46 | F10: WCCXE | T10: 0 | U10: 1.61
A11: 6 | B11: WKK47 | C11: NA | D11: WKK3L | E11: WKK47 | T11: 0 | U11: 0.81
A12: 8 | B12: NA | C12: WLLLQ | D12: NA | E12: NA | F12: WCCXF | P12: WLLM4 | T12: 0 | U12: 0.81
A13: 9 | B13: WKK48 | C13: NA | D13: WKK3M | E13: WKK48 | T13: 0 | U13: 0.81
A14: 10 | B14: WKK49 | C14: WLLLR | D14: WKK3N | E14: WKK49 | F14: WCCXG | M14: WKKR7 | P14: WLLM5 | T14: 0 | U14: 1.61
A15: 12 | B15: WKK4A | C15: NA | D15: WKK3O | E15: WKK4A | T15: 0 | U15: 0.81
A16: 15 | B16: WKK4C | C16: NA | D16: WKK3Q | E16: WKK4C | T16: 0 | U16: 0.81
A17: 20 | B17: WKK4E | C17: NA | D17: WKK3S | E17: WKK4E | G17: WAAD5 | J17: WAAD6 | K17: WAAD7 | P17: WLLH4 | T17: 0 | U17: 1.61
A18: 21 | B18: WKK4F | C18: NA | D18: WKK3T | E18: WKK4F | T18: 0 | U18: 0.81
A19: 33 | B19: WKK4K | C19: NA | D19: WKK3X | E19: WKK4K | F19: WKK3W | G19: WKK4J | T19: 0 | U19: 0.81
A20: 45 | B20: WKK4O | C20: NA | D20: WKK42 | E20: WKK4O | G20: WKK4M | T20: 0 | U20: 0.81
A21: 50 | B21: WKK4P | C21: NA | D21: NA | E21: WKK4P | H21: WAAD8 | I21: WAAD9 | J21: WAADA | K21: WCCXC | P21: WLLH5 | Q21: WKKXS | R21: WKKXU | T21: 0 | U21: 1.61
A22: 75 | B22: WKK4R | C22: NA | D22: NA | E22: WKK4R | G22: WKK4Q | T22: 0 | U22: 0.81
A23: 90 | B23: NA | C23: NA | D23: NA | E23: NA | T23: 0 | U23: 0.81
A24: 100 | B24: WKK4S | C24: WLLLS | D24: NA | E24: WKK4S | H24: WCCXJ | I24: WCCXP | J24: WCCXQ | K24: WCCXT | M24: WKKRD | Q24: WKKXV | T24: 0 | U24: 1.61
A25: 155 | B25: WKK4U | C25: NA | D25: NA | E25: WKK4U | T25: 0 | U25: 0.81
A26: 200 | B26: WKK4V | C26: NA | D26: NA | E26: WKK4V | M26: WKKRG | O26: WKKRH | T26: 0 | U26: 0.81
A27: 250 | B27: NA | C27: NA | D27: NA | E27: NA | H27: WAADB | I27: WAADC | J27: WAADD | K27: WAADE | T27: 0 | U27: 0.81
A28: 300 | B28: WKK4W | C28: NA | D28: NA | E28: WKK4W | T28: 0 | U28: 0.81
A29: 400 | B29: WKK4Y | C29: NA | D29: NA | E29: WKK4Y | M29: WKKRJ | O29: WKKRK | T29: 0 | U29: 0.81
A30: 500 | B30: WKK4Z | C30: NA | D30: NA | E30: WKK4Z | H30: WCCXU | I30: WCCXV | J30: WCCXW | K30: WCCXZ | P30: WLLH9 | T30: 0 | U30: 0.81
A31: 600 | B31: WKK52 | C31: NA | D31: NA | E31: WKK52 | L31: WLLS6 | M31: WKKRL | N31: WLLS7 | O31: WKKRM | T31: 0 | U31: 0.81
A32: 700 | B32: WKK53 | C32: NA | D32: NA | E32: WKK53 | T32: 0 | U32: 0.81
A33: 800 | B33: WKK54 | C33: NA | D33: NA | E33: WKK54 | L33: WLLS8 | M33: WKKRN | N33: WLLS9 | O33: WKKRO | T33: 0 | U33: 0.81
A34: 900 | B34: WKK55 | C34: NA | D34: NA | E34: WKK55 | T34: 0 | U34: 0.81
A35: 1000 | B35: WKK56 | C35: WLLLT | D35: NA | E35: WKK56 | H35: WCCY1 | I35: WCCY4 | J35: WCCY5 | K35: WCCY9 | L35: WLLSA | M35: WKKRP | N35: WLLSB | O35: WKKRQ | P35: WLLHA | T35: 0 | U35: 1.61
A36: 1200 | B36: NA | C36: NA | D36: NA | E36: NA | T36: 0 | U36: 0.81
A37: 1400 | B37: NA | C37: NA | D37: NA | E37: NA | T37: 0 | U37: 0.81
A38: 1600 | B38: NA | C38: NA | D38: NA | E38: NA | T38: 0 | U38: 0.81
A39: 1800 | B39: NA | C39: NA | D39: NA | E39: NA | T39: =S39 -> 0 | U39: 0.81
A40: 2000 | B40: NA | C40: NA | D40: NA | E40: NA | T40: 0 | U40: 1.61
A41: 2400 | B41: NA | C41: NA | D41: NA | E41: NA | T41: 0 | U41: 0.81
A42: 2800 | B42: NA | C42: NA | D42: NA | E42: NA | T42: 0 | U42: 0.81
A43: 3000 | B43: NA | C43: NA | D43: NA | E43: NA | T43: 0 | U43: 0.81
A44: 3500 | B44: NA | C44: NA | D44: NA | E44: NA | T44: 0 | U44: 0.81
A45: 4000 | B45: NA | C45: NA | D45: NA | E45: NA | T45: 0 | U45: 0.81
A46: 4500 | B46: NA | C46: NA | D46: NA | E46: NA | T46: 0 | U46: 0.81
A47: 5000 | B47: NA | C47: NA | D47: NA | E47: NA | T47: 0 | U47: 1.61
A48: 5500 | B48: NA | C48: NA | D48: NA | E48: NA | T48: 0 | U48: 0.81
A49: 6000 | B49: NA | C49: NA | D49: NA | E49: NA | T49: 0 | U49: 0.81
A50: 6500 | B50: NA | C50: NA | D50: NA | E50: NA | T50: 0 | U50: 0.81
A51: 7000 | B51: NA | C51: NA | D51: NA | E51: NA | T51: 0 | U51: 0.81
A52: 7500 | B52: NA | C52: NA | D52: NA | E52: NA | T52: 0 | U52: 0.81
A53: 8000 | B53: NA | C53: NA | D53: NA | E53: NA | T53: 0 | U53: 0.81
A54: 8500 | B54: NA | C54: NA | D54: NA | E54: NA | T54: 0 | U54: 0.81
A55: 9000 | B55: NA | C55: NA | D55: NA | E55: NA | T55: 0 | U55: 0.81
A56: 9500 | B56: NA | C56: NA | D56: NA | E56: NA | T56: 0 | U56: 0.81
A57: 10000 | B57: NA | C57: NA | D57: NA | E57: NA | T57: 0 | U57: 1.61
A58: 11000 | B58: NA | C58: NA | D58: NA | E58: NA | T58: 0 | U58: 0.81
A59: 15000 | B59: NA | C59: NA | D59: NA | E59: NA | T59: 0 | U59: 1.61
A60: 20000 | B60: NA | C60: NA | D60: NA | E60: NA | T60: 0 | U60: 1.61
A61: 25000 | B61: NA | C61: NA | D61: NA | E61: NA | T61: 0 | U61: 0.81
A62: 30000 | B62: NA | C62: NA | D62: NA | E62: NA | T62: 0 | U62: 0.81
A63: 35000 | B63: NA | C63: NA | D63: NA | E63: NA | T63: 0 | U63: 0.81
A64: 40000 | B64: NA | C64: NA | D64: NA | E64: NA | T64: 0 | U64: 1.61
A65: 45000 | B65: NA | C65: NA | D65: NA | E65: NA | T65: 0 | U65: 0.81
A66: 50000 | B66: NA | C66: NA | D66: NA | E66: NA | T66: 0 | U66: 0.81
A67: 60000 | B67: NA | C67: NA | D67: NA | E67: NA | T67: 0 | U67: 0.81
A68: 70000 | B68: NA | C68: NA | D68: NA | E68: NA | T68: 0 | U68: 0.81
A69: 80000 | B69: NA | C69: NA | D69: NA | E69: NA | T69: 0 | U69: 0.81
A70: 90000 | B70: NA | C70: NA | D70: NA | E70: NA | T70: 0 | U70: 0.81
A71: 100000 | B71: NA | C71: NA | D71: NA | E71: NA | T71: =S71 -> 0 | U71: 1.61
A72: Additional Per 10Gbps | B72: NA | C72: NA | D72: NA | E72: NA | T72: 0 | U72: 1.61

Sheet 4 - PDC Service
A1: Price Sheet 4 MyFloridaNet2; PDC Service
A2: =Checklist!D3 -> 0
A3: Rate (Monthly Recurring Charge)
C4: PDC Standard (Statewide Routing) | O4: PDC Local Only (Local Routing) | R4: Combined Average of Eligible Points Possible
A5: A | C5: B | D5: C | E5: D | I5: E | K5: F | O5: G | P5: H
A6: Bandwidth (Mbps) | C6: Core Port | D6: Internet Access | E6: E-rate Ineligible Internet Access Service Elements | I6: E-rate Ineligible Portion | K6: E-rate Eligible Portion | O6: Core Port | P6: E-rate Eligible Portion
B7: MFN USOC (core port) | E7: SIEM Tool | F7: Sandbox Analyzer | G7: Next Generation IPS & IDS | H7: Malware & Anti-Virus Detection | I7: E-Rate Ineligible Charges | J7: Ineligible Points Possible | K7: E-Rate Eligible Charges | L7: Eligible Points Possible | N7: MFN USOC (core port) | P7: E-Rate Eligible Charges | Q7: Eligible Points Possible
A8: 2 | B8: WLLD3 | I8: =IF((E8+F8+G8+H8)>D8, "Error: D > C", (E8+F8+G8+H8)) -> 0 | J8: 0.160 | K8: =IF(I8="Error: D > C", "Error: D > C",C8+D8-I8) -> 0 | L8: 0.850 | N8: WLLFD | P8: =O8 -> 0 | Q8: 0.850 | R8: =(L8+Q8)/2 -> 0.85
A9: 4 | B9: WLLD4 | I9: =IF((E9+F9+G9+H9)>D9, "Error: D > C", (E9+F9+G9+H9)) -> 0 | J9: 0.160 | K9: =IF(I9="Error: D > C", "Error: D > C",C9+D9-I9) -> 0 | L9: 0.850 | N9: WLLFE | P9: =O9 -> 0 | Q9: 0.850 | R9: =(L9+Q9)/2 -> 0.85
A10: 6 | B10: WLLDA | I10: 0 | J10: 0.160 | K10: 0 | L10: 0.850 | N10: WLLFG | P10: 0 | Q10: 0.850 | R10: 0.85
A11: 8 | B11: WLLDB | I11: 0 | J11: 0.160 | K11: 0 | L11: 0.850 | N11: WLLFH | P11: 0 | Q11: 0.850 | R11: 0.85
A12: 9 | B12: WLLDC | I12: 0 | J12: 0.160 | K12: 0 | L12: 0.850 | N12: WLLFJ | P12: 0 | Q12: 0.850 | R12: 0.85
A13: 10 | B13: WLLDD | I13: 0 | J13: 0.160 | K13: 0 | L13: 0.850 | N13: WLLFK | P13: 0 | Q13: 0.850 | R13: 0.85
A14: 12 | B14: WLLDE | I14: 0 | J14: 0.160 | K14: 0 | L14: 0.850 | N14: WLLFL | P14: 0 | Q14: 0.850 | R14: 0.85
A15: 15 | B15: WLLDF | I15: 0 | J15: 0.160 | K15: 0 | L15: 0.850 | N15: WLLFM | P15: 0 | Q15: 0.850 | R15: 0.85
A16: 21 | B16: WLLDJ | I16: 0 | J16: 0.160 | K16: 0 | L16: 0.850 | N16: WLLFN | P16: 0 | Q16: 0.850 | R16: 0.85
A17: 33 | B17: WLLDN | I17: 0 | J17: 0.160 | K17: 0 | L17: 0.850 | N17: WLLFO | P17: 0 | Q17: 0.850 | R17: 0.85
A18: 45 | B18: WLLDO | I18: 0 | J18: 0.160 | K18: 0 | L18: 0.850 | N18: WLLFP | P18: 0 | Q18: 0.850 | R18: 0.85
A19: 90 | B19: WLLDR | I19: 0 | J19: 0.160 | K19: 0 | L19: 0.850 | N19: WLLFQ | P19: 0 | Q19: 0.850 | R19: 0.85
A20: 100 | B20: WLLDT | I20: 0 | J20: 0.160 | K20: 0 | L20: 0.850 | N20: WLLFR | P20: 0 | Q20: 0.850 | R20: 0.85
A21: 155 | B21: WLLDX | I21: 0 | J21: 0.160 | K21: 0 | L21: 0.850 | N21: WLLFS | P21: 0 | Q21: 0.850 | R21: 0.85
A22: 200 | B22: WLLF4 | I22: 0 | J22: 0.160 | K22: 0 | L22: 0.850 | N22: WLLFT | P22: 0 | Q22: 0.850 | R22: 0.85
A23: 300 | B23: WLLF5 | I23: 0 | J23: 0.160 | K23: 0 | L23: 0.850 | N23: WLLH3 | P23: 0 | Q23: 0.850 | R23: 0.85
A24: 400 | B24: WLLF6 | I24: 0 | J24: 0.320 | K24: 0 | L24: 1.700 | N24: WLLFW | P24: 0 | Q24: 1.700 | R24: 1.7
A25: 500 | B25: WLLF7 | I25: 0 | J25: 0.160 | K25: 0 | L25: 0.850 | N25: WLLFX | P25: 0 | Q25: 0.850 | R25: 0.85
A26: 622 | B26: WLLF8 | I26: 0 | J26: 0.320 | K26: 0 | L26: 1.700 | N26: WLLFY | P26: 0 | Q26: 1.700 | R26: 1.7
A27: 700 | B27: WLLF9 | I27: 0 | J27: 0.160 | K27: 0 | L27: 0.850 | N27: WLLG1 | P27: 0 | Q27: 0.850 | R27: 0.85
A28: 800 | B28: WLLFA | I28: 0 | J28: 0.160 | K28: 0 | L28: 0.850 | N28: WLLG2 | P28: 0 | Q28: 0.850 | R28: 0.85
A29: 900 | B29: WLLFB | I29: 0 | J29: 0.160 | K29: 0 | L29: 0.850 | N29: WLLG3 | P29: 0 | Q29: 0.850 | R29: 0.85
A30: 1000 | B30: WLLFC | I30: 0 | J30: 0.320 | K30: 0 | L30: 1.700 | N30: WLLG4 | P30: 0 | Q30: 1.700 | R30: 1.7
A31: 1200 | I31: 0 | J31: 0.160 | K31: 0 | L31: 0.850 | P31: 0 | Q31: 0.850 | R31: 0.85
A32: 1400 | I32: 0 | J32: 0.160 | K32: 0 | L32: 0.850 | P32: 0 | Q32: 0.850 | R32: 0.85
A33: 1600 | I33: 0 | J33: 0.160 | K33: 0 | L33: 0.850 | P33: 0 | Q33: 0.850 | R33: 0.85
A34: 1800 | I34: 0 | J34: 0.160 | K34: 0 | L34: 0.850 | P34: 0 | Q34: 0.850 | R34: 0.85
A35: 2000 | I35: 0 | J35: 0.320 | K35: 0 | L35: 1.700 | N35: WLLG5 | P35: 0 | Q35: 1.700 | R35: 1.7
A36: 2400 | I36: 0 | J36: 0.160 | K36: 0 | L36: 0.850 | P36: 0 | Q36: 0.850 | R36: 0.85
A37: 2800 | I37: 0 | J37: 0.160 | K37: 0 | L37: 0.850 | P37: 0 | Q37: 0.850 | R37: 0.85
A38: 3000 | I38: 0 | J38: 0.160 | K38: 0 | L38: 0.850 | P38: 0 | Q38: 0.850 | R38: 0.85
A39: 3500 | I39: 0 | J39: 0.160 | K39: 0 | L39: 0.850 | P39: 0 | Q39: 0.850 | R39: 0.85
A40: 4000 | I40: 0 | J40: 0.160 | K40: 0 | L40: 0.850 | P40: 0 | Q40: 0.850 | R40: 0.85
A41: 4500 | I41: 0 | J41: 0.160 | K41: 0 | L41: 0.850 | P41: 0 | Q41: 0.850 | R41: 0.85
A42: 5000 | I42: 0 | J42: 0.160 | K42: 0 | L42: 0.850 | N42: WLLG6 | P42: 0 | Q42: 0.850 | R42: 0.85
A43: 5500 | I43: 0 | J43: 0.160 | K43: 0 | L43: 0.850 | P43: 0 | Q43: 0.850 | R43: 0.85
A44: 6000 | I44: 0 | J44: 0.160 | K44: 0 | L44: 0.850 | P44: 0 | Q44: 0.850 | R44: 0.85
A45: 6500 | I45: 0 | J45: 0.160 | K45: 0 | L45: 0.850 | P45: 0 | Q45: 0.850 | R45: 0.85
A46: 7000 | I46: 0 | J46: 0.160 | K46: 0 | L46: 0.850 | P46: 0 | Q46: 0.850 | R46: 0.85
A47: 7500 | I47: 0 | J47: 0.160 | K47: 0 | L47: 0.850 | P47: 0 | Q47: 0.850 | R47: 0.85
A48: 8000 | I48: 0 | J48: 0.160 | K48: 0 | L48: 0.850 | P48: 0 | Q48: 0.850 | R48: 0.85
A49: 8500 | I49: 0 | J49: 0.160 | K49: 0 | L49: 0.850 | P49: 0 | Q49: 0.850 | R49: 0.85
A50: 9000 | I50: 0 | J50: 0.160 | K50: 0 | L50: 0.850 | P50: 0 | Q50: 0.850 | R50: 0.85
A51: 9500 | I51: 0 | J51: 0.160 | K51: 0 | L51: 0.850 | P51: 0 | Q51: 0.850 | R51: 0.85
A52: 10000 | I52: 0 | J52: 0.320 | K52: 0 | L52: 1.700 | N52: WLLG7 | P52: 0 | Q52: 1.700 | R52: 1.7
A53: 11000 | I53: 0 | J53: 0.160 | K53: 0 | L53: 0.850 | P53: 0 | Q53: 0.850 | R53: 0.85
A54: 15000 | I54: 0 | J54: 0.160 | K54: 0 | L54: 0.850 | P54: 0 | Q54: 0.850 | R54: 0.85
A55: 20000 | I55: 0 | J55: 0.320 | K55: 0 | L55: 1.700 | P55: 0 | Q55: 1.700 | R55: 1.7
A56: 25000 | I56: 0 | J56: 0.160 | K56: 0 | L56: 0.850 | P56: 0 | Q56: 0.850 | R56: 0.85
A57: 30000 | I57: 0 | J57: 0.160 | K57: 0 | L57: 0.850 | P57: 0 | Q57: 0.850 | R57: 0.85
A58: 35000 | I58: 0 | J58: 0.160 | K58: 0 | L58: 0.850 | P58: 0 | Q58: 0.850 | R58: 0.85
A59: 40000 | I59: 0 | J59: 0.320 | K59: 0 | L59: 1.700 | P59: 0 | Q59: 1.700 | R59: 1.7
A60: 45000 | I60: 0 | J60: 0.160 | K60: 0 | L60: 0.850 | P60: 0 | Q60: 0.850 | R60: 0.85
A61: 50000 | I61: 0 | J61: 0.160 | K61: 0 | L61: 0.850 | P61: 0 | Q61: 0.850 | R61: 0.85
A62: 60000 | I62: 0 | J62: 0.160 | K62: 0 | L62: 0.850 | P62: 0 | Q62: 0.850 | R62: 0.85
A63: 70000 | I63: 0 | J63: 0.160 | K63: 0 | L63: 0.850 | P63: 0 | Q63: 0.850 | R63: 0.85
A64: 80000 | I64: 0 | J64: 0.160 | K64: 0 | L64: 0.850 | P64: 0 | Q64: 0.850 | R64: 0.85
A65: 90000 | I65: 0 | J65: 0.160 | K65: 0 | L65: 0.850 | P65: 0 | Q65: 0.850 | R65: 0.85
A66: 100000 | I66: 0 | J66: 0.320 | K66: 0 | L66: 1.700 | P66: 0 | Q66: 1.700 | R66: 1.7

Sheet 5 - Extranet Local Loop Access
A1: Price Sheet 5 MyFloridaNet2; Extranet Local Loop Access
A2: =Checklist!D3 -> 0
A3: A | D3: B | G3: C | H3: D
A4: Street Address | B4: City | C4: Zip Code | D4: Bandwidth | G4: Local Loop Access (Monthly Recurring Charge) | H4: E-rate Eligible Portion
E5: MFN USOCs (local loop access | H5: E-Rate Eligible Charges | I5: Eligible Points Possible
A6: 300 LONG MEADOW ROAD | B6: STERLING FOREST | C6: 10979 | D6: 1.5 Mbps | F6: 70F@X01011409P2 | H6: =G6 -> 0 | I6: 3.00
A7: 300 SATELLITE BLVD. NW | B7: SUWANEE | C7: 30024 | D7: 1.5 Mbps | F7: 72D@X01001808P2 | H7: =G7 -> 0
A8: NORTHRIDGE OFFICE PLAZA 1 (117 VIP DR.) | B8: WEXFORD | C8: 15090 | D8: 1.5 Mbps | F8: 738@X01007608P2 | H8: 0
A9: 180 INTERSTATE N. PARKWAY SE | B9: ATLANTA | C9: 30339 | D9: 1.5 Mbps | F9: 738@X01007208P2 | H9: 0
A10: 1415 NORTH LOOP WEST | B10: HOUSTON | C10: 77008 | D10: 1.5 Mbps | F10: 738@X01007408P2 | H10: 0
A11: 3 GARRET MOUNTAIN PLAZA | B11: WEST PATTERSON | C11: 07424 | D11: 1.5 Mbps | F11: 738@X01007508P2 | H11: 0
A12: 4425 WEST AIRPORT FREEWAY | B12: IRVING | C12: 75062 | D12: 1.5 Mbps | F12: 738@X01007708P2 | H12: 0
A13: 2390 E. ORANGEWOOD AVE. | B13: ANAHEIM | C13: 92806 | D13: 512 Kbps | F13: 738@X5K007008P2 | H13: 0
A14: Total | I14: =SUM(I6:I13) -> 3.00

Sheet 6 - Centralized VPN Service
A1: Price Sheet 6 MyFloridaNet2; Centralized VPN Service
A2: =Checklist!D3 -> 0
A3: A | D3: B | E3: C | G3: D
A4: Service Type | D4: Non Recurring Charge/ Installation (Flat Rate) | E4: Monthly Recurring Charge | G4: E-rate Ineligible Portion
B5: NR | C5: MR | G5: E-Rate Ineligible Charges | H5: Ineligible Points Possible
A6: CLIENT-to-LAN
A7: Proxied Clientless (SSL) Per-User Cost | F7: WPP4J | G7: =D7+E7 -> 0 | H7: 7.40 | J7: WKKSJ | K7: MFN-VPN-HW Install
A8: Layer-3 Client Per-User Cost | C8: WKKST | G8: =D8+E8 -> 0 | J8: WKKSM | K8: MFN-VPN-No HW Install
A9: Split-Tunnel Per-User Cost | C9: WPP4J | F9: WKKST | G9: =D9+E9 -> 0 | J9: WKKSS | K9: MFN-VPN-First Tunnel
A10: LAN-to-LAN | J10: WKKSP | K10: MFN-VPN-Addtnl Tunnel
A11: Remote Partner Provided - CPE or VPN Appliance including the first tunnel on a per agengy basis. | B11: WKKSM | C11: WKKSS | G11: =D11+E11 -> 0 | J11: WKKST | K11: MFN-VPN-Client
A12: Respondent Provided - CPE or LAN VPN Appliance including the first tunnel on a per agency basis. | B12: WKKSJ | F12: WKKSM | G12: =D12+E11 -> 0 | J12: WKKSX | K12: MFN-VPN-Client-DR and COOP
A13: Rate per tunnel for each additional LAN-to-LAN tunnel. | C13: WKKSP | F13: WKKSP | G13: 0 | J13: WKKSY | K13: MFN-VPN-Client-Non SUNCOM
A14: In Case of Emergency Services | J14: WKKSZ | K14: MFN-VPN-Client-Non SUNCOM-DMS Admin
A15: In Case of Emergency Services (ICES) Proxied Clientless (SSL) Per-User Cost | G15: =D15+E15 -> 0 | J15: WPP4J | K15: MFN-VPN-Client-Split Tunnel
A16: In Case of Emergency Services (ICES) Layer-3 Client Per-User Cost | C16: WKKSX | G16: 0
A17: Disaster Recovery (DR) and Continuity of Operations (COOP) (LAN-LAN)
A18: Remote Partner Provided - CPE or VPN Appliance including the first tunnel on a per agengcy basis. | C18: WKKSY | G18: =D18+E18 -> 0
A19: Respondent Provided - CPE or LAN VPN Appliance including the first tunnel on a per agency basis. | C19: WKKSZ | G19: 0
A20: Rate per tunnel for each additional LAN-to-LAN tunnel. | G20: 0

Sheet 7 - Broadband; DSL
A1: Price Sheet 7 MyFloridaNet2; Broadband Service - DSL
A2: =Checklist!D3 -> 0
A3: Rate (Monthly-Recurring Charge)
A4: A | C4: B | G4: C | H4: D | I4: E | J4: F | N4: G | P4: H
A5: Bandwidth Speed Ranges (Mbps) | C5: Proposed Bandwidth Speed | G5: Broadband DSL Access | H5: Encrypted VPN Tunnel | I5: Internet Access | J5: E-rate Ineligible Internet Access Service Elements | N5: E-rate Ineligible Portion | P5: E-rate Eligible Portion
E6: MFN USOCs (port) (1.5M x 256k) | F6: MFN USOCs (Access) (1.5M x 256k) | J6: SIEM Tool | K6: Sandbox Analyzer | L6: Next Generation IPS & IDS | M6: Malware & Anti-Virus Detection | N6: E-Rate Ineligible Charges | O6: Ineligible Points Possible | P6: E-Rate Eligible Charges | Q6: Eligible Points Possible
A7: Download (Receive) | B7: Upload (Transmit) | C7: Download (Receive) | D7: Upload (Transmit)
A8: 0.256 - 0.768 | B8: 0.128 - 0.384 | H8: ='6 - Centralized VPN Service'!E11 -> 0 | N8: =IF((J8+K8+L8+M8)>I8, "Error: F > E", (J8+K8+L8+M8+$H$8)) -> 0 | O8: 7.40 | P8: =IF(N8="Error: F > E","Error: F > E",G8+$H$8+I8-N8) -> 0 | Q8: 58.00
A9: 1 - 2 | B9: 0.256 -1 | E9: WRR1M | F9: WRR2Y | N9: =IF((J9+K9+L9+M9)>I9, "Error: F > E", (J9+K9+L9+M9+$H$8)) -> 0 | P9: =IF(N9="Error: F > E","Error: F > E",G9+$H$8+I9-N9) -> 0
A10: 3 - 4 | B10: 0.384 -1 | N10: 0 | P10: 0
A11: 5 - 6 | B11: 0.512 -1 | N11: 0 | P11: 0
A12: 7 - 9 | B12: 0.768 -2 | N12: 0 | P12: 0
A13: 10 - 12 | B13: 1 - 6 | N13: 0 | P13: 0
A14: 13 - 15 | B14: 1 - 6 | N14: 0 | P14: 0
A15: 16 - 18 | B15: 1 - 6 | N15: 0 | P15: 0
A16: 19 - 22 | B16: 1 - 6 | N16: 0 | P16: 0
A17: 23 - 25 | B17: 1 - 6 | N17: 0 | P17: 0
A18: 26 - 35 | B18: 3 - 10 | N18: 0 | P18: 0
A19: 36 - 50 | B19: 3 - 10 | N19: 0 | P19: 0
A20: Additional Per 1 Mbps Download and Upload | N20: =IF((J20+K20+L20+M20)>I20, "Error: F > E", (J20+K20+L20+M20)) -> 0 | P20: =IF(N20="Error: F > E","Error: F > E",G20+I20-N20) -> 0

Sheet 8 - Broadband; Cable
A1: Price Sheet 8 MyFloridaNet2; Broadband Service - Cable
A2: =Checklist!D3 -> 0
A3: Rate (Monthly-Recurring Charge)
A4: A | C4: B | E4: C | F4: D | G4: E | H4: F | L4: G | N4: H
A5: Bandwidth Speed (Mbps) | C5: Proposed Bandwidth Speed (Mbps) | E5: Broadband Cable Access | F5: Encrypted VPN Tunnel | G5: Internet Access | H5: E-rate Ineligible Internet Access Service Elements | L5: E-rate Ineligible Portion | N5: E-rate Eligible Portion
H6: SIEM Tool | I6: Sandbox Analyzer | J6: Next Generation IPS & IDS | K6: Malware & Anti-Virus Detection | L6: E-Rate Ineligible Charges | M6: Ineligible Points Possible | N6: E-Rate Eligible Charges | O6: Eligible Points Possible
A7: Download (Receive) | B7: Upload (Transmit) | C7: Download (Receive) | D7: Upload (Transmit)
A8: 2 - 5 | B8: 1 - 3 | F8: ='6 - Centralized VPN Service'!E11 -> 0 | L8: =IF((H8+I8+J8+K8)>G8, "Error: F > E", (H8+I8+J8+K8+$F$8)) -> 0 | M8: 7.40 | N8: =IF(L8="Error: F > E", "Error: F > E",E8+$F$8+G8-L8) -> 0 | O8: 58.00
A9: 6 - 15 | B9: 1 - 10 | L9: =IF((H9+I9+J9+K9)>G9, "Error: F > E", (H9+I9+J9+K9+$F$8)) -> 0 | N9: =IF(L9="Error: F > E", "Error: F > E",E9+$F$8+G9-L9) -> 0
A10: 16 - 30 | B10: 1 - 10 | L10: 0 | N10: 0
A11: 31 - 50 | B11: 1 - 20 | L11: 0 | N11: 0
A12: 50 - 75 | B12: 1 - 20 | L12: 0 | N12: 0
A13: 76 - 100 | B13: 1 - 20 | L13: 0 | N13: 0
A14: Additional Per 1 Mbps Download and Upload | L14: =IF((H14+I14+J14+K14)>G14, "Error: F > E", (H14+I14+J14+K14)) -> 0 | N14: =IF(L14="Error: F > E", "Error: F > E",E14+G14-L14) -> 0

Sheet 9 - Ancillary Network Svcs
A1: Price Sheet 9 MyFloridaNet2; Ancillary Network Services | U1: Yes
A2: =Checklist!D3 -> 0 | U2: No
A3: A | E3: B | F3: C | G3: D | H3: E | J3: F
A4: Service Type | E4: Non Recurring Charge | F4: Monthly Recurring Charge | G4: E-Rate Eligible | H4: E-rate Ineligible Portion | J4: E-rate Eligible Portion
B5: FIRN USOC | C5: MFN USOCs (non-recurring) | D5: MFN USOCs (Monthly Recurring) | H5: E-Rate Ineligible Charges | I5: Ineligible Points Possible | J5: E-Rate Eligible Charges | K5: Eligible Points Possible
A6: Telecommunications Service Priority | B6: NA | C6: WKKTN | D6: WKKTS | G6: No | H6: =IF(G6="No",E6+F6,0) -> $0.00 | I6: 7.4 | J6: =IF(G6="Yes", E6+F6,0) -> $0.00 | K6: 60
A7: Demarc Extension Services (Copper Only) | B7: NA | C7: WRRCT | G7: Yes | H7: =IF(G7="No",E7,0) -> $0.00 | J7: =IF(G7="Yes", E7,0) -> $0.00
A8: After Hour Installation Services | B8: NA | C8: WRRFV | G8: No | H8: =IF(G8="No",E8,0) -> $0.00 | J8: =IF(G8="Yes",E8,0) -> $0.00
A9: Expedited Installations Services
A10: Improvement of due date from "Operational IMAC SLA" by 1 to 10 calendar days (All speeds) | B10: NA | C10: WAA6F | G10: No | H10: =IF(G10="No",E10,0) -> $0.00 | J10: =IF(G10="Yes", E10,0) -> $0.00
A11: Improvement of due date from "Operational IMAC SLA" by 11 to 21 calendar days (All Speeds) | B11: NA | G11: No | H11: =IF(G11="No",E11,0) -> $0.00 | J11: =IF(G11="Yes", E11,0) -> $0.00
A12: Improvement of due date from "Operational IMAC SLA" by 22 to 30 calendar days (Greater than 1.5Mbps) | B12: NA | G12: No | H12: $0.00 | J12: $0.00
A13: Improvement of due date from "Operational IMAC SLA" by 31 to 40 calendar days (Greater than 45Mbps) | B13: NA | G13: No | H13: $0.00 | J13: $0.00
A14: Improvement of due date from "Operational IMAC SLA" by 41 to 50 calendar days (Greater than 45Mbps) | B14: NA | G14: No | H14: $0.00 | J14: $0.00
A15: Improvement of due date from "Operational IMAC SLA" by 51 to 60 calendar days (Greater than 45Mbps) | B15: NA | G15: No | H15: $0.00 | J15: $0.00
A16: Special Configuration Management | B16: NA | G16: No | H16: =IF(G16="No",F16,0) -> $0.00 | J16: =IF(G16="Yes",F16,0) -> $0.00
A17: Colocation Services
A18: Ethernet Local Loop Access: 2Mbps to 10Mbps | B18: NA | D18: WKKEQ | G18: No | H18: =IF(G18="No",F18,0) -> $0.00 | J18: =IF(G18="Yes",F18,0) -> $0.00
A19: Ethernet Local Loop Access: 12Mbps to 100Mbps | B19: NA | D19: WKKF1 | G19: No | H19: $0.00 | J19: $0.00
A20: Ethernet Local Loop Access: 200Mbps to 1000Mbps | B20: NA | D20: WKKF2 | G20: No | H20: $0.00 | J20: $0.00
A21: Co-location Space (Flat Rate) - per 1 RU | B21: NA | D21: WKKF3 | G21: No | H21: $0.00 | J21: $0.00
A22: School And Library Community Services
A23: Email Services - Per Account | B23: WBBLU | G23: No | H23: =IF(G23="No",F23,0) -> $0.00 | J23: =IF(G23="Yes",F23,0) -> $0.00
A24: Web Hosting Services - Per Account | B24: WBBM6 | G24: No | H24: $0.00 | J24: $0.00
A25: Emergency Web-Page | B25: WKKPV | G25: No | H25: $0.00 | J25: $0.00
A26: District Support
A27: Large Districts (40,500 to 350,000 students) - 75 Hours Annual Support | B27: WKKPW | G27: No | H27: =IF(G27="No",F27,0) -> $0.00 | J27: =IF(G27="Yes",F27,0) -> $0.00
A28: Medium Districts (11,000 to 40,499 students) - 50 Hours Annual Support | B28: WKKPX | G28: No | H28: $0.00 | J28: $0.00
A29: Small Districts (1,000 to 10,999 students) - 25 Hours Annual Support | B29: WKKQ4 | G29: No | H29: $0.00 | J29: $0.00
A30: Very Small Districts (less than 1000 students) - 10 Hours Annual Support | B30: WKKQ5 | G30: No | H30: $0.00 | J30: $0.00
A31: Data Storage
A32: < 1TB | B32: WKK3B | G32: No | H32: =IF(G32="No",F32,0) -> $0.00 | J32: =IF(G32="Yes",F32,0) -> $0.00
A33: 1TB | B33: WDDR4 | G33: No | H33: $0.00 | J33: $0.00
A34: 2TB | B34: WDDR5 | G34: No | H34: $0.00 | J34: $0.00
A35: 4TB | B35: WDDR6 | G35: No | H35: $0.00 | J35: $0.00
A36: 6TB | B36: WDDR7 | G36: No | H36: $0.00 | J36: $0.00
A37: 8TB | B37: WDDR8 | G37: No | H37: $0.00 | J37: $0.00
A38: 10TB | B38: WDDRC | G38: No | H38: $0.00 | J38: $0.00
A39: 12TB | B39: WDDRE | G39: No | H39: $0.00 | J39: $0.00

Sheet 10 - Ancillary Managed Sec Svcs
A1: Price Sheet 10 MyFloridaNet2: Ancillary Managed Security Services
A2: =Checklist!D3 -> 0
A3: A | D3: B | H3: C
A4: Service Type | D4: Monthly Recurring Charge | H4: E-rate Ineligible Portion
A6: Security Event and Log Monitoring | D6: Internet Access Speed | H6: E-Rate Ineligible Charges | I6: Ineligible Points Possible
B7: FIRN USOC | D7: 0 - 10 Mbps | E7: > 10 - 100 Mbps | F7: > 100 - 1,000 Mbps | G7: > 1,000 Mbps - 10 Gbps
A8: Standard Firewalls | B8: WPPDP-R | H8: =SUM(D8:G8) -> 0 | I8: 7.40
A9: Next Generation Firewalls | B9: WPPDP-R | H9: =SUM(D9:G9) -> 0
A10: Session Border Controllers | B10: WPPDP-R | H10: 0
A11: Network Intrusion Detection or Prevention System | B11: WPPDP-R | H11: 0
A12: Device Monitoring and Reporting (Servers, Routers, Switches) | B12: WPPDP-R | H12: 0
A13: Security Device Full Lifecycle Management (Includes Monitoring) | D13: Internet Access Speed
D14: 0 - 10 Mbps | E14: > 10 - 100 Mbps | F14: > 100 - 1,000 Mbps | G14: > 1,000 Mbps - 10 Gbps
A15: Standard Firewalls | B15: WKK36 | C15: wkk3# | H15: =SUM(D15:G15) -> 0
A16: Next Generation Firewalls | B16: WPPDT-Y | H16: 0
A17: Intrusion Detection System | B17: WPPDT-Y | H17: 0
A18: Intrusion Prevention System | B18: WPPDT-Y | H18: 0
A19: Counter Threat Appliance | B19: WPPDT-Y | H19: 0
A20: Vulnerability Management and Compliance | D20: Devices Units (MRC)
D21: Small (1 - 256) | E21: Medium (257 - 3072) | G21: Large (>3072)
A22: Network Device | B22: WPPE4-6 | H22: =SUM(D22,E22,G22) -> 0
A23: Server | B23: WPPE4-6 | H23: =SUM(D23,E23,G23) -> 0
A24: Application | B24: WPPE7-9 | H24: 0
A25: Log Retention Services | D25: Storage Quantity (MRC)
D26: 13 TB (Compressed)
A27: Log Retention Appliance and Management | B27: WPPEA-D | H27: =D27 -> 0
A28: Content Filtering (Cloud Based) | D28: Internet Access Speed (MRC)
D29: 0 - 10 Mbps | E29: > 10 - 100 Mbps | F29: > 100 - 1,000 Mbps | G29: > 1,000 Mbps - 10 Gbps
A30: Cloud-based Firewall Content Filtering Service | B30: WPPC1-D1 | H30: =SUM(D30:G30) -> 0
A31: Content Filtering (Premises Based) | D31: Rate per License (MRC)
A32: Premises-based Content Filtering Service (Minimum of 100 Licenses) | B32: WKK6P | H32: =D32 -> 0
A33: Security Response and Consulting | D33: Hourly Rate
D34: Small (increments of 10 hrs.) - Minimum 10 hrs. | E34: Medium (increments of 50 hrs.) - Minimum 50 hrs. | G34: Large (increments of 100 hrs.) - Minimum 100 hrs.
A35: Incident Response Team | B35: WPPEE | H35: =SUM(D35,E35,G35) -> 0
A36: Threat intelligence research team | B36: NA | H36: 0
A37: Security testing and analysis | B37: WPPEF | H37: 0
A38: Regulatory Compliance and Certification | B38: NA | H38: 0
A39: Security Advisory Feed | D39: Annual Subscription Fee
A40: Consolidated security advisor feeds | B40: NA | H40: =D40 -> 0

Sheet FIRN Routers (hidden)
A1: MFN road-map router model or equivalent | D1: USOC | E1: MFN road-map router model or equivalent | G1: USOC
A2: CISCO 1841-T1 | B2: ='1 - CPE-Router, VPN, & Firewall'!$L$1218 ->  | D2: WKK4V | E2: 3750-ME | F2: =VLOOKUP(E2,$A$2:$B$12,2,FALSE) ->  | G2: WKK4V | H2: =VLOOKUP(D2,'[1]USOC Linked Table'!$A$2:$A$651,1,FALSE) -> WKK4V | I2: =VLOOKUP(D2,'[1]Vertical Data'!$R$2:$R$26741,1,FALSE) -> WKK4V | L2: 2821-4T1-HSEC | M2: ='1 - CPE-Router, VPN, & Firewall'!$L$297 ->  | N2: FVPN3 | R2: WLLS7 | T2: WLLS7 | V2: #N/A | W2: =IF(V2="#N/A",0,1) -> 0 | X2: =IF(W2=1,U2,"") ->  | Z2: WKK47
A3: CISCO 1841-ME | B3: ='1 - CPE-Router, VPN, & Firewall'!$L$1269 ->  | D3: WKK4E | E3: CISCO 2821-ME | F3: =VLOOKUP(E3,$A$2:$B$12,2,FALSE) ->  | G3: WKK4E | H3: =VLOOKUP(D3,'[1]USOC Linked Table'!$A$2:$A$651,1,FALSE) -> WKK4E | I3: =VLOOKUP(D3,'[1]Vertical Data'!$R$2:$R$26741,1,FALSE) -> WKK4E | L3: 3825-ME-HSEC | M3: ='1 - CPE-Router, VPN, & Firewall'!$L$220 ->  | N3: FVPN4 | R3: WLLS9 | T3: WLLS9 | V3: #N/A | W3: =IF(V3="#N/A",0,1) -> 0 | X3: =IF(W3=1,U3,"") ->  | Z3: WKK49
A4: CISCO 2821-ME | B4: ='1 - CPE-Router, VPN, & Firewall'!$L$1275 ->  | D4: WKK49 | E4: CISCO 2821-ME | G4: WKK49 | H4: =VLOOKUP(D4,'[1]USOC Linked Table'!$A$2:$A$651,1,FALSE) -> WKK49 | I4: =VLOOKUP(D4,'[1]Vertical Data'!$R$2:$R$26741,1,FALSE) -> WKK49 | L4: 2821-ME-HSEC | M4: ='1 - CPE-Router, VPN, & Firewall'!$L$1191 ->  | N4: FVPN5 | R4: WLLSB | T4: WLLSB | V4: #N/A | W4: 0 | Z4: WKK4C
A5: ASR1001-ME-IPB | B5: ='1 - CPE-Router, VPN, & Firewall'!$L$1313 ->  | D5: WKK52 | E5: 3750-ME | G5: WKK52 | H5: =VLOOKUP(D5,'[1]USOC Linked Table'!$A$2:$A$651,1,FALSE) -> WKK52 | I5: =VLOOKUP(D5,'[1]Vertical Data'!$R$2:$R$26741,1,FALSE) -> WKK52 | L5: 1841-ME-HSEC | M5: ='1 - CPE-Router, VPN, & Firewall'!$L$123 ->  | N5: FVPN6 | R5: WLLS6 | T5: WLLS6 | V5: #N/A | W5: 0 | Z5: WKK4E
A6: Juniper MX5-T-AC | B6: ='1 - CPE-Router, VPN, & Firewall'!$L$1342 ->  | D6: WKK4W | E6: 3750-ME | G6: WKK4W | H6: =VLOOKUP(D6,'[1]USOC Linked Table'!$A$2:$A$651,1,FALSE) -> WKK4W | I6: =VLOOKUP(D6,'[1]Vertical Data'!$R$2:$R$26741,1,FALSE) -> WKK4W | L6: 2821-2T1-HSEC | M6: ='1 - CPE-Router, VPN, & Firewall'!$L$286 ->  | N6: FVPN7 | R6: WLLS8 | T6: WLLS8 | V6: #N/A | W6: 0 | Z6: WKK4R
A7: 3750-ME | B7: ='1 - CPE-Router, VPN, & Firewall'!$L$1291 ->  | D7: WKK4Q | E7: 3750-ME | G7: WKK4Q | H7: =VLOOKUP(D7,'[1]USOC Linked Table'!$A$2:$A$651,1,FALSE) -> WKK4Q | I7: =VLOOKUP(D7,'[1]Vertical Data'!$R$2:$R$26741,1,FALSE) -> WKK4Q | L7: ASR1002F-ME-AES-VPN | M7: ='1 - CPE-Router, VPN, & Firewall'!$L$779 ->  | N7: FVPN1 | R7: WLLSA | T7: WLLSA | V7: #N/A | W7: 0 | Z7: WKK4S
A8: 2821-T3 | B8: ='1 - CPE-Router, VPN, & Firewall'!$L$1251 ->  | D8: WKK4J | E8: CISCO 3825-ME | G8: WKK4J | H8: =VLOOKUP(D8,'[1]USOC Linked Table'!$A$2:$A$651,1,FALSE) -> WKK4J | I8: =VLOOKUP(D8,'[1]Vertical Data'!$R$2:$R$26741,1,FALSE) -> WKK4J | L8: 3825-ME-HSEC | M8: ='1 - CPE-Router, VPN, & Firewall'!$L$220 ->  | N8: FVPN2 | R8: WKK43 | T8: WKK43 | V8: #N/A | W8: 0 | Z8: WKK4V
A9: CISCO 1841-ME | B9: ='1 - CPE-Router, VPN, & Firewall'!$L$1269 ->  | D9: WKK3W | E9: 2821-T3 | G9: WKK3W | H9: =VLOOKUP(D9,'[1]USOC Linked Table'!$A$2:$A$651,1,FALSE) -> WKK3W | I9: =VLOOKUP(D9,'[1]Vertical Data'!$R$2:$R$26741,1,FALSE) -> WKK3W | R9: WKK44 | T9: WKK44 | V9: #N/A | W9: 0 | Z9: WKK4W
A10: CISCO 3825-ME | B10: ='1 - CPE-Router, VPN, & Firewall'!$L$1283 ->  | D10: WKK4J | E10: CISCO 2821-ME | G10: WKK4J | H10: =VLOOKUP(D10,'[1]USOC Linked Table'!$A$2:$A$651,1,FALSE) -> WKK4J | I10: =VLOOKUP(D10,'[1]Vertical Data'!$R$2:$R$26741,1,FALSE) -> WKK4J | R10: WKK45 | T10: WKK45 | V10: #N/A | W10: 0 | Z10: WKK4Z
A11: CISCO 1841-2T1 | B11: ='1 - CPE-Router, VPN, & Firewall'!$L$1225 ->  | D11: WKK4R | E11: 3750-ME | G11: WKK4R | H11: =VLOOKUP(D11,'[1]USOC Linked Table'!$A$2:$A$651,1,FALSE) -> WKK4R | I11: =VLOOKUP(D11,'[1]Vertical Data'!$R$2:$R$26741,1,FALSE) -> WKK4R | R11: WKK46 | T11: WKK46 | V11: #N/A | W11: 0 | Z11: WKK52
A12: 2821-4T1 | B12: ='1 - CPE-Router, VPN, & Firewall'!$L$1295 ->  | D12: WKK3G | E12: CISCO 1841-T1 | F12: ='1 - CPE-Router, VPN, & Firewall'!$L$579 ->  | G12: WKK3G | H12: =VLOOKUP(D12,'[1]USOC Linked Table'!$A$2:$A$651,1,FALSE) -> WKK3G | I12: =VLOOKUP(D12,'[1]Vertical Data'!$R$2:$R$26741,1,FALSE) -> WKK3G | R12: WKK47 | T12: WKK47 | U12: WKK47 | V12: CISCO 2821-ME | W12: 1 | X12: WKK47 | Z12: WKK56
D13: WKK3J | E13: CISCO 1841-2T1 | G13: WKK3J | H13: =VLOOKUP(D13,'[1]USOC Linked Table'!$A$2:$A$651,1,FALSE) -> WKK3J | I13: =VLOOKUP(D13,'[1]Vertical Data'!$R$2:$R$26741,1,FALSE) -> WKK3J | R13: WKK48 | T13: WKK48 | V13: #N/A | W13: 0 | Z13: WKK3G
D14: WKK4Z | E14: 3750-ME | G14: WKK4Z | H14: =VLOOKUP(D14,'[1]USOC Linked Table'!$A$2:$A$651,1,FALSE) -> WKK4Z | I14: =VLOOKUP(D14,'[1]Vertical Data'!$R$2:$R$26741,1,FALSE) -> WKK4Z | R14: WKK49 | T14: WKK49 | U14: WKK49 | V14: CISCO 2821-ME | W14: 1 | X14: WKK49 | Z14: WKK3J
D15: WKK1A | E15: CISCO 1841-2T1 | G15: WKK1A | H15: =VLOOKUP(D15,'[1]USOC Linked Table'!$A$2:$A$651,1,FALSE) -> WKK1A | I15: =VLOOKUP(D15,'[1]Vertical Data'!$R$2:$R$26741,1,FALSE) -> WKK1A | R15: WKK4A | T15: WKK4A | V15: #N/A | W15: 0 | Z15: WKK3O
D16: WKK1C | E16: 2821-4T1 | G16: WKK1C | H16: =VLOOKUP(D16,'[1]USOC Linked Table'!$A$2:$A$651,1,FALSE) -> WKK1C | I16: =VLOOKUP(D16,'[1]Vertical Data'!$R$2:$R$26741,1,FALSE) -> WKK1C | R16: WKK4C | T16: WKK4C | U16: WKK4C | V16: CISCO 2821-ME | W16: 1 | X16: WKK4C | Z16: WKK3Q
D17: WKK2O | E17: 3750-ME | G17: WKK2O | H17: =VLOOKUP(D17,'[1]USOC Linked Table'!$A$2:$A$651,1,FALSE) -> WKK2O | I17: =VLOOKUP(D17,'[1]Vertical Data'!$R$2:$R$26741,1,FALSE) -> WKK2O | R17: WKK4E | T17: WKK4E | U17: WKK4E | V17: CISCO 2821-ME | W17: 1 | X17: WKK4E
D18: WKK23 | E18: CISCO 2821-ME | G18: WKK23 | H18: =VLOOKUP(D18,'[1]USOC Linked Table'!$A$2:$A$651,1,FALSE) -> WKK23 | I18: =VLOOKUP(D18,'[1]Vertical Data'!$R$2:$R$26741,1,FALSE) -> WKK23 | R18: WKK4F | T18: WKK4F | V18: #N/A | W18: 0
D19: WKK2G | E19: CISCO 3825-ME | G19: WKK2G | H19: =VLOOKUP(D19,'[1]USOC Linked Table'!$A$2:$A$651,1,FALSE) -> WKK2G | I19: =VLOOKUP(D19,'[1]Vertical Data'!$R$2:$R$26741,1,FALSE) -> WKK2G | R19: WKK4K | T19: WKK4K | V19: #N/A | W19: 0
D20: WKK1D | E20: 2821-T3 | G20: WKK1D | H20: =VLOOKUP(D20,'[1]USOC Linked Table'!$A$2:$A$651,1,FALSE) -> WKK1D | I20: =VLOOKUP(D20,'[1]Vertical Data'!$R$2:$R$26741,1,FALSE) -> WKK1D | R20: WKK4O | T20: WKK4O | V20: #N/A | W20: 0
D21: WKK2R | E21: 3750-ME | G21: WKK2R | H21: =VLOOKUP(D21,'[1]USOC Linked Table'!$A$2:$A$651,1,FALSE) -> WKK2R | I21: =VLOOKUP(D21,'[1]Vertical Data'!$R$2:$R$26741,1,FALSE) -> WKK2R | R21: WKK4P | T21: WKK4P | V21: #N/A | W21: 0
D22: WKK2S | E22: 3750-ME | G22: WKK2S | H22: =VLOOKUP(D22,'[1]USOC Linked Table'!$A$2:$A$651,1,FALSE) -> WKK2S | I22: =VLOOKUP(D22,'[1]Vertical Data'!$R$2:$R$26741,1,FALSE) -> WKK2S | R22: WKK4R | T22: WKK4R | U22: WKK4R | V22: 3750-ME | W22: 1 | X22: WKK4R
D23: WKK2L | E23: CISCO 3825-ME | G23: WKK2L | H23: =VLOOKUP(D23,'[1]USOC Linked Table'!$A$2:$A$651,1,FALSE) -> WKK2L | I23: =VLOOKUP(D23,'[1]Vertical Data'!$R$2:$R$26741,1,FALSE) -> WKK2L | R23: WKK4S | T23: WKK4S | U23: WKK4S | V23: 3750-ME | W23: 1 | X23: WKK4S
D24: WEE7R | E24: ASR1001-ME-IPB | G24: WEE7R | H24: =VLOOKUP(D24,'[1]USOC Linked Table'!$A$2:$A$651,1,FALSE) -> WEE7R | I24: =VLOOKUP(D24,'[1]Vertical Data'!$R$2:$R$26741,1,FALSE) -> WEE7R | R24: WKK4U | T24: WKK4U | V24: #N/A | W24: 0
D25: WEE7Y | E25: ASR1001-ME-IPB | G25: WEE7Y | H25: =VLOOKUP(D25,'[1]USOC Linked Table'!$A$2:$A$651,1,FALSE) -> WEE7Y | I25: =VLOOKUP(D25,'[1]Vertical Data'!$R$2:$R$26741,1,FALSE) -> WEE7Y | R25: WKK4V | T25: WKK4V | U25: WKK4V | V25: 3750-ME | W25: 1 | X25: WKK4V
D26: WKK2U | E26: 3750-ME | G26: WKK2U | H26: =VLOOKUP(D26,'[1]USOC Linked Table'!$A$2:$A$651,1,FALSE) -> WKK2U | I26: =VLOOKUP(D26,'[1]Vertical Data'!$R$2:$R$26741,1,FALSE) -> WKK2U | R26: WKK4W | T26: WKK4W | U26: WKK4W | V26: 3750-ME | W26: 1 | X26: WKK4W
D27: WKK2A | E27: CISCO 3825-ME | G27: WKK2A | H27: =VLOOKUP(D27,'[1]USOC Linked Table'!$A$2:$A$651,1,FALSE) -> WKK2A | I27: =VLOOKUP(D27,'[1]Vertical Data'!$R$2:$R$26741,1,FALSE) -> WKK2A | R27: WKK4Y | T27: WKK4Y | V27: #N/A | W27: 0
D28: WKK28 | E28: CISCO 2821-ME | G28: WKK28 | H28: =VLOOKUP(D28,'[1]USOC Linked Table'!$A$2:$A$651,1,FALSE) -> WKK28 | I28: =VLOOKUP(D28,'[1]Vertical Data'!$R$2:$R$26741,1,FALSE) -> WKK28 | R28: WKK4Z | T28: WKK4Z | U28: WKK4Z | V28: 3750-ME | W28: 1 | X28: WKK4Z
D29: WKK2M | E29: 3750-ME | G29: WKK2M | H29: =VLOOKUP(D29,'[1]USOC Linked Table'!$A$2:$A$651,1,FALSE) -> WKK2M | I29: =VLOOKUP(D29,'[1]Vertical Data'!$R$2:$R$26741,1,FALSE) -> WKK2M | R29: WKK52 | T29: WKK52 | U29: WKK52 | V29: 3750-ME | W29: 1 | X29: WKK52
D30: WKK1B | E30: 2821-4T1 | G30: WKK1B | H30: =VLOOKUP(D30,'[1]USOC Linked Table'!$A$2:$A$651,1,FALSE) -> WKK1B | I30: =VLOOKUP(D30,'[1]Vertical Data'!$R$2:$R$26741,1,FALSE) -> WKK1B | R30: WKK53 | T30: WKK53 | V30: #N/A | W30: 0
D31: WKK26 | E31: CISCO 2821-ME | G31: WKK26 | H31: =VLOOKUP(D31,'[1]USOC Linked Table'!$A$2:$A$651,1,FALSE) -> WKK26 | I31: =VLOOKUP(D31,'[1]Vertical Data'!$R$2:$R$26741,1,FALSE) -> WKK26 | R31: WKK54 | T31: WKK54 | V31: #N/A | W31: 0
D32: WKK2E | E32: CISCO 3825-ME | G32: WKK2E | H32: =VLOOKUP(D32,'[1]USOC Linked Table'!$A$2:$A$651,1,FALSE) -> WKK2E | I32: =VLOOKUP(D32,'[1]Vertical Data'!$R$2:$R$26741,1,FALSE) -> WKK2E | R32: WKK55 | T32: WKK55 | V32: #N/A | W32: 0
D33: WKK2P | E33: 3750-ME | G33: WKK2P | H33: =VLOOKUP(D33,'[1]USOC Linked Table'!$A$2:$A$651,1,FALSE) -> WKK2P | I33: =VLOOKUP(D33,'[1]Vertical Data'!$R$2:$R$26741,1,FALSE) -> WKK2P | R33: WKK56 | T33: WKK56 | U33: WKK56 | V33: 3750-ME | W33: 1 | X33: WKK56
D34: WKK1Z | E34: CISCO 1841-ME | G34: WKK1Z | H34: =VLOOKUP(D34,'[1]USOC Linked Table'!$A$2:$A$651,1,FALSE) -> WKK1Z | I34: =VLOOKUP(D34,'[1]Vertical Data'!$R$2:$R$26741,1,FALSE) -> WKK1Z | R34: WKK43 | T34: WKK3G | U34: WKK3G | V34: CISCO 1841-T1 | W34: 1 | X34: WKK3G
D35: WKK2A | E35: CISCO 2821-ME | G35: WKK2A | H35: =VLOOKUP(D35,'[1]USOC Linked Table'!$A$2:$A$651,1,FALSE) -> WKK2A | I35: =VLOOKUP(D35,'[1]Vertical Data'!$R$2:$R$26741,1,FALSE) -> WKK2A | R35: WKK44 | T35: WKK3H | V35: #N/A | W35: 0
D36: WKK1Y | E36: CISCO 1841-ME | G36: WKK1Y | H36: =VLOOKUP(D36,'[1]USOC Linked Table'!$A$2:$A$651,1,FALSE) -> WKK1Y | I36: =VLOOKUP(D36,'[1]Vertical Data'!$R$2:$R$26741,1,FALSE) -> WKK1Y | R36: WKK45 | T36: WKK3J | U36: WKK3J | V36: CISCO 1841-2T1 | W36: 1 | X36: WKK3J
D37: WEE7Q | E37: ASR1001-ME-IPB | G37: WEE7Q | H37: =VLOOKUP(D37,'[1]USOC Linked Table'!$A$2:$A$651,1,FALSE) -> WEE7Q | I37: =VLOOKUP(D37,'[1]Vertical Data'!$R$2:$R$26741,1,FALSE) -> WEE7Q | R37: WKK46 | T37: WKK3K | V37: #N/A | W37: 0
D38: WKK56 | E38: 3750-ME | G38: WKK56 | H38: =VLOOKUP(D38,'[1]USOC Linked Table'!$A$2:$A$651,1,FALSE) -> WKK56 | I38: =VLOOKUP(D38,'[1]Vertical Data'!$R$2:$R$26741,1,FALSE) -> WKK56 | R38: WKK47 | T38: WKK3L | V38: #N/A | W38: 0
D39: WKK4M | E39: CISCO 3825-ME | G39: WKK4M | H39: =VLOOKUP(D39,'[1]USOC Linked Table'!$A$2:$A$651,1,FALSE) -> WKK4M | I39: =VLOOKUP(D39,'[1]Vertical Data'!$R$2:$R$26741,1,FALSE) -> WKK4M | R39: WKK48 | T39: WKK3M | V39: #N/A | W39: 0
D40: WKK4S | E40: 3750-ME | G40: WKK4S | H40: =VLOOKUP(D40,'[1]USOC Linked Table'!$A$2:$A$651,1,FALSE) -> WKK4S | I40: =VLOOKUP(D40,'[1]Vertical Data'!$R$2:$R$26741,1,FALSE) -> WKK4S | R40: WKK49 | T40: WKK3N | V40: #N/A | W40: 0
D41: WKK47 | E41: CISCO 2821-ME | G41: WKK47 | H41: =VLOOKUP(D41,'[1]USOC Linked Table'!$A$2:$A$651,1,FALSE) -> WKK47 | I41: =VLOOKUP(D41,'[1]Vertical Data'!$R$2:$R$26741,1,FALSE) -> WKK47 | R41: WKK4A | T41: WKK3O | U41: WKK3O | V41: 2821-T3 | W41: 1 | X41: WKK3O
D42: WKK3Q | E42: CISCO 2821-ME | G42: WKK3Q | H42: =VLOOKUP(D42,'[1]USOC Linked Table'!$A$2:$A$651,1,FALSE) -> WKK3Q | I42: =VLOOKUP(D42,'[1]Vertical Data'!$R$2:$R$26741,1,FALSE) -> WKK3Q | R42: WKK4C | T42: WKK3Q | U42: WKK3Q | V42: CISCO 2821-ME | W42: 1 | X42: WKK3Q
D43: WKK4C | E43: CISCO 2821-ME | G43: WKK4C | H43: =VLOOKUP(D43,'[1]USOC Linked Table'!$A$2:$A$651,1,FALSE) -> WKK4C | I43: =VLOOKUP(D43,'[1]Vertical Data'!$R$2:$R$26741,1,FALSE) -> WKK4C | R43: WKK4E | T43: WKK3S | V43: #N/A | W43: 0
D44: WKK3O | E44: 2821-T3 | G44: WKK3O | H44: =VLOOKUP(D44,'[1]USOC Linked Table'!$A$2:$A$651,1,FALSE) -> WKK3O | I44: =VLOOKUP(D44,'[1]Vertical Data'!$R$2:$R$26741,1,FALSE) -> WKK3O | R44: WKK4F | T44: WKK3T | V44: #N/A | W44: 0
D45: WKK21 | E45: CISCO 1841-ME | G45: WKK21 | H45: =VLOOKUP(D45,'[1]USOC Linked Table'!$A$2:$A$651,1,FALSE) -> WKK21 | I45: =VLOOKUP(D45,'[1]Vertical Data'!$R$2:$R$26741,1,FALSE) -> WKK21 | R45: WKK4K | T45: WKK3X | V45: #N/A | W45: 0
D46: WKK7P | E46: 2821-4T1 | G46: WKK7P | H46: =VLOOKUP(D46,'[1]USOC Linked Table'!$A$2:$A$651,1,FALSE) -> WKK7P | I46: =VLOOKUP(D46,'[1]Vertical Data'!$R$2:$R$26741,1,FALSE) -> WKK7P | R46: WKK4O | T46: WKK42 | V46: #N/A | W46: 0
D47: WKK7V | E47: CISCO 2821-ME | G47: WKK7V | H47: =VLOOKUP(D47,'[1]USOC Linked Table'!$A$2:$A$651,1,FALSE) -> WKK7V | I47: =VLOOKUP(D47,'[1]Vertical Data'!$R$2:$R$26741,1,FALSE) -> WKK7V | R47: WKK4P | T47: WLLLO | V47: #N/A | W47: 0
D48: WKK18 | E48: CISCO 1841-T1 | F48: ='1 - CPE-Router, VPN, & Firewall'!$L$1218 ->  | G48: WKK18 | H48: =VLOOKUP(D48,'[1]USOC Linked Table'!$A$2:$A$651,1,FALSE) -> WKK18 | I48: =VLOOKUP(D48,'[1]Vertical Data'!$R$2:$R$26741,1,FALSE) -> WKK18 | R48: WKK4R | T48: WLLLP | V48: #N/A | W48: 0
C49: FVPN3 | D49: WRRE4 | E49: 2821-4T1-HSEC | F49: ='1 - CPE-Router, VPN, & Firewall'!$L$297 ->  | G49: WRRE4 | H49: =VLOOKUP(D49,'[1]USOC Linked Table'!$A$2:$A$651,1,FALSE) -> WRRE4 | I49: =VLOOKUP(D49,'[1]Vertical Data'!$R$2:$R$26741,1,FALSE) -> WRRE4 | R49: WKK4S | T49: WLLLQ | V49: #N/A | W49: 0
C50: WRRLB | D50: WRRLB | E50: 3825-ME-HSEC | F50: ='1 - CPE-Router, VPN, & Firewall'!$L$220 ->  | G50: WRRLB | H50: =VLOOKUP(D50,'[1]USOC Linked Table'!$A$2:$A$651,1,FALSE) -> WRRLB | I50: =VLOOKUP(D50,'[1]Vertical Data'!$R$2:$R$26741,1,FALSE) -> WRRLB | R50: WKK4U | T50: WLLLR | V50: #N/A | W50: 0
D51: WRRE5 | E51: 2821-ME-HSEC | F51: ='1 - CPE-Router, VPN, & Firewall'!$L$1191 ->  | G51: WRRE5 | H51: =VLOOKUP(D51,'[1]USOC Linked Table'!$A$2:$A$651,1,FALSE) -> WRRE5 | I51: =VLOOKUP(D51,'[1]Vertical Data'!$R$2:$R$26741,1,FALSE) -> WRRE5 | R51: WKK4V | T51: WLLLS | V51: #N/A | W51: 0
D52: WAADF | E52: 1841-ME-HSEC | F52: ='1 - CPE-Router, VPN, & Firewall'!$L$123 ->  | G52: WAADF | H52: =VLOOKUP(D52,'[1]USOC Linked Table'!$A$2:$A$651,1,FALSE) -> WAADF | I52: =VLOOKUP(D52,'[1]Vertical Data'!$R$2:$R$26741,1,FALSE) -> WAADF | R52: WKK4W | T52: WLLLT | V52: #N/A | W52: 0
D53: WRRE3 | E53: 2821-2T1-HSEC | F53: ='1 - CPE-Router, VPN, & Firewall'!$L$286 ->  | G53: WRRE3 | H53: =VLOOKUP(D53,'[1]USOC Linked Table'!$A$2:$A$651,1,FALSE) -> WRRE3 | I53: =VLOOKUP(D53,'[1]Vertical Data'!$R$2:$R$26741,1,FALSE) -> WRRE3 | R53: WKK4Y
D54: WKKG6 | E54: ASR1002F-ME-AES-VPN | F54: ='1 - CPE-Router, VPN, & Firewall'!$L$779 ->  | G54: WKKG6 | H54: =VLOOKUP(D54,'[1]USOC Linked Table'!$A$2:$A$651,1,FALSE) -> WKKG6 | I54: =VLOOKUP(D54,'[1]Vertical Data'!$R$2:$R$26741,1,FALSE) -> WKKG6 | R54: WKK4Z
D55: WRRLB | E55: 3825-ME-HSEC | F55: ='1 - CPE-Router, VPN, & Firewall'!$L$220 ->  | G55: WRRLB | H55: =VLOOKUP(D55,'[1]USOC Linked Table'!$A$2:$A$651,1,FALSE) -> WRRLB | I55: =VLOOKUP(D55,'[1]Vertical Data'!$R$2:$R$26741,1,FALSE) -> WRRLB | J55: enhanced | R55: WKK52
B56: FVPN8 | C56: WLLH1 | D56: WLLH1 | E56: 3925-ME-HSEC | F56: ='1 - CPE-Router, VPN, & Firewall'!$L$245 ->  | G56: WLLH1 | H56: =VLOOKUP(D56,'[1]USOC Linked Table'!$A$2:$A$651,1,FALSE) -> WLLH1 | I56: =VLOOKUP(D56,'[1]Vertical Data'!$R$2:$R$26741,1,FALSE) -> WLLH1 | R56: WKK53
D57: WASA5 | E57: ASA 5505 | F57: ='1 - CPE-Router, VPN, & Firewall'!L1376 ->  | G57: WASA5 | H57: =VLOOKUP(D57,'[1]USOC Linked Table'!$A$2:$A$651,1,FALSE) ->  | I57: =VLOOKUP(D57,'[1]Vertical Data'!$R$2:$R$26741,1,FALSE) -> WASA5 | R57: WKK54
D58: WLLOU | E58: 2921-ME-HSEC | F58: ='1 - CPE-Router, VPN, & Firewall'!$L$195 ->  | G58: WLLOU | H58: =VLOOKUP(D58,'[1]USOC Linked Table'!$A$2:$A$651,1,FALSE) -> WLLOU | I58: =VLOOKUP(D58,'[1]Vertical Data'!$R$2:$R$26741,1,FALSE) -> WLLOU | R58: WKK55
D59: WLL5P | E59: 2921-4T1-HSEC | F59: ='1 - CPE-Router, VPN, & Firewall'!$L$1362 ->  | G59: WLL5P | H59: =VLOOKUP(D59,'[1]USOC Linked Table'!$A$2:$A$651,1,FALSE) -> WLL5P | I59: =VLOOKUP(D59,'[1]Vertical Data'!$R$2:$R$26741,1,FALSE) -> WLL5P | R59: WKK56
D60: WLLP4 | E60: 2951-T3-HSEC | F60: ='1 - CPE-Router, VPN, & Firewall'!$L$1394 ->  | G60: WLLP4 | H60: =VLOOKUP(D60,'[1]USOC Linked Table'!$A$2:$A$651,1,FALSE) ->  | I60: =VLOOKUP(D60,'[1]Vertical Data'!$R$2:$R$26741,1,FALSE) -> WLLP4 | R60: WKK3G
D61: WLLM5 | E61: CISCO 2821-ME | F61: ='1 - CPE-Router, VPN, & Firewall'!$L$1275 ->  | J61: 10 | R61: WKK3H
D62: WLLH4 | E62: CISCO 2821-ME | F62: ='1 - CPE-Router, VPN, & Firewall'!$L$1275 ->  | J62: 20 | R62: WKK3J
D63: WLLM4 | E63: CISCO 2821-ME | F63: ='1 - CPE-Router, VPN, & Firewall'!$L$1275 ->  | J63: 8 | R63: WKK3K
D64: WLLH5 | E64: CISCO 2821-ME | F64: ='1 - CPE-Router, VPN, & Firewall'!$L$1275 ->  | J64: 50 | R64: WKK3L
D65: WLLQ7 | E65: Cisco 2951 | F65: ='1 - CPE-Router, VPN, & Firewall'!$M$220 ->  | J65: 45 Mbps | R65: WKK3M
D66: WLLQH | E66: Cisco 3825 | F66: ='1 - CPE-Router, VPN, & Firewall'!$L$1283 ->  | J66: 100 Mbps | R66: WKK3N
D67: WLLQG | E67: Cisco 3825 | F67: ='1 - CPE-Router, VPN, & Firewall'!$L$1283 ->  | J67: 100 Mbps | R67: WKK3O
D68: WLLQA | E68: Cisco 3825 | F68: ='1 - CPE-Router, VPN, & Firewall'!$L$1283 ->  | J68: 90 Mbps | R68: WKK3Q
D69: WLLQC | E69: Cisco 3825 | F69: ='1 - CPE-Router, VPN, & Firewall'!$L$1283 ->  | J69: 90 Mbps | R69: WKK3S
D70: WLLH9 | E70: Cisco 3825 | F70: ='1 - CPE-Router, VPN, & Firewall'!$L$1283 ->  | J70: 500 | R70: WKK3T
D71: WLLQR | E71: Cisco 3750 | F71: ='1 - CPE-Router, VPN, & Firewall'!$L$1291 ->  | J71: 200 Mbps | R71: WKK3X
D72: WLLQJ | E72: Cisco 3750 | F72: ='1 - CPE-Router, VPN, & Firewall'!$L$1291 ->  | J72: 155 Mbps | R72: WKK42
D73: WLLQS | E73: Cisco ASR 1001 | F73: ='1 - CPE-Router, VPN, & Firewall'!$L$1313 ->  | J73: 300 Mbps | R73: WLLLO
D74: WLLRQ | E74: Cisco ASR 1001 | F74: ='1 - CPE-Router, VPN, & Firewall'!$L$1313 ->  | J74: 1000 Mbps | R74: WLLLP
D75: WLLQT | E75: Cisco ASR 1001 | F75: ='1 - CPE-Router, VPN, & Firewall'!$L$1313 ->  | J75: 300 Mbps | R75: WLLLQ
D76: WLLRH | E76: Cisco ASR 1001 | F76: ='1 - CPE-Router, VPN, & Firewall'!$L$1313 ->  | J76: 800 Mbps | R76: WLLLR
D77: WLLQV | E77: Cisco ASR 1001 | F77: ='1 - CPE-Router, VPN, & Firewall'!$L$1313 ->  | J77: 300 Mbps | R77: WLLLS
D78: WLLRT | E78: Cisco ASR 1001 | F78: ='1 - CPE-Router, VPN, & Firewall'!$L$1313 ->  | J78: 1000 Mbps | R78: WLLLT
D79: WLLRQ | E79: Cisco ASR 1001 | F79: ='1 - CPE-Router, VPN, & Firewall'!$L$1313 ->  | J79: 1000 Mbps
D80: WLLR4 | E80: Juniper MX | F80: ='1 - CPE-Router, VPN, & Firewall'!$L$1342 ->  | J80: 500 Mbps
D81: WLLRJ | E81: Juniper MX | F81: ='1 - CPE-Router, VPN, & Firewall'!$L$1342 ->  | J81: 800 Mbps
D82: WLLQS | E82: Cisco ASR 1001 | F82: ='1 - CPE-Router, VPN, & Firewall'!$L$1313 ->  | J82: 300 Mbps

Sheet @u pivot (hidden)
L1: 6 | M1: 1.5
L2: 28 | M2: 10
A3: Count of USOC | C3: Column Labels | L3: 26 | M3: 100
A4: Row Labels | B4: DESCRIPTION | C4: @M | D4: @U | E4: Grand Total
A5: Administrative Hearings
A6: WKKR7 | B6: 2GMAN-10Mb-Standard | D6: 2 | E6: 2
A7: WKKRD | B7: 2GMAN-100Mb-Standard | D7: 1 | E7: 1
A8: WRR1Z | B8: 10 Mbps MAN-MFN Virtual Port | C8: 2 | E8: 2
A9: WRR21 | B9: 100 Mbps MAN-MFN Virtual Port | C9: 1 | E9: 1
A10: Agency For Healthcare Administration
A11: WKKRD | B11: 2GMAN-100Mb-Standard | D11: 3 | E11: 3
A12: WRR21 | B12: 100 Mbps MAN-MFN Virtual Port | C12: 3 | E12: 3
A13: Agriculture & Consumer Services
A14: WKKR7 | B14: 2GMAN-10Mb-Standard | D14: 2 | E14: 2
A15: WKKRD | B15: 2GMAN-100Mb-Standard | D15: 7 | E15: 7
A16: WRR1Z | B16: 10 Mbps MAN-MFN Virtual Port | C16: 2 | E16: 2
A17: WRR21 | B17: 100 Mbps MAN-MFN Virtual Port | C17: 7 | E17: 7
A18: Apalachee Ctr Inc
A19: WKKR7 | B19: 2GMAN-10Mb-Standard | D19: 1 | E19: 1
A20: WRR1Z | B20: 10 Mbps MAN-MFN Virtual Port | C20: 1 | E20: 1
A21: Big Bend Cmmty Based Care Inc
A22: WKKR7 | B22: 2GMAN-10Mb-Standard | D22: 2 | E22: 2
A23: WRR1Y | B23: 1.5 Mbps MAN-MFN Virtual Port | C23: 1 | E23: 1
A24: WRR1Z | B24: 10 Mbps MAN-MFN Virtual Port | C24: 1 | E24: 1
A25: Business & Professional Reg
A26: WKKRD | B26: 2GMAN-100Mb-Standard | D26: 1 | E26: 1
A27: WRR21 | B27: 100 Mbps MAN-MFN Virtual Port | C27: 1 | E27: 1
A28: Children & Families
A29: WKKR6 | B29: 2GMAN-1.5Mb-Standard | D29: 3 | E29: 3
A30: WKKR7 | B30: 2GMAN-10Mb-Standard | D30: 1 | E30: 1
A31: WKKRD | B31: 2GMAN-100Mb-Standard | D31: 1 | E31: 1
A32: WRR1Y | B32: 1.5 Mbps MAN-MFN Virtual Port | C32: 3 | E32: 3
A33: WRR1Z | B33: 10 Mbps MAN-MFN Virtual Port | C33: 1 | E33: 1
A34: WRR21 | B34: 100 Mbps MAN-MFN Virtual Port | C34: 1 | E34: 1
A35: Common Equipment
A36: WKKR7 | B36: 2GMAN-10Mb-Standard | D36: 1 | E36: 1
A37: WRR1Z | B37: 10 Mbps MAN-MFN Virtual Port | C37: 1 | E37: 1
A38: Disc Village Inc
A39: WKKR7 | B39: 2GMAN-10Mb-Standard | D39: 1 | E39: 1
A40: WRR1Z | B40: 10 Mbps MAN-MFN Virtual Port | C40: 1 | E40: 1
A41: Economic Opportunity
A42: WKKR7 | B42: 2GMAN-10Mb-Standard | D42: 1 | E42: 1
A43: WKKRD | B43: 2GMAN-100Mb-Standard | D43: 4 | E43: 4
A44: Education
A45: WKKR6 | B45: 2GMAN-1.5Mb-Standard | D45: 2 | E45: 2
A46: WKKR7 | B46: 2GMAN-10Mb-Standard | D46: 1 | E46: 1
A47: WKKRD | B47: 2GMAN-100Mb-Standard | D47: 5 | E47: 5
A48: WRR21 | B48: 100 Mbps MAN-MFN Virtual Port | C48: 1 | E48: 1
A49: Elder Affairs
A50: WKKRD | B50: 2GMAN-100Mb-Standard | D50: 1 | E50: 1
A51: WRR21 | B51: 100 Mbps MAN-MFN Virtual Port | C51: 1 | E51: 1
A52: Environmental Protection
A53: WKKR6 | B53: 2GMAN-1.5Mb-Standard | D53: 2 | E53: 2
A54: WKKR7 | B54: 2GMAN-10Mb-Standard | D54: 1 | E54: 1
A55: WKKRD | B55: 2GMAN-100Mb-Standard | D55: 1 | E55: 1
A56: WRR1Z | B56: 10 Mbps MAN-MFN Virtual Port | C56: 1 | E56: 1
A57: WRR21 | B57: 100 Mbps MAN-MFN Virtual Port | C57: 1 | E57: 1
A58: Fam-Fl A&M Univ
A59: WKKR7 | B59: 2GMAN-10Mb-Standard | D59: 3 | E59: 3
A60: WKKRD | B60: 2GMAN-100Mb-Standard | D60: 1 | E60: 1
A61: Fish & Wildlife Commission
A62: WKKR7 | B62: 2GMAN-10Mb-Standard | D62: 3 | E62: 3
A63: WKKRD | B63: 2GMAN-100Mb-Standard | D63: 2 | E63: 2
A64: WRR1Z | B64: 10 Mbps MAN-MFN Virtual Port | C64: 5 | E64: 5
A65: WRR21 | B65: 100 Mbps MAN-MFN Virtual Port | C65: 2 | E65: 2
A66: Fl Assn Ct of Clrks
A67: WKKR7 | B67: 2GMAN-10Mb-Standard | D67: 1 | E67: 1
A68: WRR1Z | B68: 10 Mbps MAN-MFN Virtual Port | C68: 1 | E68: 1
A69: Fl State University
A70: WKKR7 | B70: 2GMAN-10Mb-Standard | D70: 4 | E70: 4
A71: WKKRD | B71: 2GMAN-100Mb-Standard | D71: 1 | E71: 1
A72: WRR1Z | B72: 10 Mbps MAN-MFN Virtual Port | C72: 2 | E72: 2
A73: WRR21 | B73: 100 Mbps MAN-MFN Virtual Port | C73: 1 | E73: 1
A74: Governor'S Office
A75: WKKR6 | B75: 2GMAN-1.5Mb-Standard | D75: 1 | E75: 1
A76: WKKRD | B76: 2GMAN-100Mb-Standard | D76: 1 | E76: 1
A77: WRR1Y | B77: 1.5 Mbps MAN-MFN Virtual Port | C77: 1 | E77: 1
A78: WRR21 | B78: 100 Mbps MAN-MFN Virtual Port | C78: 1 | E78: 1
A79: Health
A80: WKKRD | B80: 2GMAN-100Mb-Standard | D80: 1 | E80: 1
A81: WRR21 | B81: 100 Mbps MAN-MFN Virtual Port | C81: 1 | E81: 1
A82: Highway Safety & Motor Vehicles
A83: WKKR7 | B83: 2GMAN-10Mb-Standard | D83: 1 | E83: 1
A84: Justice Administration Commission
A85: WKKR7 | B85: 2GMAN-10Mb-Standard | D85: 2 | E85: 2
A86: WRR1Z | B86: 10 Mbps MAN-MFN Virtual Port | C86: 2 | E86: 2
A87: Legal Affairs
A88: WKKRD | B88: 2GMAN-100Mb-Standard | D88: 1 | E88: 1
A89: WRR21 | B89: 100 Mbps MAN-MFN Virtual Port | C89: 1 | E89: 1
A90: Legislative Members
A91: WKKR7 | B91: 2GMAN-10Mb-Standard | D91: 1 | E91: 1
A92: WKKRD | B92: 2GMAN-100Mb-Standard | D92: 4 | E92: 4
A93: WRR1Z | B93: 10 Mbps MAN-MFN Virtual Port | C93: 1 | E93: 1
A94: WRR21 | B94: 100 Mbps MAN-MFN Virtual Port | C94: 1 | E94: 1
A95: Leon Clerk of Courts
A96: WKKR7 | B96: 2GMAN-10Mb-Standard | D96: 1 | E96: 1
A97: WKKRD | B97: 2GMAN-100Mb-Standard | D97: 2 | E97: 2
A98: Lottery
A99: WKKRD | B99: 2GMAN-100Mb-Standard | D99: 2 | E99: 2
A100: WRR21 | B100: 100 Mbps MAN-MFN Virtual Port | C100: 2 | E100: 2
A101: Management Services
A102: WKKR7 | B102: 2GMAN-10Mb-Standard | D102: 2 | E102: 2
A103: WKKRD | B103: 2GMAN-100Mb-Standard | D103: 1 | E103: 1
A104: WRR1Z | B104: 10 Mbps MAN-MFN Virtual Port | C104: 2 | E104: 2
A105: WRR21 | B105: 100 Mbps MAN-MFN Virtual Port | C105: 1 | E105: 1
A106: Persons With Disabilities
A107: WKKR6 | B107: 2GMAN-1.5Mb-Standard | D107: 1 | E107: 1
A108: Revenue
A109: WKKR6 | B109: 2GMAN-1.5Mb-Standard | D109: 2 | E109: 2
A110: WKKR7 | B110: 2GMAN-10Mb-Standard | D110: 1 | E110: 1
A111: WKKRD | B111: 2GMAN-100Mb-Standard | D111: 2 | E111: 2
A112: WRR1Y | B112: 1.5 Mbps MAN-MFN Virtual Port | C112: 1 | E112: 1
A113: WRR1Z | B113: 10 Mbps MAN-MFN Virtual Port | C113: 1 | E113: 1
A114: State
A115: WKKR7 | B115: 2GMAN-10Mb-Standard | D115: 3 | E115: 3
A116: WKKRD | B116: 2GMAN-100Mb-Standard | D116: 2 | E116: 2
A117: State Courts System
A118: WKKR7 | B118: 2GMAN-10Mb-Standard | D118: 4 | E118: 4
A119: WRR1Z | B119: 10 Mbps MAN-MFN Virtual Port | C119: 4 | E119: 4
A120: Transportation
A121: WKKR6 | B121: 2GMAN-1.5Mb-Standard | D121: 1 | E121: 1
A122: WKKR7 | B122: 2GMAN-10Mb-Standard | D122: 3 | E122: 3
A123: WKKRD | B123: 2GMAN-100Mb-Standard | D123: 5 | E123: 5
A124: Grand Total | C124: 60 | D124: 103 | E124: 163

Sheet 11 -Snapshot 1 Current Services
B1: Price Sheet 11 MyFloridaNet2; Snapshot 1 - Current Services
B2: =Checklist!D3 -> 0
A3: Lookup Value | B3: Site Information | F3: Bandwidth Data | G3: CPE | H3: Core Port | I3: Local Access | P3: Internet Access | Q3: Configuration Management | R3: Total Using Proposed Pricing
B4: Address | C4: City | D4: Zip | E4: Mileage Band | F4: Priced Bandwidth (Mbps) | G4: Proposed CPE Cost | H4: Proposed Cost | I4: ≤ 10 Miles | J4: ≤ 25 Miles | K4: > 10 ≤ 25 Miles | L4: > 25 ≤ 35 Miles | M4: > 35 ≤ 50 Miles | N4: > 50 Miles | O4: Local Access Price | P4: Proposed Cost | Q4: Proposed Cost | U4: ≤ 25 Miles | W4: ≤ 10 Miles
I5: Proposed Cost | J5: Proposed Cost | K5: Proposed Cost | L5: Proposed Cost | M5: Proposed Cost | N5: Proposed Cost | U5: > 25 ≤ 35 Miles | W5: > 10 ≤ 25 Miles
A6: WKK9UB88$I15000109 | B6: 1895 TOWNCENTER BLVD. | C6: ORANGE PARK | D6: 32003 | F6: 15 | J6: ='2 - WAN Service'!$R$21 -> $0.00 | L6: ='2 - WAN Service'!$AA$21 -> $0.00 | M6: ='2 - WAN Service'!$AD$21 -> $0.00 | N6: ='2 - WAN Service'!$AE$21 -> $0.00 | O6: =IF(E6=$J$4,J6,IF(E6=$L$4,L6,IF(E6=$M$4,M6,IF(E6=$N$4,N6)))) -> FALSE | R6: =IF((OR(E6=I$4,E6=J$4,E6=K$4,E6=L$4,E6=M$4,E6=N$4)),O6, "Incomplete") -> Incomplete | U6: > 35 ≤ 50 Miles | W6: > 25 ≤ 35 Miles
A7: WEE7QA15$IC8019610 | B7: 2700 JUDGE FRAN JAMIESON WAY | C7: VIERA | D7: 32940 | F7: 15 | J7: ='2 - WAN Service'!$R$21 -> $0.00 | L7: ='2 - WAN Service'!$AA$21 -> $0.00 | M7: ='2 - WAN Service'!$AD$21 -> $0.00 | N7: ='2 - WAN Service'!$AE$21 -> $0.00 | O7: =IF(E7=$J$4,J7,IF(E7=$L$4,L7,IF(E7=$M$4,M7,IF(E7=$N$4,N7)))) -> FALSE | R7: =IF((OR(E7=I$4,E7=J$4,E7=K$4,E7=L$4,E7=M$4,E7=N$4)),O7, "Incomplete") -> Incomplete | U7: > 50 Miles | W7: > 35 ≤ 50 Miles
A8: WKK2MA17$I30000111 | B8: 2680 WEST COUNTY ROAD 476 | C8: BUSHNELL | D8: 33513 | F8: 15 | J8: ='2 - WAN Service'!$R$21 -> $0.00 | L8: ='2 - WAN Service'!$AA$21 -> $0.00 | M8: ='2 - WAN Service'!$AD$21 -> $0.00 | N8: ='2 - WAN Service'!$AE$21 -> $0.00 | O8: FALSE | R8: Incomplete | W8: > 50 Miles
A9: WLLRHA21$ECC000213 | B9: 75 N. Pace Blvd. | C9: PENSACOLA | D9: 32505 | F9: 15 | J9: ='2 - WAN Service'!$R$21 -> $0.00 | L9: ='2 - WAN Service'!$AA$21 -> $0.00 | M9: ='2 - WAN Service'!$AD$21 -> $0.00 | N9: ='2 - WAN Service'!$AE$21 -> $0.00 | O9: =IF(E9=$J$4,J9,IF(E9=$L$4,L9,IF(E9=$M$4,M9,IF(E9=$N$4,N9)))) -> FALSE | R9: =IF((OR(E9=I$4,E9=J$4,E9=K$4,E9=L$4,E9=M$4,E9=N$4)),O9, "Incomplete") -> Incomplete
A10: WLLRTA24$JC6000413 | B10: 500 SE OCEAN BLVD. | C10: STUART | D10: 34994 | F10: 15 | J10: ='2 - WAN Service'!$R$21 -> $0.00 | L10: ='2 - WAN Service'!$AA$21 -> $0.00 | M10: ='2 - WAN Service'!$AD$21 -> $0.00 | N10: ='2 - WAN Service'!$AE$21 -> $0.00 | O10: FALSE | R10: Incomplete
A11: WKK2RA25$IC2000612 | B11: 426 SCHOOL ST | C11: SEBRING | D11: 33870 | F11: 15 | J11: ='2 - WAN Service'!$R$21 -> $0.00 | L11: ='2 - WAN Service'!$AA$21 -> $0.00 | M11: ='2 - WAN Service'!$AD$21 -> $0.00 | N11: ='2 - WAN Service'!$AE$21 -> $0.00 | O11: FALSE | R11: Incomplete
A12: WLLRJA30$EC4000113 | B12: 7720 W. OAKLAND PK BLVD | C12: FORT LAUDERDALE | D12: 33351 | F12: 15 | J12: ='2 - WAN Service'!$R$21 -> $0.00 | L12: ='2 - WAN Service'!$AA$21 -> $0.00 | M12: ='2 - WAN Service'!$AD$21 -> $0.00 | N12: ='2 - WAN Service'!$AE$21 -> $0.00 | O12: FALSE | R12: Incomplete
A13: WLLRJA30$EC4000213 | B13: 7720 W. OAKLAND PK BLVD | C13: FORT LAUDERDALE | D13: 33351 | F13: 15 | J13: ='2 - WAN Service'!$R$21 -> $0.00 | L13: ='2 - WAN Service'!$AA$21 -> $0.00 | M13: ='2 - WAN Service'!$AD$21 -> $0.00 | N13: ='2 - WAN Service'!$AE$21 -> $0.00 | O13: FALSE | R13: Incomplete
A14: WKK2OA36$IC2000112 | B14: 1105 LEON STREET | C14: KEY WEST | D14: 33040 | F14: 15 | J14: ='2 - WAN Service'!$R$21 -> $0.00 | L14: ='2 - WAN Service'!$AA$21 -> $0.00 | M14: ='2 - WAN Service'!$AD$21 -> $0.00 | N14: ='2 - WAN Service'!$AE$21 -> $0.00 | O14: FALSE | R14: Incomplete
A15: WKK2RA36$IC2000112 | B15: 1105 LEON STREET | C15: KEY WEST | D15: 33040 | F15: 15 | J15: ='2 - WAN Service'!$R$21 -> $0.00 | L15: ='2 - WAN Service'!$AA$21 -> $0.00 | M15: ='2 - WAN Service'!$AD$21 -> $0.00 | N15: ='2 - WAN Service'!$AE$21 -> $0.00 | O15: FALSE | R15: Incomplete
A16: WKK2SA48$IC2000211 | B16: 480 MARSHBURN DR | C16: BRONSON | D16: 32621 | F16: 15 | J16: ='2 - WAN Service'!$R$21 -> $0.00 | L16: ='2 - WAN Service'!$AA$21 -> $0.00 | M16: ='2 - WAN Service'!$AD$21 -> $0.00 | N16: ='2 - WAN Service'!$AE$21 -> $0.00 | O16: FALSE | R16: Incomplete
A17: WKK2SA48$IC2000211 | B17: 480 MARSHBURN DR | C17: BRONSON | D17: 32621 | F17: 15 | J17: ='2 - WAN Service'!$R$21 -> $0.00 | L17: ='2 - WAN Service'!$AA$21 -> $0.00 | M17: ='2 - WAN Service'!$AD$21 -> $0.00 | N17: ='2 - WAN Service'!$AE$21 -> $0.00 | O17: FALSE | R17: Incomplete
A18: WKK2OA56$IC2000312 | B18: 530 LASOLONA | C18: ARCADIA | D18: 34266 | F18: 15 | J18: ='2 - WAN Service'!$R$21 -> $0.00 | L18: ='2 - WAN Service'!$AA$21 -> $0.00 | M18: ='2 - WAN Service'!$AD$21 -> $0.00 | N18: ='2 - WAN Service'!$AE$21 -> $0.00 | O18: FALSE | R18: Incomplete
A19: WKK2OA57$IC2000612 | B19: 308 FORREST AVE | C19: COCOA | D19: 32922 | F19: 15 | J19: ='2 - WAN Service'!$R$21 -> $0.00 | L19: ='2 - WAN Service'!$AA$21 -> $0.00 | M19: ='2 - WAN Service'!$AD$21 -> $0.00 | N19: ='2 - WAN Service'!$AE$21 -> $0.00 | O19: FALSE | R19: Incomplete
A20: WLLR4A59$ECA000413 | B20: 4204 OKEECHOBEE ROAD | C20: FORT PIERCE | D20: 34947 | F20: 15 | J20: ='2 - WAN Service'!$R$21 -> $0.00 | L20: ='2 - WAN Service'!$AA$21 -> $0.00 | M20: ='2 - WAN Service'!$AD$21 -> $0.00 | N20: ='2 - WAN Service'!$AE$21 -> $0.00 | O20: FALSE | R20: Incomplete
A21: WEE7YA60$I1G000111 | B21: 13135 SW 26TH STREET | C21: MIAMI | D21: 33175 | F21: 15 | J21: ='2 - WAN Service'!$R$21 -> $0.00 | L21: ='2 - WAN Service'!$AA$21 -> $0.00 | M21: ='2 - WAN Service'!$AD$21 -> $0.00 | N21: ='2 - WAN Service'!$AE$21 -> $0.00 | O21: FALSE | R21: Incomplete
A22: WEE7YA60$I1G013210 | B22: 13135 SW 26 STREET | C22: MIAMI | D22: 33175 | F22: 15 | J22: ='2 - WAN Service'!$R$21 -> $0.00 | L22: ='2 - WAN Service'!$AA$21 -> $0.00 | M22: ='2 - WAN Service'!$AD$21 -> $0.00 | N22: ='2 - WAN Service'!$AE$21 -> $0.00 | O22: FALSE | R22: Incomplete
A23: WLLRQA62$ICA000712 | B23: 6425 SOUTHPOINT PARKWAY | C23: JACKSONVILLE | D23: 32205 | F23: 15 | J23: ='2 - WAN Service'!$R$21 -> $0.00 | L23: ='2 - WAN Service'!$AA$21 -> $0.00 | M23: ='2 - WAN Service'!$AD$21 -> $0.00 | N23: ='2 - WAN Service'!$AE$21 -> $0.00 | O23: FALSE | R23: Incomplete
A24: WKK2AA69$I20021710 | B24: 753 WEST BLVD | C24: CHIPLEY | D24: 32428 | F24: 15 | J24: ='2 - WAN Service'!$R$21 -> $0.00 | L24: ='2 - WAN Service'!$AA$21 -> $0.00 | M24: ='2 - WAN Service'!$AD$21 -> $0.00 | N24: ='2 - WAN Service'!$AE$21 -> $0.00 | O24: FALSE | R24: Incomplete
A25: WKK2AA69$I20021710 | B25: 753 WEST BLVD | C25: CHIPLEY | D25: 32428 | F25: 15 | J25: ='2 - WAN Service'!$R$21 -> $0.00 | L25: ='2 - WAN Service'!$AA$21 -> $0.00 | M25: ='2 - WAN Service'!$AD$21 -> $0.00 | N25: ='2 - WAN Service'!$AE$21 -> $0.00 | O25: FALSE | R25: Incomplete
A26: WEE7RA76$ICA013010 | B26: 420B SE ALVAREZ AVENUE | C26: OCALA | D26: 34471 | F26: 15 | J26: ='2 - WAN Service'!$R$21 -> $0.00 | L26: ='2 - WAN Service'!$AA$21 -> $0.00 | M26: ='2 - WAN Service'!$AD$21 -> $0.00 | N26: ='2 - WAN Service'!$AE$21 -> $0.00 | O26: FALSE | R26: Incomplete
A27: WKK2OA80$I45017010 | B27: 25 E. HICKPOCHEE AVE | C27: LABELLE | D27: 33935 | F27: 15 | J27: ='2 - WAN Service'!$R$21 -> $0.00 | L27: ='2 - WAN Service'!$AA$21 -> $0.00 | M27: ='2 - WAN Service'!$AD$21 -> $0.00 | N27: ='2 - WAN Service'!$AE$21 -> $0.00 | O27: FALSE | R27: Incomplete
A28: WKK28A81$I06002812 | B28: 7202 HWY 441 NORTH | C28: OKEECHOBEE | D28: 34972 | F28: 15 | J28: ='2 - WAN Service'!$R$21 -> $0.00 | L28: ='2 - WAN Service'!$AA$21 -> $0.00 | M28: ='2 - WAN Service'!$AD$21 -> $0.00 | N28: ='2 - WAN Service'!$AE$21 -> $0.00 | O28: FALSE | R28: Incomplete
A29: WKK2RA81$I40002712 | B29: 680 SECOND ST - DEMARC BLDG 1 | C29: CHIPLEY | D29: 32428 | F29: 15 | J29: ='2 - WAN Service'!$R$21 -> $0.00 | L29: ='2 - WAN Service'!$AA$21 -> $0.00 | M29: ='2 - WAN Service'!$AD$21 -> $0.00 | N29: ='2 - WAN Service'!$AE$21 -> $0.00 | O29: FALSE | R29: Incomplete
A30: WKK2GA90$I18000312 | B30: 150 MIDDLE SCHOOL RD. | C30: PORT ST. JOE | D30: 32456 | F30: 15 | J30: ='2 - WAN Service'!$R$21 -> $0.00 | L30: ='2 - WAN Service'!$AA$21 -> $0.00 | M30: ='2 - WAN Service'!$AD$21 -> $0.00 | N30: ='2 - WAN Service'!$AE$21 -> $0.00 | O30: FALSE | R30: Incomplete
A31: WKK2RAB4$IC4000111 | B31: 145 PARK STREET, SUITE 5 | C31: DEFUNIAK SPRINGS | D31: 32435 | F31: 15 | J31: ='2 - WAN Service'!$R$21 -> $0.00 | L31: ='2 - WAN Service'!$AA$21 -> $0.00 | M31: ='2 - WAN Service'!$AD$21 -> $0.00 | N31: ='2 - WAN Service'!$AE$21 -> $0.00 | O31: FALSE | R31: Incomplete
A32: WLLQVAC3$IC6000412 | B32: 919 N BROAD ST | C32: BROOKSVILLE | D32: 34601 | F32: 15 | J32: ='2 - WAN Service'!$R$21 -> $0.00 | L32: ='2 - WAN Service'!$AA$21 -> $0.00 | M32: ='2 - WAN Service'!$AD$21 -> $0.00 | N32: ='2 - WAN Service'!$AE$21 -> $0.00 | O32: FALSE | R32: Incomplete
A33: WKK2MAC6$I65000212 | B33: 901 EAST COLLEGE ST | C33: PERRY | D33: 32347 | F33: 15 | J33: ='2 - WAN Service'!$R$21 -> $0.00 | L33: ='2 - WAN Service'!$AA$21 -> $0.00 | M33: ='2 - WAN Service'!$AD$21 -> $0.00 | N33: ='2 - WAN Service'!$AE$21 -> $0.00 | O33: FALSE | R33: Incomplete
A34: WKK2MAC6$I65000212 | B34: 901 EAST COLLEGE ST | C34: PERRY | D34: 32347 | F34: 15 | J34: ='2 - WAN Service'!$R$21 -> $0.00 | L34: ='2 - WAN Service'!$AA$21 -> $0.00 | M34: ='2 - WAN Service'!$AD$21 -> $0.00 | N34: ='2 - WAN Service'!$AE$21 -> $0.00 | O34: FALSE | R34: Incomplete
A35: WLLQTAC7$IC6000312 | B35: 5086 CANAL STREET | C35: MILTON | D35: 32570 | F35: 15 | J35: ='2 - WAN Service'!$R$21 -> $0.00 | L35: ='2 - WAN Service'!$AA$21 -> $0.00 | M35: ='2 - WAN Service'!$AD$21 -> $0.00 | N35: ='2 - WAN Service'!$AE$21 -> $0.00 | O35: FALSE | R35: Incomplete
A36: WLLQRACE$EC4000113 | B36: 16077 NE HWY 19 | C36: CROSS CITY | D36: 32628 | F36: 15 | J36: ='2 - WAN Service'!$R$21 -> $0.00 | L36: ='2 - WAN Service'!$AA$21 -> $0.00 | M36: ='2 - WAN Service'!$AD$21 -> $0.00 | N36: ='2 - WAN Service'!$AE$21 -> $0.00 | O36: FALSE | R36: Incomplete
A37: WKK2UAD8$IC8001113 | B37: 1201 ATLANTIC AVENUE | C37: FERNANDINA BEACH | D37: 32034 | F37: 15 | J37: ='2 - WAN Service'!$R$21 -> $0.00 | L37: ='2 - WAN Service'!$AA$21 -> $0.00 | M37: ='2 - WAN Service'!$AD$21 -> $0.00 | N37: ='2 - WAN Service'!$AE$21 -> $0.00 | O37: FALSE | R37: Incomplete
A38: WLLQHAG4$I65002711 | B38: 372 WEST DUVAL STREET | C38: LAKE CITY | D38: 32055 | F38: 15 | J38: ='2 - WAN Service'!$R$21 -> $0.00 | L38: ='2 - WAN Service'!$AA$21 -> $0.00 | M38: ='2 - WAN Service'!$AD$21 -> $0.00 | N38: ='2 - WAN Service'!$AE$21 -> $0.00 | O38: FALSE | R38: Incomplete
A39: WKK2RAG7$IC4000112 | B39: 204 BELL ST. | C39: WAUCHULA | D39: 33873 | F39: 15 | J39: ='2 - WAN Service'!$R$21 -> $0.00 | L39: ='2 - WAN Service'!$AA$21 -> $0.00 | M39: ='2 - WAN Service'!$AD$21 -> $0.00 | N39: ='2 - WAN Service'!$AE$21 -> $0.00 | O39: FALSE | R39: Incomplete
A40: WLLQGAH7$I50000512 | B40: 1013 NORTH MAIN | C40: TRENTON | D40: 32693 | F40: 15 | J40: ='2 - WAN Service'!$R$21 -> $0.00 | L40: ='2 - WAN Service'!$AA$21 -> $0.00 | M40: ='2 - WAN Service'!$AD$21 -> $0.00 | N40: ='2 - WAN Service'!$AE$21 -> $0.00 | O40: FALSE | R40: Incomplete
A41: WKK2AAJL$I20000409 | B41: 2150 S. BROADWAY AVENUE | C41: BARTOW | D41: 33830 | F41: 15 | J41: ='2 - WAN Service'!$R$21 -> $0.00 | L41: ='2 - WAN Service'!$AA$21 -> $0.00 | M41: ='2 - WAN Service'!$AD$21 -> $0.00 | N41: ='2 - WAN Service'!$AE$21 -> $0.00 | O41: FALSE | R41: Incomplete
A42: WKK2RAK3$IC4000212 | B42: 12926 NW CR 12 | C42: BRISTOL | D42: 32321 | F42: 15 | J42: ='2 - WAN Service'!$R$21 -> $0.00 | L42: ='2 - WAN Service'!$AA$21 -> $0.00 | M42: ='2 - WAN Service'!$AD$21 -> $0.00 | N42: ='2 - WAN Service'!$AE$21 -> $0.00 | O42: =IF(E42=$J$4,J42,IF(E42=$L$4,L42,IF(E42=$M$4,M42,IF(E42=$N$4,N42)))) -> FALSE | R42: Incomplete
A43: WKK2RAK3$IC4000212 | B43: 12926 NW CR 12 | C43: BRISTOL | D43: 32321 | F43: 15 | J43: ='2 - WAN Service'!$R$21 -> $0.00 | L43: ='2 - WAN Service'!$AA$21 -> $0.00 | M43: ='2 - WAN Service'!$AD$21 -> $0.00 | N43: ='2 - WAN Service'!$AE$21 -> $0.00 | O43: FALSE | R43: Incomplete
A44: WKK2OAK9$IC2041911 | B44: 18597 NE STATE ROAD 69 | C44: BLOUNTSTOWN | D44: 32424 | F44: 15 | J44: ='2 - WAN Service'!$R$21 -> $0.00 | L44: ='2 - WAN Service'!$AA$21 -> $0.00 | M44: ='2 - WAN Service'!$AD$21 -> $0.00 | N44: ='2 - WAN Service'!$AE$21 -> $0.00 | O44: FALSE | R44: Incomplete
A45: WKK2EAM7$I09017710 | B45: 400 10TH ST. | C45: MOORE HAVEN | D45: 33471 | F45: 15 | J45: ='2 - WAN Service'!$R$21 -> $0.00 | L45: ='2 - WAN Service'!$AA$21 -> $0.00 | M45: ='2 - WAN Service'!$AD$21 -> $0.00 | N45: ='2 - WAN Service'!$AE$21 -> $0.00 | O45: FALSE | R45: Incomplete
A46: WKK2LD77$I50000611 | B46: 2700 SW 8th St | C46: MIAMI | D46: 33135 | F46: 15 | J46: ='2 - WAN Service'!$R$21 -> $0.00 | L46: ='2 - WAN Service'!$AA$21 -> $0.00 | M46: ='2 - WAN Service'!$AD$21 -> $0.00 | N46: ='2 - WAN Service'!$AE$21 -> $0.00 | O46: FALSE | R46: Incomplete
A47: WKK2OD84$I75000812 | B47: 319 W. CENTER AVE. | C47: SEBRING | D47: 33870 | F47: 15 | J47: ='2 - WAN Service'!$R$21 -> $0.00 | L47: ='2 - WAN Service'!$AA$21 -> $0.00 | M47: ='2 - WAN Service'!$AD$21 -> $0.00 | N47: ='2 - WAN Service'!$AE$21 -> $0.00 | O47: FALSE | R47: Incomplete
A48: WRR2M0E9@E21000208 | B48: 7501 NORTH JOG ROAD | C48: WEST PALM BEACH | D48: 33408 | F48: 15 | J48: ='2 - WAN Service'!$R$21 -> $0.00 | L48: ='2 - WAN Service'!$AA$21 -> $0.00 | M48: ='2 - WAN Service'!$AD$21 -> $0.00 | N48: ='2 - WAN Service'!$AE$21 -> $0.00 | O48: FALSE | R48: Incomplete
A49: WRR2O001@E45000911 | B49: 3841 REID STREET | C49: PALATKA | D49: 32177 | F49: 15 | J49: ='2 - WAN Service'!$R$21 -> $0.00 | L49: ='2 - WAN Service'!$AA$21 -> $0.00 | M49: ='2 - WAN Service'!$AD$21 -> $0.00 | N49: ='2 - WAN Service'!$AE$21 -> $0.00 | O49: FALSE | R49: Incomplete
A50: WRRD8021@E90000113 | B50: 9417 CORPORATE LAKES DRIVE | C50: TAMPA | D50: 33634 | F50: 15 | J50: ='2 - WAN Service'!$R$21 -> $0.00 | L50: ='2 - WAN Service'!$AA$21 -> $0.00 | M50: ='2 - WAN Service'!$AD$21 -> $0.00 | N50: ='2 - WAN Service'!$AE$21 -> $0.00 | O50: FALSE | R50: Incomplete
A51: WRR2M026@E21000112 | B51: 2728 CENTERVIEW DR | C51: TALLAHASSEE | D51: 32301 | F51: 15 | J51: ='2 - WAN Service'!$R$21 -> $0.00 | L51: ='2 - WAN Service'!$AA$21 -> $0.00 | M51: ='2 - WAN Service'!$AD$21 -> $0.00 | N51: ='2 - WAN Service'!$AE$21 -> $0.00 | O51: FALSE | R51: Incomplete
A52: WRR2O112@E45009610 | B52: 400 S MONROE ST | C52: TALLAHASSEE | D52: 32399 | F52: 15 | J52: ='2 - WAN Service'!$R$21 -> $0.00 | L52: ='2 - WAN Service'!$AA$21 -> $0.00 | M52: ='2 - WAN Service'!$AD$21 -> $0.00 | N52: ='2 - WAN Service'!$AE$21 -> $0.00 | O52: FALSE | R52: Incomplete
A53: WRR2O112@E45009710 | B53: 400 S MONROE ST | C53: TALLAHASSEE | D53: 32399 | F53: 15 | J53: ='2 - WAN Service'!$R$21 -> $0.00 | L53: ='2 - WAN Service'!$AA$21 -> $0.00 | M53: ='2 - WAN Service'!$AD$21 -> $0.00 | N53: ='2 - WAN Service'!$AE$21 -> $0.00 | O53: FALSE | R53: Incomplete
A54: WRR2N114@E33002213 | B54: 111 W. MADISON STREET | C54: TALLAHASSEE | D54: 32399 | F54: 21 | J54: ='2 - WAN Service'!$R$22 -> $0.00 | L54: ='2 - WAN Service'!$AA$22 -> $0.00 | M54: ='2 - WAN Service'!$AD$22 -> $0.00 | N54: ='2 - WAN Service'!$AE$22 -> $0.00 | O54: FALSE | R54: Incomplete
A55: WRR2L210@E15001112 | B55: 1005 E. MEMORIAL BLVD | C55: LAKELAND | D55: 33801 | F55: 21 | J55: ='2 - WAN Service'!$R$22 -> $0.00 | L55: ='2 - WAN Service'!$AA$22 -> $0.00 | M55: ='2 - WAN Service'!$AD$22 -> $0.00 | N55: ='2 - WAN Service'!$AE$22 -> $0.00 | O55: FALSE | R55: Incomplete
A56: WRR2O215@R45000211 | B56: 101 N. ALABAMA AVE. | C56: DELAND | D56: 32724 | F56: 21 | J56: ='2 - WAN Service'!$R$22 -> $0.00 | L56: ='2 - WAN Service'!$AA$22 -> $0.00 | M56: ='2 - WAN Service'!$AD$22 -> $0.00 | N56: ='2 - WAN Service'!$AE$22 -> $0.00 | O56: FALSE | R56: Incomplete
A57: WRR2O215@R45000611 | B57: 4010 LEWIS SPEEDWAY | C57: ST. AUGUSTINE | D57: 32084 | F57: 21 | J57: ='2 - WAN Service'!$R$22 -> $0.00 | L57: ='2 - WAN Service'!$AA$22 -> $0.00 | M57: ='2 - WAN Service'!$AD$22 -> $0.00 | N57: ='2 - WAN Service'!$AE$22 -> $0.00 | O57: FALSE | R57: Incomplete
A58: WLLQA484XX71 | B58: NORTHWEST REGIONAL DATA CENTER INNOVATION PARK | C58: TALLAHASSEE | D58: 32310 | F58: 21 | J58: ='2 - WAN Service'!$R$22 -> $0.00 | L58: ='2 - WAN Service'!$AA$22 -> $0.00 | M58: ='2 - WAN Service'!$AD$22 -> $0.00 | N58: ='2 - WAN Service'!$AE$22 -> $0.00 | O58: FALSE | R58: Incomplete
A59: WLLQJ0VHXX71 | B59: 2145 METROCENTER BLVD, SUITE 2 | C59: ORLANDO | D59: 32835 | F59: 21 | J59: ='2 - WAN Service'!$R$22 -> $0.00 | L59: ='2 - WAN Service'!$AA$22 -> $0.00 | M59: ='2 - WAN Service'!$AD$22 -> $0.00 | N59: ='2 - WAN Service'!$AE$22 -> $0.00 | O59: FALSE | R59: Incomplete
A60: WLLQS48X$EC6051413 | B60: 325 WEST GAINES ST. | C60: TALLAHASSEE | D60: 32399 | F60: 21 | J60: ='2 - WAN Service'!$R$22 -> $0.00 | L60: ='2 - WAN Service'!$AA$22 -> $0.00 | M60: ='2 - WAN Service'!$AD$22 -> $0.00 | N60: ='2 - WAN Service'!$AE$22 -> $0.00 | O60: FALSE | R60: Incomplete
A61: WKK28A06$I15023010 | B61: 200 SOUTH SEVENTH STREET | C61: PALATKA | D61: 32177 | F61: 21 | J61: ='2 - WAN Service'!$R$22 -> $0.00 | L61: ='2 - WAN Service'!$AA$22 -> $0.00 | M61: ='2 - WAN Service'!$AD$22 -> $0.00 | N61: ='2 - WAN Service'!$AE$22 -> $0.00 | O61: FALSE | R61: Incomplete
A62: WLLQSA09$IC4002611 | B62: 1311 BALBOA AVE. | C62: PANAMA CITY | D62: 32401 | F62: 21 | J62: ='2 - WAN Service'!$R$22 -> $0.00 | L62: ='2 - WAN Service'!$AA$22 -> $0.00 | M62: ='2 - WAN Service'!$AD$22 -> $0.00 | N62: ='2 - WAN Service'!$AE$22 -> $0.00 | O62: FALSE | R62: Incomplete
A63: WKK2PA11$ICX020310 | B63: 1990 25TH STREET | C63: VERO BEACH | D63: 32960 | F63: 21 | J63: ='2 - WAN Service'!$R$22 -> $0.00 | L63: ='2 - WAN Service'!$AA$22 -> $0.00 | M63: ='2 - WAN Service'!$AD$22 -> $0.00 | N63: ='2 - WAN Service'!$AE$22 -> $0.00 | O63: FALSE | R63: Incomplete
A64: WLLQ7A12$I45000512 | B64: 5331 ALABAMA STREET | C64: GRACEVILLE | D64: 32440 | F64: 21 | J64: ='2 - WAN Service'!$R$22 -> $0.00 | L64: ='2 - WAN Service'!$AA$22 -> $0.00 | M64: ='2 - WAN Service'!$AD$22 -> $0.00 | N64: ='2 - WAN Service'!$AE$22 -> $0.00 | O64: FALSE | R64: Incomplete
A65: WLLQ7A12$I45000412 | B65: 5539 BROWN STREET | C65: GRACEVILLE | D65: 32440 | F65: 21 | J65: ='2 - WAN Service'!$R$22 -> $0.00 | L65: ='2 - WAN Service'!$AA$22 -> $0.00 | M65: ='2 - WAN Service'!$AD$22 -> $0.00 | N65: ='2 - WAN Service'!$AE$22 -> $0.00 | O65: FALSE | R65: Incomplete
A66: WLLQCA12$I90000612 | B66: 2903 JEFFERSON ST | C66: MARIANNA | D66: 32446 | F66: 21 | J66: ='2 - WAN Service'!$R$22 -> $0.00 | L66: ='2 - WAN Service'!$AA$22 -> $0.00 | M66: ='2 - WAN Service'!$AD$22 -> $0.00 | N66: ='2 - WAN Service'!$AE$22 -> $0.00 | O66: FALSE | R66: Incomplete
A67: WRR2L241@E15000113 | B67: 3801 CORPOREX PRK DR | C67: TAMPA | D67: 33619 | F67: 21 | J67: ='2 - WAN Service'!$R$22 -> $0.00 | L67: ='2 - WAN Service'!$AA$22 -> $0.00 | M67: ='2 - WAN Service'!$AD$22 -> $0.00 | N67: ='2 - WAN Service'!$AE$22 -> $0.00 | O67: FALSE | R67: Incomplete
A68: WRR2O360@E45000107 | B68: 6301 HAZELTINE NATIONAL DRIVE | C68: ORLANDO | D68: 32822 | F68: 21 | J68: ='2 - WAN Service'!$R$22 -> $0.00 | L68: ='2 - WAN Service'!$AA$22 -> $0.00 | M68: ='2 - WAN Service'!$AD$22 -> $0.00 | N68: ='2 - WAN Service'!$AE$22 -> $0.00 | O68: FALSE | R68: Incomplete
A69: WRR2O410@E45001406 | B69: 107 W GAINES ST | C69: TALLAHASSEE | D69: 32301 | F69: 21 | J69: ='2 - WAN Service'!$R$22 -> $0.00 | L69: ='2 - WAN Service'!$AA$22 -> $0.00 | M69: ='2 - WAN Service'!$AD$22 -> $0.00 | N69: ='2 - WAN Service'!$AE$22 -> $0.00 | O69: FALSE | R69: Incomplete
A70: WRR2L420@E15034213 | B70: 1911 SW 34TH STREET | C70: GAINESVILLE | D70: 32614 | F70: 21 | J70: ='2 - WAN Service'!$R$22 -> $0.00 | L70: ='2 - WAN Service'!$AA$22 -> $0.00 | M70: ='2 - WAN Service'!$AD$22 -> $0.00 | N70: ='2 - WAN Service'!$AE$22 -> $0.00 | O70: FALSE | R70: Incomplete
A71: WRR2L420@E15067512 | B71: 407 SOUTH CALHOUN STREET | C71: TALLAHASSEE | D71: 32399 | F71: 21 | J71: ='2 - WAN Service'!$R$22 -> $0.00 | L71: ='2 - WAN Service'!$AA$22 -> $0.00 | M71: ='2 - WAN Service'!$AD$22 -> $0.00 | N71: ='2 - WAN Service'!$AE$22 -> $0.00 | O71: FALSE | R71: Incomplete
A72: WRR2O420@R04016913 | B72: 199 AVE B NORTHWEST | C72: WINTER HAVEN | D72: 33881 | F72: 21 | J72: ='2 - WAN Service'!$R$22 -> $0.00 | L72: ='2 - WAN Service'!$AA$22 -> $0.00 | M72: ='2 - WAN Service'!$AD$22 -> $0.00 | N72: ='2 - WAN Service'!$AE$22 -> $0.00 | O72: FALSE | R72: Incomplete
A73: WRRDC450@EC2002912 | B73: 500 S BRONOUGH ST | C73: TALLAHASSEE | D73: 32399 | F73: 21 | J73: ='2 - WAN Service'!$R$22 -> $0.00 | L73: ='2 - WAN Service'!$AA$22 -> $0.00 | M73: ='2 - WAN Service'!$AD$22 -> $0.00 | N73: ='2 - WAN Service'!$AE$22 -> $0.00 | O73: FALSE | R73: =IF((OR(E73=I$4,E73=J$4,E73=K$4,E73=L$4,E73=M$4,E73=N$4)),O73, "Incomplete") -> Incomplete
A74: WRR2M493@E21015113 | B74: 153 WOODRUFF AVENUE | C74: CRESTVIEW | D74: 32536 | F74: 21 | J74: ='2 - WAN Service'!$R$22 -> $0.00 | L74: ='2 - WAN Service'!$AA$22 -> $0.00 | M74: ='2 - WAN Service'!$AD$22 -> $0.00 | N74: ='2 - WAN Service'!$AE$22 -> $0.00 | O74: =IF(E74=$J$4,J74,IF(E74=$L$4,L74,IF(E74=$M$4,M74,IF(E74=$N$4,N74)))) -> FALSE | R74: Incomplete
A75: WRR2N500@E33001507 | B75: 11351 ULMERTON ROAD | C75: LARGO | D75: 33778 | F75: 21 | J75: ='2 - WAN Service'!$R$22 -> $0.00 | L75: ='2 - WAN Service'!$AA$22 -> $0.00 | M75: ='2 - WAN Service'!$AD$22 -> $0.00 | N75: ='2 - WAN Service'!$AE$22 -> $0.00 | O75: FALSE | R75: Incomplete
A76: WRR2M526@E21010110 | B76: 2575 SHUMARD OAK BLVD | C76: TALLAHASSEE | D76: 32399 | F76: 21 | J76: ='2 - WAN Service'!$R$22 -> $0.00 | L76: ='2 - WAN Service'!$AA$22 -> $0.00 | M76: ='2 - WAN Service'!$AD$22 -> $0.00 | N76: ='2 - WAN Service'!$AE$22 -> $0.00 | O76: FALSE | R76: Incomplete
A77: WRR2O526@E45003507 | B77: 2702 DIRECTORS ROW | C77: ORLANDO | D77: 32809 | F77: 21 | J77: ='2 - WAN Service'!$R$22 -> $0.00 | L77: ='2 - WAN Service'!$AA$22 -> $0.00 | M77: ='2 - WAN Service'!$AD$22 -> $0.00 | N77: ='2 - WAN Service'!$AE$22 -> $0.00 | O77: FALSE | R77: Incomplete
A78: WRR2L550@E15011410 | B78: 2198 EDISON AVE | C78: JACKSONVILLE | D78: 32204 | F78: 21 | J78: ='2 - WAN Service'!$R$22 -> $0.00 | L78: ='2 - WAN Service'!$AA$22 -> $0.00 | M78: ='2 - WAN Service'!$AD$22 -> $0.00 | N78: ='2 - WAN Service'!$AE$22 -> $0.00 | O78: FALSE | R78: Incomplete
A79: WRR2L550@E15041713 | B79: 801 N BROADWAY ST. | C79: BARTOW | D79: 32399 | F79: 21 | J79: ='2 - WAN Service'!$R$22 -> $0.00 | L79: ='2 - WAN Service'!$AA$22 -> $0.00 | M79: ='2 - WAN Service'!$AD$22 -> $0.00 | N79: ='2 - WAN Service'!$AE$22 -> $0.00 | O79: FALSE | R79: Incomplete
A80: WRR2M550@E21043013 | B80: 11201 N. MCKINLEY DRIVE | C80: TAMPA | D80: 33612 | F80: 21 | J80: ='2 - WAN Service'!$R$22 -> $0.00 | L80: ='2 - WAN Service'!$AA$22 -> $0.00 | M80: ='2 - WAN Service'!$AD$22 -> $0.00 | N80: ='2 - WAN Service'!$AE$22 -> $0.00 | O80: FALSE | R80: Incomplete
A81: WRR2N550@E33003314 | B81: 719 S WOODLAND BLVD | C81: DELAND | D81: 32720 | F81: 21 | J81: ='2 - WAN Service'!$R$22 -> $0.00 | L81: ='2 - WAN Service'!$AA$22 -> $0.00 | M81: ='2 - WAN Service'!$AD$22 -> $0.00 | N81: ='2 - WAN Service'!$AE$22 -> $0.00 | O81: FALSE | R81: Incomplete
A82: WRR2N550@E33003314 | B82: 719 S WOODLAND BLVD | C82: DELAND | D82: 32720 | F82: 21 | J82: ='2 - WAN Service'!$R$22 -> $0.00 | L82: ='2 - WAN Service'!$AA$22 -> $0.00 | M82: ='2 - WAN Service'!$AD$22 -> $0.00 | N82: ='2 - WAN Service'!$AE$22 -> $0.00 | O82: FALSE | R82: Incomplete
A83: WRR2N550@E33011110 | B83: 1109 SOUTH MARION AVE. | C83: LAKE CITY | D83: 32025 | F83: 21 | J83: ='2 - WAN Service'!$R$22 -> $0.00 | L83: ='2 - WAN Service'!$AA$22 -> $0.00 | M83: ='2 - WAN Service'!$AD$22 -> $0.00 | N83: ='2 - WAN Service'!$AE$22 -> $0.00 | O83: FALSE | R83: Incomplete
A84: WRRDL550@EC4095913 | B84: 5017 NE 39TH AVENUE | C84: GAINESVILLE | D84: 32609 | F84: 21 | J84: ='2 - WAN Service'!$R$22 -> $0.00 | L84: ='2 - WAN Service'!$AA$22 -> $0.00 | M84: ='2 - WAN Service'!$AD$22 -> $0.00 | N84: ='2 - WAN Service'!$AE$22 -> $0.00 | O84: FALSE | R84: Incomplete
A85: WRR2O551@E45061210 | B85: 10041 DANIELS PARKWAY | C85: FT. MYERS | D85: 33913 | F85: 21 | J85: ='2 - WAN Service'!$R$22 -> $0.00 | L85: ='2 - WAN Service'!$AA$22 -> $0.00 | M85: ='2 - WAN Service'!$AD$22 -> $0.00 | N85: ='2 - WAN Service'!$AE$22 -> $0.00 | O85: FALSE | R85: Incomplete
A86: WRR2L592@E15296712 | B86: 2505 WEST 15TH STREET | C86: PANAMA CITY | D86: 32401 | F86: 21 | J86: ='2 - WAN Service'!$R$22 -> $0.00 | L86: ='2 - WAN Service'!$AA$22 -> $0.00 | M86: ='2 - WAN Service'!$AD$22 -> $0.00 | N86: ='2 - WAN Service'!$AE$22 -> $0.00 | O86: FALSE | R86: Incomplete
A87: WRR2L594@E15093513 | B87: 4080 WOODCOCK DR | C87: JACKSONVILLE | D87: 32207 | F87: 21 | J87: ='2 - WAN Service'!$R$22 -> $0.00 | L87: ='2 - WAN Service'!$AA$22 -> $0.00 | M87: ='2 - WAN Service'!$AD$22 -> $0.00 | N87: ='2 - WAN Service'!$AE$22 -> $0.00 | O87: FALSE | R87: Incomplete
A88: WRR2L597@E15027713 | B88: 375 COMMERCE PKWY | C88: ROCKLEDGE | D88: 32955 | F88: 21 | J88: ='2 - WAN Service'!$R$22 -> $0.00 | L88: ='2 - WAN Service'!$AA$22 -> $0.00 | M88: ='2 - WAN Service'!$AD$22 -> $0.00 | N88: ='2 - WAN Service'!$AE$22 -> $0.00 | O88: FALSE | R88: Incomplete
A89: WRR2O597@E45283912 | B89: 400 WEST ROBINSON STREET | C89: ORLANDO | D89: 32801 | F89: 21 | J89: ='2 - WAN Service'!$R$22 -> $0.00 | L89: ='2 - WAN Service'!$AA$22 -> $0.00 | M89: ='2 - WAN Service'!$AD$22 -> $0.00 | N89: ='2 - WAN Service'!$AE$22 -> $0.00 | O89: FALSE | R89: Incomplete
A90: WRR2M598@E21296012 | B90: 2295 VICTORIA AVE. | C90: FT MYERS | D90: 33901 | F90: 21 | J90: ='2 - WAN Service'!$R$22 -> $0.00 | L90: ='2 - WAN Service'!$AA$22 -> $0.00 | M90: ='2 - WAN Service'!$AD$22 -> $0.00 | N90: ='2 - WAN Service'!$AE$22 -> $0.00 | O90: FALSE | R90: Incomplete
A91: WRR2L599@E15160511 | B91: 2051 MARTIN LUTHER KING JR BLV | C91: RIVIERA BEACH | D91: 33404 | F91: 21 | J91: ='2 - WAN Service'!$R$22 -> $0.00 | L91: ='2 - WAN Service'!$AA$22 -> $0.00 | M91: ='2 - WAN Service'!$AD$22 -> $0.00 | N91: ='2 - WAN Service'!$AE$22 -> $0.00 | O91: FALSE | R91: Incomplete
A92: WRR2L599@E15288012 | B92: 11351 ULMERTON RD | C92: LARGO | D92: 33778 | F92: 21 | J92: ='2 - WAN Service'!$R$22 -> $0.00 | L92: ='2 - WAN Service'!$AA$22 -> $0.00 | M92: ='2 - WAN Service'!$AD$22 -> $0.00 | N92: ='2 - WAN Service'!$AE$22 -> $0.00 | O92: FALSE | R92: Incomplete
A93: WRR2L599@E15296612 | B93: 201 WEST BROWARD BLVD. | C93: FT. LAUDERDALE | D93: 33311 | F93: 21 | J93: ='2 - WAN Service'!$R$22 -> $0.00 | L93: ='2 - WAN Service'!$AA$22 -> $0.00 | M93: ='2 - WAN Service'!$AD$22 -> $0.00 | N93: ='2 - WAN Service'!$AE$22 -> $0.00 | O93: FALSE | R93: Incomplete
A94: WRR2M599@E21296412 | B94: 111 S SAPODILLA AVENUE, | C94: WEST PALM BEACH | D94: 33401 | F94: 21 | J94: ='2 - WAN Service'!$R$22 -> $0.00 | L94: ='2 - WAN Service'!$AA$22 -> $0.00 | M94: ='2 - WAN Service'!$AD$22 -> $0.00 | N94: ='2 - WAN Service'!$AE$22 -> $0.00 | O94: FALSE | R94: Incomplete
A95: WRR2M599@E21296512 | B95: 1400 W COMMERCIAL BLVD. | C95: FT. LAUDERDALE | D95: 33309 | F95: 21 | J95: ='2 - WAN Service'!$R$22 -> $0.00 | L95: ='2 - WAN Service'!$AA$22 -> $0.00 | M95: ='2 - WAN Service'!$AD$22 -> $0.00 | N95: ='2 - WAN Service'!$AE$22 -> $0.00 | O95: FALSE | R95: Incomplete
A96: WRRD8600@E90208312 | B96: 2639 N. MONROE ST. | C96: TALLAHASSEE | D96: 32303 | F96: 21 | J96: ='2 - WAN Service'!$R$22 -> $0.00 | L96: ='2 - WAN Service'!$AA$22 -> $0.00 | M96: ='2 - WAN Service'!$AD$22 -> $0.00 | N96: ='2 - WAN Service'!$AE$22 -> $0.00 | O96: FALSE | R96: Incomplete
A97: WRRDL600@EC4094611 | B97: 1317 WINEWOOD BLVD. | C97: TALLAHASSEE | D97: 32399 | F97: 21 | J97: ='2 - WAN Service'!$R$22 -> $0.00 | L97: ='2 - WAN Service'!$AA$22 -> $0.00 | M97: ='2 - WAN Service'!$AD$22 -> $0.00 | N97: ='2 - WAN Service'!$AE$22 -> $0.00 | O97: FALSE | R97: Incomplete
A98: WRR2L601@E15034413 | B98: 200 OPA LOCKA BLVD | C98: OPA LOCKA | D98: 33054 | F98: 21 | J98: ='2 - WAN Service'!$R$22 -> $0.00 | L98: ='2 - WAN Service'!$AA$22 -> $0.00 | M98: ='2 - WAN Service'!$AD$22 -> $0.00 | N98: ='2 - WAN Service'!$AE$22 -> $0.00 | O98: FALSE | R98: Incomplete
A99: WRRD8601@E90208112 | B99: 401 NW 2ND AVE | C99: MIAMI | D99: 33128 | F99: 21 | J99: ='2 - WAN Service'!$R$22 -> $0.00 | L99: ='2 - WAN Service'!$AA$22 -> $0.00 | M99: ='2 - WAN Service'!$AD$22 -> $0.00 | N99: ='2 - WAN Service'!$AE$22 -> $0.00 | O99: FALSE | R99: Incomplete
A100: WRR2L602@E15021213 | B100: 160 W. GOVERNMENTAL CENTER | C100: PENSACOLA | D100: 32502 | F100: 21 | J100: ='2 - WAN Service'!$R$22 -> $0.00 | L100: ='2 - WAN Service'!$AA$22 -> $0.00 | M100: ='2 - WAN Service'!$AD$22 -> $0.00 | N100: ='2 - WAN Service'!$AE$22 -> $0.00 | O100: FALSE | R100: Incomplete
A101: WRR2L602@E15031813 | B101: 200 N KENTUCKY AVE | C101: LAKELAND | D101: 33805 | F101: 21 | J101: ='2 - WAN Service'!$R$22 -> $0.00 | L101: ='2 - WAN Service'!$AA$22 -> $0.00 | M101: ='2 - WAN Service'!$AD$22 -> $0.00 | N101: ='2 - WAN Service'!$AE$22 -> $0.00 | O101: FALSE | R101: Incomplete
A102: WRR2L602@E15033013 | B102: 337 N US 1 | C102: FORT PIERCE | D102: 34950 | F102: 21 | J102: ='2 - WAN Service'!$R$22 -> $0.00 | L102: ='2 - WAN Service'!$AA$22 -> $0.00 | M102: ='2 - WAN Service'!$AD$22 -> $0.00 | N102: ='2 - WAN Service'!$AE$22 -> $0.00 | O102: FALSE | R102: Incomplete
A103: WRR2L602@E15255812 | B103: 5920 ARLINGTON EXPY | C103: JACKSONVILLE | D103: 32211 | F103: 33 | J103: ='2 - WAN Service'!$R$23 -> $0.00 | L103: ='2 - WAN Service'!$AA$23 -> $0.00 | M103: ='2 - WAN Service'!$AD$23 -> $0.00 | N103: ='2 - WAN Service'!$AE$23 -> $0.00 | O103: FALSE | R103: Incomplete
A104: WRR2L602@E15255912 | B104: 210 N PALMETTO AVE | C104: DAYTONA BEACH | D104: 32114 | F104: 33 | J104: ='2 - WAN Service'!$R$23 -> $0.00 | L104: ='2 - WAN Service'!$AA$23 -> $0.00 | M104: ='2 - WAN Service'!$AD$23 -> $0.00 | N104: ='2 - WAN Service'!$AE$23 -> $0.00 | O104: FALSE | R104: Incomplete
A105: WRR2M602@E21296912 | B105: 1601 W GULF ATLANTIC | C105: WILDWOOD | D105: 34785 | F105: 33 | J105: ='2 - WAN Service'!$R$23 -> $0.00 | L105: ='2 - WAN Service'!$AA$23 -> $0.00 | M105: ='2 - WAN Service'!$AD$23 -> $0.00 | N105: ='2 - WAN Service'!$AE$23 -> $0.00 | O105: =IF(E105=$J$4,J105,IF(E105=$L$4,L105,IF(E105=$M$4,M105,IF(E105=$N$4,N105)))) -> FALSE | R105: =IF((OR(E105=I$4,E105=J$4,E105=K$4,E105=L$4,E105=M$4,E105=N$4)),O105, "Incomplete") -> Incomplete
A106: WRR2O602@E45229912 | B106: 2473 CARE DRIVE | C106: TALLAHASSEE | D106: 32308 | F106: 33 | J106: ='2 - WAN Service'!$R$23 -> $0.00 | L106: ='2 - WAN Service'!$AA$23 -> $0.00 | M106: ='2 - WAN Service'!$AD$23 -> $0.00 | N106: ='2 - WAN Service'!$AE$23 -> $0.00 | O106: FALSE | R106: Incomplete
A107: WRR2O602@E45230012 | B107: 412 E MADISON STREET | C107: TAMPA | D107: 33602 | F107: 33 | J107: ='2 - WAN Service'!$R$23 -> $0.00 | L107: ='2 - WAN Service'!$AA$23 -> $0.00 | M107: ='2 - WAN Service'!$AD$23 -> $0.00 | N107: ='2 - WAN Service'!$AE$23 -> $0.00 | O107: FALSE | R107: Incomplete
A108: WRRD8602@E90208012 | B108: 9393 N FLORIDA AVE | C108: TAMPA | D108: 33612 | F108: 33 | J108: ='2 - WAN Service'!$R$23 -> $0.00 | L108: ='2 - WAN Service'!$AA$23 -> $0.00 | M108: ='2 - WAN Service'!$AD$23 -> $0.00 | N108: ='2 - WAN Service'!$AE$23 -> $0.00 | O108: FALSE | R108: Incomplete
A109: WRR2N714@E33001013 | B109: 100 BUSH BLVD | C109: SANFORD | D109: 32773 | F109: 33 | J109: ='2 - WAN Service'!$R$23 -> $0.00 | L109: ='2 - WAN Service'!$AA$23 -> $0.00 | M109: ='2 - WAN Service'!$AD$23 -> $0.00 | N109: ='2 - WAN Service'!$AE$23 -> $0.00 | O109: FALSE | R109: Incomplete
A110: WRRD8714@E90003212 | B110: 2331 PHILLIPS ROAD | C110: TALLAHASSEE | D110: 32308 | F110: 33 | J110: ='2 - WAN Service'!$R$23 -> $0.00 | L110: ='2 - WAN Service'!$AA$23 -> $0.00 | M110: ='2 - WAN Service'!$AD$23 -> $0.00 | N110: ='2 - WAN Service'!$AE$23 -> $0.00 | O110: FALSE | R110: Incomplete
A111: WRRDC714@EC2000107 | B111: 2331 PHILLIPS RD. | C111: TALLAHASSEE | D111: 32308 | F111: 33 | J111: ='2 - WAN Service'!$R$23 -> $0.00 | L111: ='2 - WAN Service'!$AA$23 -> $0.00 | M111: ='2 - WAN Service'!$AD$23 -> $0.00 | N111: ='2 - WAN Service'!$AE$23 -> $0.00 | O111: FALSE | R111: Incomplete
A112: WRRDC714@EC2005107 | B112: 2331 PHILLIPS RD. | C112: TALLAHASSEE | D112: 32308 | F112: 33 | J112: ='2 - WAN Service'!$R$23 -> $0.00 | L112: ='2 - WAN Service'!$AA$23 -> $0.00 | M112: ='2 - WAN Service'!$AD$23 -> $0.00 | N112: ='2 - WAN Service'!$AE$23 -> $0.00 | O112: FALSE | R112: Incomplete
A113: WRRDC714@EC2005207 | B113: 2331 PHILLIPS RD. | C113: TALLAHASSEE | D113: 32308 | F113: 33 | J113: ='2 - WAN Service'!$R$23 -> $0.00 | L113: ='2 - WAN Service'!$AA$23 -> $0.00 | M113: ='2 - WAN Service'!$AD$23 -> $0.00 | N113: ='2 - WAN Service'!$AE$23 -> $0.00 | O113: FALSE | R113: Incomplete
A114: WRRDG714@EC3020512 | B114: 2331 PHILLIPS RD | C114: TALLAHASSEE | D114: 32308 | F114: 33 | J114: ='2 - WAN Service'!$R$23 -> $0.00 | L114: ='2 - WAN Service'!$AA$23 -> $0.00 | M114: ='2 - WAN Service'!$AD$23 -> $0.00 | N114: ='2 - WAN Service'!$AE$23 -> $0.00 | O114: FALSE | R114: Incomplete
A115: WAAE8738@EC8002413 | B115: 2048 EAST PAUL DIRAC DRIVE | C115: TALLAHASSEE | D115: 32310 | F115: 33 | J115: ='2 - WAN Service'!$R$23 -> $0.00 | L115: ='2 - WAN Service'!$AA$23 -> $0.00 | M115: ='2 - WAN Service'!$AD$23 -> $0.00 | N115: ='2 - WAN Service'!$AE$23 -> $0.00 | O115: FALSE | R115: Incomplete
A116: WRR2N770@E33014711 | B116: 2590 EXECUTIVE CENTER CIRCLE | C116: TALLAHASSEE | D116: 32301 | F116: 33 | J116: ='2 - WAN Service'!$R$23 -> $0.00 | L116: ='2 - WAN Service'!$AA$23 -> $0.00 | M116: ='2 - WAN Service'!$AD$23 -> $0.00 | N116: ='2 - WAN Service'!$AE$23 -> $0.00 | O116: FALSE | R116: Incomplete
A117: WRR2N770@E33049613 | B117: CARR BUILDING | C117: TALLAHASSEE | D117: 32399 | F117: 33 | J117: ='2 - WAN Service'!$R$23 -> $0.00 | L117: ='2 - WAN Service'!$AA$23 -> $0.00 | M117: ='2 - WAN Service'!$AD$23 -> $0.00 | N117: ='2 - WAN Service'!$AE$23 -> $0.00 | O117: FALSE | R117: Incomplete
A118: WRRDD770@EC2045010 | B118: 100 8TH AVENUE SE | C118: ST. PETERSBURG | D118: 33701 | F118: 33 | J118: ='2 - WAN Service'!$R$23 -> $0.00 | L118: ='2 - WAN Service'!$AA$23 -> $0.00 | M118: ='2 - WAN Service'!$AD$23 -> $0.00 | N118: ='2 - WAN Service'!$AE$23 -> $0.00 | O118: FALSE | R118: Incomplete
A119: WRR2O799@E45002007 | B119: 400 W ROBINSON STR | C119: ORLANDO | D119: 32801 | F119: 33 | J119: ='2 - WAN Service'!$R$23 -> $0.00 | L119: ='2 - WAN Service'!$AA$23 -> $0.00 | M119: ='2 - WAN Service'!$AD$23 -> $0.00 | N119: ='2 - WAN Service'!$AE$23 -> $0.00 | O119: FALSE | R119: Incomplete
A120: WRR2O799@E45006610 | B120: 1313 N. TAMPA STREET 9TH FLOOR | C120: TAMPA | D120: 33602 | F120: 33 | J120: ='2 - WAN Service'!$R$23 -> $0.00 | L120: ='2 - WAN Service'!$AA$23 -> $0.00 | M120: ='2 - WAN Service'!$AD$23 -> $0.00 | N120: ='2 - WAN Service'!$AE$23 -> $0.00 | O120: FALSE | R120: Incomplete
A121: WRR2M800@E21102008 | B121: PINEHILLS PROBATION CKT 9 OFC | C121: ORLANDO | D121: 32818 | F121: 33 | J121: ='2 - WAN Service'!$R$23 -> $0.00 | L121: ='2 - WAN Service'!$AA$23 -> $0.00 | M121: ='2 - WAN Service'!$AD$23 -> $0.00 | N121: ='2 - WAN Service'!$AE$23 -> $0.00 | O121: FALSE | R121: Incomplete
A122: WRR2O800@E45101808 | B122: PINEHILLS PROBATION CKT 9 OFC | C122: ORLANDO | D122: 32818 | F122: 45 | J122: ='2 - WAN Service'!$R$24 -> $0.00 | L122: ='2 - WAN Service'!$AA$24 -> $0.00 | M122: ='2 - WAN Service'!$AD$24 -> $0.00 | N122: ='2 - WAN Service'!$AE$24 -> $0.00 | O122: =IF(E122=$J$4,J122,IF(E122=$L$4,L122,IF(E122=$M$4,M122,IF(E122=$N$4,N122)))) -> FALSE | R122: =IF((OR(E122=I$4,E122=J$4,E122=K$4,E122=L$4,E122=M$4,E122=N$4)),O122, "Incomplete") -> Incomplete
A123: WRRDC800@EC2015007 | B123: 2737 CENTERVIEW DRIVE | C123: TALLAHASSEE | D123: 32399 | F123: 45 | J123: ='2 - WAN Service'!$R$24 -> $0.00 | L123: ='2 - WAN Service'!$AA$24 -> $0.00 | M123: ='2 - WAN Service'!$AD$24 -> $0.00 | N123: ='2 - WAN Service'!$AE$24 -> $0.00 | O123: FALSE | R123: Incomplete
A124: WRRDC0B5@EC2002313 | B124: 1485 SEMORAN BLVD | C124: WINTER PARK | D124: 32792 | F124: 45 | J124: ='2 - WAN Service'!$R$24 -> $0.00 | L124: ='2 - WAN Service'!$AA$24 -> $0.00 | M124: ='2 - WAN Service'!$AD$24 -> $0.00 | N124: ='2 - WAN Service'!$AE$24 -> $0.00 | O124: FALSE | R124: Incomplete
A125: WRR2M0BR@E21001211 | B125: 6113 PERSHING AVE | C125: ORLANDO | D125: 32822 | F125: 45 | J125: ='2 - WAN Service'!$R$24 -> $0.00 | L125: ='2 - WAN Service'!$AA$24 -> $0.00 | M125: ='2 - WAN Service'!$AD$24 -> $0.00 | N125: ='2 - WAN Service'!$AE$24 -> $0.00 | O125: FALSE | R125: Incomplete
A126: WRR2L0D7@E15000109 | B126: 3544 MACLAY BLVD. S. | C126: TALLAHASSEE | D126: 32312 | F126: 45 | J126: ='2 - WAN Service'!$R$24 -> $0.00 | L126: ='2 - WAN Service'!$AA$24 -> $0.00 | M126: ='2 - WAN Service'!$AD$24 -> $0.00 | N126: ='2 - WAN Service'!$AE$24 -> $0.00 | O126: FALSE | R126: Incomplete
A127: WRR2L0DD@E15000107 | B127: 190 GOVERNMENTAL CENTER | C127: PENSACOLA | D127: 32502 | F127: 45 | J127: ='2 - WAN Service'!$R$24 -> $0.00 | L127: ='2 - WAN Service'!$AA$24 -> $0.00 | M127: ='2 - WAN Service'!$AD$24 -> $0.00 | N127: ='2 - WAN Service'!$AE$24 -> $0.00 | O127: FALSE | R127: Incomplete
A128: WRR2M0DX@E21001111 | B128: 9417 CORPORATE LAKE DRIVE | C128: TAMPA | D128: 33634 | F128: 45 | J128: ='2 - WAN Service'!$R$24 -> $0.00 | L128: ='2 - WAN Service'!$AA$24 -> $0.00 | M128: ='2 - WAN Service'!$AD$24 -> $0.00 | N128: ='2 - WAN Service'!$AE$24 -> $0.00 | O128: FALSE | R128: Incomplete
A129: WRR2N0DX@E33002412 | B129: 7300 NW 19 ST. SUITE 500 | C129: MIAMI | D129: 33126 | F129: 45 | J129: ='2 - WAN Service'!$R$24 -> $0.00 | L129: ='2 - WAN Service'!$AA$24 -> $0.00 | M129: ='2 - WAN Service'!$AD$24 -> $0.00 | N129: ='2 - WAN Service'!$AE$24 -> $0.00 | O129: FALSE | R129: Incomplete
A130: WRR2N0EH@E33000412 | B130: 227 NORTH BRONOUGH STREET | C130: TALLAHASSEE | D130: 32301 | F130: 45 | J130: ='2 - WAN Service'!$R$24 -> $0.00 | L130: ='2 - WAN Service'!$AA$24 -> $0.00 | M130: ='2 - WAN Service'!$AD$24 -> $0.00 | N130: ='2 - WAN Service'!$AE$24 -> $0.00 | O130: FALSE | R130: Incomplete
A131: WRRDC0FA@EC2000313 | B131: 3790 NW 21ST STREET | C131: MIAMI | D131: 33142 | F131: 45 | J131: ='2 - WAN Service'!$R$24 -> $0.00 | L131: ='2 - WAN Service'!$AA$24 -> $0.00 | M131: ='2 - WAN Service'!$AD$24 -> $0.00 | N131: ='2 - WAN Service'!$AE$24 -> $0.00 | O131: FALSE | R131: Incomplete
A132: WRR2M0H8@E21000113 | B132: 800 NW 33RD STREET | C132: POMPANO BEACH | D132: 33064 | F132: 45 | J132: ='2 - WAN Service'!$R$24 -> $0.00 | L132: ='2 - WAN Service'!$AA$24 -> $0.00 | M132: ='2 - WAN Service'!$AD$24 -> $0.00 | N132: ='2 - WAN Service'!$AE$24 -> $0.00 | O132: FALSE | R132: Incomplete
A133: WRR2O0H9@E45000212 | B133: 12300 FOREST HILL BOULEVARD | C133: WELLINGTON | D133: 33414 | F133: 45 | J133: ='2 - WAN Service'!$R$24 -> $0.00 | L133: ='2 - WAN Service'!$AA$24 -> $0.00 | M133: ='2 - WAN Service'!$AD$24 -> $0.00 | N133: ='2 - WAN Service'!$AE$24 -> $0.00 | O133: FALSE | R133: Incomplete
A134: WRR2O0HG@E45000112 | B134: 601 E. KENNEDY BLVD. | C134: TAMPA | D134: 33602 | F134: 45 | J134: ='2 - WAN Service'!$R$24 -> $0.00 | L134: ='2 - WAN Service'!$AA$24 -> $0.00 | M134: ='2 - WAN Service'!$AD$24 -> $0.00 | N134: ='2 - WAN Service'!$AE$24 -> $0.00 | O134: FALSE | R134: Incomplete
A135: WRR2N0JD@E33000212 | B135: 100 NORTH MYRTLE AVENUE | C135: JACKSONVILLE | D135: 32204 | F135: 45 | J135: ='2 - WAN Service'!$R$24 -> $0.00 | L135: ='2 - WAN Service'!$AA$24 -> $0.00 | M135: ='2 - WAN Service'!$AD$24 -> $0.00 | N135: ='2 - WAN Service'!$AE$24 -> $0.00 | O135: FALSE | R135: Incomplete
A136: WRRD80LH@E90000211 | B136: 44 SEVILLA ST. | C136: SAINT AUGUSTINE | D136: 32084 | F136: 45 | J136: ='2 - WAN Service'!$R$24 -> $0.00 | L136: ='2 - WAN Service'!$AA$24 -> $0.00 | M136: ='2 - WAN Service'!$AD$24 -> $0.00 | N136: ='2 - WAN Service'!$AE$24 -> $0.00 | O136: FALSE | R136: Incomplete
A137: WRR2M0RM@E21000113 | B137: 1101 EAST FIRST ST. | C137: SANFORD | D137: 32771 | F137: 45 | J137: ='2 - WAN Service'!$R$24 -> $0.00 | L137: ='2 - WAN Service'!$AA$24 -> $0.00 | M137: ='2 - WAN Service'!$AD$24 -> $0.00 | N137: ='2 - WAN Service'!$AE$24 -> $0.00 | O137: FALSE | R137: Incomplete
A138: WAAEB0RN@EC8003812 | B138: 40 ORANGE ST | C138: ST AUGUSTINE | D138: 32084 | F138: 45 | J138: ='2 - WAN Service'!$R$24 -> $0.00 | L138: ='2 - WAN Service'!$AA$24 -> $0.00 | M138: ='2 - WAN Service'!$AD$24 -> $0.00 | N138: ='2 - WAN Service'!$AE$24 -> $0.00 | O138: FALSE | R138: Incomplete
A139: WRR2O0SB@E45000110 | B139: 400 NW 2ND AVE | C139: MIAMI | D139: 33128 | F139: 45 | J139: ='2 - WAN Service'!$R$24 -> $0.00 | L139: ='2 - WAN Service'!$AA$24 -> $0.00 | M139: ='2 - WAN Service'!$AD$24 -> $0.00 | N139: ='2 - WAN Service'!$AE$24 -> $0.00 | O139: FALSE | R139: Incomplete
A140: WRR2N0WC@E33000212 | B140: 500 NW 48TH ST. | C140: DEERFIELD BEACH | D140: 33064 | F140: 45 | J140: ='2 - WAN Service'!$R$24 -> $0.00 | L140: ='2 - WAN Service'!$AA$24 -> $0.00 | M140: ='2 - WAN Service'!$AD$24 -> $0.00 | N140: ='2 - WAN Service'!$AE$24 -> $0.00 | O140: FALSE | R140: =IF((OR(E140=I$4,E140=J$4,E140=K$4,E140=L$4,E140=M$4,E140=N$4)),O140, "Incomplete") -> Incomplete
A141: WRR2M0Y1@E21000211 | B141: 825 N. ORANGE AVE | C141: GREEN COVE SPRINGS | D141: 32656 | F141: 45 | J141: ='2 - WAN Service'!$R$24 -> $0.00 | L141: ='2 - WAN Service'!$AA$24 -> $0.00 | M141: ='2 - WAN Service'!$AD$24 -> $0.00 | N141: ='2 - WAN Service'!$AE$24 -> $0.00 | O141: =IF(E141=$J$4,J141,IF(E141=$L$4,L141,IF(E141=$M$4,M141,IF(E141=$N$4,N141)))) -> FALSE | R141: Incomplete
A142: WRR2M0Z3@E21000108 | B142: 1300 BROAD STREET | C142: JACKSONVILLE | D142: 32202 | F142: 45 | J142: ='2 - WAN Service'!$R$24 -> $0.00 | L142: ='2 - WAN Service'!$AA$24 -> $0.00 | M142: ='2 - WAN Service'!$AD$24 -> $0.00 | N142: ='2 - WAN Service'!$AE$24 -> $0.00 | O142: FALSE | R142: Incomplete
A143: WRR2M0ZU@E21001013 | B143: 5950 NW 1ST PLACE | C143: GAINESVILLE | D143: 32607 | F143: 45 | J143: ='2 - WAN Service'!$R$24 -> $0.00 | L143: ='2 - WAN Service'!$AA$24 -> $0.00 | M143: ='2 - WAN Service'!$AD$24 -> $0.00 | N143: ='2 - WAN Service'!$AE$24 -> $0.00 | O143: FALSE | R143: Incomplete
A144: WRR2L21U@E15003611 | B144: 101 N. ALABAMA AVENUE SUITE 13 | C144: DELAND | D144: 32724 | F144: 45 | J144: ='2 - WAN Service'!$R$24 -> $0.00 | L144: ='2 - WAN Service'!$AA$24 -> $0.00 | M144: ='2 - WAN Service'!$AD$24 -> $0.00 | N144: ='2 - WAN Service'!$AE$24 -> $0.00 | O144: FALSE | R144: Incomplete
A145: WRR2M21U@E21001507 | B145: 145 N HERNANDO STREET | C145: LAKE CITY | D145: 32055 | F145: 45 | J145: ='2 - WAN Service'!$R$24 -> $0.00 | L145: ='2 - WAN Service'!$AA$24 -> $0.00 | M145: ='2 - WAN Service'!$AD$24 -> $0.00 | N145: ='2 - WAN Service'!$AE$24 -> $0.00 | O145: FALSE | R145: Incomplete
A146: WRR2M21U@E21004707 | B146: 301 MCKENZIE AVE | C146: PANAMA CITY | D146: 32401 | F146: 45 | J146: ='2 - WAN Service'!$R$24 -> $0.00 | L146: ='2 - WAN Service'!$AA$24 -> $0.00 | M146: ='2 - WAN Service'!$AD$24 -> $0.00 | N146: ='2 - WAN Service'!$AE$24 -> $0.00 | O146: FALSE | R146: Incomplete
A147: WRR2M21U@E21014007 | B147: 250 NW COUNTRY CLUB DR. | C147: PORT ST. LUCIE | D147: 34986 | F147: 45 | J147: ='2 - WAN Service'!$R$24 -> $0.00 | L147: ='2 - WAN Service'!$AA$24 -> $0.00 | M147: ='2 - WAN Service'!$AD$24 -> $0.00 | N147: ='2 - WAN Service'!$AE$24 -> $0.00 | O147: FALSE | R147: Incomplete
A148: WRR2O21U@E45000713 | B148: 201 EAST UNIVERSITY AVENUE | C148: Gainesville | D148: 32601 | F148: 45 | J148: ='2 - WAN Service'!$R$24 -> $0.00 | L148: ='2 - WAN Service'!$AA$24 -> $0.00 | M148: ='2 - WAN Service'!$AD$24 -> $0.00 | N148: ='2 - WAN Service'!$AE$24 -> $0.00 | O148: FALSE | R148: Incomplete
A149: WRR2O37H@E45000907 | B149: 160 W GOVERNMENTAL | C149: PENSACOLA | D149: 32501 | F149: 45 | J149: ='2 - WAN Service'!$R$24 -> $0.00 | L149: ='2 - WAN Service'!$AA$24 -> $0.00 | M149: ='2 - WAN Service'!$AD$24 -> $0.00 | N149: ='2 - WAN Service'!$AE$24 -> $0.00 | O149: FALSE | R149: Incomplete
A150: WRR2O37H@E45001007 | B150: 3319 MCGUIRE BLVD | C150: ORLANDO | D150: 32803 | F150: 45 | J150: ='2 - WAN Service'!$R$24 -> $0.00 | L150: ='2 - WAN Service'!$AA$24 -> $0.00 | M150: ='2 - WAN Service'!$AD$24 -> $0.00 | N150: ='2 - WAN Service'!$AE$24 -> $0.00 | O150: FALSE | R150: Incomplete
A151: WRR2O37H@E45001207 | B151: 13051 NORTH TELECOM PARKWAY | C151: TAMPA | D151: 33637 | F151: 45 | J151: ='2 - WAN Service'!$R$24 -> $0.00 | L151: ='2 - WAN Service'!$AA$24 -> $0.00 | M151: ='2 - WAN Service'!$AD$24 -> $0.00 | N151: ='2 - WAN Service'!$AE$24 -> $0.00 | O151: FALSE | R151: Incomplete
A152: WRR2O37H@E45001307 | B152: 2295 VICTORIA AV | C152: FT MYERS | D152: 33901 | F152: 45 | J152: ='2 - WAN Service'!$R$24 -> $0.00 | L152: ='2 - WAN Service'!$AA$24 -> $0.00 | M152: ='2 - WAN Service'!$AD$24 -> $0.00 | N152: ='2 - WAN Service'!$AE$24 -> $0.00 | O152: FALSE | R152: Incomplete
A153: WRR2O37H@E45001407 | B153: 400 NORTH CONGRESS AV | C153: WEST PALM BEACH | D153: 33401 | F153: 45 | J153: ='2 - WAN Service'!$R$24 -> $0.00 | L153: ='2 - WAN Service'!$AA$24 -> $0.00 | M153: ='2 - WAN Service'!$AD$24 -> $0.00 | N153: ='2 - WAN Service'!$AE$24 -> $0.00 | O153: FALSE | R153: Incomplete
A154: WRR2O37H@E45008412 | B154: 7777 BAYMEADOWS WAY WEST | C154: JACKSONVILLE | D154: 32256 | F154: 45 | J154: ='2 - WAN Service'!$R$24 -> $0.00 | L154: ='2 - WAN Service'!$AA$24 -> $0.00 | M154: ='2 - WAN Service'!$AD$24 -> $0.00 | N154: ='2 - WAN Service'!$AE$24 -> $0.00 | O154: FALSE | R154: Incomplete
A155: WAADZ40H@EC6005313 | B155: 6101 CHANCELLOR DR | C155: ORLANDO | D155: 32803 | F155: 45 | J155: ='2 - WAN Service'!$R$24 -> $0.00 | L155: ='2 - WAN Service'!$AA$24 -> $0.00 | M155: ='2 - WAN Service'!$AD$24 -> $0.00 | N155: ='2 - WAN Service'!$AE$24 -> $0.00 | O155: FALSE | R155: Incomplete
A156: WRR2O40H@E45005513 | B156: 215 N. MARKET STREET | C156: JACKSONVILLE | D156: 32202 | F156: 45 | J156: ='2 - WAN Service'!$R$24 -> $0.00 | L156: ='2 - WAN Service'!$AA$24 -> $0.00 | M156: ='2 - WAN Service'!$AD$24 -> $0.00 | N156: ='2 - WAN Service'!$AE$24 -> $0.00 | O156: FALSE | R156: Incomplete
A157: WRRDL40H@EC4005413 | B157: 2660 OAKLAND PARK BLVD | C157: FORT LAUDERDALE | D157: 33311 | F157: 45 | J157: ='2 - WAN Service'!$R$24 -> $0.00 | L157: ='2 - WAN Service'!$AA$24 -> $0.00 | M157: ='2 - WAN Service'!$AD$24 -> $0.00 | N157: ='2 - WAN Service'!$AE$24 -> $0.00 | O157: FALSE | R157: Incomplete
A158: WRR2O43L@E45003107 | B158: 325 JOHN KNOX ROAD | C158: TALLAHASSEE | D158: 32301 | F158: 45 | J158: ='2 - WAN Service'!$R$24 -> $0.00 | L158: ='2 - WAN Service'!$AA$24 -> $0.00 | M158: ='2 - WAN Service'!$AD$24 -> $0.00 | N158: ='2 - WAN Service'!$AE$24 -> $0.00 | O158: FALSE | R158: Incomplete
A159: WRR2O43L@E45003307 | B159: 1801 HERMATIGE BLVD | C159: TALLAHASSEE | D159: 32301 | F159: 45 | J159: ='2 - WAN Service'!$R$24 -> $0.00 | L159: ='2 - WAN Service'!$AA$24 -> $0.00 | M159: ='2 - WAN Service'!$AD$24 -> $0.00 | N159: ='2 - WAN Service'!$AE$24 -> $0.00 | O159: FALSE | R159: Incomplete
A160: WRR2O43L@E45003507 | B160: 2012 CAPITOL CIRCLE SE | C160: TALLAHASSEE | D160: 32301 | F160: 45 | J160: ='2 - WAN Service'!$R$24 -> $0.00 | L160: ='2 - WAN Service'!$AA$24 -> $0.00 | M160: ='2 - WAN Service'!$AD$24 -> $0.00 | N160: ='2 - WAN Service'!$AE$24 -> $0.00 | O160: FALSE | R160: Incomplete
A161: WRR2O43L@E45003807 | B161: 101 E GAINES ST | C161: TALLAHASSEE | D161: 32301 | F161: 45 | J161: ='2 - WAN Service'!$R$24 -> $0.00 | L161: ='2 - WAN Service'!$AA$24 -> $0.00 | M161: ='2 - WAN Service'!$AD$24 -> $0.00 | N161: ='2 - WAN Service'!$AE$24 -> $0.00 | O161: FALSE | R161: Incomplete
A162: WRR2O43L@E45007313 | B162: 101 EAST GAINES STREET | C162: TALLAHASSEE | D162: 32301 | F162: 45 | J162: ='2 - WAN Service'!$R$24 -> $0.00 | L162: ='2 - WAN Service'!$AA$24 -> $0.00 | M162: ='2 - WAN Service'!$AD$24 -> $0.00 | N162: ='2 - WAN Service'!$AE$24 -> $0.00 | O162: FALSE | R162: Incomplete
A163: WRR2O43L@E45008112 | B163: 199 AVE B, NW | C163: WINTER HAVEN | D163: 33881 | F163: 45 | J163: ='2 - WAN Service'!$R$24 -> $0.00 | L163: ='2 - WAN Service'!$AA$24 -> $0.00 | M163: ='2 - WAN Service'!$AD$24 -> $0.00 | N163: ='2 - WAN Service'!$AE$24 -> $0.00 | O163: FALSE | R163: Incomplete
A164: WRRDC43L@EC2001213 | B164: 2020 CAPITOL CIRCLE SE | C164: TALLAHASSEE | D164: 32301 | F164: 45 | J164: ='2 - WAN Service'!$R$24 -> $0.00 | L164: ='2 - WAN Service'!$AA$24 -> $0.00 | M164: ='2 - WAN Service'!$AD$24 -> $0.00 | N164: ='2 - WAN Service'!$AE$24 -> $0.00 | O164: FALSE | R164: Incomplete
A165: WRRDC43L@EC2007413 | B165: 101 EAST GAINES STREET | C165: TALLAHASSEE | D165: 32301 | F165: 45 | J165: ='2 - WAN Service'!$R$24 -> $0.00 | L165: ='2 - WAN Service'!$AA$24 -> $0.00 | M165: ='2 - WAN Service'!$AD$24 -> $0.00 | N165: ='2 - WAN Service'!$AE$24 -> $0.00 | O165: FALSE | R165: Incomplete
A166: WRRDC43L@EC2008212 | B166: 199 AVE B, NW | C166: WINTER HAVEN | D166: 33881 | F166: 45 | J166: ='2 - WAN Service'!$R$24 -> $0.00 | L166: ='2 - WAN Service'!$AA$24 -> $0.00 | M166: ='2 - WAN Service'!$AD$24 -> $0.00 | N166: ='2 - WAN Service'!$AE$24 -> $0.00 | O166: FALSE | R166: Incomplete
A167: WRRDG43L@EC3000513 | B167: 101 EAST GAINES STREET | C167: TALLAHASSEE | D167: 32301 | F167: 45 | J167: ='2 - WAN Service'!$R$24 -> $0.00 | L167: ='2 - WAN Service'!$AA$24 -> $0.00 | M167: ='2 - WAN Service'!$AD$24 -> $0.00 | N167: ='2 - WAN Service'!$AE$24 -> $0.00 | O167: FALSE | R167: Incomplete
A168: WRRDG43L@EC3000613 | B168: 101 EAST GAINES STREET | C168: TALLAHASSEE | D168: 32301 | F168: 45 | J168: ='2 - WAN Service'!$R$24 -> $0.00 | L168: ='2 - WAN Service'!$AA$24 -> $0.00 | M168: ='2 - WAN Service'!$AD$24 -> $0.00 | N168: ='2 - WAN Service'!$AE$24 -> $0.00 | O168: FALSE | R168: Incomplete
A169: WRRDG43L@EC3008312 | B169: 199 AVE B, NW | C169: WINTER HAVEN | D169: 33881 | F169: 45 | J169: ='2 - WAN Service'!$R$24 -> $0.00 | L169: ='2 - WAN Service'!$AA$24 -> $0.00 | M169: ='2 - WAN Service'!$AD$24 -> $0.00 | N169: ='2 - WAN Service'!$AE$24 -> $0.00 | O169: FALSE | R169: Incomplete
A170: WRR2O48Q@E45029610 | B170: 2002 OLD ST AUGUSTINE ROAD | C170: TALLAHASSEE | D170: 32301 | F170: 45 | J170: ='2 - WAN Service'!$R$24 -> $0.00 | L170: ='2 - WAN Service'!$AA$24 -> $0.00 | M170: ='2 - WAN Service'!$AD$24 -> $0.00 | N170: ='2 - WAN Service'!$AE$24 -> $0.00 | O170: FALSE | R170: Incomplete
A171: WRRD848Q@E90085811 | B171: 2048 EAST PAUL DIRAC DRIVE | C171: TALLAHASSEE | D171: 32310 | F171: 45 | J171: ='2 - WAN Service'!$R$24 -> $0.00 | L171: ='2 - WAN Service'!$AA$24 -> $0.00 | M171: ='2 - WAN Service'!$AD$24 -> $0.00 | N171: ='2 - WAN Service'!$AE$24 -> $0.00 | O171: FALSE | R171: Incomplete
A172: WRRDG48Q@EC3036012 | B172: 2048 EAST PAUL DIRAC DRIVE | C172: TALLAHASSEE | D172: 32310 | F172: 45 | J172: ='2 - WAN Service'!$R$24 -> $0.00 | L172: ='2 - WAN Service'!$AA$24 -> $0.00 | M172: ='2 - WAN Service'!$AD$24 -> $0.00 | N172: ='2 - WAN Service'!$AE$24 -> $0.00 | O172: FALSE | R172: Incomplete
A173: WRR2L48U@E15005008 | B173: 453 WELCH DR. | C173: DAYTONA BEACH | D173: 32114 | F173: 45 | J173: ='2 - WAN Service'!$R$24 -> $0.00 | L173: ='2 - WAN Service'!$AA$24 -> $0.00 | M173: ='2 - WAN Service'!$AD$24 -> $0.00 | N173: ='2 - WAN Service'!$AE$24 -> $0.00 | O173: FALSE | R173: Incomplete
A174: WAADZ48X@EC6028210 | B174: INNOVATION PARK | C174: TALLAHASSEE | D174: 32310 | F174: 45 | J174: ='2 - WAN Service'!$R$24 -> $0.00 | L174: ='2 - WAN Service'!$AA$24 -> $0.00 | M174: ='2 - WAN Service'!$AD$24 -> $0.00 | N174: ='2 - WAN Service'!$AE$24 -> $0.00 | O174: FALSE | R174: Incomplete
A175: WRR2L55B@E15023312 | B175: MILEPOST 263 | C175: OCOEE | D175: 34761 | F175: 45 | J175: ='2 - WAN Service'!$R$24 -> $0.00 | L175: ='2 - WAN Service'!$AA$24 -> $0.00 | M175: ='2 - WAN Service'!$AD$24 -> $0.00 | N175: ='2 - WAN Service'!$AE$24 -> $0.00 | O175: FALSE | R175: Incomplete
A176: WRR2L55B@E15023412 | B176: MILEPOST 65 | C176: POMPANO BEACH | D176: 33069 | F176: 45 | J176: ='2 - WAN Service'!$R$24 -> $0.00 | L176: ='2 - WAN Service'!$AA$24 -> $0.00 | M176: ='2 - WAN Service'!$AD$24 -> $0.00 | N176: ='2 - WAN Service'!$AE$24 -> $0.00 | O176: FALSE | R176: Incomplete
A177: WAADZ55C@EC6032411 | B177: BOCA DATA CENTER | C177: BOCA RATON | D177: 33434 | F177: 45 | J177: ='2 - WAN Service'!$R$24 -> $0.00 | L177: ='2 - WAN Service'!$AA$24 -> $0.00 | M177: ='2 - WAN Service'!$AD$24 -> $0.00 | N177: ='2 - WAN Service'!$AE$24 -> $0.00 | O177: FALSE | R177: Incomplete
A178: WAADZ55C@EC6042712 | B178: MILEPOST 263 FLORIDA TURNPIKE | C178: OCOEE | D178: 34761 | F178: 45 | J178: ='2 - WAN Service'!$R$24 -> $0.00 | L178: ='2 - WAN Service'!$AA$24 -> $0.00 | M178: ='2 - WAN Service'!$AD$24 -> $0.00 | N178: ='2 - WAN Service'!$AE$24 -> $0.00 | O178: FALSE | R178: Incomplete
A179: WRR2M55C@E21077313 | B179: 1320 31ST ST N 4TH FLOOR | C179: TAMPA | D179: 33605 | F179: 45 | J179: ='2 - WAN Service'!$R$24 -> $0.00 | L179: ='2 - WAN Service'!$AA$24 -> $0.00 | M179: ='2 - WAN Service'!$AD$24 -> $0.00 | N179: ='2 - WAN Service'!$AE$24 -> $0.00 | O179: FALSE | R179: Incomplete
A180: WRR2N55C@E33456109 | B180: 1 FLORIDA TURNPIKE POMPANO SVC PLZ | C180: POMPANO | D180: 33069 | F180: 45 | J180: ='2 - WAN Service'!$R$24 -> $0.00 | L180: ='2 - WAN Service'!$AA$24 -> $0.00 | M180: ='2 - WAN Service'!$AD$24 -> $0.00 | N180: ='2 - WAN Service'!$AE$24 -> $0.00 | O180: FALSE | R180: Incomplete
A181: WRR2O55C@E45073111 | B181: 15700 SW 312TH ST. | C181: HOMESTEAD | D181: 33033 | F181: 45 | J181: ='2 - WAN Service'!$R$24 -> $0.00 | L181: ='2 - WAN Service'!$AA$24 -> $0.00 | M181: ='2 - WAN Service'!$AD$24 -> $0.00 | N181: ='2 - WAN Service'!$AE$24 -> $0.00 | O181: FALSE | R181: Incomplete
A182: WRR2O55C@E45095712 | B182: 16252 SUNCOAST PARKWAY | C182: SPRINGHILL | D182: 34610 | F182: 45 | J182: ='2 - WAN Service'!$R$24 -> $0.00 | L182: ='2 - WAN Service'!$AA$24 -> $0.00 | M182: ='2 - WAN Service'!$AD$24 -> $0.00 | N182: ='2 - WAN Service'!$AE$24 -> $0.00 | O182: FALSE | R182: Incomplete
A183: WRRD855C@E90013711 | B183: BOCA SUNPASS CALL CENTER | C183: BOCA RATON | D183: 33434 | F183: 45 | J183: ='2 - WAN Service'!$R$24 -> $0.00 | L183: ='2 - WAN Service'!$AA$24 -> $0.00 | M183: ='2 - WAN Service'!$AD$24 -> $0.00 | N183: ='2 - WAN Service'!$AE$24 -> $0.00 | O183: FALSE | R183: Incomplete
A184: WRRD855C@E90018411 | B184: MILEPOST 263 FLORIDA'S TURNPIK | C184: OCOEE | D184: 34761 | F184: 45 | J184: ='2 - WAN Service'!$R$24 -> $0.00 | L184: ='2 - WAN Service'!$AA$24 -> $0.00 | M184: ='2 - WAN Service'!$AD$24 -> $0.00 | N184: ='2 - WAN Service'!$AE$24 -> $0.00 | O184: FALSE | R184: Incomplete
A185: WRRDC55C@EC2014107 | B185: ORLANDO SUNPASS CALL CENTER | C185: ORLANDO | D185: 32809 | F185: 45 | J185: ='2 - WAN Service'!$R$24 -> $0.00 | L185: ='2 - WAN Service'!$AA$24 -> $0.00 | M185: ='2 - WAN Service'!$AD$24 -> $0.00 | N185: ='2 - WAN Service'!$AE$24 -> $0.00 | O185: FALSE | R185: Incomplete
A186: WRR2N59M@E33093013 | B186: HWY 90 EAST | C186: CHATTAHOOCHEE | D186: 32324 | F186: 45 | J186: ='2 - WAN Service'!$R$24 -> $0.00 | L186: ='2 - WAN Service'!$AA$24 -> $0.00 | M186: ='2 - WAN Service'!$AD$24 -> $0.00 | N186: ='2 - WAN Service'!$AE$24 -> $0.00 | O186: FALSE | R186: Incomplete
A187: WRR2M60D@E21296812 | B187: 730 STATE ROAD 60 W | C187: LAKE WALES | D187: 33853 | F187: 50 | I187: ='2 - WAN Service'!$U$25 -> $0.00 | K187: ='2 - WAN Service'!$X$25 -> $0.00 | L187: ='2 - WAN Service'!$AA$25 -> $0.00 | M187: ='2 - WAN Service'!$AD$25 -> $0.00 | N187: ='2 - WAN Service'!$AE$25 -> $0.00 | O187: =IF(E187=$I$4,I187,IF(E187=$K$4,K187,IF(E187=$L$4,L187,IF(E187=$M$4,M187,IF(E187=$N$4,N187))))) -> FALSE | R187: Incomplete
A188: WRR2L64L@E15165207 | B188: 1217 PEARL STREET | C188: JACKSONVILLE | D188: 32202 | F188: 75 | I188: ='2 - WAN Service'!$U$26 -> $0.00 | K188: ='2 - WAN Service'!$X$26 -> $0.00 | L188: ='2 - WAN Service'!$AA$26 -> $0.00 | M188: ='2 - WAN Service'!$AD$26 -> $0.00 | N188: ='2 - WAN Service'!$AE$26 -> $0.00 | O188: =IF(E188=$I$4,I188,IF(E188=$K$4,K188,IF(E188=$L$4,L188,IF(E188=$M$4,M188,IF(E188=$N$4,N188))))) -> FALSE | R188: =IF((OR(E188=I$4,E188=J$4,E188=K$4,E188=L$4,E188=M$4,E188=N$4)),O188, "Incomplete") -> Incomplete
A189: WRR2O64N@E45000807 | B189: 205 ML KING ST N | C189: ST PETERSBURG | D189: 33702 | F189: 75 | I189: ='2 - WAN Service'!$U$26 -> $0.00 | K189: ='2 - WAN Service'!$X$26 -> $0.00 | L189: ='2 - WAN Service'!$AA$26 -> $0.00 | M189: ='2 - WAN Service'!$AD$26 -> $0.00 | N189: ='2 - WAN Service'!$AE$26 -> $0.00 | O189: =IF(E189=$I$4,I189,IF(E189=$K$4,K189,IF(E189=$L$4,L189,IF(E189=$M$4,M189,IF(E189=$N$4,N189))))) -> FALSE | R189: Incomplete
A190: WRRDP64N@ECC031507 | B190: 4042 BALD CYPRESS WAY | C190: TALLAHASSEE | D190: 32399 | F190: 75 | I190: ='2 - WAN Service'!$U$26 -> $0.00 | K190: ='2 - WAN Service'!$X$26 -> $0.00 | L190: ='2 - WAN Service'!$AA$26 -> $0.00 | M190: ='2 - WAN Service'!$AD$26 -> $0.00 | N190: ='2 - WAN Service'!$AE$26 -> $0.00 | O190: FALSE | R190: Incomplete
A191: WRRDQ64N@ECC031607 | B191: 205 MLK BLVD | C191: ST PETERSBURG | D191: 33701 | F191: 90 | I191: ='2 - WAN Service'!$U$27 -> $0.00 | K191: ='2 - WAN Service'!$X$27 -> $0.00 | L191: ='2 - WAN Service'!$AA$27 -> $0.00 | M191: ='2 - WAN Service'!$AD$27 -> $0.00 | N191: ='2 - WAN Service'!$AE$27 -> $0.00 | O191: =IF(E191=$I$4,I191,IF(E191=$K$4,K191,IF(E191=$L$4,L191,IF(E191=$M$4,M191,IF(E191=$N$4,N191))))) -> FALSE | R191: =IF((OR(E191=I$4,E191=J$4,E191=K$4,E191=L$4,E191=M$4,E191=N$4)),O191, "Incomplete") -> Incomplete
A192: WRR2L68Y@E15043911 | B192: 8333 NW 53RD STREET | C192: DORAL | D192: 33166 | F192: 90 | I192: ='2 - WAN Service'!$U$27 -> $0.00 | K192: ='2 - WAN Service'!$X$27 -> $0.00 | L192: ='2 - WAN Service'!$AA$27 -> $0.00 | M192: ='2 - WAN Service'!$AD$27 -> $0.00 | N192: ='2 - WAN Service'!$AE$27 -> $0.00 | O192: FALSE | R192: Incomplete
A193: WRR2M68Y@E21044808 | B193: 2728 FT KNOX BLVD | C193: TALLAHASSEE | D193: 32308 | F193: 90 | I193: ='2 - WAN Service'!$U$27 -> $0.00 | K193: ='2 - WAN Service'!$X$27 -> $0.00 | L193: ='2 - WAN Service'!$AA$27 -> $0.00 | M193: ='2 - WAN Service'!$AD$27 -> $0.00 | N193: ='2 - WAN Service'!$AE$27 -> $0.00 | O193: FALSE | R193: Incomplete
A194: WRR2O68Y@E45005213 | B194: 199 AVENUE B NORTHWEST | C194: WINTER HAVEN | D194: 33881 | F194: 90 | I194: ='2 - WAN Service'!$U$27 -> $0.00 | K194: ='2 - WAN Service'!$X$27 -> $0.00 | L194: ='2 - WAN Service'!$AA$27 -> $0.00 | M194: ='2 - WAN Service'!$AD$27 -> $0.00 | N194: ='2 - WAN Service'!$AE$27 -> $0.00 | O194: FALSE | R194: Incomplete
A195: WRR2L70F@E15039311 | B195: 7765 SR 231 S | C195: LAKE BUTLER | D195: 32054 | F195: 90 | I195: ='2 - WAN Service'!$U$27 -> $0.00 | K195: ='2 - WAN Service'!$X$27 -> $0.00 | L195: ='2 - WAN Service'!$AA$27 -> $0.00 | M195: ='2 - WAN Service'!$AD$27 -> $0.00 | N195: ='2 - WAN Service'!$AE$27 -> $0.00 | O195: FALSE | R195: Incomplete
A196: WRRDC70F@EC2039211 | B196: 25636 NE STATE RD | C196: RAIFORD | D196: 32026 | F196: 90 | I196: ='2 - WAN Service'!$U$27 -> $0.00 | K196: ='2 - WAN Service'!$X$27 -> $0.00 | L196: ='2 - WAN Service'!$AA$27 -> $0.00 | M196: ='2 - WAN Service'!$AD$27 -> $0.00 | N196: ='2 - WAN Service'!$AE$27 -> $0.00 | O196: FALSE | R196: Incomplete
A197: WRR2L76A@E15017813 | B197: MM 94, LAKE WORTH SERVICE PLAZA | C197: LAKE WORTH | D197: 33416 | F197: 90 | I197: ='2 - WAN Service'!$U$27 -> $0.00 | K197: ='2 - WAN Service'!$X$27 -> $0.00 | L197: ='2 - WAN Service'!$AA$27 -> $0.00 | M197: ='2 - WAN Service'!$AD$27 -> $0.00 | N197: ='2 - WAN Service'!$AE$27 -> $0.00 | O197: FALSE | R197: Incomplete
A198: WRR2L76A@E15020812 | B198: 133 SOUTH SEMORAN | C198: ORLANDO | D198: 32807 | F198: 90 | I198: ='2 - WAN Service'!$U$27 -> $0.00 | K198: ='2 - WAN Service'!$X$27 -> $0.00 | L198: ='2 - WAN Service'!$AA$27 -> $0.00 | M198: ='2 - WAN Service'!$AD$27 -> $0.00 | N198: ='2 - WAN Service'!$AE$27 -> $0.00 | O198: FALSE | R198: Incomplete
A199: WRR2L76A@E15031212 | B199: 11201 N. MCKINLEY DRIVE | C199: TAMPA | D199: 33612 | F199: 90 | I199: ='2 - WAN Service'!$U$27 -> $0.00 | K199: ='2 - WAN Service'!$X$27 -> $0.00 | L199: ='2 - WAN Service'!$AA$27 -> $0.00 | M199: ='2 - WAN Service'!$AD$27 -> $0.00 | N199: ='2 - WAN Service'!$AE$27 -> $0.00 | O199: FALSE | R199: Incomplete
A200: WRR2O76A@E45036812 | B200: 199 AVENUE B N.W. | C200: WINTER HAVEN | D200: 33881 | F200: 90 | I200: ='2 - WAN Service'!$U$27 -> $0.00 | K200: ='2 - WAN Service'!$X$27 -> $0.00 | L200: ='2 - WAN Service'!$AA$27 -> $0.00 | M200: ='2 - WAN Service'!$AD$27 -> $0.00 | N200: ='2 - WAN Service'!$AE$27 -> $0.00 | O200: FALSE | R200: Incomplete
... 136 more rows

Sheet 12 - Snapshot 2 Ed Standards
A1: Price Sheet 12 MyFloridaNet2; Snapshot 2 - Education Standard
A2: =Checklist!D3 -> 0
A3: School District Information | H3: Bandwidth Data | J3: CPE | L3: Core Port | M3: Local Access | S3: Internet Access | T3: Configuration Management | U3: Total Using Proposed Pricing | V3: Total Using Current Pricing
A4: District | C4: Address | D4: City | E4: Zip | F4: Mileage Band | G4: Projected 14/15 FTEs | H4: Sum of 14/15 Standard (Mbps) | I4: Priced Bandwidth (Mbps) | J4: CPE USOC | K4: Proposed CPE Cost | L4: Proposed Cost | M4: ≤ 10 Miles | N4: > 10 ≤ 25 Miles | O4: > 25 ≤ 35 Miles | P4: > 35 ≤ 50 Miles | Q4: > 50 Miles | R4: Local Access Price | S4: Proposed Cost | T4: Proposed Cost
M5: Proposed Cost | N5: Proposed Cost | O5: Proposed Cost | P5: Proposed Cost | Q5: Proposed Cost
A6: 19 | B6: Franklin | C6: 1250 HIGHWAY 98 | D6: EASTPOINT | E6: 32328 | G6: 1,180 | H6: =G6/3 -> 393 | I6: 400 | J6: WLL76 | K6: ='1 - CPE-Router, VPN, & Firewall'!$L$1313 ->  | L6: ='2 - WAN Service'!$J$32 -> $0.00 | M6: ='2 - WAN Service'!$U$32 -> $0.00 | N6: ='2 - WAN Service'!$X$32 -> $0.00 | O6: ='2 - WAN Service'!$AA$32 -> $0.00 | P6: ='2 - WAN Service'!$AD$32 -> $0.00 | Q6: ='2 - WAN Service'!$AE$32 -> $0.00 | R6: =IF(F6=$M$4,M6,IF(F6=$N$4,N6,IF(F6=$O$4,O6,IF(F6=$P$4,P6,IF(F6=$Q$4,Q6))))) -> FALSE | S6: ='2 - WAN Service'!$AF$32 -> $0.00 | T6: ='1 - CPE-Router, VPN, & Firewall'!$G$12 -> $0.00 | U6: =IF(OR(F6=M$4,F6=N$4,F6=O$4,F6=P$4,F6=Q$4),K6+L6+R6+S6+T6,"Incomplete") -> Incomplete | V6: $112,377
A7: 33 | B7: Jefferson | C7: 575 S WATER ST | D7: MONTICELLO | E7: 32344 | G7: 934 | H7: 311 | I7: 400 | J7: WLL76 | K7: ='1 - CPE-Router, VPN, & Firewall'!$L$1313 ->  | L7: ='2 - WAN Service'!$J$32 -> $0.00 | M7: ='2 - WAN Service'!$U$32 -> $0.00 | N7: ='2 - WAN Service'!$X$32 -> $0.00 | O7: ='2 - WAN Service'!$AA$32 -> $0.00 | P7: ='2 - WAN Service'!$AD$32 -> $0.00 | Q7: ='2 - WAN Service'!$AE$32 -> $0.00 | R7: =IF(F7=$M$4,M7,IF(F7=$N$4,N7,IF(F7=$O$4,O7,IF(F7=$P$4,P7,IF(F7=$Q$4,Q7))))) -> FALSE | S7: ='2 - WAN Service'!$AF$32 -> $0.00 | T7: ='1 - CPE-Router, VPN, & Firewall'!$G$12 -> $0.00 | U7: =IF(OR(F7=M$4,F7=N$4,F7=O$4,F7=P$4,F7=Q$4),K7+L7+R7+S7+T7,"Incomplete") -> Incomplete | V7: $112,377
A8: 34 | B8: Lafayette | C8: 363 NE CRAWFORD STREET | D8: MAYO | E8: 32066 | G8: 1,174 | H8: 391 | I8: 400 | J8: WLL76 | K8: ='1 - CPE-Router, VPN, & Firewall'!$L$1313 ->  | L8: ='2 - WAN Service'!$J$32 -> $0.00 | M8: ='2 - WAN Service'!$U$32 -> $0.00 | N8: ='2 - WAN Service'!$X$32 -> $0.00 | O8: ='2 - WAN Service'!$AA$32 -> $0.00 | P8: ='2 - WAN Service'!$AD$32 -> $0.00 | Q8: ='2 - WAN Service'!$AE$32 -> $0.00 | R8: FALSE | S8: ='2 - WAN Service'!$AF$32 -> $0.00 | T8: ='1 - CPE-Router, VPN, & Firewall'!$G$12 -> $0.00 | U8: Incomplete | V8: $112,377
A9: 39 | B9: Liberty | C9: 12926 NW CR 12 | D9: BRISTOL | E9: 32321 | G9: 1,378 | H9: 459 | I9: 500 | J9: WLL76 | K9: ='1 - CPE-Router, VPN, & Firewall'!$L$1313 ->  | L9: ='2 - WAN Service'!J33 -> $0.00 | M9: ='2 - WAN Service'!$U33 -> $0.00 | N9: ='2 - WAN Service'!$X33 -> $0.00 | O9: ='2 - WAN Service'!$AA33 -> $0.00 | P9: ='2 - WAN Service'!$AD33 -> $0.00 | Q9: ='2 - WAN Service'!$AE33 -> $0.00 | R9: FALSE | S9: ='2 - WAN Service'!$AF33 -> $0.00 | T9: ='1 - CPE-Router, VPN, & Firewall'!$G$12 -> $0.00 | U9: Incomplete | V9: $112,401
A10: 22 | B10: Glades | C10: 400 10TH ST. | D10: MOORE HAVEN | E10: 33471 | G10: 1,507 | H10: 502 | I10: 600 | J10: WLL76 | K10: ='1 - CPE-Router, VPN, & Firewall'!$L$1313 ->  | L10: ='2 - WAN Service'!J34 -> $0.00 | M10: ='2 - WAN Service'!$U34 -> $0.00 | N10: ='2 - WAN Service'!$X34 -> $0.00 | O10: ='2 - WAN Service'!$AA34 -> $0.00 | P10: ='2 - WAN Service'!$AD34 -> $0.00 | Q10: ='2 - WAN Service'!$AE34 -> $0.00 | R10: FALSE | S10: ='2 - WAN Service'!$AF34 -> $0.00 | T10: ='1 - CPE-Router, VPN, & Firewall'!$G$12 -> $0.00 | U10: Incomplete | V10: $112,425
A11: 23 | B11: Gulf | C11: 150 MIDDLE SCHOOL RD. | D11: PORT ST. JOE | E11: 32456 | G11: 1,782 | H11: 594 | I11: 600 | J11: WLL76 | K11: ='1 - CPE-Router, VPN, & Firewall'!$L$1313 ->  | L11: ='2 - WAN Service'!$J$34 -> $0.00 | M11: ='2 - WAN Service'!$U$34 -> $0.00 | N11: ='2 - WAN Service'!$X$34 -> $0.00 | O11: ='2 - WAN Service'!$AA$34 -> $0.00 | P11: ='2 - WAN Service'!$AD$34 -> $0.00 | Q11: ='2 - WAN Service'!$AE$34 -> $0.00 | R11: FALSE | S11: ='2 - WAN Service'!$AF$34 -> $0.00 | T11: ='1 - CPE-Router, VPN, & Firewall'!$G$12 -> $0.00 | U11: Incomplete | V11: $112,425
A12: 24 | B12: Hamilton | C12: 4280 SW CR 152 | D12: JASPER | E12: 32052 | G12: 1,608 | H12: 536 | I12: 600 | J12: WLL76 | K12: ='1 - CPE-Router, VPN, & Firewall'!$L$1313 ->  | L12: ='2 - WAN Service'!$J$34 -> $0.00 | M12: ='2 - WAN Service'!$U$34 -> $0.00 | N12: ='2 - WAN Service'!$X$34 -> $0.00 | O12: ='2 - WAN Service'!$AA$34 -> $0.00 | P12: ='2 - WAN Service'!$AD$34 -> $0.00 | Q12: ='2 - WAN Service'!$AE$34 -> $0.00 | R12: FALSE | S12: ='2 - WAN Service'!$AF$34 -> $0.00 | T12: ='1 - CPE-Router, VPN, & Firewall'!$G$12 -> $0.00 | U12: Incomplete | V12: $112,425
A13: 15 | B13: Dixie | C13: 16077 NE HWY 19 | D13: CROSS CITY | E13: 32628 | G13: 2,047 | H13: 682 | I13: 700 | J13: WLL76 | K13: ='1 - CPE-Router, VPN, & Firewall'!$L$1313 ->  | L13: ='2 - WAN Service'!J36 -> $0.00 | M13: ='2 - WAN Service'!$U36 -> $0.00 | N13: ='2 - WAN Service'!$X36 -> $0.00 | O13: ='2 - WAN Service'!$AA36 -> $0.00 | P13: ='2 - WAN Service'!$AD36 -> $0.00 | Q13: ='2 - WAN Service'!$AE36 -> $0.00 | R13: FALSE | S13: ='2 - WAN Service'!$AF36 -> $0.00 | T13: ='1 - CPE-Router, VPN, & Firewall'!$G$12 -> $0.00 | U13: Incomplete | V13: $112,473
A14: 07 | B14: Calhoun | C14: 18597 NE STATE ROAD 69 | D14: BLOUNTSTOWN | E14: 32424 | G14: 2,156 | H14: 719 | I14: 800 | J14: WLL76 | K14: ='1 - CPE-Router, VPN, & Firewall'!$L$1313 ->  | L14: ='2 - WAN Service'!J37 -> $0.00 | M14: ='2 - WAN Service'!$U37 -> $0.00 | N14: ='2 - WAN Service'!$X37 -> $0.00 | O14: ='2 - WAN Service'!$AA37 -> $0.00 | P14: ='2 - WAN Service'!$AD37 -> $0.00 | Q14: ='2 - WAN Service'!$AE37 -> $0.00 | R14: FALSE | S14: ='2 - WAN Service'!$AF37 -> $0.00 | T14: ='1 - CPE-Router, VPN, & Firewall'!$G$12 -> $0.00 | U14: Incomplete | V14: $112,497
A15: 63 | B15: Union | C15: 55SW 6TH STREET | D15: LAKE BUTLER | E15: 32054 | G15: 2,286 | H15: 762 | I15: 800 | J15: WLL76 | K15: ='1 - CPE-Router, VPN, & Firewall'!$L$1313 ->  | L15: ='2 - WAN Service'!J37 -> $0.00 | M15: ='2 - WAN Service'!$U37 -> $0.00 | N15: ='2 - WAN Service'!$X37 -> $0.00 | O15: ='2 - WAN Service'!$AA37 -> $0.00 | P15: ='2 - WAN Service'!$AD37 -> $0.00 | Q15: ='2 - WAN Service'!$AE37 -> $0.00 | R15: FALSE | S15: ='2 - WAN Service'!$AF37 -> $0.00 | T15: ='1 - CPE-Router, VPN, & Firewall'!$G$12 -> $0.00 | U15: Incomplete | V15: $112,497
A16: 21 | B16: Gilchrist | C16: 1013 NORTH MAIN | D16: TRENTON | E16: 32693 | G16: 2,488 | H16: 829 | I16: 900 | J16: WLL76 | K16: ='1 - CPE-Router, VPN, & Firewall'!$L$1313 ->  | L16: ='2 - WAN Service'!J38 -> $0.00 | M16: ='2 - WAN Service'!$U38 -> $0.00 | N16: ='2 - WAN Service'!$X38 -> $0.00 | O16: ='2 - WAN Service'!$AA38 -> $0.00 | P16: ='2 - WAN Service'!$AD38 -> $0.00 | Q16: ='2 - WAN Service'!$AE38 -> $0.00 | R16: FALSE | S16: ='2 - WAN Service'!$AF38 -> $0.00 | T16: ='1 - CPE-Router, VPN, & Firewall'!$G$12 -> $0.00 | U16: Incomplete | V16: $112,521
A17: 40 | B17: Madison | C17: 210 DUVAL ST | D17: MADISON | E17: 32340 | G17: 2,418 | H17: 806 | I17: 900 | J17: WLL76 | K17: ='1 - CPE-Router, VPN, & Firewall'!$L$1313 ->  | L17: ='2 - WAN Service'!J38 -> $0.00 | M17: ='2 - WAN Service'!$U38 -> $0.00 | N17: ='2 - WAN Service'!$X38 -> $0.00 | O17: ='2 - WAN Service'!$AA38 -> $0.00 | P17: ='2 - WAN Service'!$AD38 -> $0.00 | Q17: ='2 - WAN Service'!$AE38 -> $0.00 | R17: FALSE | S17: ='2 - WAN Service'!$AF38 -> $0.00 | T17: ='1 - CPE-Router, VPN, & Firewall'!$G$12 -> $0.00 | U17: Incomplete | V17: $112,521
A18: 62 | B18: Taylor | C18: 901 EAST COLLEGE ST | D18: PERRY | E18: 32347 | G18: 2,655 | H18: 885 | I18: 900 | J18: WLL76 | K18: ='1 - CPE-Router, VPN, & Firewall'!$L$1313 ->  | L18: ='2 - WAN Service'!J38 -> $0.00 | M18: ='2 - WAN Service'!$U38 -> $0.00 | N18: ='2 - WAN Service'!$X38 -> $0.00 | O18: ='2 - WAN Service'!$AA38 -> $0.00 | P18: ='2 - WAN Service'!$AD38 -> $0.00 | Q18: ='2 - WAN Service'!$AE38 -> $0.00 | R18: FALSE | S18: ='2 - WAN Service'!$AF38 -> $0.00 | T18: ='1 - CPE-Router, VPN, & Firewall'!$G$12 -> $0.00 | U18: Incomplete | V18: $112,521
A19: 04 | B19: Bradford | C19: 501 W. WASHINGTON STREET | D19: STARKE | E19: 32091 | G19: 2,899 | H19: 966 | I19: 1,000 | J19: WLL76 | K19: ='1 - CPE-Router, VPN, & Firewall'!$L$1313 ->  | L19: ='2 - WAN Service'!$J$39 -> $0.00 | M19: ='2 - WAN Service'!$U$39 -> $0.00 | N19: ='2 - WAN Service'!$X$39 -> $0.00 | O19: ='2 - WAN Service'!$AA$39 -> $0.00 | P19: ='2 - WAN Service'!$AD$39 -> $0.00 | Q19: ='2 - WAN Service'!$AE$39 -> $0.00 | R19: FALSE | S19: ='2 - WAN Service'!$AF$39 -> $0.00 | T19: ='1 - CPE-Router, VPN, & Firewall'!$G$12 -> $0.00 | U19: Incomplete | V19: $112,545
A20: 02 | B20: Baker | C20: 392 SOUTH BLVD E | D20: MACCLENNY | E20: 32063 | G20: 4,641 | H20: 1,547 | I20: 2,000 | J20: FSSB1 | K20: ='1 - CPE-Router, VPN, & Firewall'!$L$1346 ->  | L20: ='2 - WAN Service'!$J$44 -> $0.00 | M20: ='2 - WAN Service'!$U$44 -> $0.00 | N20: ='2 - WAN Service'!$X$44 -> $0.00 | O20: ='2 - WAN Service'!$AA$44 -> $0.00 | P20: ='2 - WAN Service'!$AD$44 -> $0.00 | Q20: ='2 - WAN Service'!$AE$44 -> $0.00 | R20: FALSE | S20: ='2 - WAN Service'!$AF$44 -> $0.00 | T20: ='1 - CPE-Router, VPN, & Firewall'!$G$12 -> $0.00 | U20: Incomplete | V20: $112,665
A21: 14 | B21: Desoto | C21: 530 LASOLONA | D21: ARCADIA | E21: 34266 | G21: 4,742 | H21: 1,581 | I21: 2,000 | J21: FSSB1 | K21: ='1 - CPE-Router, VPN, & Firewall'!$L$1346 ->  | L21: ='2 - WAN Service'!$J$44 -> $0.00 | M21: ='2 - WAN Service'!$U$44 -> $0.00 | N21: ='2 - WAN Service'!$X$44 -> $0.00 | O21: ='2 - WAN Service'!$AA$44 -> $0.00 | P21: ='2 - WAN Service'!$AD$44 -> $0.00 | Q21: ='2 - WAN Service'!$AE$44 -> $0.00 | R21: FALSE | S21: ='2 - WAN Service'!$AF$44 -> $0.00 | T21: ='1 - CPE-Router, VPN, & Firewall'!$G$12 -> $0.00 | U21: Incomplete | V21: $112,665
A22: 20 | B22: Gadsden | C22: 35 MARTIN LUTHER KING JR BLVD | D22: QUINCY | E22: 32351 | G22: 5,262 | H22: 1,754 | I22: 2,000 | J22: FSSB1 | K22: ='1 - CPE-Router, VPN, & Firewall'!$L$1346 ->  | L22: ='2 - WAN Service'!$J$44 -> $0.00 | M22: ='2 - WAN Service'!$U$44 -> $0.00 | N22: ='2 - WAN Service'!$X$44 -> $0.00 | O22: ='2 - WAN Service'!$AA$44 -> $0.00 | P22: ='2 - WAN Service'!$AD$44 -> $0.00 | Q22: ='2 - WAN Service'!$AE$44 -> $0.00 | R22: FALSE | S22: ='2 - WAN Service'!$AF$44 -> $0.00 | T22: ='1 - CPE-Router, VPN, & Firewall'!$G$12 -> $0.00 | U22: Incomplete | V22: $112,665
A23: 25 | B23: Hardee | C23: 204 BELL ST. | D23: WAUCHULA | E23: 33873 | G23: 5,151 | H23: 1,717 | I23: 2,000 | J23: FSSB1 | K23: ='1 - CPE-Router, VPN, & Firewall'!$L$1346 ->  | L23: ='2 - WAN Service'!$J$44 -> $0.00 | M23: ='2 - WAN Service'!$U$44 -> $0.00 | N23: ='2 - WAN Service'!$X$44 -> $0.00 | O23: ='2 - WAN Service'!$AA$44 -> $0.00 | P23: ='2 - WAN Service'!$AD$44 -> $0.00 | Q23: ='2 - WAN Service'!$AE$44 -> $0.00 | R23: FALSE | S23: ='2 - WAN Service'!$AF$44 -> $0.00 | T23: ='1 - CPE-Router, VPN, & Firewall'!$G$12 -> $0.00 | U23: Incomplete | V23: $112,665
A24: 30 | B24: Holmes | C24: 701 EAST PENNSYLVANIA AVE. | D24: BONIFAY | E24: 32425 | G24: 3,198 | H24: 1,066 | I24: 2,000 | J24: FSSB1 | K24: ='1 - CPE-Router, VPN, & Firewall'!$L$1346 ->  | L24: ='2 - WAN Service'!$J$44 -> $0.00 | M24: ='2 - WAN Service'!$U$44 -> $0.00 | N24: ='2 - WAN Service'!$X$44 -> $0.00 | O24: ='2 - WAN Service'!$AA$44 -> $0.00 | P24: ='2 - WAN Service'!$AD$44 -> $0.00 | Q24: ='2 - WAN Service'!$AE$44 -> $0.00 | R24: FALSE | S24: ='2 - WAN Service'!$AF$44 -> $0.00 | T24: ='1 - CPE-Router, VPN, & Firewall'!$G$12 -> $0.00 | U24: Incomplete | V24: $112,665
A25: 38 | B25: Levy | C25: 480 MARSHBURN DRIVE | D25: BRONSON | E25: 32621 | G25: 5,329 | H25: 1,776 | I25: 2,000 | J25: FSSB1 | K25: ='1 - CPE-Router, VPN, & Firewall'!$L$1346 ->  | L25: ='2 - WAN Service'!$J$44 -> $0.00 | M25: ='2 - WAN Service'!$U$44 -> $0.00 | N25: ='2 - WAN Service'!$X$44 -> $0.00 | O25: ='2 - WAN Service'!$AA$44 -> $0.00 | P25: ='2 - WAN Service'!$AD$44 -> $0.00 | Q25: ='2 - WAN Service'!$AE$44 -> $0.00 | R25: FALSE | S25: ='2 - WAN Service'!$AF$44 -> $0.00 | T25: ='1 - CPE-Router, VPN, & Firewall'!$G$12 -> $0.00 | U25: Incomplete | V25: $112,665
A26: 61 | B26: Suwannee | C26: 702 2ND STREET NW | D26: LIVE OAK | E26: 32064 | G26: 5,771 | H26: 1,924 | I26: 2,000 | J26: FSSB1 | K26: ='1 - CPE-Router, VPN, & Firewall'!$L$1346 ->  | L26: ='2 - WAN Service'!$J$44 -> $0.00 | M26: ='2 - WAN Service'!$U$44 -> $0.00 | N26: ='2 - WAN Service'!$X$44 -> $0.00 | O26: ='2 - WAN Service'!$AA$44 -> $0.00 | P26: ='2 - WAN Service'!$AD$44 -> $0.00 | Q26: ='2 - WAN Service'!$AE$44 -> $0.00 | R26: FALSE | S26: ='2 - WAN Service'!$AF$44 -> $0.00 | T26: ='1 - CPE-Router, VPN, & Firewall'!$G$12 -> $0.00 | U26: Incomplete | V26: $112,665
A27: 65 | B27: Wakulla | C27: 126 HIGH DRIVE | D27: CRAWFORDVILLE | E27: 32327 | G27: 4,947 | H27: 1,649 | I27: 2,000 | J27: FSSB1 | K27: ='1 - CPE-Router, VPN, & Firewall'!$L$1346 ->  | L27: ='2 - WAN Service'!$J$44 -> $0.00 | M27: ='2 - WAN Service'!$U$44 -> $0.00 | N27: ='2 - WAN Service'!$X$44 -> $0.00 | O27: ='2 - WAN Service'!$AA$44 -> $0.00 | P27: ='2 - WAN Service'!$AD$44 -> $0.00 | Q27: ='2 - WAN Service'!$AE$44 -> $0.00 | R27: FALSE | S27: ='2 - WAN Service'!$AF$44 -> $0.00 | T27: ='1 - CPE-Router, VPN, & Firewall'!$G$12 -> $0.00 | U27: Incomplete | V27: $112,665
A28: 67 | B28: Washington | C28: 7202 HWY 441 NORTH | D28: OKEECHOBEE | E28: 34972 | G28: 3,275 | H28: 1,092 | I28: 2,000 | J28: FSSB1 | K28: ='1 - CPE-Router, VPN, & Firewall'!$L$1346 ->  | L28: ='2 - WAN Service'!$J$44 -> $0.00 | M28: ='2 - WAN Service'!$U$44 -> $0.00 | N28: ='2 - WAN Service'!$X$44 -> $0.00 | O28: ='2 - WAN Service'!$AA$44 -> $0.00 | P28: ='2 - WAN Service'!$AD$44 -> $0.00 | Q28: ='2 - WAN Service'!$AE$44 -> $0.00 | R28: FALSE | S28: ='2 - WAN Service'!$AF$44 -> $0.00 | T28: ='1 - CPE-Router, VPN, & Firewall'!$G$12 -> $0.00 | U28: Incomplete | V28: $112,665
A29: 09 | B29: Citrus | C29: 1007 W MAIN ST | D29: INVERNESS | E29: 34450 | G29: 14,173 | H29: 4,724 | I29: 5,000 | J29: FSSB1 | K29: ='1 - CPE-Router, VPN, & Firewall'!$L$1346 ->  | L29: ='2 - WAN Service'!$J$51 -> $0.00 | M29: ='2 - WAN Service'!$U$51 -> $0.00 | N29: ='2 - WAN Service'!$X$51 -> $0.00 | O29: ='2 - WAN Service'!$AA$51 -> $0.00 | P29: ='2 - WAN Service'!$AD$51 -> $0.00 | Q29: ='2 - WAN Service'!$AE$51 -> $0.00 | R29: FALSE | S29: ='2 - WAN Service'!$AF$51 -> $0.00 | T29: ='1 - CPE-Router, VPN, & Firewall'!$G$12 -> $0.00 | U29: Incomplete | V29: $112,833
A30: 12 | B30: Columbia | C30: 18119 SW STATE ROAD 47 | D30: FORT WHITE | E30: 32038 | G30: 10,029 | H30: 3,343 | I30: 5,000 | J30: FSSB1 | K30: ='1 - CPE-Router, VPN, & Firewall'!$L$1346 ->  | L30: ='2 - WAN Service'!$J$51 -> $0.00 | M30: ='2 - WAN Service'!$U$51 -> $0.00 | N30: ='2 - WAN Service'!$X$51 -> $0.00 | O30: ='2 - WAN Service'!$AA$51 -> $0.00 | P30: ='2 - WAN Service'!$AD$51 -> $0.00 | Q30: ='2 - WAN Service'!$AE$51 -> $0.00 | R30: FALSE | S30: ='2 - WAN Service'!$AF$51 -> $0.00 | T30: ='1 - CPE-Router, VPN, & Firewall'!$G$12 -> $0.00 | U30: Incomplete | V30: $112,833
A31: 18 | B31: Flagler | C31: 1769 EAST MOODY BLVD. | D31: BUNNELL | E31: 32110 | G31: 12,373 | H31: 4,124 | I31: 5,000 | J31: FSSB1 | K31: ='1 - CPE-Router, VPN, & Firewall'!$L$1346 ->  | L31: ='2 - WAN Service'!$J$51 -> $0.00 | M31: ='2 - WAN Service'!$U$51 -> $0.00 | N31: ='2 - WAN Service'!$X$51 -> $0.00 | O31: ='2 - WAN Service'!$AA$51 -> $0.00 | P31: ='2 - WAN Service'!$AD$51 -> $0.00 | Q31: ='2 - WAN Service'!$AE$51 -> $0.00 | R31: FALSE | S31: ='2 - WAN Service'!$AF$51 -> $0.00 | T31: ='1 - CPE-Router, VPN, & Firewall'!$G$12 -> $0.00 | U31: Incomplete | V31: $112,833
A32: 26 | B32: Hendry | C32: 25 E. HICKPOCHEE AVE | D32: LABELLE | E32: 33935 | G32: 6,819 | H32: 2,273 | I32: 5,000 | J32: FSSB1 | K32: ='1 - CPE-Router, VPN, & Firewall'!$L$1346 ->  | L32: ='2 - WAN Service'!$J$51 -> $0.00 | M32: ='2 - WAN Service'!$U$51 -> $0.00 | N32: ='2 - WAN Service'!$X$51 -> $0.00 | O32: ='2 - WAN Service'!$AA$51 -> $0.00 | P32: ='2 - WAN Service'!$AD$51 -> $0.00 | Q32: ='2 - WAN Service'!$AE$51 -> $0.00 | R32: FALSE | S32: ='2 - WAN Service'!$AF$51 -> $0.00 | T32: ='1 - CPE-Router, VPN, & Firewall'!$G$12 -> $0.00 | U32: Incomplete | V32: $112,833
A33: 28 | B33: Highlands | C33: 426 SCHOOL ST | D33: SEBRING | E33: 33870 | G33: 12,051 | H33: 4,017 | I33: 5,000 | J33: FSSB1 | K33: ='1 - CPE-Router, VPN, & Firewall'!$L$1346 ->  | L33: ='2 - WAN Service'!$J$51 -> $0.00 | M33: ='2 - WAN Service'!$U$51 -> $0.00 | N33: ='2 - WAN Service'!$X$51 -> $0.00 | O33: ='2 - WAN Service'!$AA$51 -> $0.00 | P33: ='2 - WAN Service'!$AD$51 -> $0.00 | Q33: ='2 - WAN Service'!$AE$51 -> $0.00 | R33: FALSE | S33: ='2 - WAN Service'!$AF$51 -> $0.00 | T33: ='1 - CPE-Router, VPN, & Firewall'!$G$12 -> $0.00 | U33: Incomplete | V33: $112,833
A34: 32 | B34: Jackson | C34: 2903 JEFFERSON STREET | D34: MARIANNA | E34: 32446 | G34: 6,174 | H34: 2,058 | I34: 5,000 | J34: FSSB1 | K34: ='1 - CPE-Router, VPN, & Firewall'!$L$1346 ->  | L34: ='2 - WAN Service'!$J$51 -> $0.00 | M34: ='2 - WAN Service'!$U$51 -> $0.00 | N34: ='2 - WAN Service'!$X$51 -> $0.00 | O34: ='2 - WAN Service'!$AA$51 -> $0.00 | P34: ='2 - WAN Service'!$AD$51 -> $0.00 | Q34: ='2 - WAN Service'!$AE$51 -> $0.00 | R34: FALSE | S34: ='2 - WAN Service'!$AF$51 -> $0.00 | T34: ='1 - CPE-Router, VPN, & Firewall'!$G$12 -> $0.00 | U34: Incomplete | V34: $112,833
A35: 44 | B35: Monroe | C35: 1105 LEON STREET | D35: KEY WEST | E35: 33040 | G35: 8,097 | H35: 2,699 | I35: 5,000 | J35: FSSB1 | K35: ='1 - CPE-Router, VPN, & Firewall'!$L$1346 ->  | L35: ='2 - WAN Service'!$J$51 -> $0.00 | M35: ='2 - WAN Service'!$U$51 -> $0.00 | N35: ='2 - WAN Service'!$X$51 -> $0.00 | O35: ='2 - WAN Service'!$AA$51 -> $0.00 | P35: ='2 - WAN Service'!$AD$51 -> $0.00 | Q35: ='2 - WAN Service'!$AE$51 -> $0.00 | R35: FALSE | S35: ='2 - WAN Service'!$AF$51 -> $0.00 | T35: ='1 - CPE-Router, VPN, & Firewall'!$G$12 -> $0.00 | U35: Incomplete | V35: $112,833
A36: 45 | B36: Nassau | C36: 1201 ATLANTIC AVENUE | D36: FERNANDINA BEACH | E36: 32034 | G36: 11,024 | H36: 3,675 | I36: 5,000 | J36: FSSB1 | K36: ='1 - CPE-Router, VPN, & Firewall'!$L$1346 ->  | L36: ='2 - WAN Service'!$J$51 -> $0.00 | M36: ='2 - WAN Service'!$U$51 -> $0.00 | N36: ='2 - WAN Service'!$X$51 -> $0.00 | O36: ='2 - WAN Service'!$AA$51 -> $0.00 | P36: ='2 - WAN Service'!$AD$51 -> $0.00 | Q36: ='2 - WAN Service'!$AE$51 -> $0.00 | R36: FALSE | S36: ='2 - WAN Service'!$AF$51 -> $0.00 | T36: ='1 - CPE-Router, VPN, & Firewall'!$G$12 -> $0.00 | U36: Incomplete | V36: $112,833
A37: 47 | B37: Okeechobee | C37: 2855 COLONIAL BLVD | D37: FORT MYERS | E37: 33966 | G37: 6,272 | H37: 2,091 | I37: 5,000 | J37: FSSB1 | K37: ='1 - CPE-Router, VPN, & Firewall'!$L$1346 ->  | L37: ='2 - WAN Service'!$J$51 -> $0.00 | M37: ='2 - WAN Service'!$U$51 -> $0.00 | N37: ='2 - WAN Service'!$X$51 -> $0.00 | O37: ='2 - WAN Service'!$AA$51 -> $0.00 | P37: ='2 - WAN Service'!$AD$51 -> $0.00 | Q37: ='2 - WAN Service'!$AE$51 -> $0.00 | R37: FALSE | S37: ='2 - WAN Service'!$AF$51 -> $0.00 | T37: ='1 - CPE-Router, VPN, & Firewall'!$G$12 -> $0.00 | U37: Incomplete | V37: $112,833
A38: 54 | B38: Putnam | C38: 401 STATE ROAD 26 | D38: MELROSE | E38: 32666 | G38: 10,621 | H38: =G38/3 -> 3,540 | I38: 5,000 | J38: FSSB1 | K38: ='1 - CPE-Router, VPN, & Firewall'!$L$1346 ->  | L38: ='2 - WAN Service'!$J$51 -> $0.00 | M38: ='2 - WAN Service'!$U$51 -> $0.00 | N38: ='2 - WAN Service'!$X$51 -> $0.00 | O38: ='2 - WAN Service'!$AA$51 -> $0.00 | P38: ='2 - WAN Service'!$AD$51 -> $0.00 | Q38: ='2 - WAN Service'!$AE$51 -> $0.00 | R38: FALSE | S38: ='2 - WAN Service'!$AF$51 -> $0.00 | T38: ='1 - CPE-Router, VPN, & Firewall'!$G$12 -> $0.00 | U38: Incomplete | V38: $112,833
A39: 60 | B39: Sumter | C39: 2680 WEST COUNTY ROAD 476 | D39: BUSHNELL | E39: 33513 | G39: 8,129 | H39: 2,710 | I39: 5,000 | J39: FSSB1 | K39: ='1 - CPE-Router, VPN, & Firewall'!$L$1346 ->  | L39: ='2 - WAN Service'!$J$51 -> $0.00 | M39: ='2 - WAN Service'!$U$51 -> $0.00 | N39: ='2 - WAN Service'!$X$51 -> $0.00 | O39: ='2 - WAN Service'!$AA$51 -> $0.00 | P39: ='2 - WAN Service'!$AD$51 -> $0.00 | Q39: ='2 - WAN Service'!$AE$51 -> $0.00 | R39: FALSE | S39: ='2 - WAN Service'!$AF$51 -> $0.00 | T39: ='1 - CPE-Router, VPN, & Firewall'!$G$12 -> $0.00 | U39: Incomplete | V39: $112,833
A40: 66 | B40: Walton | C40: 145 PARK STREET, SUITE 5 | D40: DEFUNIAK SPRINGS | E40: 32435 | G40: 8,011 | H40: 2,670 | I40: 5,000 | J40: FSSB1 | K40: ='1 - CPE-Router, VPN, & Firewall'!$L$1346 ->  | L40: ='2 - WAN Service'!$J$51 -> $0.00 | M40: ='2 - WAN Service'!$U$51 -> $0.00 | N40: ='2 - WAN Service'!$X$51 -> $0.00 | O40: ='2 - WAN Service'!$AA$51 -> $0.00 | P40: ='2 - WAN Service'!$AD$51 -> $0.00 | Q40: ='2 - WAN Service'!$AE$51 -> $0.00 | R40: FALSE | S40: ='2 - WAN Service'!$AF$51 -> $0.00 | T40: ='1 - CPE-Router, VPN, & Firewall'!$G$12 -> $0.00 | U40: Incomplete | V40: $112,833
A41: 08 | B41: Charlotte | C41: 1445 EDUCATION WAY | D41: PORT CHARLOTTE | E41: 33948 | G41: 15,412 | H41: 5,137 | I41: 5,500 | J41: FSSB1 | K41: ='1 - CPE-Router, VPN, & Firewall'!$L$1346 ->  | L41: ='2 - WAN Service'!$J$52 -> $0.00 | M41: ='2 - WAN Service'!$U$52 -> $0.00 | N41: ='2 - WAN Service'!$X$52 -> $0.00 | O41: ='2 - WAN Service'!$AA$52 -> $0.00 | P41: ='2 - WAN Service'!$AD$52 -> $0.00 | Q41: ='2 - WAN Service'!$AE$52 -> $0.00 | R41: FALSE | S41: ='2 - WAN Service'!$AF$52 -> $0.00 | T41: ='1 - CPE-Router, VPN, & Firewall'!$G$12 -> $0.00 | U41: Incomplete | V41: $225,162
A42: 01 | B42: Alachua | C42: 620 EAST UNIVERSITY AVENUE | D42: GAINESVILLE | E42: 32601 | G42: 26,967 | H42: 8,989 | I42: 10,000 | J42: FSSB1 | K42: ='1 - CPE-Router, VPN, & Firewall'!$L$1346 ->  | L42: ='2 - WAN Service'!$J$61 -> $0.00 | M42: ='2 - WAN Service'!$U$61 -> $0.00 | N42: ='2 - WAN Service'!$X$61 -> $0.00 | O42: ='2 - WAN Service'!$AA$61 -> $0.00 | P42: ='2 - WAN Service'!$AD$61 -> $0.00 | Q42: ='2 - WAN Service'!$AE$61 -> $0.00 | R42: FALSE | S42: ='2 - WAN Service'!$AF$61 -> $0.00 | T42: ='1 - CPE-Router, VPN, & Firewall'!$G$12 -> $0.00 | U42: Incomplete | V42: $113,073
A43: 03 | B43: Bay | C43: 1311 BALBOA AVE. | D43: PANAMA CITY | E43: 32401 | G43: 26,666 | H43: 8,889 | I43: 10,000 | J43: FSSB1 | K43: ='1 - CPE-Router, VPN, & Firewall'!$L$1346 ->  | L43: ='2 - WAN Service'!$J$61 -> $0.00 | M43: ='2 - WAN Service'!$U$61 -> $0.00 | N43: ='2 - WAN Service'!$X$61 -> $0.00 | O43: ='2 - WAN Service'!$AA$61 -> $0.00 | P43: ='2 - WAN Service'!$AD$61 -> $0.00 | Q43: ='2 - WAN Service'!$AE$61 -> $0.00 | R43: FALSE | S43: ='2 - WAN Service'!$AF$61 -> $0.00 | T43: ='1 - CPE-Router, VPN, & Firewall'!$G$12 -> $0.00 | U43: Incomplete | V43: $113,073
A44: 27 | B44: Hernando | C44: 919 N BROAD ST | D44: BROOKSVILLE | E44: 34601 | G44: 21,241 | H44: 7,080 | I44: 10,000 | J44: FSSB1 | K44: ='1 - CPE-Router, VPN, & Firewall'!$L$1346 ->  | L44: ='2 - WAN Service'!$J$61 -> $0.00 | M44: ='2 - WAN Service'!$U$61 -> $0.00 | N44: ='2 - WAN Service'!$X$61 -> $0.00 | O44: ='2 - WAN Service'!$AA$61 -> $0.00 | P44: ='2 - WAN Service'!$AD$61 -> $0.00 | Q44: ='2 - WAN Service'!$AE$61 -> $0.00 | R44: FALSE | S44: ='2 - WAN Service'!$AF$61 -> $0.00 | T44: ='1 - CPE-Router, VPN, & Firewall'!$G$12 -> $0.00 | U44: Incomplete | V44: $113,073
A45: 31 | B45: Indian River | C45: 1990 25TH STREET | D45: VERO BEACH | E45: 32960 | G45: 17,686 | H45: 5,895 | I45: 10,000 | J45: FSSB1 | K45: ='1 - CPE-Router, VPN, & Firewall'!$L$1346 ->  | L45: ='2 - WAN Service'!$J$61 -> $0.00 | M45: ='2 - WAN Service'!$U$61 -> $0.00 | N45: ='2 - WAN Service'!$X$61 -> $0.00 | O45: ='2 - WAN Service'!$AA$61 -> $0.00 | P45: ='2 - WAN Service'!$AD$61 -> $0.00 | Q45: ='2 - WAN Service'!$AE$61 -> $0.00 | R45: FALSE | S45: ='2 - WAN Service'!$AF$61 -> $0.00 | T45: ='1 - CPE-Router, VPN, & Firewall'!$G$12 -> $0.00 | U45: Incomplete | V45: $113,073
A46: 43 | B46: Martin | C46: 500 SE OCEAN BLVD. | D46: STUART | E46: 34994 | G46: 18,278 | H46: 6,093 | I46: 10,000 | J46: FSSB1 | K46: ='1 - CPE-Router, VPN, & Firewall'!$L$1346 ->  | L46: ='2 - WAN Service'!$J$61 -> $0.00 | M46: ='2 - WAN Service'!$U$61 -> $0.00 | N46: ='2 - WAN Service'!$X$61 -> $0.00 | O46: ='2 - WAN Service'!$AA$61 -> $0.00 | P46: ='2 - WAN Service'!$AD$61 -> $0.00 | Q46: ='2 - WAN Service'!$AE$61 -> $0.00 | R46: FALSE | S46: ='2 - WAN Service'!$AF$61 -> $0.00 | T46: ='1 - CPE-Router, VPN, & Firewall'!$G$12 -> $0.00 | U46: Incomplete | V46: $113,073
A47: 57 | B47: Santa Rosa | C47: 5086 CANAL STREET | D47: MILTON | E47: 32570 | G47: 25,112 | H47: 8,371 | I47: 10,000 | J47: FSSB1 | K47: ='1 - CPE-Router, VPN, & Firewall'!$L$1346 ->  | L47: ='2 - WAN Service'!$J$61 -> $0.00 | M47: ='2 - WAN Service'!$U$61 -> $0.00 | N47: ='2 - WAN Service'!$X$61 -> $0.00 | O47: ='2 - WAN Service'!$AA$61 -> $0.00 | P47: ='2 - WAN Service'!$AD$61 -> $0.00 | Q47: ='2 - WAN Service'!$AE$61 -> $0.00 | R47: FALSE | S47: ='2 - WAN Service'!$AF$61 -> $0.00 | T47: ='1 - CPE-Router, VPN, & Firewall'!$G$12 -> $0.00 | U47: Incomplete | V47: $113,073
A48: 46 | B48: Okaloosa | C48: 202-A HIGHWAY 85 N | D48: NICEVILLE | E48: 32578 | G48: 30,093 | H48: 10,031 | I48: 11,000 | J48: FSSB2 | K48: ='1 - CPE-Router, VPN, & Firewall'!$L$1354 ->  | L48: ='2 - WAN Service'!$J$62 -> $0.00 | M48: ='2 - WAN Service'!$U$62 -> $0.00 | N48: ='2 - WAN Service'!$X$62 -> $0.00 | O48: ='2 - WAN Service'!$AA$62 -> $0.00 | P48: ='2 - WAN Service'!$AD$62 -> $0.00 | Q48: ='2 - WAN Service'!$AE$62 -> $0.00 | R48: FALSE | S48: ='2 - WAN Service'!$AF$62 -> $0.00 | T48: ='1 - CPE-Router, VPN, & Firewall'!$G$12 -> $0.00 | U48: Incomplete | V48: $225,270
A49: 10 | B49: Clay | C49: 175 ORIOLE STREET | D49: KEYSTONE HEIGHTS | E49: 32656 | G49: 34,485 | H49: 11,495 | I49: 15,000 | J49: FSSB2 | K49: ='1 - CPE-Router, VPN, & Firewall'!$L$1354 ->  | L49: ='2 - WAN Service'!$J$63 -> $0.00 | M49: ='2 - WAN Service'!$U$63 -> $0.00 | N49: ='2 - WAN Service'!$X$63 -> $0.00 | O49: ='2 - WAN Service'!$AA$63 -> $0.00 | P49: ='2 - WAN Service'!$AD$63 -> $0.00 | Q49: ='2 - WAN Service'!$AE$63 -> $0.00 | R49: FALSE | S49: ='2 - WAN Service'!$AF$63 -> $0.00 | T49: ='1 - CPE-Router, VPN, & Firewall'!$G$12 -> $0.00 | U49: Incomplete | V49: $225,642
A50: 37 | B50: Leon | C50: 2757 W PENSACOLA ST | D50: TALLAHASSEE | E50: 32304 | G50: 33,248 | H50: 11,083 | I50: 15,000 | J50: FSSB2 | K50: ='1 - CPE-Router, VPN, & Firewall'!$L$1354 ->  | L50: ='2 - WAN Service'!$J$63 -> $0.00 | M50: ='2 - WAN Service'!$U$63 -> $0.00 | N50: ='2 - WAN Service'!$X$63 -> $0.00 | O50: ='2 - WAN Service'!$AA$63 -> $0.00 | P50: ='2 - WAN Service'!$AD$63 -> $0.00 | Q50: ='2 - WAN Service'!$AE$63 -> $0.00 | R50: FALSE | S50: ='2 - WAN Service'!$AF$63 -> $0.00 | T50: ='1 - CPE-Router, VPN, & Firewall'!$G$12 -> $0.00 | U50: Incomplete | V50: $225,642
A51: 55 | B51: St. Johns | C51: 40 ORANGE ST | D51: ST. AUGUSTINE | E51: 32084 | G51: 33,727 | H51: 11,242 | I51: 15,000 | J51: FSSB2 | K51: ='1 - CPE-Router, VPN, & Firewall'!$L$1354 ->  | L51: ='2 - WAN Service'!$J$63 -> $0.00 | M51: ='2 - WAN Service'!$U$63 -> $0.00 | N51: ='2 - WAN Service'!$X$63 -> $0.00 | O51: ='2 - WAN Service'!$AA$63 -> $0.00 | P51: ='2 - WAN Service'!$AD$63 -> $0.00 | Q51: ='2 - WAN Service'!$AE$63 -> $0.00 | R51: FALSE | S51: ='2 - WAN Service'!$AF$63 -> $0.00 | T51: ='1 - CPE-Router, VPN, & Firewall'!$G$12 -> $0.00 | U51: Incomplete | V51: $225,642
A52: 11 | B52: Collier | C52: 5775 OSCEOLA TRAIL | D52: NAPLES | E52: 34109 | G52: 44,126 | H52: 14,709 | I52: 15,000 | J52: FSSB2 | K52: ='1 - CPE-Router, VPN, & Firewall'!$L$1354 ->  | L52: ='2 - WAN Service'!$J$63 -> $0.00 | M52: ='2 - WAN Service'!$U$63 -> $0.00 | N52: ='2 - WAN Service'!$X$63 -> $0.00 | O52: ='2 - WAN Service'!$AA$63 -> $0.00 | P52: ='2 - WAN Service'!$AD$63 -> $0.00 | Q52: ='2 - WAN Service'!$AE$63 -> $0.00 | R52: FALSE | S52: ='2 - WAN Service'!$AF$63 -> $0.00 | T52: ='1 - CPE-Router, VPN, & Firewall'!$G$12 -> $0.00 | U52: Incomplete | V52: $113,121
A53: 17 | B53: Escambia | C53: 75 N. PACE BLVD. | D53: PENSACOLA | E53: 32505 | G53: 39,828 | H53: 13,276 | I53: 15,000 | J53: FSSB2 | K53: ='1 - CPE-Router, VPN, & Firewall'!$L$1354 ->  | L53: ='2 - WAN Service'!$J$63 -> $0.00 | M53: ='2 - WAN Service'!$U$63 -> $0.00 | N53: ='2 - WAN Service'!$X$63 -> $0.00 | O53: ='2 - WAN Service'!$AA$63 -> $0.00 | P53: ='2 - WAN Service'!$AD$63 -> $0.00 | Q53: ='2 - WAN Service'!$AE$63 -> $0.00 | R53: FALSE | S53: ='2 - WAN Service'!$AF$63 -> $0.00 | T53: ='1 - CPE-Router, VPN, & Firewall'!$G$12 -> $0.00 | U53: Incomplete | V53: $113,121
A54: 35 | B54: Lake | C54: 814 WEST BRYAN STREET | D54: TAVARES | E54: 32778 | G54: 40,743 | H54: 13,581 | I54: 15,000 | J54: FSSB2 | K54: ='1 - CPE-Router, VPN, & Firewall'!$L$1354 ->  | L54: ='2 - WAN Service'!$J$63 -> $0.00 | M54: ='2 - WAN Service'!$U$63 -> $0.00 | N54: ='2 - WAN Service'!$X$63 -> $0.00 | O54: ='2 - WAN Service'!$AA$63 -> $0.00 | P54: ='2 - WAN Service'!$AD$63 -> $0.00 | Q54: ='2 - WAN Service'!$AE$63 -> $0.00 | R54: FALSE | S54: ='2 - WAN Service'!$AF$63 -> $0.00 | T54: ='1 - CPE-Router, VPN, & Firewall'!$G$12 -> $0.00 | U54: Incomplete | V54: $113,121
A55: 42 | B55: Marion | C55: 420B SE ALVAREZ AVENUE | D55: OCALA | E55: 34471 | G55: 40,960 | H55: 13,653 | I55: 15,000 | J55: FSSB2 | K55: ='1 - CPE-Router, VPN, & Firewall'!$L$1354 ->  | L55: ='2 - WAN Service'!$J$63 -> $0.00 | M55: ='2 - WAN Service'!$U$63 -> $0.00 | N55: ='2 - WAN Service'!$X$63 -> $0.00 | O55: ='2 - WAN Service'!$AA$63 -> $0.00 | P55: ='2 - WAN Service'!$AD$63 -> $0.00 | Q55: ='2 - WAN Service'!$AE$63 -> $0.00 | R55: FALSE | S55: ='2 - WAN Service'!$AF$63 -> $0.00 | T55: ='1 - CPE-Router, VPN, & Firewall'!$G$12 -> $0.00 | U55: Incomplete | V55: $113,121
A56: 56 | B56: St. Lucie | C56: 4204 OKEECHOBEE ROAD | D56: FORT PIERCE | E56: 34947 | G56: 37,988 | H56: 12,663 | I56: 15,000 | J56: FSSB2 | K56: ='1 - CPE-Router, VPN, & Firewall'!$L$1354 ->  | L56: ='2 - WAN Service'!$J$63 -> $0.00 | M56: ='2 - WAN Service'!$U$63 -> $0.00 | N56: ='2 - WAN Service'!$X$63 -> $0.00 | O56: ='2 - WAN Service'!$AA$63 -> $0.00 | P56: ='2 - WAN Service'!$AD$63 -> $0.00 | Q56: ='2 - WAN Service'!$AE$63 -> $0.00 | R56: FALSE | S56: ='2 - WAN Service'!$AF$63 -> $0.00 | T56: ='1 - CPE-Router, VPN, & Firewall'!$G$12 -> $0.00 | U56: Incomplete | V56: $113,121
A57: 58 | B57: Sarasota | C57: 1960 LANDINGS BLVD | D57: SARASOTA | E57: 34231 | G57: 41,177 | H57: 13,726 | I57: 15,000 | J57: FSSB2 | K57: ='1 - CPE-Router, VPN, & Firewall'!$L$1354 ->  | L57: ='2 - WAN Service'!$J$63 -> $0.00 | M57: ='2 - WAN Service'!$U$63 -> $0.00 | N57: ='2 - WAN Service'!$X$63 -> $0.00 | O57: ='2 - WAN Service'!$AA$63 -> $0.00 | P57: ='2 - WAN Service'!$AD$63 -> $0.00 | Q57: ='2 - WAN Service'!$AE$63 -> $0.00 | R57: FALSE | S57: ='2 - WAN Service'!$AF$63 -> $0.00 | T57: ='1 - CPE-Router, VPN, & Firewall'!$G$12 -> $0.00 | U57: Incomplete | V57: $113,121
A58: 41 | B58: Manatee | C58: 215 MANATEE AVENUE WEST | D58: BRADENTON | E58: 34205 | G58: 45,758 | H58: 15,253 | I58: 20,000 | J58: FSSB2 | K58: ='1 - CPE-Router, VPN, & Firewall'!$L$1354 ->  | L58: ='2 - WAN Service'!$J$64 -> $0.00 | M58: ='2 - WAN Service'!$U$64 -> $0.00 | N58: ='2 - WAN Service'!$X$64 -> $0.00 | O58: ='2 - WAN Service'!$AA$64 -> $0.00 | P58: ='2 - WAN Service'!$AD$64 -> $0.00 | Q58: ='2 - WAN Service'!$AE$64 -> $0.00 | R58: FALSE | S58: ='2 - WAN Service'!$AF$64 -> $0.00 | T58: ='1 - CPE-Router, VPN, & Firewall'!$G$12 -> $0.00 | U58: Incomplete | V58: $113,145
A59: 49 | B59: Osceola | C59: 817 BILL BECK BLVD. | D59: KISSIMMEE | E59: 34744 | G59: 58,279 | H59: 19,426 | I59: 20,000 | J59: FSSB2 | K59: ='1 - CPE-Router, VPN, & Firewall'!$L$1354 ->  | L59: ='2 - WAN Service'!$J$64 -> $0.00 | M59: ='2 - WAN Service'!$U$64 -> $0.00 | N59: ='2 - WAN Service'!$X$64 -> $0.00 | O59: ='2 - WAN Service'!$AA$64 -> $0.00 | P59: ='2 - WAN Service'!$AD$64 -> $0.00 | Q59: ='2 - WAN Service'!$AE$64 -> $0.00 | R59: FALSE | S59: ='2 - WAN Service'!$AF$64 -> $0.00 | T59: ='1 - CPE-Router, VPN, & Firewall'!$G$12 -> $0.00 | U59: Incomplete | V59: $113,145
A60: 64 | B60: Volusia | C60: 200 N. CLARA AVENUE | D60: DELAND | E60: 32720 | G60: 60,604 | H60: 20,201 | I60: 25,000 | J60: FSSB2 | K60: ='1 - CPE-Router, VPN, & Firewall'!$L$1354 ->  | L60: ='2 - WAN Service'!$J$65 -> $0.00 | M60: ='2 - WAN Service'!$U$65 -> $0.00 | N60: ='2 - WAN Service'!$X$65 -> $0.00 | O60: ='2 - WAN Service'!$AA$65 -> $0.00 | P60: ='2 - WAN Service'!$AD$65 -> $0.00 | Q60: ='2 - WAN Service'!$AE$65 -> $0.00 | R60: FALSE | S60: ='2 - WAN Service'!$AF$65 -> $0.00 | T60: ='1 - CPE-Router, VPN, & Firewall'!$G$12 -> $0.00 | U60: Incomplete | V60: $225,498
A61: 59 | B61: Seminole | C61: 400 E. LAKE MARY BOULEVARD | D61: SANFORD | E61: 32773 | G61: 63,088 | H61: 21,029 | I61: 25,000 | J61: FSSB2 | K61: ='1 - CPE-Router, VPN, & Firewall'!$L$1354 ->  | L61: ='2 - WAN Service'!$J$65 -> $0.00 | M61: ='2 - WAN Service'!$U$65 -> $0.00 | N61: ='2 - WAN Service'!$X$65 -> $0.00 | O61: ='2 - WAN Service'!$AA$65 -> $0.00 | P61: ='2 - WAN Service'!$AD$65 -> $0.00 | Q61: ='2 - WAN Service'!$AE$65 -> $0.00 | R61: FALSE | S61: ='2 - WAN Service'!$AF$65 -> $0.00 | T61: ='1 - CPE-Router, VPN, & Firewall'!$G$12 -> $0.00 | U61: Incomplete | V61: $225,810
A62: 05 | B62: Brevard | C62: 308 FORREST AVE | D62: COCOA | E62: 32922 | G62: 70,099 | H62: 23,366 | I62: 25,000 | J62: FSSB2 | K62: ='1 - CPE-Router, VPN, & Firewall'!$L$1354 ->  | L62: ='2 - WAN Service'!$J$65 -> $0.00 | M62: ='2 - WAN Service'!$U$65 -> $0.00 | N62: ='2 - WAN Service'!$X$65 -> $0.00 | O62: ='2 - WAN Service'!$AA$65 -> $0.00 | P62: ='2 - WAN Service'!$AD$65 -> $0.00 | Q62: ='2 - WAN Service'!$AE$65 -> $0.00 | R62: FALSE | S62: ='2 - WAN Service'!$AF$65 -> $0.00 | T62: ='1 - CPE-Router, VPN, & Firewall'!$G$12 -> $0.00 | U62: Incomplete | V62: $113,169
A63: 51 | B63: Pasco | C63: 7227 LAND O' LAKES BLVD | D63: LAND O' LAKES | E63: 34638 | G63: 66,765 | H63: 22,255 | I63: 25,000 | J63: FSSB2 | K63: ='1 - CPE-Router, VPN, & Firewall'!$L$1354 ->  | L63: ='2 - WAN Service'!$J$65 -> $0.00 | M63: ='2 - WAN Service'!$U$65 -> $0.00 | N63: ='2 - WAN Service'!$X$65 -> $0.00 | O63: ='2 - WAN Service'!$AA$65 -> $0.00 | P63: ='2 - WAN Service'!$AD$65 -> $0.00 | Q63: ='2 - WAN Service'!$AE$65 -> $0.00 | R63: FALSE | S63: ='2 - WAN Service'!$AF$65 -> $0.00 | T63: ='1 - CPE-Router, VPN, & Firewall'!$G$12 -> $0.00 | U63: Incomplete | V63: $113,169
A64: 36 | B64: Lee | C64: 2855 COLONIAL BLVD | D64: FORT MYERS | E64: 33966 | G64: 86,977 | H64: 28,992 | I64: 30,000 | J64: FSSB2 | K64: ='1 - CPE-Router, VPN, & Firewall'!$L$1354 ->  | L64: ='2 - WAN Service'!J66 -> $0.00 | M64: ='2 - WAN Service'!$U66 -> $0.00 | N64: ='2 - WAN Service'!$X66 -> $0.00 | O64: ='2 - WAN Service'!$AA66 -> $0.00 | P64: ='2 - WAN Service'!$AD66 -> $0.00 | Q64: ='2 - WAN Service'!$AE66 -> $0.00 | R64: FALSE | S64: ='2 - WAN Service'!$AF66 -> $0.00 | T64: ='1 - CPE-Router, VPN, & Firewall'!$G$12 -> $0.00 | U64: Incomplete | V64: $113,193
A65: 53 | B65: Polk | C65: 1915 SOUTH FLORAL AVE | D65: BARTOW | E65: 33830 | G65: 95,984 | H65: 31,995 | I65: 35,000 | J65: FSSB2 | K65: ='1 - CPE-Router, VPN, & Firewall'!$L$1354 ->  | L65: ='2 - WAN Service'!J67 -> $0.00 | M65: ='2 - WAN Service'!$U67 -> $0.00 | N65: ='2 - WAN Service'!$X67 -> $0.00 | O65: ='2 - WAN Service'!$AA67 -> $0.00 | P65: ='2 - WAN Service'!$AD67 -> $0.00 | Q65: ='2 - WAN Service'!$AE67 -> $0.00 | R65: FALSE | S65: ='2 - WAN Service'!$AF67 -> $0.00 | T65: ='1 - CPE-Router, VPN, & Firewall'!$G$12 -> $0.00 | U65: Incomplete | V65: $225,858
A66: 52 | B66: Pinellas | C66: 301 FOURTH ST. SW | D66: LARGO | E66: 33770 | G66: 102,266 | H66: 34,089 | I66: 35,000 | J66: FSSB2 | K66: ='1 - CPE-Router, VPN, & Firewall'!$L$1354 ->  | L66: ='2 - WAN Service'!J67 -> $0.00 | M66: ='2 - WAN Service'!$U67 -> $0.00 | N66: ='2 - WAN Service'!$X67 -> $0.00 | O66: ='2 - WAN Service'!$AA67 -> $0.00 | P66: ='2 - WAN Service'!$AD67 -> $0.00 | Q66: ='2 - WAN Service'!$AE67 -> $0.00 | R66: FALSE | S66: ='2 - WAN Service'!$AF67 -> $0.00 | T66: ='1 - CPE-Router, VPN, & Firewall'!$G$12 -> $0.00 | U66: Incomplete | V66: $113,217
A67: 16 | B67: Duval | C67: 6425 SOUTHPOINT PARKWAY | D67: JACKSONVILLE | E67: 32205 | G67: 127,021 | H67: 42,340 | I67: 45,000 | J67: FSSB3 | K67: ='1 - CPE-Router, VPN, & Firewall'!$L$1354 ->  | L67: ='2 - WAN Service'!J69 -> $0.00 | M67: ='2 - WAN Service'!$U69 -> $0.00 | N67: ='2 - WAN Service'!$X69 -> $0.00 | O67: ='2 - WAN Service'!$AA69 -> $0.00 | P67: ='2 - WAN Service'!$AD69 -> $0.00 | Q67: ='2 - WAN Service'!$AE69 -> $0.00 | R67: FALSE | S67: ='2 - WAN Service'!$AF69 -> $0.00 | T67: ='1 - CPE-Router, VPN, & Firewall'!$G$12 -> $0.00 | U67: Incomplete | V67: $113,265
A68: 50 | B68: Palm Beach | C68: 3300 FOREST HILL BLVD | D68: WEST PALM BEACH | E68: 33406 | G68: 180,987 | H68: 60,329 | I68: 70,000 | J68: FSSB3 | K68: ='1 - CPE-Router, VPN, & Firewall'!$L$1354 ->  | L68: ='2 - WAN Service'!J72 -> $0.00 | M68: ='2 - WAN Service'!$U72 -> $0.00 | N68: ='2 - WAN Service'!$X72 -> $0.00 | O68: ='2 - WAN Service'!$AA72 -> $0.00 | P68: ='2 - WAN Service'!$AD72 -> $0.00 | Q68: ='2 - WAN Service'!$AE72 -> $0.00 | R68: FALSE | S68: ='2 - WAN Service'!$AF72 -> $0.00 | T68: ='1 - CPE-Router, VPN, & Firewall'!$G$12 -> $0.00 | U68: Incomplete | V68: $225,690
A69: 48 | B69: Orange | C69: 445 W AMELIA ST | D69: ORLANDO | E69: 32801 | G69: 188,558 | H69: 62,853 | I69: 70,000 | J69: FSSB3 | K69: ='1 - CPE-Router, VPN, & Firewall'!$L$1354 ->  | L69: ='2 - WAN Service'!J72 -> $0.00 | M69: ='2 - WAN Service'!$U72 -> $0.00 | N69: ='2 - WAN Service'!$X72 -> $0.00 | O69: ='2 - WAN Service'!$AA72 -> $0.00 | P69: ='2 - WAN Service'!$AD72 -> $0.00 | Q69: ='2 - WAN Service'!$AE72 -> $0.00 | R69: FALSE | S69: ='2 - WAN Service'!$AF72 -> $0.00 | T69: ='1 - CPE-Router, VPN, & Firewall'!$G$12 -> $0.00 | U69: Incomplete | V69: $226,146
A70: 29 | B70: Hillsborough | C70: 901 EAST KENNEDY BOULEVARD | D70: TAMPA | E70: 33602 | G70: 201,664 | H70: =G70/3 -> 67,221 | I70: 70,000 | J70: FSSB3 | K70: ='1 - CPE-Router, VPN, & Firewall'!$L$1354 ->  | L70: ='2 - WAN Service'!J72 -> $0.00 | M70: ='2 - WAN Service'!$U72 -> $0.00 | N70: ='2 - WAN Service'!$X72 -> $0.00 | O70: ='2 - WAN Service'!$AA72 -> $0.00 | P70: ='2 - WAN Service'!$AD72 -> $0.00 | Q70: ='2 - WAN Service'!$AE72 -> $0.00 | R70: FALSE | S70: ='2 - WAN Service'!$AF72 -> $0.00 | T70: ='1 - CPE-Router, VPN, & Firewall'!$G$12 -> $0.00 | U70: Incomplete | V70: $113,337
A71: 06 | B71: Broward | C71: 7720 W. OAKLAND PK BLVD | D71: FORT LAUDERDALE | E71: 33351 | G71: 261,438 | H71: 87,146 | I71: 90,000 | J71: FSSB3 | K71: ='1 - CPE-Router, VPN, & Firewall'!$L$1354 ->  | L71: ='2 - WAN Service'!J74 -> $0.00 | M71: ='2 - WAN Service'!$U74 -> $0.00 | N71: ='2 - WAN Service'!$X74 -> $0.00 | O71: ='2 - WAN Service'!$AA74 -> $0.00 | P71: ='2 - WAN Service'!$AD74 -> $0.00 | Q71: ='2 - WAN Service'!$AE74 -> $0.00 | R71: =IF(F71=$M$4,M71,IF(F71=$N$4,N71,IF(F71=$O$4,O71,IF(F71=$P$4,P71,IF(F71=$Q$4,Q71))))) -> FALSE | S71: ='2 - WAN Service'!$AF74 -> $0.00 | T71: ='1 - CPE-Router, VPN, & Firewall'!$G$12 -> $0.00 | U71: =IF(OR(F71=M$4,F71=N$4,F71=O$4,F71=P$4,F71=Q$4),K71+L71+R71+S71+T71,"Incomplete") -> Incomplete | V71: $113,385
A72: 13 | B72: Dade | C72: 13135 SW 26TH STREET | D72: MIAMI | E72: 33175 | G72: 352,262 | H72: 117,421 | I72: 120,000 | J72: FSSB4 | K72: ='1 - CPE-Router, VPN, & Firewall'!$L$1358 ->  | L72: ='2 - WAN Service'!J77 -> $0.00 | M72: ='2 - WAN Service'!$U77 -> $0.00 | N72: ='2 - WAN Service'!$X77 -> $0.00 | O72: ='2 - WAN Service'!$AA77 -> $0.00 | P72: ='2 - WAN Service'!$AD77 -> $0.00 | Q72: ='2 - WAN Service'!$AE77 -> $0.00 | R72: FALSE | S72: ='2 - WAN Service'!$AF77 -> $0.00 | T72: ='1 - CPE-Router, VPN, & Firewall'!$G$12 -> $0.00 | U72: Incomplete | V72: $113,457
A73: Snapshot Total | U73: =IF(COUNTIF(U6:U72,"Incomplete")=0,SUM(U6:U72),"Incomplete") -> Incomplete | V73: =SUM(V6:V72) -> $8,688,351
A74: Percent Savings | V74: =-(U73-V73)/ABS(V73) -> 

Sheet FIRN CPE (hidden)
A1: CSA | B1: Bandwidth | C1: Current | D1: Data from Freddy last night | E1: New USOC | F1: Data from Freddy this morning | G1: Freddy's Comments | H1: Final CPE List | I1: Tabitha Comments/Questions | J1: USOC
A2: 0VH$I40000112 | B2: 0 | C2: Cisco 3750 | D2: 3825-ME-HSEC | E2: =VLOOKUP(D2,'FIRN Routers'!$E$2:$G$56,3,FALSE) -> WRRLB | F2: ASR1002F-ME-AES-VPN | G2: encryption, district support, content filtering, emergency web page-155 meg ckt/0VH$EC3-0001-13 | H2: ASR1002F-ME-AES-VPN | I2: Difference in data from Freddy last night and data sent this morning. Please double check. | J2: =VLOOKUP(H2,'FIRN Routers'!$E$2:$G$60,3,FALSE) -> WKKG6 | K2: WKKG6 | L2: =VLOOKUP(K2,$M$2:$M$60,1,FALSE) -> WKKG6 | M2: WKK4V
A3: 489$I12021310 | B3: 12M | C3: Cisco 2821 | D3: 1841-ME-HSEC | E3: =VLOOKUP(D3,'FIRN Routers'!$E$2:$G$56,3,FALSE) -> WAADF | F3: 2921-ME-HSEC | G3: 0 | H3: 2921-ME-HSEC | I3: Difference in data from Freddy last night and data sent this morning. Please double check. | J3: =VLOOKUP(H3,'FIRN Routers'!$E$2:$G$60,3,FALSE) -> WLLOU | K3: WLLOU | L3: =VLOOKUP(K3,$M$2:$M$60,1,FALSE) -> WLLOU | M3: WKK4E
A4: 48X$E90051513 | B4: 90M | C4: Cisco 3825 | D4: 3925-ME-HSEC | E4: =VLOOKUP(D4,'FIRN Routers'!$E$2:$G$56,3,FALSE) -> WLLH1 | F4: 3925-ME-HSEC | G4: 0 | H4: 3925-ME-HSEC | J4: =VLOOKUP(H4,'FIRN Routers'!$E$2:$G$60,3,FALSE) -> WLLH1 | K4: WLLH1 | L4: WLLH1 | M4: WKK49
A5: 48X$EC6051413 | B5: 300M | C5: Juniper MX | D5: ASR1002F-ME-AES-VPN | E5: =VLOOKUP(D5,'FIRN Routers'!$E$2:$G$56,3,FALSE) -> WKKG6 | F5: ASR1002F-ME-AES-VPN | G5: 0 | H5: ASR1002F-ME-AES-VPN | J5: =VLOOKUP(H5,'FIRN Routers'!$E$2:$G$60,3,FALSE) -> WKKG6 | K5: WKKG6 | L5: WKKG6 | M5: WKK52
A6: A02$IC2014110 | B6: 100M | D6: 3925-ME-HSEC | E6: =VLOOKUP(D6,'FIRN Routers'!$E$2:$G$56,3,FALSE) -> WLLH1 | F6: 0 | G6: VPN/Encryption Services (WKK37) | H6: ASR1002F-ME-AES-VPN | I6: Difference in data from Freddy last night and data sent this morning. Please double check. If Encryption only, we do need a VPN appliance to grandfather current customers into the new contract correct? If so, is the one listed in Final CPE column sufficient? | J6: =VLOOKUP(H6,'FIRN Routers'!$E$2:$G$60,3,FALSE) -> WKKG6 | K6: WKKG6 | L6: WKKG6 | M6: WKK4W
A7: A06$I15023010 | B7: 15M | C7: Cisco 2821 | D7: 2821-ME-HSEC | E7: =VLOOKUP(D7,'FIRN Routers'!$E$2:$G$56,3,FALSE) -> WRRE5 | F7: 2821-ME-HSEC | G7: 0 | H7: 2821-ME-HSEC | J7: =VLOOKUP(H7,'FIRN Routers'!$E$2:$G$60,3,FALSE) -> WRRE5 | K7: WRRE5 | L7: WRRE5 | M7: WKK4Q
A8: A09$IC4002611 | B8: 200M | C8: Cisco ASR 1001 | D8: ASR1002F-ME-AES-VPN | E8: =VLOOKUP(D8,'FIRN Routers'!$E$2:$G$56,3,FALSE) -> WKKG6 | F8: ASR1002F-ME-AES-VPN | G8: 0 | H8: ASR1002F-ME-AES-VPN | J8: =VLOOKUP(H8,'FIRN Routers'!$E$2:$G$60,3,FALSE) -> WKKG6 | K8: WKKG6 | L8: WKKG6 | M8: WKK4J
A9: A11$ICX020310 | B9: 0 | C9: Cisco 3750 | D9: ????????? | E9: =VLOOKUP(D9,'FIRN Routers'!$E$2:$G$56,3,FALSE) ->  | F9: ASR1002F-ME-AES-VPN | G9: 3ENCRYPTION, DISTRICT SUPPORT, EMERGENCY WEB PAGE,130 MEG CKT INTERNET Bundled: 130Mb Metro-Ethernet (WKK2P) | H9: ASR1002F-ME-AES-VPN | J9: =VLOOKUP(H9,'FIRN Routers'!$E$2:$G$60,3,FALSE) -> WKKG6 | K9: WKKG6 | L9: WKKG6 | M9: WKK3W
A10: A12$I90000612 | B10: 90M | C10: Cisco 3825 | D10: 3925-ME-HSEC | E10: =VLOOKUP(D10,'FIRN Routers'!$E$2:$G$56,3,FALSE) -> WLLH1 | F10: 3925-ME-HSEC | G10: 0 | H10: 3925-ME-HSEC | J10: =VLOOKUP(H10,'FIRN Routers'!$E$2:$G$60,3,FALSE) -> WLLH1 | K10: WLLH1 | L10: WLLH1 | M10: WKK4J
A11: A15$IC8019610 | B11: 400M | C11: Cisco ASR 1001 | D11: ASR1002F-ME-AES-VPN | E11: =VLOOKUP(D11,'FIRN Routers'!$E$2:$G$56,3,FALSE) -> WKKG6 | F11: ASR1002F-ME-AES-VPN | G11: 0 | H11: ASR1002F-ME-AES-VPN | J11: =VLOOKUP(H11,'FIRN Routers'!$E$2:$G$60,3,FALSE) -> WKKG6 | K11: WKKG6 | L11: WKKG6 | M11: WKK4R
A12: A17$I30000111 | B12: 0 | C12: Cisco 3825 | D12: 3825-ME-HSEC | E12: =VLOOKUP(D12,'FIRN Routers'!$E$2:$G$56,3,FALSE) -> WRRLB | F12: 3925-ME-HSEC | G12: INTERNET Bundled: 65Mb Metro-Ethernet (WKK2M)+DS+VPN | H12: 3925-ME-HSEC | I12: Difference in data from Freddy last night and data sent this morning. Please double check. | J12: =VLOOKUP(H12,'FIRN Routers'!$E$2:$G$60,3,FALSE) -> WLLH1 | K12: WLLH1 | L12: WLLH1 | M12: WKK3G
A13: A21$ECC000213 | B13: 622M | C13: Cisco ASR 1001 | D13: ASR1002F-ME-AES-VPN | E13: =VLOOKUP(D13,'FIRN Routers'!$E$2:$G$56,3,FALSE) -> WKKG6 | F13: ASR1002F-ME-AES-VPN | G13: 0 | H13: ASR1002F-ME-AES-VPN | J13: =VLOOKUP(H13,'FIRN Routers'!$E$2:$G$60,3,FALSE) -> WKKG6 | K13: WKKG6 | L13: WKKG6 | M13: WKK3J
A14: A24$JC6000413 | B14: 300M | C14: Cisco ASR 1001 | D14: ASR1002F-ME-AES-VPN | E14: =VLOOKUP(D14,'FIRN Routers'!$E$2:$G$56,3,FALSE) -> WKKG6 | F14: ASR1002F-ME-AES-VPN | G14: 0 | H14: ASR1002F-ME-AES-VPN | J14: =VLOOKUP(H14,'FIRN Routers'!$E$2:$G$60,3,FALSE) -> WKKG6 | K14: WKKG6 | L14: WKKG6 | M14: WKK4Z
A15: A25$IC2000612 | B15: 100M | C15: Cisco 3750 | D15: 3925-ME-HSEC | E15: =VLOOKUP(D15,'FIRN Routers'!$E$2:$G$56,3,FALSE) -> WLLH1 | F15: 3925-ME-HSEC | G15: 0 | H15: 3925-ME-HSEC | J15: =VLOOKUP(H15,'FIRN Routers'!$E$2:$G$60,3,FALSE) -> WLLH1 | K15: WLLH1 | L15: WLLH1 | M15: WKK1A
A16: A30$EC4000113 | B16: 200M | C16: Juniper MX | D16: ASR1002F-ME-AES-VPN | E16: =VLOOKUP(D16,'FIRN Routers'!$E$2:$G$56,3,FALSE) -> WKKG6 | F16: ASR1002F-ME-AES-VPN | G16: 0 | H16: ASR1002F-ME-AES-VPN | J16: =VLOOKUP(H16,'FIRN Routers'!$E$2:$G$60,3,FALSE) -> WKKG6 | K16: WKKG6 | L16: WKKG6 | M16: WKK1C
A17: A30$EC4000213 | B17: 200M | C17: Juniper MX | D17: ASR1002F-ME-AES-VPN | E17: =VLOOKUP(D17,'FIRN Routers'!$E$2:$G$56,3,FALSE) -> WKKG6 | F17: ASR1002F-ME-AES-VPN | G17: 0 | H17: ASR1002F-ME-AES-VPN | J17: =VLOOKUP(H17,'FIRN Routers'!$E$2:$G$60,3,FALSE) -> WKKG6 | K17: WKKG6 | L17: WKKG6 | M17: WKK2O
A18: A36$IC2000112 | B18: 100M | C18: Cisco 3825 | D18: 3925-ME-HSEC | E18: =VLOOKUP(D18,'FIRN Routers'!$E$2:$G$56,3,FALSE) -> WLLH1 | F18: 3925-ME-HSEC | G18: 0 | H18: 3925-ME-HSEC | J18: =VLOOKUP(H18,'FIRN Routers'!$E$2:$G$60,3,FALSE) -> WLLH1 | K18: WLLH1 | L18: WLLH1 | M18: WKK23
A19: A38$ICD000212 | B19: 700M | C19: Juniper MX | D19: ASR1002F-ME-AES-VPN | E19: =VLOOKUP(D19,'FIRN Routers'!$E$2:$G$56,3,FALSE) -> WKKG6 | F19: ASR1002F-ME-AES-VPN | G19: 0 | H19: ASR1002F-ME-AES-VPN | J19: =VLOOKUP(H19,'FIRN Routers'!$E$2:$G$60,3,FALSE) -> WKKG6 | K19: WKKG6 | L19: WKKG6 | M19: WKK2G
A20: A48$IC2000211 | B20: 100M | C20: Cisco 3750 | D20: 3925-ME-HSEC | E20: =VLOOKUP(D20,'FIRN Routers'!$E$2:$G$56,3,FALSE) -> WLLH1 | F20: 3925-ME-HSEC | G20: 0 | H20: 3925-ME-HSEC | J20: =VLOOKUP(H20,'FIRN Routers'!$E$2:$G$60,3,FALSE) -> WLLH1 | K20: WLLH1 | L20: WLLH1 | M20: WKK1D
A21: A51$I00000911 | B21: 0 | D21: 0 | E21: =VLOOKUP(D21,'FIRN Routers'!$E$2:$G$56,3,FALSE) ->  | F21: 0 | G21: CONTENT FILTERING, ENCRYPTION, EMERGENCY WEB PAGE | H21: ASR1002F-ME-AES-VPN | I21: If Encryption only, we do need a VPN appliance to grandfather current customers into the new contract correct? If so, is the one listed in Final CPE column sufficient? | J21: =VLOOKUP(H21,'FIRN Routers'!$E$2:$G$60,3,FALSE) -> WKKG6 | K21: WKKG6 | L21: WKKG6 | M21: WKK2R
A22: A56$IC2000312 | B22: 100M | C22: Cisco 3825 | D22: 3925-ME-HSEC | E22: =VLOOKUP(D22,'FIRN Routers'!$E$2:$G$56,3,FALSE) -> WLLH1 | F22: 3925-ME-HSEC | G22: 0 | H22: 3925-ME-HSEC | J22: =VLOOKUP(H22,'FIRN Routers'!$E$2:$G$60,3,FALSE) -> WLLH1 | K22: WLLH1 | L22: WLLH1 | M22: WKK2S
A23: A60$I1G000111 | B23: 1G | C23: Cisco ASR 1001 | D23: ASR1002F-ME-AES-VPN | E23: =VLOOKUP(D23,'FIRN Routers'!$E$2:$G$56,3,FALSE) -> WKKG6 | F23: ASR1002F-ME-AES-VPN | G23: 0 | H23: ASR1002F-ME-AES-VPN | J23: =VLOOKUP(H23,'FIRN Routers'!$E$2:$G$60,3,FALSE) -> WKKG6 | K23: WKKG6 | L23: WKKG6 | M23: WKK2L
A24: A60$I1G013210 | B24: 1G | C24: Cisco ASR 1001 | D24: ASR1002F-ME-AES-VPN | E24: =VLOOKUP(D24,'FIRN Routers'!$E$2:$G$56,3,FALSE) -> WKKG6 | F24: ASR1002F-ME-AES-VPN | G24: 0 | H24: ASR1002F-ME-AES-VPN | J24: =VLOOKUP(H24,'FIRN Routers'!$E$2:$G$60,3,FALSE) -> WKKG6 | K24: WKKG6 | L24: WKKG6 | M24: WEE7R
A25: A62$I06020710 | B25: 6M | C25: Cisco 2821 | D25: 2821-4T1-HSEC | E25: =VLOOKUP(D25,'FIRN Routers'!$E$2:$G$56,3,FALSE) -> WRRE4 | F25: 2921-4T1-HSEC | G25: 0 | H25: 2921-4T1-HSEC | I25: Difference in data from Freddy last night and data sent this morning. Please double check. | J25: =VLOOKUP(H25,'FIRN Routers'!$E$2:$G$60,3,FALSE) -> WLL5P | K25: WLL5P | L25: WLL5P | M25: WEE7Y
A26: A69$I20021710 | B26: 0 | C26: Cisco 3825 | D26: 3825-ME-HSEC | E26: =VLOOKUP(D26,'FIRN Routers'!$E$2:$G$56,3,FALSE) -> WRRLB | F26: 3925-ME-HSEC | G26: INTERNET Bundled: 20Mb Metro-Ethernet (WKK2A)+Enhanced Router (WKK34)+Content Filtering License Cost - Minimum 100 Units (WKK6P) +Other ONS services. | H26: 3925-ME-HSEC | I26: Difference in data from Freddy last night and data sent this morning. Please double check. | J26: =VLOOKUP(H26,'FIRN Routers'!$E$2:$G$60,3,FALSE) -> WLLH1 | K26: WLLH1 | L26: WLLH1 | M26: WKK2U
A27: A74$IEN013710 | B27: 0 | D27: 0 | E27: =VLOOKUP(D27,'FIRN Routers'!$E$2:$G$56,3,FALSE) ->  | F27: 0 | G27: ENCRYPTION | H27: ASR1002F-ME-AES-VPN | I27: If Encryption only, we do need a VPN appliance to grandfather current customers into the new contract correct? If so, is the one listed in Final CPE column sufficient? | J27: =VLOOKUP(H27,'FIRN Routers'!$E$2:$G$60,3,FALSE) -> WKKG6 | K27: WKKG6 | L27: WKKG6 | M27: WKK2A
A28: A75$I00121912 | B28: 0 | D28: 0 | E28: =VLOOKUP(D28,'FIRN Routers'!$E$2:$G$56,3,FALSE) ->  | F28: NA | G28: ONLY Content Filtering License Cost - Minimum 100 Units (WKK6P) and VPN/Encryption Services (WKK37) | H28: ASR1002F-ME-AES-VPN | J28: =VLOOKUP(H28,'FIRN Routers'!$E$2:$G$60,3,FALSE) -> WKKG6 | K28: WKKG6 | L28: WKKG6 | M28: WKK28
A29: A76$ICA013010 | B29: 500M | C29: Cisco ASR 1001 | D29: ASR1002F-ME-AES-VPN | E29: =VLOOKUP(D29,'FIRN Routers'!$E$2:$G$56,3,FALSE) -> WKKG6 | F29: ASR1002F-ME-AES-VPN | G29: 0 | H29: ASR1002F-ME-AES-VPN | J29: =VLOOKUP(H29,'FIRN Routers'!$E$2:$G$60,3,FALSE) -> WKKG6 | K29: WKKG6 | L29: WKKG6 | M29: WKK2M
A30: A79$IC4021110 | B30: 200M | C30: Cisco 1841 | D30: ASR1002F-ME-AES-VPN | E30: =VLOOKUP(D30,'FIRN Routers'!$E$2:$G$56,3,FALSE) -> WKKG6 | F30: ASR1002F-ME-AES-VPN | G30: 0 | H30: ASR1002F-ME-AES-VPN | J30: =VLOOKUP(H30,'FIRN Routers'!$E$2:$G$60,3,FALSE) -> WKKG6 | K30: WKKG6 | L30: WKKG6 | M30: WKK1B
A31: A80$I45017010 | B31: 45M | C31: Cisco 3825 | D31: 3825-ME-HSEC | E31: =VLOOKUP(D31,'FIRN Routers'!$E$2:$G$56,3,FALSE) -> WRRLB | F31: 3925-ME-HSEC | G31: 0 | H31: 3925-ME-HSEC | I31: Difference in data from Freddy last night and data sent this morning. Please double check. | J31: =VLOOKUP(H31,'FIRN Routers'!$E$2:$G$60,3,FALSE) -> WLLH1 | K31: WLLH1 | L31: WLLH1 | M31: WKK26
A32: A81$I06002812 | B32: 6M | C32: Cisco 2821 | D32: 1841-ME-HSEC | E32: =VLOOKUP(D32,'FIRN Routers'!$E$2:$G$56,3,FALSE) -> WAADF | F32: 2921-ME-HSEC | G32: 0 | H32: 2921-ME-HSEC | I32: Difference in data from Freddy last night and data sent this morning. Please double check. | J32: =VLOOKUP(H32,'FIRN Routers'!$E$2:$G$60,3,FALSE) -> WLLOU | K32: WLLOU | L32: WLLOU | M32: WKK2E
A33: A81$I40002712 | B33: 0 | C33: Cisco 3750 | D33: 3825-ME-HSEC | E33: =VLOOKUP(D33,'FIRN Routers'!$E$2:$G$56,3,FALSE) -> WRRLB | F33: 3925-ME-HSEC | G33: A81$IC4-0003-13/200 MEG CKT, ENCRYPTION, DISTRICT SUPPORT, EMERGENCY WEB PAGE, CONTENT FILTERING | H33: 3925-ME-HSEC | I33: Difference in data from Freddy last night and data sent this morning. Please double check. | J33: =VLOOKUP(H33,'FIRN Routers'!$E$2:$G$60,3,FALSE) -> WLLH1 | K33: WLLH1 | L33: WLLH1 | M33: WKK2P
A34: A90$I18000312 | B34: 0 | C34: Cisco 3825 | D34: ?????? | E34: =VLOOKUP(D34,'FIRN Routers'!$E$2:$G$56,3,FALSE) ->  | F34: 3925-ME-HSEC | G34: (This was an 18Mb Internet Bundled Ckt. Cost $2958.18 +Encryp.+Dist Sup.+Emerg Web) Based on CSAB INTERNET Bundled: 36Mb Metro-Ethernet (WKK2G) | H34: 3925-ME-HSEC | J34: =VLOOKUP(H34,'FIRN Routers'!$E$2:$G$60,3,FALSE) -> WLLH1 | K34: WLLH1 | L34: WLLH1 | M34: WKK1Z
A35: A96$I09019310 | B35: 9M | C35: Cisco 2821 | D35: 1841-ME-HSEC | E35: =VLOOKUP(D35,'FIRN Routers'!$E$2:$G$56,3,FALSE) -> WAADF | F35: 2921-ME-HSEC | G35: 0 | H35: 2921-ME-HSEC | I35: Difference in data from Freddy last night and data sent this morning. Please double check. | J35: =VLOOKUP(H35,'FIRN Routers'!$E$2:$G$60,3,FALSE) -> WLLOU | K35: WLLOU | L35: WLLOU | M35: WKK2A
A36: AB4$IC4000111 | B36: 200M | C36: Cisco 3750 | D36: ASR1002F-ME-AES-VPN | E36: =VLOOKUP(D36,'FIRN Routers'!$E$2:$G$56,3,FALSE) -> WKKG6 | F36: ASR1002F-ME-AES-VPN | G36: 0 | H36: ASR1002F-ME-AES-VPN | J36: =VLOOKUP(H36,'FIRN Routers'!$E$2:$G$60,3,FALSE) -> WKKG6 | K36: WKKG6 | L36: WKKG6 | M36: WKK1Y
A37: AC3$IC6000412 | B37: 300M | C37: Cisco ASR 1001 | D37: ASR1002F-ME-AES-VPN | E37: =VLOOKUP(D37,'FIRN Routers'!$E$2:$G$56,3,FALSE) -> WKKG6 | F37: ASR1002F-ME-AES-VPN | G37: 0 | H37: ASR1002F-ME-AES-VPN | J37: =VLOOKUP(H37,'FIRN Routers'!$E$2:$G$60,3,FALSE) -> WKKG6 | K37: WKKG6 | L37: WKKG6 | M37: WEE7Q
A38: AC5$EC4000113 | B38: 200M | C38: Cisco 3750 | D38: ASR1002F-ME-AES-VPN | E38: =VLOOKUP(D38,'FIRN Routers'!$E$2:$G$56,3,FALSE) -> WKKG6 | F38: ASR1002F-ME-AES-VPN | G38: 0 | H38: ASR1002F-ME-AES-VPN | J38: =VLOOKUP(H38,'FIRN Routers'!$E$2:$G$60,3,FALSE) -> WKKG6 | K38: WKKG6 | L38: WKKG6 | M38: WKK56
A39: AC6$I65000212 | B39: 0 | C39: Cisco 3825 | D39: 3925-ME-HSEC | E39: =VLOOKUP(D39,'FIRN Routers'!$E$2:$G$56,3,FALSE) -> WLLH1 | F39: 3925-ME-HSEC | G39: INTERNET Bundled: 65Mb Metro-Ethernet (WKK2M) | H39: 3925-ME-HSEC | J39: =VLOOKUP(H39,'FIRN Routers'!$E$2:$G$60,3,FALSE) -> WLLH1 | K39: WLLH1 | L39: WLLH1 | M39: WKK4M
A40: AC7$IC6000312 | B40: 300M | C40: Cisco ASR 1001 | D40: ASR1002F-ME-AES-VPN | E40: =VLOOKUP(D40,'FIRN Routers'!$E$2:$G$56,3,FALSE) -> WKKG6 | F40: ASR1002F-ME-AES-VPN | G40: 0 | H40: ASR1002F-ME-AES-VPN | J40: =VLOOKUP(H40,'FIRN Routers'!$E$2:$G$60,3,FALSE) -> WKKG6 | K40: WKKG6 | L40: WKKG6 | M40: WKK4S
A41: AD8$IC8001113 | B41: 400M | C41: Cisco 3750 | D41: ASR1002F-ME-AES-VPN | E41: =VLOOKUP(D41,'FIRN Routers'!$E$2:$G$56,3,FALSE) -> WKKG6 | F41: ASR1002F-ME-AES-VPN | G41: 0 | H41: ASR1002F-ME-AES-VPN | J41: =VLOOKUP(H41,'FIRN Routers'!$E$2:$G$60,3,FALSE) -> WKKG6 | K41: WKKG6 | L41: WKKG6 | M41: WKK47
A42: AG4$I65002711 | B42: 0 | C42: Cisco 3825 | D42: 3925-ME-HSEC | E42: =VLOOKUP(D42,'FIRN Routers'!$E$2:$G$56,3,FALSE) -> WLLH1 | F42: 3925-ME-HSEC | G42: AG4$IC2-0021-13/E MAIL, ENCRYPTION, DISTRICT SUPPORT, EMERGENCY WEB PAGE Mileage Bundled: 100Mb Bundled - Metro Ethernet from 36 or more miles (WLLQH) | H42: 3925-ME-HSEC | J42: =VLOOKUP(H42,'FIRN Routers'!$E$2:$G$60,3,FALSE) -> WLLH1 | K42: WLLH1 | L42: WLLH1 | M42: WKK3Q
A43: AG7$IC4000112 | B43: 200M | C43: Cisco 3750 | D43: ASR1002F-ME-AES-VPN | E43: =VLOOKUP(D43,'FIRN Routers'!$E$2:$G$56,3,FALSE) -> WKKG6 | F43: ASR1002F-ME-AES-VPN | G43: 0 | H43: ASR1002F-ME-AES-VPN | J43: =VLOOKUP(H43,'FIRN Routers'!$E$2:$G$60,3,FALSE) -> WKKG6 | K43: WKKG6 | L43: WKKG6 | M43: WKK4C
A44: AH7$I50000512 | B44: 0 | C44: Cisco 3825 | D44: 3925-ME-HSEC | E44: =VLOOKUP(D44,'FIRN Routers'!$E$2:$G$56,3,FALSE) -> WLLH1 | F44: 3925-ME-HSEC | G44: ENCRYPTION, DISTRICT SUPPORT, 100 MEG CKT/AH7$EC2-0004-13 | H44: 3925-ME-HSEC | J44: =VLOOKUP(H44,'FIRN Routers'!$E$2:$G$60,3,FALSE) -> WLLH1 | K44: WLLH1 | L44: WLLH1 | M44: WKK3O
A45: AK3$IC4000212 | B45: 200M | C45: Cisco 3750 | D45: ASR1002F-ME-AES-VPN | E45: =VLOOKUP(D45,'FIRN Routers'!$E$2:$G$56,3,FALSE) -> WKKG6 | F45: ASR1002F-ME-AES-VPN | G45: 0 | H45: ASR1002F-ME-AES-VPN | J45: =VLOOKUP(H45,'FIRN Routers'!$E$2:$G$60,3,FALSE) -> WKKG6 | K45: WKKG6 | L45: WKKG6 | M45: WKK21
A46: AK9$IC2041911 | B46: 100M | C46: Cisco 3825 | D46: 3925-ME-HSEC | E46: =VLOOKUP(D46,'FIRN Routers'!$E$2:$G$56,3,FALSE) -> WLLH1 | F46: 3925-ME-HSEC | G46: 0 | H46: 3925-ME-HSEC | J46: =VLOOKUP(H46,'FIRN Routers'!$E$2:$G$60,3,FALSE) -> WLLH1 | K46: WLLH1 | L46: WLLH1 | M46: WKK7P
A47: AM7$I09017710 | B47: 9M | C47: Cisco 2821 | D47: 1841-ME-HSEC | E47: =VLOOKUP(D47,'FIRN Routers'!$E$2:$G$56,3,FALSE) -> WAADF | F47: 2921-ME-HSEC | G47: 0 | H47: 2921-ME-HSEC | I47: Difference in data from Freddy last night and data sent this morning. Please double check. | J47: =VLOOKUP(H47,'FIRN Routers'!$E$2:$G$60,3,FALSE) -> WLLOU | K47: WLLOU | L47: WLLOU | M47: WKK7V
A48: C01$I00000110 | B48: 0 | D48: 0 | E48: =VLOOKUP(D48,'FIRN Routers'!$E$2:$G$56,3,FALSE) ->  | F48: 0 | G48: ENCRYPTION | H48: ASA 5505 | I48: If Encryption only, we do need a VPN appliance to grandfather current customers into the new contract correct? If so, is the one listed in Final CPE column sufficient? | J48: =VLOOKUP(H48,'FIRN Routers'!$E$2:$G$60,3,FALSE) -> WASA5 | K48: WASA5 | L48: WASA5 | M48: WKK18
A49: C02$100000213 | B49: 0 | D49: 0 | E49: =VLOOKUP(D49,'FIRN Routers'!$E$2:$G$56,3,FALSE) ->  | F49: 0 | G49: ENCRYPTION | H49: ASA 5505 | I49: If Encryption only, we do need a VPN appliance to grandfather current customers into the new contract correct? If so, is the one listed in Final CPE column sufficient? | J49: =VLOOKUP(H49,'FIRN Routers'!$E$2:$G$60,3,FALSE) -> WASA5 | K49: WASA5 | L49: WASA5 | M49: WRRE4
A50: C08$I00015808 | B50: 0 | D50: 0 | E50: =VLOOKUP(D50,'FIRN Routers'!$E$2:$G$56,3,FALSE) ->  | F50: 0 | G50: ENCRYPTION | H50: ASA 5505 | I50: If Encryption only, we do need a VPN appliance to grandfather current customers into the new contract correct? If so, is the one listed in Final CPE column sufficient? | J50: =VLOOKUP(H50,'FIRN Routers'!$E$2:$G$60,3,FALSE) -> WASA5 | K50: WASA5 | L50: WASA5 | M50: WRRLB
A51: C09$I00001010 | B51: 0 | D51: 0 | E51: =VLOOKUP(D51,'FIRN Routers'!$E$2:$G$56,3,FALSE) ->  | F51: 0 | G51: ENCRYPTION | H51: ASA 5505 | I51: If Encryption only, we do need a VPN appliance to grandfather current customers into the new contract correct? If so, is the one listed in Final CPE column sufficient? | J51: =VLOOKUP(H51,'FIRN Routers'!$E$2:$G$60,3,FALSE) -> WASA5 | K51: WASA5 | L51: WASA5 | M51: WRRE5
A52: C12$I00000111 | B52: 0 | D52: 0 | E52: =VLOOKUP(D52,'FIRN Routers'!$E$2:$G$56,3,FALSE) ->  | F52: 0 | G52: ENCRYPTION | H52: ASA 5505 | I52: If Encryption only, we do need a VPN appliance to grandfather current customers into the new contract correct? If so, is the one listed in Final CPE column sufficient? | J52: =VLOOKUP(H52,'FIRN Routers'!$E$2:$G$60,3,FALSE) -> WASA5 | K52: WASA5 | L52: WASA5 | M52: WAADF
A53: C18$I00000312 | B53: 0 | D53: 0 | E53: =VLOOKUP(D53,'FIRN Routers'!$E$2:$G$56,3,FALSE) ->  | F53: 0 | G53: ENCRYPTION | H53: ASA 5505 | I53: If Encryption only, we do need a VPN appliance to grandfather current customers into the new contract correct? If so, is the one listed in Final CPE column sufficient? | J53: =VLOOKUP(H53,'FIRN Routers'!$E$2:$G$60,3,FALSE) -> WASA5 | K53: WASA5 | L53: WASA5 | M53: WRRE3
A54: C19$I00011009 | B54: 0 | D54: 0 | E54: =VLOOKUP(D54,'FIRN Routers'!$E$2:$G$56,3,FALSE) ->  | F54: 0 | G54: ENCRYPTION | H54: ASA 5505 | I54: If Encryption only, we do need a VPN appliance to grandfather current customers into the new contract correct? If so, is the one listed in Final CPE column sufficient? | J54: =VLOOKUP(H54,'FIRN Routers'!$E$2:$G$60,3,FALSE) -> WASA5 | K54: WASA5 | L54: WASA5 | M54: WKKG6
A55: C20$I90000110 | B55: 90M | D55: 3925-ME-HSEC | E55: =VLOOKUP(D55,'FIRN Routers'!$E$2:$G$56,3,FALSE) -> WLLH1 | F55: 0 | G55: VPN/Encryption Services (WKK37) | H55: 3925-ME-HSEC | I55: Difference in data from Freddy last night and data sent this morning. Please double check. If Encryption only, we do need a VPN appliance to grandfather current customers into the new contract correct? If so, is the one listed in Final CPE column sufficient? | J55: =VLOOKUP(H55,'FIRN Routers'!$E$2:$G$60,3,FALSE) -> WLLH1 | K55: WLLH1 | L55: WLLH1 | M55: WRRLB
A56: C22$IC2000110 | B56: 100M | D56: 3925-ME-HSEC | E56: =VLOOKUP(D56,'FIRN Routers'!$E$2:$G$56,3,FALSE) -> WLLH1 | F56: 0 | G56: VPN/Encryption Services (WKK37) | H56: 3925-ME-HSEC | I56: Difference in data from Freddy last night and data sent this morning. Please double check. If Encryption only, we do need a VPN appliance to grandfather current customers into the new contract correct? If so, is the one listed in Final CPE column sufficient? | J56: =VLOOKUP(H56,'FIRN Routers'!$E$2:$G$60,3,FALSE) -> WLLH1 | K56: WLLH1 | L56: WLLH1 | M56: WLLH1
A57: C23$I00000310 | B57: 0 | D57: 0 | E57: =VLOOKUP(D57,'FIRN Routers'!$E$2:$G$56,3,FALSE) ->  | F57: 0 | G57: ENCRYPTION | H57: ASA 5505 | I57: If Encryption only, we do need a VPN appliance to grandfather current customers into the new contract correct? If so, is the one listed in Final CPE column sufficient? | J57: =VLOOKUP(H57,'FIRN Routers'!$E$2:$G$60,3,FALSE) -> WASA5 | K57: WASA5 | L57: WASA5 | M57: WASA5
A58: C28$I00013011 | B58: 0 | D58: 0 | E58: =VLOOKUP(D58,'FIRN Routers'!$E$2:$G$56,3,FALSE) ->  | F58: 0 | G58: ENCRYPTION | H58: ASA 5505 | I58: If Encryption only, we do need a VPN appliance to grandfather current customers into the new contract correct? If so, is the one listed in Final CPE column sufficient? | J58: =VLOOKUP(H58,'FIRN Routers'!$E$2:$G$60,3,FALSE) -> WASA5 | K58: WASA5 | L58: WASA5 | M58: WLLOU
A59: D93$I09000111 | B59: 9M | C59: Cisco 2821 | D59: NOT AVAILABLE | E59: =VLOOKUP(D59,'FIRN Routers'!$E$2:$G$56,3,FALSE) ->  | F59: 2951-T3-HSEC | G59: INTERNET Bundled: 9Mb Frame Relay (WKK1D). Please note router selected is bigger than required as it was the only one currently available in MFN. Max. bandwidth is 45Mb. | H59: 2951-T3-HSEC | J59: =VLOOKUP(H59,'FIRN Routers'!$E$2:$G$60,3,FALSE) -> WLLP4 | K59: WLLP4 | L59: WLLP4 | M59: WLL5P
M60: WLLP4

Sheet Site List Pivot (hidden)
A3: Row Labels | B3: ADDRESS2 | C3: City | D3: STATE | E3: ZIP | F3: NPA-NXX | G3: Mbps
A4: - Titusville - Eighteenth Circuit | B4: 2725 FRAN JAMIESON WAY | C4: VIERA | D4: FL | E4: 32940 | F4: 850410 | G4: 2
A5: 1665 MEDICAL BLVD | C5: NAPLES | D5: FL | E5: 34110 | F5: 239433 | G5: 6
A6: 25586 N MAIN ST | B6: James' Office | C6: ALTHA | D6: FL | E6: 32421 | F6: 850410 | G6: 2
A7: 3247 LAKELAND HILLS BLVD. | B7: 1st Fl, Rm 22 | C7: LAKELAND | D7: FL | E7: 33805 | F7: 863499 | G7: 1.5
A8: 624 NW 15TH WAY | C8: FORT LAUDERDALE | D8: FL | E8: 33311 | F8: 954467 | G8: 1.5
A9: 690 E DUVAL ST | C9: LAKE CITY | D9: FL | E9: 32005 | F9: 386758 | G9: 0.768
A10: 751423 I-95 | C10: YULEE | D10: FL | E10: 32097 | F10: 850245 | G10: 1.5
A11: IMMOKALEE RD | C11: NAPLES | D11: FL | E11: 34109 | F11: 239598 | G11: 1.5
A12: (TURKEY LAKE SERVICE PLAZA) MP 263 | B12: Law Enf Bldg # 5318;Elec Rm | C12: ORLANDO | D12: FL | E12: 32859 | F12: 407264 | G12: 4
A13: @ M SIKES RD, HILLIARD | C13: CALLAHAN | D13: FL | E13: 32011 | F13: 850413 | G13: 0.768
A14: @ N U*S HIGHWAY 441 | B14: AHN 2816 | C14: LAKE CITY | D14: FL | E14: 32055 | F14: 850413 | G14: 0.768
A15: @ OVERSEAS HWY MILE MARKER 855&US 1 | C15: ISLAMORADA | D15: FL | E15: 33036 | F15: 305664 | G15: 0.768
A16: @SE GRAHAM CT | B16: AHN 11 | C16: LAKE CITY | D16: FL | E16: 32055 | F16: 850413 | G16: 0.768
A17: 1 AIR TERMINAL PARKWAY | B17: Evidence/File Room | C17: MELBOURNE | D17: FL | E17: 32902 | F17: 321723 | G17: 1.5
A18: 1 CAUSEWAY BLVD | C18: DUNEDIN | D18: FL | E18: 34698 | F18: 727469 | G18: 1.5
A19: 1 Courthouse Circle | C19: Monticello | D19: FL | E19: 32344 | F19: 850410 | G19: 2
A20: 1 E. BROWARD BLVD | B20: SUITE 410 | C20: FT. LAUDERDALE | D20: FL | E20: 33301 | F20: 954713 | G20: 1.5
A21: 1 EVERGLADES PARKWAY | C21: FT. LAUDERDALE | D21: FL | E21: 33325 | F21: 954389 | G21: 1.5
A22: 1 FLORIDA TURNPIKE POMPANO SVC PLZ | B22: FLORIDA TURNPIKE POMPANO SVC P | C22: POMPANO | D22: FL | E22: 33069 | F22: 561488 | G22: 33
A23: 1 GATEHOUSE ROAD | C23: SEA RANCH LAKES | D23: FL | E23: 33308 | F23: 561317 | G23: 1.5
A24: 1 GOLDEN BEACH DR. | B24: Detectives office | C24: GOLDEN BEACH | D24: FL | E24: 33160 | F24: 954904 | G24: 1.5
A25: 1 MI S OF STATE ROAD 121 | B25: INTERSTATE 75 | C25: GAINESVILLE | D25: FL | E25: 32608 | F25: 386623 | G25: 1.5
A26: 1 MILE EAST OF CR 137 | B26: INTERSTATE 10 | C26: WELLBORN | D26: FL | E26: 32094 | F26: 386623 | G26: 1.5
A27: 1 MILE S OF CR 476B (EXIT 309) | B27: INTERSTATE 75 | C27: WEBSTER | D27: FL | E27: 33597 | F27: 813635 | G27: 1.5
A28: 1 NAVAL COASTAL SYSTEMS CENTER | B28: Naval Support Acitivy Bldg 432 | C28: PANAMA CITY BCH | D28: FL | E28: 32407 | F28: 850233 | G28: 1.5
A29: 1 POLICE PLACE | C29: PLANT CITY | D29: FL | E29: 33563 | F29: 813757 | G29: 1.5
A30: 1 SHERIFF'S OFFICE DR | C30: MACCLENNY | D30: FL | E30: 32063 | F30: 603490 | G30: 1.5
F31: 904259 | G31: 0.768
A32: 1 SHERIFF'S OFFICE DRIVE | B32: 1ST FLOOR | C32: MACCLENNY | D32: FL | E32: 32063 | F32: 850410 | G32: 2
A33: 1 UNF DRIVE | B33: BUILDING 41 | C33: JACKSONVILLE | D33: FL | E33: 32224 | F33: 603490 | G33: 1.5
A34: 1 UTES ROAD | C34: AVON PARK | D34: FL | E34: 33825 | F34: 852823 | G34: 1.5
A35: 1.4 MI W OF CR 557 (EXIT 48) | B35: INTERSTATE 4 | C35: POLK CITY | D35: FL | E35: 33868 | F35: 239339 | G35: 1.5
A36: 1.7 MI S OF FL/GA STATE LINE | B36: INTERSTATE 75 | C36: JENNINGS | D36: FL | E36: 32053 | F36: 386623 | G36: 1.5
A37: 1.7 MILES WEST OF I-75 | B37: INTERSTATE 10 | C37: LAKE CITY | D37: FL | E37: 32055 | F37: 386623 | G37: 1.5
A38: 10 COURT HOUSE CIR | C38: Monticello | D38: FL | E38: 32344 | F38: 850345 | G38: 1.5
A39: 10 E. JEFFERSON ST. | C39: QUINCY | D39: FL | E39: 32351 | F39: 850875 | G39: 1.5
A40: 10 E. JEFFERSON STREET | B40: COMPUTER ROOM | C40: QUINCY | D40: FL | E40: 32351 | F40: 850875 | G40: 1.5
A41: 10 SOUTH DESOTO AVE | C41: ARCADIA | D41: FL | E41: 34266 | F41: 813744 | G41: 10
A42: 100 10TH STREET WEST | C42: BRADENTON | D42: FL | E42: 34205 | F42: 941932 | G42: 1.5
A43: 100 5TH AVE SOUTH | C43: ST. PETERSBURG | D43: FL | E43: 33701 | F43: 727553 | G43: 1.5
A44: 100 8TH AVE SE | B44: JOINT USE BLDG | C44: ST PETERSBERG | D44: FL | E44: 33701 | F44: 727896 | G44: 1.5
A45: 100 8TH AVENUE SE | C45: ST. PETERSBURG | D45: FL | E45: 33701 | F45: 727896 | G45: 100
A46: 100 BUSH BLVD | C46: SANFORD | D46: FL | E46: 32773 | F46: 407540 | G46: 33
F47: 850410 | G47: 12
A48: 100 BUSH BLVD. | C48: SANFORD | D48: FL | E48: 32773 | F48: 407665 | G48: 1.5
A49: 100 Bush Boulevard | B49: 3-235 | C49: SANFORD | D49: FL | E49: 32773 | F49: 850410 | G49: 2
A50: 100 COURT ST SE | C50: LIVE OAK | D50: FL | E50: 32060 | F50: 850410 | G50: 2
A51: 100 E BOYNTON BEACH BLVD | B51: Second Store Communication | C51: BOYNTON BEACH | D51: FL | E51: 33435 | F51: 561742 | G51: 1.5
A52: 100 E. BOYNTON BEACH BLVD | C52: BOYNTON BEACH | D52: FL | E52: 33435 | F52: 561742 | G52: 3
A53: 100 East Huey Street | B53: Dispatch | C53: WILDWOOD | D53: FL | E53: 34785 | F53: 850410 | G53: 2
A54: 100 EIGHTH AVE SE | C54: ST. PETERSBURG | D54: FL | E54: 33701 | F54: 727896 | G54: 3
A55: 100 FLORIDA TRNPK P*S*L INTRCHG | C55: PORT ST. LUCIE | D55: FL | E55: 34983 | F55: 561683 | G55: 1.5
A56: 100 FLORIDA TRNPK PSL INTERCHG | B56: FT PIERCE SERVICE PLAZA | C56: PORT ST LUCIE | D56: FL | E56: 34893 | F56: 954934 | G56: 4
A57: 100 FLORIDA TRNPK PSL INTRCHG | B57: FORT PIERCE SERVICE PLAZA | C57: PORT ST LUCIE | D57: FL | E57: 34983 | F57: 407264 | G57: 1.5
A58: 100 Interstate 10 | C58: PENSACOLA | D58: FL | E58: 32529 | F58: 850414 | G58: 1.5
A59: 100 MACARTHUR CAUSEWAY | C59: MIAMI | D59: FL | E59: (blank) | F59: 305535 | G59: 1.5
C60: MIAMI BEACH | D60: FL | E60: 33139 | F60: 305415 | G60: 0.768
A61: 100 N BUSH BLVD | C61: SANFORD | D61: FL | E61: 32773 | F61: 407665 | G61: 15
A62: 100 N US 1 | C62: FORT PIERCE | D62: FL | E62: 34950 | F62: 772460 | G62: 45
A63: 100 N. ANDREWS AVE. | C63: FORT LAUDERDALE | D63: FL | E63: 33301 | F63: 954828 | G63: 15
A64: 100 N. MUSEUM AVE. | B64: (blank) | C64: AVON PARK | D64: FL | E64: 33825 | F64: 863531 | G64: 15
A65: 100 NE 166 ST. | B65: (blank) | C65: MIAMI | D65: FL | E65: 33162 | F65: 305375 | G65: 10
A66: 100 NORTH ANDREWS AVE | C66: FORT LAUDERDALE | D66: FL | E66: 33301 | F66: 954828 | G66: 21
A67: 100 NORTH MYRTLE AVENUE | C67: JACKSONVILLE | D67: FL | E67: 32204 | F67: 904200 | G67: 33
A68: 100 NW 2ND AVENUE | B68: Elec. Room Spec Svc Ofc | C68: BOCA RATON | D68: FL | E68: 33487 | F68: 561416 | G68: 1.5
A69: 100 OPA LOCKA BLVD | B69: OPA LOCKA RESCUE | C69: OPA LOCKA | D69: FL | E69: 33054 | F69: 305377 | G69: 1.5
A70: 100 S. MILITARY TRL. | B70: Deerfield Square Bay 26 | C70: DEERFIELD BEACH | D70: FL | E70: 33441 | F70: 954428 | G70: 1.5
A71: 100 SAVANNAH BLVD | C71: MICANOPY | D71: FL | E71: 32667 | F71: 352466 | G71: 1.5
A72: 100 STUMPFIELD RD | C72: PENSACOLA | D72: FL | E72: 32503 | F72: 407264 | G72: 4
A73: 100 TRUMBO POINT ROAD | B73: BLDG 48 | C73: KEY WEST | D73: FL | E73: 33040 | F73: 305292 | G73: 0.768
A74: 100 VETERANS WAY | C74: EGLIN AFB | D74: FL | E74: 32542 | F74: 727638 | G74: 1 -2 mg
A75: 1000 5TH STREET | C75: PORT ST. JOE | D75: FL | E75: 32457 | F75: 850871 | G75: 3
A76: 1000 BUFFER PRESERVE DR | C76: FELLSMERE | D76: FL | E76: 32948 | F76: 321953 | G76: 0.768
A77: 1000 CECIL G COSTIN SR, BLVD. | C77: PORT SAINT JOE | D77: FL | E77: 32456 | F77: 850227 | G77: 10
A78: 1000 CECIL G COSTIN SR. BLVD. | B78: BUILDING 500 | C78: PORT ST. JOE | D78: FL | E78: 32456 | F78: 850229 | G78: 0.768
A79: 1000 CECIL G COSTINS SR. BLVD. | B79: Courthouse | C79: PORT ST. JOE | D79: FL | E79: 32456 | F79: 850229 | G79: 1.5
A80: 1000 CECIL G. COSTIN BLVD | C80: PORT ST. JOE | D80: FL | E80: 32456 | F80: 850245 | G80: 0.064
A81: 1000 CECIL G. COSTIN SR. BLVD. | C81: PORT SAINT JOE | D81: FL | E81: 32456 | F81: 850229 | G81: 1.5
A82: 1000 CECIL G. COSTIN, SR. BLVD | C82: PORT SAINT JOE | D82: FL | E82: 32456 | F82: 850227 | G82: 1.5
A83: 1000 CECIL G. COSTIN, SR. BLVD, | C83: PORT ST JOE | D83: FL | E83: 32456 | F83: 850229 | G83: 1.5
A84: 1000 CECIL G. COSTIN, SR. BLVD. | B84: Gulf Cty Crthse | C84: PORT ST. JOE | D84: FL | E84: 32456 | F84: 850488 | G84: 3
A85: 1000 college blvd | C85: PENSACOLA | D85: FL | E85: 32504 | F85: 850484 | G85: 3
G86: 90
B87: BLDG 7 RM 13 | C87: PENSACOLA | D87: FL | E87: 32501 | F87: 850410 | G87: 2
A88: 1000 HIGHLAND STREET | B88: CAC Bldg floor 1 closet | C88: SEBRING | D88: FL | E88: 33870 | F88: 863402 | G88: 1.5
A89: 1000 N. ASHLEY DRIVE | B89: 610 | C89: TAMPA | D89: FL | E89: 33602 | F89: 850488 | G89: 4
A90: 1000 N.E. 16TH AVE | B90: Bldg G | C90: GAINESVILLE | D90: FL | E90: 32601 | F90: 904723 | G90: 10
A91: 1000 N.W. 111 AVE. | C91: MIAMI | D91: FL | E91: 33172 | F91: 305470 | G91: 12
A92: 1000 NE 55TH BLVD | C92: GAINESVILLE | D92: FL | E92: 32041 | F92: 352955 | G92: 1.5
A93: 1000 NW 20TH AVE | C93: MIAMI | D93: FL | E93: 33125 | F93: 786295 | G93: 0.128
G94: 10
A95: 1000 S LAKE AVE | C95: LAKE BUTLER | D95: FL | E95: 32054 | F95: 386754 | G95: 1.5
A96: 1000 W MORENO ST | B96: DATA CENTER | C96: PENSACOLA | D96: FL | E96: 32501 | F96: 850469 | G96: 3
A97: 1000 WEST THARPE ST. | C97: TALLAHASSEE | D97: FL | E97: 32301 | F97: 850575 | G97: 1.5
A98: 1000 WEST THARPE STREET | C98: TALLAHASASEE | D98: FL | E98: 32303 | F98: 850509 | G98: 1.5
A99: 10000 BAY PINES | C99: BAY PINES | D99: FL | E99: 33708 | F99: 727398 | G99: 1.5
A100: 10000 BAY PINES BLVD. | B100: bldg 100 | C100: BAY PINES | D100: FL | E100: (blank) | F100: 727398 | G100: 1.5
A101: 10001 N WICKHAM ROAD | C101: MELBOURNE | D101: FL | E101: 32940 | F101: 321633 | G101: 4
G102: 9
A103: 1001 DESOTO PARK DRI | C103: TALLAHASSEE | D103: FL | E103: 32301 | F103: 850245 | G103: 10
A104: 1001 Justice Lane | B104: MIS Computer Room | C104: BUNNELL | D104: FL | E104: 32110 | F104: 850410 | G104: 2
A105: 1001 MAPLE ROAD | B105: SERVER ROOM | C105: LAKE BUENA VISTA | D105: FL | E105: 32830 | F105: 407560 | G105: 0.768
A106: 1001 N.W. 111 AVE. | C106: MIAMI | D106: FL | E106: 33172 | F106: 305470 | G106: 10
A107: 1001 NW 111 AVE | C107: MIAMI | D107: FL | E107: 33172 | F107: 305470 | G107: 0.128
G108: 500
A109: 1001 NW 111TH AVE | C109: MIAMI | D109: FL | E109: 33172 | F109: 786295 | G109: 0.128
G110: 10
A111: 1001 NW 111TH AVENUE | C111: MIAMI | D111: FL | E111: 33136 | F111: 305499 | G111: 0.768
A112: 1001 SARASOTA CENTER BLVD | C112: SARASOTA | D112: FL | E112: 34240 | F112: 941650 | G112: 6
A113: 1001 SW 1 ST | B113: (blank) | C113: MIAMI | D113: FL | E113: 33130 | F113: 850643 | G113: 1.5
A114: 1001 W. PARK ST. | B114: Dispatch room | C114: PARKER | D114: FL | E114: 32404 | F114: 850871 | G114: 1.5
A115: 1001 WASHINGTON AVENUE | C115: MIAMI BEACH | D115: FL | E115: 33139 | F115: 305348 | G115: 0.128
G116: 10
A117: 100-106 WEST COLUMBIA STREET | C117: ORLANDO | D117: FL | E117: 32806 | F117: 407697 | G117: 0.128
G118: 2
A119: 10015 OVERSEAS HIGHWAY | C119: MARATHON | D119: FL | E119: 33050 | F119: 305747 | G119: 1.5
A120: 10035 SAN JOSE BLVD | C120: JACKSONVILLE | D120: FL | E120: 32257 | F120: 904630 | G120: 1.5
A121: 10041 DANIELS PARKWAY | C121: FT MYERS | D121: FL | E121: 33913 | F121: 239938 | G121: 10
C122: Ft. Myers | D122: FL | E122: 33913 | F122: 239225 | G122: 45
F123: 863519 | G123: 6
A124: 1005 E. MEMORIAL BLVD | C124: LAKELAND | D124: FL | E124: 33801 | F124: 850487 | G124: 15
A125: 10051 DANIELS PKWY | B125: INTERSTATE 75 | C125: Fort Myers | D125: FL | E125: 33913 | F125: 239339 | G125: 1.5
A126: 10077 NW 29TH STREET | C126: CORAL SPRINGS | D126: FL | E126: 33065 | F126: 954467 | G126: 1.5
A127: 101 BUSH BLVD | C127: SANFORD | D127: FL | E127: 32773 | F127: 407665 | G127: 1.5
A128: 101 E CENTRAL BLVD. | B128: BASEMENT SERVER | C128: ORLANDO | D128: FL | E128: 32801 | F128: 407835 | G128: 10
A129: 101 E GAINES ST | B129: Fletcher Bldg | C129: TALLAHASSEE | D129: FL | E129: 32301 | F129: 850413 | G129: 45
E130: 32399 | F130: 850488 | G130: 1.5
A131: 101 E. JAMES LEE BLVD. | C131: CRESTVIEW | D131: FL | E131: 32536 | F131: 850689 | G131: 1.5
A132: 101 EAST GAINES STREET | C132: TALLAHASSEE | D132: FL | E132: 32301 | F132: 850413 | G132: 45
G133: 100
G134: 155
A135: 101 INTERSTATE 10 | C135: PENSACOLA | D135: FL | E135: 32526 | F135: 850941 | G135: 1.5
A136: 101 N Alabama St. | B136: 2nd Floor Computer Room | C136: DELAND | D136: FL | E136: 32720 | F136: 850410 | G136: 2
A137: 101 N. ALABAMA AVE. | C137: DELAND | D137: FL | E137: 32724 | F137: 386566 | G137: 21
G138: 45
F139: 386822 | G139: 1.5
A140: 101 N. ALABAMA AVENUE SUITE 13 | C140: DELAND | D140: FL | E140: 32724 | F140: 386239 | G140: 15
A141: 101 NW 22 ST | C141: DELRAY BEACH | D141: FL | E141: 33444 | F141: 561436 | G141: 10
A142: 101 S RANGE ST | B142: Madison Cty Crthse | C142: MADISON | D142: FL | E142: 32340 | F142: 850488 | G142: 3
A143: 101 SE 68TH CT. | C143: OCALA | D143: FL | E143: 34470 | F143: 850413 | G143: 0.768
A144: 101 South Bridge Street | C144: LABELLE | D144: FL | E144: 33935 | F144: 850410 | G144: 2
A145: 101 SOUTH PENMAN ROAD | C145: JACKSONVILLE BEACH | D145: FL | E145: 32250 | F145: 603490 | G145: 1.5
B146: room 11 server room | C146: JACKSONVILLE BEACH | D146: FL | E146: 32250 | F146: 850410 | G146: 2
A147: 101 SOUTH WASHINGTON BLVD. | C147: SARASOTA | D147: FL | E147: 34236 | F147: 941861 | G147: 1.5
B148: 7TH FLOOR DATA CENTER | C148: SARASOTA | D148: FL | E148: 34236 | F148: 941650 | G148: 1.5
A149: 101 SUNNYTOWN RD | B149: Suite 103 | C149: CASSELBERRY | D149: FL | E149: 32707 | F149: 407697 | G149: 4
A150: 101 SW 2 STREET | C150: CHIEFLAND | D150: FL | E150: 32626 | F150: 352486 | G150: 1 -2 mg
A151: 101 VERNON AVENUE | B151: bldg 388 eoc rm | C151: PANAMA CITY | D151: FL | E151: (blank) | F151: 850960 | G151: 1.5
A152: 101 W FLAGLER ST. | B152: (blank) | C152: MIAMI | D152: FL | E152: 33130 | F152: 305375 | G152: 10
G153: 500
A154: 101 W. 5TH STREET | C154: PANAMA CITY | D154: FL | E154: 32401 | F154: 850414 | G154: 1.5
A155: 101 WEAT MAIN ST | B155: PHONE/WIRE ROOM | C155: LAKELAND | D155: FL | E155: 33815 | F155: 813299 | G155: 1.5
A156: 1010 N. MAIN ST. | B156: RADIO EQUIPMENT (SERVER) RM. | C156: BUSHNELL | D156: FL | E156: 33513 | F156: 352303 | G156: 0.768
A157: 1010 NORTH MAIN ST | C157: BUSHNELL | D157: FL | E157: 33513 | F157: 850410 | G157: 2
A158: 1010 OCONEE-APOPKA | C158: APOPKA | D158: FL | E158: 32703 | F158: 407884 | G158: 1.5
A159: 1011 INTERNATIONAL SPEEDWAY BLVD | C159: DAYTONA BEACH | D159: FL | E159: 32114 | F159: 386238 | G159: 1.5
A160: 1012 NW 111TH AVE | B160: FDLE Miami | C160: MIAMI | D160: FL | E160: 33127 | F160: 786845 | G160: 1.5
A161: 1012 STRICKLAND STREET | C161: NEPTUNE BEACH | D161: FL | E161: 32266 | F161: 904591 | G161: 0.064
A162: 1013 BECK AVE | C162: PANAMA CITY | D162: FL | E162: 32401 | F162: 850872 | G162: 1.5
A163: 1013 NORTH MAIN | B163: (blank) | C163: TRENTON | D163: FL | E163: 32693 | F163: 352463 | G163: 100
A164: 10131-24 SAN JOSE BLVD | C164: JACKSONVILLE | D164: FL | E164: 32257 | F164: 904262 | G164: 1.5
A165: 10137 EAST ALAMO DRIVE | B165: Brandon Crossing Shopping Center | C165: TAMPA | D165: FL | E165: 33619 | F165: 813740 | G165: 1.5
A166: 1014 SIXTH AVE | C166: WAUCHULA | D166: FL | E166: 33873 | F166: 863860 | G166: 3
A167: 101463 OVERSEAS HWY | C167: KEY LARGO | D167: FL | E167: 33037 | F167: 305853 | G167: 1.5
A168: 1018 S BRONOUGH ST | B168: Grounds | C168: TALLAHASSEE | D168: FL | E168: 32399 | F168: 850488 | G168: 1.5
A169: 102 COPELAND AVE. | C169: EVERGLADES CITY | D169: FL | E169: 34139 | F169: 239695 | G169: 1.5
A170: 102 LINCOLN AVE. | C170: DUNDEE | D170: FL | E170: 33838 | F170: 863421 | G170: 0.512
A171: 102 PARK PLACE BLVD | B171: BLDG B, SUITE 3 | C171: KISSIMMEE | D171: FL | E171: 34741 | F171: 407846 | G171: 3
A172: 102 W. LAUREL STREET | C172: TAMPA | D172: FL | E172: 33609 | F172: 813281 | G172: 1.5
A173: 1020 NW 163 DR | C173: MIAMI GARDENS | D173: FL | E173: 33169 | F173: 305474 | G173: 1.5
A174: 1020 NW 163RD DR | C174: MIAMI GARDENS | D174: FL | E174: 33169 | F174: 305622 | G174: 1.5
G175: 10
A176: 1020 NW 163RD ST | C176: MIAMI GARDENS | D176: FL | E176: 33169 | F176: 305622 | G176: 0.128
G177: 10
A178: 10201 HAMMOCKS BLVD | C178: MIAMI | D178: FL | E178: 33196 | F178: 305388 | G178: 1.5
A179: 10201 HAMMOCKS BLVD. | B179: (blank) | C179: MIAMI | D179: FL | E179: 33196 | F179: 305375 | G179: 20
A180: 10203 NW 21 CT | B180: (blank) | C180: MIAMI | D180: FL | E180: 33147 | F180: 850638 | G180: 1.5
A181: 102050 OVERSEAS HIGHWAY | C181: KEY LARGO | D181: FL | E181: 33037 | F181: 305587 | G181: 6
A182: 1021 HEALTH PARK DRIVE | C182: MOORE HAVEN | D182: FL | E182: 33471 | F182: 239461 | G182: 3
A183: 1022 WEST 23RD STREET | C183: PANAMA CITY | D183: FL | E183: 32405 | F183: 850413 | G183: 3
A184: 1023 MASON AVE | C184: Daytona Bch | D184: FL | E184: 32117 | F184: 386323 | G184: 1.5
A185: 10247 N. SUNCOAST BLVD | C185: CRYSTAL RIVER | D185: FL | E185: 34428 | F185: 352447 | G185: 2
A186: 1025 NORTHWEST AVENUE "D" | C186: BELLE GLADE | D186: FL | E186: 33430 | F186: 561992 | G186: 0.768
A187: 10285 NW 21 CT | B187: (blank) | C187: MIAMI | D187: FL | E187: 33147 | F187: 850638 | G187: 1.5
A188: 103 BUNKER HILL ROAD | B188: sgt. Office | C188: HOBE SOUND | D188: FL | E188: 33475 | F188: 772545 | G188: 1.5
A189: 103 E LUCY ST #147 | B189: (blank) | C189: florida city | D189: FL | E189: 33034 | F189: 863946 | G189: 1.5
A190: 103 N. APOPKA AVE. | C190: INVERNESS | D190: FL | E190: 34450 | F190: 352860 | G190: 0.768
A191: 1030 FLORIDA MANGO RD | C191: W. Palm Bch | D191: FL | E191: 33409 | F191: 954557 | G191: 1.5
A192: 1030 NW 111TH AVE | C192: MIAMI | D192: FL | E192: 33172 | F192: 786367 | G192: 10
A193: 1030 NW 111TH AVENUE | C193: MIAMI | D193: FL | E193: 33172 | F193: 786367 | G193: 1.5
A194: 10300 SW 216 STREET | C194: MIAMI | D194: FL | E194: 33190 | F194: 786336 | G194: 1.5
A195: 10301 NW 87 AVE | B195: dispatch off. | C195: HIALEAH GARDENS | D195: FL | E195: 33016 | F195: 305558 | G195: 1.5
A196: 1031 EAST OAK STREET | C196: ARCADIA | D196: FL | E196: 34266 | F196: 863993 | G196: 6
A197: 1031 SE 9TH PLACE | B197: Suite 3 | C197: CAPE CORAL | D197: FL | E197: 33990 | F197: 941613 | G197: 3
A198: 10315 NW 12 ST. | B198: (blank) | C198: DORAL | D198: FL | E198: 33172 | F198: 305375 | G198: 10
A199: 103400 OVERSEAS HWY | C199: KEY LARGO | D199: FL | E199: 33037 | F199: 305453 | G199: 3
F200: 305594 | G200: 0.128
G201: 10
A202: 10350 NW 112 AVENUE | B202: 2nd Floor IT Room | C202: MIAMI | D202: FL | E202: 33178 | F202: 305863 | G202: 1.5
... 4033 more rows

Sheet All Services (hidden)
A1: Source | B1: SCD_ID | C1: CSA | D1: Customer | E1: Type | F1: Bandwidth | G1: Sequence | H1: Year | I1: Customer | J1: CONTACT | K1: Address | L1: ADDRESS2 | M1: ZIP | N1: City | O1: STATE | P1: INSTALL | Q1: PHONE | R1: USOC | S1: DESCRIPTION | T1: NRC | U1: MRC | V1: Combo | W1: Current Cost | X1: Proposed Cost | Y1: Difference | Z1: Mbps | AA1: NPA-NXX
A2: MFN | B2: 237904 | C2: 210@E15001112 | D2: 210 | E2: @E | F2: 15 | G2: 11 | H2: 12 | I2: State Courts System | J2: SUSANNAH DAVIS | K2: 1005 E. MEMORIAL BLVD | M2: 33801 | N2: LAKELAND | O2: FL | P2: 19-Oct-12 | Q2: 8504877979 | R2: WRRB8 | S2: Customer Managed CPE | T2: $0.00 | U2: $0.00 | V2: WRRB8210@E15001112 | W2: =T2+U2 -> $0.00 | X2: =VLOOKUP(R2,'USOC Linked Table 2'!$B$2:$K$1066,10,FALSE) -> $0.00 | Y2: =X2-W2 -> $0.00 | Z2: 0 | AA2: =LEFT(Q2,6) -> 850487
A3: MFN | B3: 159089 | C3: 310@M01000107 | D3: 310 | E3: @M | F3: 01 | G3: 1 | H3: 7 | I3: Governor'S Office | J3: Jim Oppert | K3: 700 S ADAMS AVE | M3: 32399 | N3: TALAHASSEE | O3: FL | P3: 10-Dec-07 | Q3: 8504137388 | R3: WRRB8 | S3: Customer Managed CPE | T3: $0.00 | U3: $0.00 | V3: WRRB8310@M01000107 | W3: $0.00 | X3: =VLOOKUP(R3,'USOC Linked Table 2'!$B$2:$K$1066,10,FALSE) -> $0.00 | Y3: =X3-W3 -> $0.00 | Z3: 0 | AA3: =LEFT(Q3,6) -> 850413
A4: MFN | B4: 159141 | C4: 310@MC2000207 | D4: 310 | E4: @M | F4: C2 | G4: 2 | H4: 7 | I4: Governor'S Office | J4: Jim Oppert | K4: 400 S MONROE ST | M4: 32399 | N4: TALAHASSEE | O4: FL | P4: 15-May-09 | Q4: 8504137388 | R4: WRRB8 | S4: Customer Managed CPE | T4: $0.00 | U4: $0.00 | V4: WRRB8310@MC2000207 | W4: $0.00 | X4: =VLOOKUP(R4,'USOC Linked Table 2'!$B$2:$K$1066,10,FALSE) -> $0.00 | Y4: $0.00 | Z4: 0 | AA4: 850413
A5: MFN | B5: 141238 | C5: 420@F01011607 | D5: 420 | E5: @F | F5: 01 | G5: 116 | H5: 7 | I5: Agriculture & Consumer Services | J5: Lee Barnwell | K5: 11656 STATE RD 2 | L5: John Betha State Forest | M5: 32087 | N5: SANDERSON | O5: FL | P5: 10-Dec-07 | Q5: 9042592122 | R5: WRRB8 | S5: Customer Managed CPE | T5: $0.00 | U5: $0.00 | V5: WRRB8420@F01011607 | W5: $0.00 | X5: =VLOOKUP(R5,'USOC Linked Table 2'!$B$2:$K$1066,10,FALSE) -> $0.00 | Y5: $0.00 | Z5: 0 | AA5: 904259
A6: MFN | B6: 153290 | C6: 420@F01015407 | D6: 420 | E6: @F | F6: 01 | G6: 154 | H6: 7 | I6: Agriculture & Consumer Services | J6: DEE SHUMICK | K6: 2000 S RIVER ROAD | M6: 34223 | N6: ENGLEWOOD | O6: FL | P6: 26-Dec-07 | Q6: 9414601333 | R6: WRRB8 | S6: Customer Managed CPE | T6: $0.00 | U6: $0.00 | V6: WRRB8420@F01015407 | W6: $0.00 | X6: =VLOOKUP(R6,'USOC Linked Table 2'!$B$2:$K$1066,10,FALSE) -> $0.00 | Y6: $0.00 | Z6: 0 | AA6: 941460
A7: MFN | B7: 106653 | C7: 451@F01000107 | D7: 451 | E7: @F | F7: 01 | G7: 1 | H7: 7 | I7: State | J7: DEBBIE MORRIS | K7: 201 N. OKLAHOMA STREET | L7: SUPERVISOR'S COMPUTER ROOM | M7: 32425 | N7: BONIFAY | O7: FL | P7: 7-Jun-10 | Q7: 8505471147 | R7: WRRB8 | S7: Customer Managed CPE | T7: $0.00 | U7: $0.00 | V7: WRRB8451@F01000107 | W7: $0.00 | X7: =VLOOKUP(R7,'USOC Linked Table 2'!$B$2:$K$1066,10,FALSE) -> $0.00 | Y7: $0.00 | Z7: 0 | AA7: 850547
A8: MFN | B8: 164074 | C8: 451@F01000208 | D8: 451 | E8: @F | F8: 01 | G8: 2 | H8: 8 | I8: State | J8: LORI HARNEY-RUSSELL | K8: 227 TAYLOR STREET | L8: ROOM 111 | M8: 33950 | N8: PUNTA GORDA | O8: FL | P8: 9-Jun-10 | Q8: 9416372136 | R8: WRRB8 | S8: Customer Managed CPE | T8: $0.00 | U8: $0.00 | V8: WRRB8451@F01000208 | W8: $0.00 | X8: =VLOOKUP(R8,'USOC Linked Table 2'!$B$2:$K$1066,10,FALSE) -> $0.00 | Y8: $0.00 | Z8: 0 | AA8: 941637
A9: MFN | B9: 162902 | C9: 451@F01000308 | D9: 451 | E9: @F | F9: 01 | G9: 3 | H9: 8 | I9: State | J9: KEVIN KELLEY | K9: 600 301 BLVD WEST | L9: SERVER ROOM | M9: 34205 | N9: BRADENTON | O9: FL | P9: 26-Apr-10 | Q9: 9417413823 | R9: WRRB8 | S9: Customer Managed CPE | T9: $0.00 | U9: $0.00 | V9: WRRB8451@F01000308 | W9: $0.00 | X9: =VLOOKUP(R9,'USOC Linked Table 2'!$B$2:$K$1066,10,FALSE) -> $0.00 | Y9: $0.00 | Z9: 0 | AA9: 941741
A10: MFN | B10: 164738 | C10: 451@F01001208 | D10: 451 | E10: @F | F10: 01 | G10: 12 | H10: 8 | I10: State | J10: WESLEY WILCOX | K10: 981 NE 16TH STREET | L10: SERVER ROOM | M10: 34470 | N10: OCALA | O10: FL | P10: 15-Jun-10 | Q10: 3526203290 | R10: WRRB8 | S10: Customer Managed CPE | T10: $0.00 | U10: $0.00 | V10: WRRB8451@F01001208 | W10: $0.00 | X10: =VLOOKUP(R10,'USOC Linked Table 2'!$B$2:$K$1066,10,FALSE) -> $0.00 | Y10: $0.00 | Z10: 0 | AA10: 352620
A11: MFN | B11: 188582 | C11: 451@F01001509 | D11: 451 | E11: @F | F11: 01 | G11: 15 | H11: 9 | I11: State | J11: CHRIS FOX | K11: 840 WEST 11TH STREET | M11: 32401 | N11: PANAMA CITY | O11: FL | P11: 22-Jun-10 | Q11: 8509146425 | R11: WRRB8 | S11: Customer Managed CPE | T11: $0.00 | U11: $0.00 | V11: WRRB8451@F01001509 | W11: $0.00 | X11: =VLOOKUP(R11,'USOC Linked Table 2'!$B$2:$K$1066,10,FALSE) -> $0.00 | Y11: $0.00 | Z11: 0 | AA11: 850914
A12: MFN | B12: 106659 | C12: 451@F01001707 | D12: 451 | E12: @F | F12: 01 | G12: 17 | H12: 7 | I12: State | J12: CHRISTINE GODING | K12: 250 S. BROADWAY AVE. | L12: SERVER ROOM IN MAPPING DEPT. | M12: 33830 | N12: BARTOW | O12: FL | P12: 18-May-10 | Q12: 8505345888 | R12: WRRB8 | S12: Customer Managed CPE | T12: $0.00 | U12: $0.00 | V12: WRRB8451@F01001707 | W12: $0.00 | X12: =VLOOKUP(R12,'USOC Linked Table 2'!$B$2:$K$1066,10,FALSE) -> $0.00 | Y12: $0.00 | Z12: 0 | AA12: 850534
A13: MFN | B13: 106665 | C13: 451@F01001807 | D13: 451 | E13: @F | F13: 01 | G13: 18 | H13: 7 | I13: State | J13: GUY RINER | K13: 96135 NASSAU PLACE | L13: SUITE 3, SERVER ROOM | M13: 32097 | N13: YULEE | O13: FL | P13: 28-Apr-10 | Q13: 9044917505 | R13: WRRB8 | S13: Customer Managed CPE | T13: $0.00 | U13: $0.00 | V13: WRRB8451@F01001807 | W13: $0.00 | X13: =VLOOKUP(R13,'USOC Linked Table 2'!$B$2:$K$1066,10,FALSE) -> $0.00 | Y13: $0.00 | Z13: 0 | AA13: 904491
A14: MFN | B14: 106910 | C14: 451@F01001907 | D14: 451 | E14: @F | F14: 01 | G14: 19 | H14: 7 | I14: State | J14: DANA SUTHERLAND | K14: 108 N. JEFFERSON ST. | L14: COUNTY COURTHOUSE | M14: 32347 | N14: PERRY | O14: FL | P14: 21-Jun-10 | Q14: 8508383515 | R14: WRRB8 | S14: Customer Managed CPE | T14: $0.00 | U14: $0.00 | V14: WRRB8451@F01001907 | W14: $0.00 | X14: =VLOOKUP(R14,'USOC Linked Table 2'!$B$2:$K$1066,10,FALSE) -> $0.00 | Y14: $0.00 | Z14: 0 | AA14: 850838
A15: MFN | B15: 106916 | C15: 451@F01002007 | D15: 451 | E15: @F | F15: 01 | G15: 20 | H15: 7 | I15: State | J15: PETE VAN DEMARK | K15: 3301 TAMIAMI TRAIL EAST | L15: BLDG. F, 4TH FLOOR | M15: 34112 | N15: NAPLES | O15: FL | P15: 24-May-10 | Q15: 2397748826 | R15: WRRB8 | S15: Customer Managed CPE | T15: $0.00 | U15: $0.00 | V15: WRRB8451@F01002007 | W15: $0.00 | X15: =VLOOKUP(R15,'USOC Linked Table 2'!$B$2:$K$1066,10,FALSE) -> $0.00 | Y15: $0.00 | Z15: 0 | AA15: 239774
A16: MFN | B16: 106922 | C16: 451@F01002107 | D16: 451 | E16: @F | F16: 01 | G16: 21 | H16: 7 | I16: State | J16: DAVID STEVENS | K16: 213 PALAFOX PLACE | L16: 2ND FLOOR TELECOMM CLOSET | M16: 32502 | N16: PENSACOLA | O16: FL | P16: 3-Jun-10 | Q16: 8505953900 | R16: WRRB8 | S16: Customer Managed CPE | T16: $0.00 | U16: $0.00 | V16: WRRB8451@F01002107 | W16: $0.00 | X16: =VLOOKUP(R16,'USOC Linked Table 2'!$B$2:$K$1066,10,FALSE) -> $0.00 | Y16: $0.00 | Z16: 0 | AA16: 850595
A17: MFN | B17: 229181 | C17: 451@F01002212 | D17: 451 | E17: @F | F17: 01 | G17: 22 | H17: 12 | I17: State | J17: TOMMY HARDEE | K17: 239 SW PINCKNEY ST | L17: TELECOMMUNICATIONS ROOM | M17: 32340 | N17: MADISON | O17: FL | P17: 11-Jul-12 | Q17: 8509736507 | R17: WRRB8 | S17: Customer Managed CPE | T17: $0.00 | U17: $0.00 | V17: WRRB8451@F01002212 | W17: $0.00 | X17: =VLOOKUP(R17,'USOC Linked Table 2'!$B$2:$K$1066,10,FALSE) -> $0.00 | Y17: $0.00 | Z17: 0 | AA17: 850973
A18: MFN | B18: 106934 | C18: 451@F01002307 | D18: 451 | E18: @F | F18: 01 | G18: 23 | H18: 7 | I18: State | J18: TJ JAMES | K18: 301 S. MONROE STREET | L18: LEON COUNTY COURTHOUSE | M18: 32301 | N18: TALLAHASSEE | O18: FL | P18: 25-May-10 | Q18: 8504881350 | R18: WRRB8 | S18: Customer Managed CPE | T18: $0.00 | U18: $0.00 | V18: WRRB8451@F01002307 | W18: $0.00 | X18: =VLOOKUP(R18,'USOC Linked Table 2'!$B$2:$K$1066,10,FALSE) -> $0.00 | Y18: $0.00 | Z18: 0 | AA18: 850488
A19: MFN | B19: 106940 | C19: 451@F01002407 | D19: 451 | E19: @F | F19: 01 | G19: 24 | H19: 7 | I19: State | J19: GARY BUCHANAN | K19: 4455 AVENUE A | L19: MAIN TELECOMM CLOSET | M19: 32095 | N19: ST. AUGUSTINE | O19: FL | P19: 8-Jun-10 | Q19: 9048232238 | R19: WRRB8 | S19: Customer Managed CPE | T19: $0.00 | U19: $0.00 | V19: WRRB8451@F01002407 | W19: $0.00 | X19: =VLOOKUP(R19,'USOC Linked Table 2'!$B$2:$K$1066,10,FALSE) -> $0.00 | Y19: $0.00 | Z19: 0 | AA19: 904823
A20: MFN | B20: 106946 | C20: 451@F01002507 | D20: 451 | E20: @F | F20: 01 | G20: 25 | H20: 7 | I20: State | J20: JO HUTCHERSON | K20: 6495 CAROLINE STREET | L20: SUITE F, SERVER ROOM | M20: 32570 | N20: MILTON | O20: FL | P20: 21-Jun-10 | Q20: 8509831900 | R20: WRRB8 | S20: Customer Managed CPE | T20: $0.00 | U20: $0.00 | V20: WRRB8451@F01002507 | W20: $0.00 | X20: =VLOOKUP(R20,'USOC Linked Table 2'!$B$2:$K$1066,10,FALSE) -> $0.00 | Y20: $0.00 | Z20: 0 | AA20: 850983
A21: MFN | B21: 106952 | C21: 451@F01002607 | D21: 451 | E21: @F | F21: 01 | G21: 26 | H21: 7 | I21: State | J21: RON COBBS | K21: 315 WEST MAIN STREET | L21: ADMIN BLDG, SERVER ROOM | M21: 32778 | N21: TAVARES | O21: FL | P21: 7-Jun-10 | Q21: 3523439635 | R21: WRRB8 | S21: Customer Managed CPE | T21: $0.00 | U21: $0.00 | V21: WRRB8451@F01002607 | W21: $0.00 | X21: =VLOOKUP(R21,'USOC Linked Table 2'!$B$2:$K$1066,10,FALSE) -> $0.00 | Y21: $0.00 | Z21: 0 | AA21: 352343
A22: MFN | B22: 106964 | C22: 451@F01002807 | D22: 451 | E22: @F | F22: 01 | G22: 28 | H22: 7 | I22: State | J22: MIKE MILLER | K22: 25 E. HICKPOCHEE AVENUE | L22: MAIN COMPUTER ROOM | M22: 33935 | N22: LABELLE | O22: FL | P22: 7-Jun-10 | Q22: 8636755315 | R22: WRRB8 | S22: Customer Managed CPE | T22: $0.00 | U22: $0.00 | V22: WRRB8451@F01002807 | W22: $0.00 | X22: =VLOOKUP(R22,'USOC Linked Table 2'!$B$2:$K$1066,10,FALSE) -> $0.00 | Y22: $0.00 | Z22: 0 | AA22: 863675
A23: MFN | B23: 106976 | C23: 451@F01003007 | D23: 451 | E23: @F | F23: 01 | G23: 30 | H23: 7 | I23: State | J23: LEE WHITE | K23: 2725 JUDGE FRAN JAMISON WAY | L23: BLDG. C, 1ST FLOOR MDF | M23: 32940 | N23: VIERA | O23: FL | P23: 8-Jun-10 | Q23: 3216332175 | R23: WRRB8 | S23: Customer Managed CPE | T23: $0.00 | U23: $0.00 | V23: WRRB8451@F01003007 | W23: $0.00 | X23: =VLOOKUP(R23,'USOC Linked Table 2'!$B$2:$K$1066,10,FALSE) -> $0.00 | Y23: $0.00 | Z23: 0 | AA23: 321633
A24: MFN | B24: 106982 | C24: 451@F01003107 | D24: 451 | E24: @F | F24: 01 | G24: 31 | H24: 7 | I24: State | J24: SHIRLEY LAUGHERY | K24: 14236 6TH STREET | L24: EAST SIDE COMM CLOSET | M24: 33523 | N24: DADE CITY | O24: FL | P24: 17-Jun-10 | Q24: 3523214302 | R24: WRRB8 | S24: Customer Managed CPE | T24: $0.00 | U24: $0.00 | V24: WRRB8451@F01003107 | W24: $0.00 | X24: =VLOOKUP(R24,'USOC Linked Table 2'!$B$2:$K$1066,10,FALSE) -> $0.00 | Y24: $0.00 | Z24: 0 | AA24: 352321
A25: MFN | B25: 201726 | C25: 451@F01003110 | D25: 451 | E25: @F | F25: 01 | G25: 31 | H25: 10 | I25: State | J25: DIANE HAGEN | K25: 304 NW 2ND STREET | M25: 34972 | N25: OKEECHOBEE | O25: FL | P25: 9-Jun-10 | Q25: 8637634014 | R25: WRRB8 | S25: Customer Managed CPE | T25: $0.00 | U25: $0.00 | V25: WRRB8451@F01003110 | W25: $0.00 | X25: =VLOOKUP(R25,'USOC Linked Table 2'!$B$2:$K$1066,10,FALSE) -> $0.00 | Y25: $0.00 | Z25: 0 | AA25: 863763
A26: MFN | B26: 106988 | C26: 451@F01003207 | D26: 451 | E26: @F | F26: 01 | G26: 32 | H26: 7 | I26: State | J26: NICK FRILLING | K26: 35 NORTH 5TH STREET, SUITE A | L26: SERVER ROOM | M26: 32063 | N26: MACCLENNY | O26: FL | P26: 9-Jun-10 | Q26: 9046534545 | R26: WRRB8 | S26: Customer Managed CPE | T26: $0.00 | U26: $0.00 | V26: WRRB8451@F01003207 | W26: $0.00 | X26: =VLOOKUP(R26,'USOC Linked Table 2'!$B$2:$K$1066,10,FALSE) -> $0.00 | Y26: $0.00 | Z26: 0 | AA26: 904653
A27: MFN | B27: 106994 | C27: 451@F01003307 | D27: 451 | E27: @F | F27: 01 | G27: 33 | H27: 7 | I27: State | J27: JOHNNY NICHOLS | K27: 601A N. PEARL STREET | L27: SUITE 205A, MAIN COMPUTER ROOM | M27: 32536 | N27: CRESTVIEW | O27: FL | P27: 7-Jun-10 | Q27: 8506895018 | R27: WRRB8 | S27: Customer Managed CPE | T27: $0.00 | U27: $0.00 | V27: WRRB8451@F01003307 | W27: $0.00 | X27: =VLOOKUP(R27,'USOC Linked Table 2'!$B$2:$K$1066,10,FALSE) -> $0.00 | Y27: $0.00 | Z27: 0 | AA27: 850689
A28: MFN | B28: 107000 | C28: 451@F01003407 | D28: 451 | E28: @F | F28: 01 | G28: 34 | H28: 7 | I28: State | J28: LEE MEADOR | K28: 120 NORTH APOPKA AVENUE | M28: 34450 | N28: INVERNESS | O28: FL | P28: 17-Jun-10 | Q28: 3523416740 | R28: WRRB8 | S28: Customer Managed CPE | T28: $0.00 | U28: $0.00 | V28: WRRB8451@F01003407 | W28: $0.00 | X28: =VLOOKUP(R28,'USOC Linked Table 2'!$B$2:$K$1066,10,FALSE) -> $0.00 | Y28: $0.00 | Z28: 0 | AA28: 352341
A29: MFN | B29: 107006 | C29: 451@F01003507 | D29: 451 | E29: @F | F29: 01 | G29: 35 | H29: 7 | I29: State | J29: HOLLY WHIDDON | K29: 500 AVENUE J,COUNTY COURTHOUSE | L29: 1ST FLOOR SERVER ROOM | M29: 33471 | N29: MOORE HAVEN | O29: FL | P29: 1-Jun-10 | Q29: 8639466005 | R29: WRRB8 | S29: Customer Managed CPE | T29: $0.00 | U29: $0.00 | V29: WRRB8451@F01003507 | W29: $0.00 | X29: =VLOOKUP(R29,'USOC Linked Table 2'!$B$2:$K$1066,10,FALSE) -> $0.00 | Y29: $0.00 | Z29: 0 | AA29: 863946
A30: MFN | B30: 115698 | C30: 451@F01003607 | D30: 451 | E30: @F | F30: 01 | G30: 36 | H30: 7 | I30: State | J30: CAROL HOMER | K30: 1769 E. MOODY BLVD. | L30: BUILDING 2,1ST FLOOR E.WING | M30: 32110 | N30: BUNNELL | O30: FL | P30: 7-Jun-10 | Q30: 3864377447 | R30: WRRB8 | S30: Customer Managed CPE | T30: $0.00 | U30: $0.00 | V30: WRRB8451@F01003607 | W30: $0.00 | X30: =VLOOKUP(R30,'USOC Linked Table 2'!$B$2:$K$1066,10,FALSE) -> $0.00 | Y30: $0.00 | Z30: 0 | AA30: 386437
A31: MFN | B31: 140170 | C31: 451@F01003707 | D31: 451 | E31: @F | F31: 01 | G31: 37 | H31: 7 | I31: State | O31: FL | P31: 9/26/2007 12:11 | Q31: 3867921426 | R31: WRRB8 | S31: Customer Managed CPE | T31: $0.00 | U31: $0.00 | V31: WRRB8451@F01003707 | W31: $0.00 | X31: =VLOOKUP(R31,'USOC Linked Table 2'!$B$2:$K$1066,10,FALSE) -> $0.00 | Y31: $0.00 | Z31: 0 | AA31: 386792
A32: MFN | B32: 107024 | C32: 451@F01003907 | D32: 451 | E32: @F | F32: 01 | G32: 39 | H32: 7 | I32: State | J32: VICKI HARRIS | K32: 2851 JEFFERSON STREET | L32: 1ST FLOOR TELECOMM CLOSET | M32: 32448 | N32: MARIANNA | O32: FL | P32: 4-Jun-10 | Q32: 8504829652 | R32: WRRB8 | S32: Customer Managed CPE | T32: $0.00 | U32: $0.00 | V32: WRRB8451@F01003907 | W32: $0.00 | X32: =VLOOKUP(R32,'USOC Linked Table 2'!$B$2:$K$1066,10,FALSE) -> $0.00 | Y32: $0.00 | Z32: 0 | AA32: 850482
A33: MFN | B33: 237033 | C33: 451@F01003912 | D33: 451 | E33: @F | F33: 01 | G33: 39 | H33: 12 | I33: State | J33: GLENDA WILLIAMS | K33: 220 PINE AVE. SW | M33: 32064 | N33: LIVE OAK | O33: FL | P33: 2-Jan-13 | Q33: 3863622616 | R33: WRRB8 | S33: Customer Managed CPE | T33: $0.00 | U33: $0.00 | V33: WRRB8451@F01003912 | W33: $0.00 | X33: =VLOOKUP(R33,'USOC Linked Table 2'!$B$2:$K$1066,10,FALSE) -> $0.00 | Y33: $0.00 | Z33: 0 | AA33: 386362
A34: MFN | B34: 107030 | C34: 451@F01004107 | D34: 451 | E34: @F | F34: 01 | G34: 41 | H34: 7 | I34: State | J34: DEBBIE DENT | K34: 135 SE MARTIN LUTHER KING BLVD | L34: MAIN COMPUTER ROOM | M34: 34994 | N34: STUART | O34: FL | P34: 9-Jun-10 | Q34: 7722885637 | R34: WRRB8 | S34: Customer Managed CPE | T34: $0.00 | U34: $0.00 | V34: WRRB8451@F01004107 | W34: $0.00 | X34: =VLOOKUP(R34,'USOC Linked Table 2'!$B$2:$K$1066,10,FALSE) -> $0.00 | Y34: $0.00 | Z34: 0 | AA34: 772288
A35: MFN | B35: 107042 | C35: 451@F01004407 | D35: 451 | E35: @F | F35: 01 | G35: 44 | H35: 7 | I35: State | J35: MIKE PUGH | K35: 120 WEST INDIANA AVENUE | M35: 32720 | N35: DELAND | O35: FL | P35: 14-Jun-10 | Q35: 3868225776 | R35: WRRB8 | S35: Customer Managed CPE | T35: $0.00 | U35: $0.00 | V35: WRRB8451@F01004407 | W35: $0.00 | X35: =VLOOKUP(R35,'USOC Linked Table 2'!$B$2:$K$1066,10,FALSE) -> $0.00 | Y35: $0.00 | Z35: 0 | AA35: 386822
A36: MFN | B36: 107060 | C36: 451@F01004707 | D36: 451 | E36: @F | F36: 01 | G36: 47 | H36: 7 | I36: State | J36: MELANIE AYCOCK | K36: 20859 CENTRAL AVENUE EAST | M36: 32424 | N36: BLOUNTSTOWN | O36: FL | P36: 9-Jun-10 | Q36: 8506748568 | R36: WRRB8 | S36: Customer Managed CPE | T36: $0.00 | U36: $0.00 | V36: WRRB8451@F01004707 | W36: $0.00 | X36: =VLOOKUP(R36,'USOC Linked Table 2'!$B$2:$K$1066,10,FALSE) -> $0.00 | Y36: $0.00 | Z36: 0 | AA36: 850674
A37: MFN | B37: 107066 | C37: 451@F01004807 | D37: 451 | E37: @F | F37: 01 | G37: 48 | H37: 7 | I37: State | J37: JOHN HARANZO | K37: 1500 EAST AIRPORT BLVD. | L37: COMPUTER ROOM | M37: 32773 | N37: SANFORD | O37: FL | P37: 9-Jun-10 | Q37: 4077087717 | R37: WRRB8 | S37: Customer Managed CPE | T37: $0.00 | U37: $0.00 | V37: WRRB8451@F01004807 | W37: $0.00 | X37: =VLOOKUP(R37,'USOC Linked Table 2'!$B$2:$K$1066,10,FALSE) -> $0.00 | Y37: $0.00 | Z37: 0 | AA37: 407708
A38: MFN | B38: 107072 | C38: 451@F01004907 | D38: 451 | E38: @F | F38: 01 | G38: 49 | H38: 7 | I38: State | J38: JOHN SPRADLIN | K38: 4132 OKEECHOBEE ROAD | L38: SERVER ROOM | M38: 34947 | N38: FORT PIERCE | O38: FL | P38: 22-Jun-10 | Q38: 7724621117 | R38: WRRB8 | S38: Customer Managed CPE | T38: $0.00 | U38: $0.00 | V38: WRRB8451@F01004907 | W38: $0.00 | X38: =VLOOKUP(R38,'USOC Linked Table 2'!$B$2:$K$1066,10,FALSE) -> $0.00 | Y38: $0.00 | Z38: 0 | AA38: 772462
A39: MFN | B39: 107090 | C39: 451@F01005207 | D39: 451 | E39: @F | F39: 01 | G39: 52 | H39: 7 | I39: State | J39: TERRY WILLIAMS | K39: 101 SOUTH WASHINGTON BLVD. | L39: 7TH FLOOR DATA CENTER | M39: 34236 | N39: SARASOTA | O39: FL | P39: 25-May-10 | Q39: 9416500994 | R39: WRRB8 | S39: Customer Managed CPE | T39: $0.00 | U39: $0.00 | V39: WRRB8451@F01005207 | W39: $0.00 | X39: =VLOOKUP(R39,'USOC Linked Table 2'!$B$2:$K$1066,10,FALSE) -> $0.00 | Y39: $0.00 | Z39: 0 | AA39: 941650
A40: MFN | B40: 107096 | C40: 451@F01005307 | D40: 451 | E40: @F | F40: 01 | G40: 53 | H40: 7 | I40: State | J40: GARY GORDON | K40: 4375 43RD AVENUE WEST | L40: WEST OUTSIDE TELCO ROOM | M40: 32967 | N40: VERO BEACH | O40: FL | P40: 17-Jun-10 | Q40: 7722263438 | R40: WRRB8 | S40: Customer Managed CPE | T40: $0.00 | U40: $0.00 | V40: WRRB8451@F01005307 | W40: $0.00 | X40: =VLOOKUP(R40,'USOC Linked Table 2'!$B$2:$K$1066,10,FALSE) -> $0.00 | Y40: $0.00 | Z40: 0 | AA40: 772226
A41: MFN | B41: 107102 | C41: 451@F01005407 | D41: 451 | E41: @F | F41: 01 | G41: 54 | H41: 7 | I41: State | J41: MARK NEGLEY (SOE) | K41: 201 EAST OAK STREET | L41: SUITE 104 | M41: 34266 | N41: ARCADIA | O41: FL | P41: 27-May-10 | Q41: 8639934871 | R41: WRRB8 | S41: Customer Managed CPE | T41: $0.00 | U41: $0.00 | V41: WRRB8451@F01005407 | W41: $0.00 | X41: =VLOOKUP(R41,'USOC Linked Table 2'!$B$2:$K$1066,10,FALSE) -> $0.00 | Y41: $0.00 | Z41: 0 | AA41: 863993
A42: MFN | B42: 107108 | C42: 451@F01005507 | D42: 451 | E42: @F | F42: 01 | G42: 55 | H42: 7 | I42: State | J42: KEITH NELSON | K42: 323 ST. JOHNS AVENUE | M42: 32177 | N42: PALATKA | O42: FL | P42: 16-Jun-10 | Q42: 3863293878 | R42: WRRB8 | S42: Customer Managed CPE | T42: $0.00 | U42: $0.00 | V42: WRRB8451@F01005507 | W42: $0.00 | X42: =VLOOKUP(R42,'USOC Linked Table 2'!$B$2:$K$1066,10,FALSE) -> $0.00 | Y42: $0.00 | Z42: 0 | AA42: 386329
A43: MFN | B43: 107114 | C43: 451@F01005607 | D43: 451 | E43: @F | F43: 01 | G43: 56 | H43: 7 | I43: State | J43: JEAN LEAR | K43: 971 WEST DUVAL STREET | L43: SUITE 102, SERVER ROOM | M43: 32055 | N43: LAKE CITY | O43: FL | P43: 3-Jun-10 | Q43: 3867581027 | R43: WRRB8 | S43: Customer Managed CPE | T43: $0.00 | U43: $0.00 | V43: WRRB8451@F01005607 | W43: $0.00 | X43: =VLOOKUP(R43,'USOC Linked Table 2'!$B$2:$K$1066,10,FALSE) -> $0.00 | Y43: $0.00 | Z43: 0 | AA43: 386758
A44: MFN | B44: 107120 | C44: 451@F01005707 | D44: 451 | E44: @F | F44: 01 | G44: 57 | H44: 7 | I44: State | J44: LINDA GRIFFIN (SOE) | K44: 401 LONG AVENUE | L44: MAIN TELECOMM CLOSET | M44: 32456 | N44: PORT ST. JOE | O44: FL | P44: 24-Jun-10 | Q44: 8502296117 | R44: WRRB8 | S44: Customer Managed CPE | T44: $0.00 | U44: $0.00 | V44: WRRB8451@F01005707 | W44: $0.00 | X44: =VLOOKUP(R44,'USOC Linked Table 2'!$B$2:$K$1066,10,FALSE) -> $0.00 | Y44: $0.00 | Z44: 0 | AA44: 850229
A45: MFN | B45: 107126 | C45: 451@F01005807 | D45: 451 | E45: @F | F45: 01 | G45: 58 | H45: 7 | I45: State | J45: KAREN KIESLICH | K45: 580 SOUTH COMMERCE AVENUE | M45: 33870 | N45: SEBRING | O45: FL | P45: 15-Jun-10 | Q45: 8634026655 | R45: WRRB8 | S45: Customer Managed CPE | T45: $0.00 | U45: $0.00 | V45: WRRB8451@F01005807 | W45: $0.00 | X45: =VLOOKUP(R45,'USOC Linked Table 2'!$B$2:$K$1066,10,FALSE) -> $0.00 | Y45: $0.00 | Z45: 0 | AA45: 863402
A46: MFN | B46: 107132 | C46: 451@F01005907 | D46: 451 | E46: @F | F46: 01 | G46: 59 | H46: 7 | I46: State | J46: MICHELLE HAGAN | K46: 421 SOUTH COURT STREET | L46: WALL RACK IN OFFICE | M46: 32621 | N46: BRONSON | O46: FL | P46: 10-Jun-10 | Q46: 3524865163 | R46: WRRB8 | S46: Customer Managed CPE | T46: $0.00 | U46: $0.00 | V46: WRRB8451@F01005907 | W46: $0.00 | X46: =VLOOKUP(R46,'USOC Linked Table 2'!$B$2:$K$1066,10,FALSE) -> $0.00 | Y46: $0.00 | Z46: 0 | AA46: 352486
A47: MFN | B47: 107144 | C47: 451@F01006107 | D47: 451 | E47: @F | F47: 01 | G47: 61 | H47: 7 | I47: State | J47: IDA ELLIOTT | K47: 47 AVENUE F | L47: MAIN COMPUTER ROOM | M47: 32320 | N47: APALACHICOLA | O47: FL | P47: 24-Jun-10 | Q47: 8506539520 | R47: WRRB8 | S47: Customer Managed CPE | T47: $0.00 | U47: $0.00 | V47: WRRB8451@F01006107 | W47: $0.00 | X47: =VLOOKUP(R47,'USOC Linked Table 2'!$B$2:$K$1066,10,FALSE) -> $0.00 | Y47: $0.00 | Z47: 0 | AA47: 850653
A48: MFN | B48: 224088 | C48: 451@F01006111 | D48: 451 | E48: @F | F48: 01 | G48: 61 | H48: 11 | I48: State | J48: TAMMY RODDENBERRY | K48: 175 WEST MAIN ST. | L48: OLD LIBRARY TELECOMM ROOM | M48: 32054 | N48: LAKE BUTLER | O48: FL | P48: 6-Dec-11 | Q48: 3864962236 | R48: WRRB8 | S48: Customer Managed CPE | T48: $0.00 | U48: $0.00 | V48: WRRB8451@F01006111 | W48: $0.00 | X48: =VLOOKUP(R48,'USOC Linked Table 2'!$B$2:$K$1066,10,FALSE) -> $0.00 | Y48: $0.00 | Z48: 0 | AA48: 386496
A49: MFN | B49: 107150 | C49: 451@F01006207 | D49: 451 | E49: @F | F49: 01 | G49: 62 | H49: 7 | I49: State | J49: JOHN WOLF | K49: 2509 E.IRLO BRONSON MEMOR.HGWY | L49: COMPUTER/SERVER ROOM | M49: 34744 | N49: KISSIMMEE | O49: FL | P49: 8-Jun-10 | Q49: 4073433900 | R49: WRRB8 | S49: Customer Managed CPE | T49: $0.00 | U49: $0.00 | V49: WRRB8451@F01006207 | W49: $0.00 | X49: =VLOOKUP(R49,'USOC Linked Table 2'!$B$2:$K$1066,10,FALSE) -> $0.00 | Y49: $0.00 | Z49: 0 | AA49: 407343
A50: MFN | B50: 107162 | C50: 451@F01006407 | D50: 451 | E50: @F | F50: 01 | G50: 64 | H50: 7 | I50: State | J50: WILL BOYETT OR VIRGILIO | K50: 26 NE 1ST STREET | L50: WILSON BLDG., SERVER ROOM | M50: 32601 | N50: GAINESVILLE | O50: FL | P50: 23-Jun-10 | Q50: 3523387300 | R50: WRRB8 | S50: Customer Managed CPE | T50: $0.00 | U50: $0.00 | V50: WRRB8451@F01006407 | W50: $0.00 | X50: =VLOOKUP(R50,'USOC Linked Table 2'!$B$2:$K$1066,10,FALSE) -> $0.00 | Y50: $0.00 | Z50: 0 | AA50: 352338
A51: MFN | B51: 107180 | C51: 451@F01006707 | D51: 451 | E51: @F | F51: 01 | G51: 67 | H51: 7 | I51: State | J51: MARCIA WOOD (SOE) | K51: 10818 NW STATE ROAD 20 | L51: COUNTY COURTHOUSE | M51: 32321 | N51: BRISTOL | O51: FL | P51: 29-Jun-10 | Q51: 8506435226 | R51: WRRB8 | S51: Customer Managed CPE | T51: $0.00 | U51: $0.00 | V51: WRRB8451@F01006707 | W51: $0.00 | X51: =VLOOKUP(R51,'USOC Linked Table 2'!$B$2:$K$1066,10,FALSE) -> $0.00 | Y51: $0.00 | Z51: 0 | AA51: 850643
A52: MFN | B52: 107192 | C52: 451@F01006907 | D52: 451 | E52: @F | F52: 01 | G52: 69 | H52: 7 | I52: State | J52: MONICA HOUSE | K52: 16 SOUTH MADISON STREET | M52: 32351 | N52: QUINCY | O52: FL | P52: 11-Jun-10 | Q52: 8506279910 | R52: WRRB8 | S52: Customer Managed CPE | T52: $0.00 | U52: $0.00 | V52: WRRB8451@F01006907 | W52: $0.00 | X52: =VLOOKUP(R52,'USOC Linked Table 2'!$B$2:$K$1066,10,FALSE) -> $0.00 | Y52: $0.00 | Z52: 0 | AA52: 850627
A53: MFN | B53: 105925 | C53: 451@F01007007 | D53: 451 | E53: @F | F53: 01 | G53: 70 | H53: 7 | I53: State | J53: LORIE HARVEY | K53: 3115 B CRAWFORDVILLE HIGHWAY | L53: MAIN TELECOMM CLOSET | M53: 32327 | N53: CRAWFORDVILLE | O53: FL | P53: 18-Jun-10 | Q53: 8509267575 | R53: WRRB8 | S53: Customer Managed CPE | T53: $0.00 | U53: $0.00 | V53: WRRB8451@F01007007 | W53: $0.00 | X53: =VLOOKUP(R53,'USOC Linked Table 2'!$B$2:$K$1066,10,FALSE) -> $0.00 | Y53: $0.00 | Z53: 0 | AA53: 850926
A54: MFN | B54: 107198 | C54: 451@F01007107 | D54: 451 | E54: @F | F54: 01 | G54: 71 | H54: 7 | I54: State | J54: LANA MORGAN | K54: 120 WEST MAIN STREET | M54: 32066 | N54: MAYO | O54: FL | P54: 10-Jun-10 | Q54: 3862941261 | R54: WRRB8 | S54: Customer Managed CPE | T54: $0.00 | U54: $0.00 | V54: WRRB8451@F01007107 | W54: $0.00 | X54: =VLOOKUP(R54,'USOC Linked Table 2'!$B$2:$K$1066,10,FALSE) -> $0.00 | Y54: $0.00 | Z54: 0 | AA54: 386294
A55: MFN | B55: 107210 | C55: 451@F01007307 | D55: 451 | E55: @F | F55: 01 | G55: 73 | H55: 7 | I55: State | J55: TIM BRACEWELL | K55: 112 SOUTH MAIN STREET | M55: 32693 | N55: TRENTON | O55: FL | P55: 15-Jun-10 | Q55: 3524633443 | R55: WRRB8 | S55: Customer Managed CPE | T55: $0.00 | U55: $0.00 | V55: WRRB8451@F01007307 | W55: $0.00 | X55: =VLOOKUP(R55,'USOC Linked Table 2'!$B$2:$K$1066,10,FALSE) -> $0.00 | Y55: $0.00 | Z55: 0 | AA55: 352463
A56: MFN | B56: 107222 | C56: 451@F01007507 | D56: 451 | E56: @F | F56: 01 | G56: 75 | H56: 7 | I56: State | J56: JEFF USSERY (SOE) | K56: 315 N. 6TH AVE. | L56: FRONT MAIN OFFICE | M56: 33873 | N56: WAUCHULA | O56: FL | P56: 2-Jun-10 | Q56: 8637736061 | R56: WRRB8 | S56: Customer Managed CPE | T56: $0.00 | U56: $0.00 | V56: WRRB8451@F01007507 | W56: $0.00 | X56: =VLOOKUP(R56,'USOC Linked Table 2'!$B$2:$K$1066,10,FALSE) -> $0.00 | Y56: $0.00 | Z56: 0 | AA56: 863773
A57: MFN | B57: 107228 | C57: 451@F01007607 | D57: 451 | E57: @F | F57: 01 | G57: 76 | H57: 7 | I57: State | J57: JOYCE GRIFFIN | K57: 530 WHITEHEAD STREET | M57: 33040 | N57: KEY WEST | O57: FL | P57: 5-May-10 | Q57: 3052923416 | R57: WRRB8 | S57: Customer Managed CPE | T57: $0.00 | U57: $0.00 | V57: WRRB8451@F01007607 | W57: $0.00 | X57: =VLOOKUP(R57,'USOC Linked Table 2'!$B$2:$K$1066,10,FALSE) -> $0.00 | Y57: $0.00 | Z57: 0 | AA57: 305292
A58: MFN | B58: 107234 | C58: 451@F01007707 | D58: 451 | E58: @F | F58: 01 | G58: 77 | H58: 7 | I58: State | J58: CHRIS THUROW | K58: 945 NORTH TEMPLE AVENUE | M58: 32091 | N58: STARKE | O58: FL | P58: 25-Jun-10 | Q58: 9049666377 | R58: WRRB8 | S58: Customer Managed CPE | T58: $0.00 | U58: $0.00 | V58: WRRB8451@F01007707 | W58: $0.00 | X58: =VLOOKUP(R58,'USOC Linked Table 2'!$B$2:$K$1066,10,FALSE) -> $0.00 | Y58: $0.00 | Z58: 0 | AA58: 904966
A59: MFN | B59: 108296 | C59: 451@F01008707 | D59: 451 | E59: @F | F59: 01 | G59: 87 | H59: 7 | I59: State | J59: BELINDA RIVERA | K59: 900 NORTH MAIN STREET | M59: 33513 | N59: BUSHNELL | O59: FL | P59: 23-Jun-10 | Q59: 3527930230 | R59: WRRB8 | S59: Customer Managed CPE | T59: $0.00 | U59: $0.00 | V59: WRRB8451@F01008707 | W59: $0.00 | X59: =VLOOKUP(R59,'USOC Linked Table 2'!$B$2:$K$1066,10,FALSE) -> $0.00 | Y59: $0.00 | Z59: 0 | AA59: 352793
A60: MFN | B60: 116256 | C60: 451@F01011207 | D60: 451 | E60: @F | F60: 01 | G60: 112 | H60: 7 | I60: State | J60: KEITH BEERS, EXT.15026 | K60: 20 NORTH MAIN STREET | L60: 1ST FLOOR TELECOMM CLOSET | M60: 34601 | N60: BROOKSVILLE | O60: FL | P60: 15-Jun-10 | Q60: 3527544009 | R60: WRRB8 | S60: Customer Managed CPE | T60: $0.00 | U60: $0.00 | V60: WRRB8451@F01011207 | W60: $0.00 | X60: =VLOOKUP(R60,'USOC Linked Table 2'!$B$2:$K$1066,10,FALSE) -> $0.00 | Y60: $0.00 | Z60: 0 | AA60: 352754
A61: MFN | B61: 147390 | C61: 451@F01020407 | D61: 451 | E61: @F | F61: 01 | G61: 204 | H61: 7 | I61: State | J61: BOBBY BEASLEY | K61: 571 E. NELSON AVENUE | L61: ROOM 1K02B, RECORDS VAULT | M61: 32435 | N61: DEFUNIAK SPRINGS | O61: FL | P61: 8-Jun-10 | Q61: 8508928112 | R61: WRRB8 | S61: Customer Managed CPE | T61: $0.00 | U61: $0.00 | V61: WRRB8451@F01020407 | W61: $0.00 | X61: =VLOOKUP(R61,'USOC Linked Table 2'!$B$2:$K$1066,10,FALSE) -> $0.00 | Y61: $0.00 | Z61: 0 | AA61: 850892
